Workbook

Sheet Contents
A2: Powerlink Capex Model, Revenue Reset 2023 - 2027
B4: This capex model brings together various capex forecasts and project information, to calculate the overall capex forecast for the next regulatory control period.
B5: Inputs are provided from the repex model, and the trend based model. Additionally, bottom up project information is included for specific projects, and for current projects. The information is listed on of (113) "project sheets". Totals are calculated from these project sheets, with output reports utilised by the PTRM, RIN reports, and forecast reporting. Adjustments to the forecast are made to ensure that the top down forecast aligns with approved projects and prior year expenditure.
I8: Capex Model
E9: Inputs | N9: Outputs
D11: Motor Vehicle Disposals
D14: CPI, Escalation Rates
G16: Project Sheets
D17: Cost Allocation | G17: P_1
G18: P_25 | J18: Calculations | N18: Totals by Driver | R18: Forecast Reporting
G19: P_50 | J19: (subtotals for reporting) | N19: PTRM Input | R19: PTRM Model
D20: Data Lookups | G20: P_75 | N20: RIN 2.1.1
G21: P_100 | N21: RIN 2.2.1
G22: P_113 | N22: RIN 2.3.1 | R22: RIN Reports
N23: RIN 2.3.4
B24: Repex Model Forecast | D24: Project Data
B25: Trend Based Forecasts | D25: Project
B26: Bottom Up Project Forecasts | D26: Project Details
B27: Approved Projects
I32: Data Checks | K32: Overall Data Check | M32: =Checks!C4 -> TRUE
F34: Total In Period Incurred Expenditure, Real 21/22, $m, (net of disposals) | M34: =Checks!F21 -> 863.9269601

Sheet Inputs---->
A1: Contents

Sheet Input Rates
A1: Contents
B3: Unit Rates
B5: Conversion | C5: 2020 | D5: 2021 | E5: 2022 | F5: 2023 | G5: 2024 | H5: 2025 | I5: 2026 | J5: 2027
B6: CPI | C6: 0.01840490798 | D6: 0.005 | E6: 0.01 | F6: 0.0224870915 | G6: 0.0224870915 | H6: 0.0224870915 | I6: 0.0224870915 | J6: 0.0224870915
B7: Internal Labour Escalation real | D7: 0.004815408333 | E7: 0.006271508486 | F7: 0.003793852401 | G7: 0.005128940984 | H7: 0.008504989918 | I7: 0.01139630337 | J7: 0.006830847002
B8: External Labour Escalation real | D8: -0.005020609032 | E8: 0.0035999548 | F8: 0.003202625027 | G8: 0.004621692255 | H8: 0.008465768786 | I8: 0.0115009442 | J8: 0.005904909416
B10: 1/2 CPI | C10: =((1+C6)^0.5)-1 -> 0.009160496638 | D10: 0.002496882788 | E10: 0.004987562112 | F10: 0.01118103795 | G10: 0.01118103795 | H10: 0.01118103795 | I10: 0.01118103795 | J10: 0.01118103795
B11: 1/2 Internal Labour Escalation | D11: =((D7+1)^0.5)-1 -> 0.002404812604 | E11: 0.003130853122 | F11: 0.001895130441 | G11: 0.002561190643 | H11: 0.00424349135 | I11: 0.005682009074 | J11: 0.003409610778
B12: 1/2 External Labour Escalation | D12: -0.002513463265 | E12: 0.00179836035 | F12: 0.001600032461 | G12: 0.002308182275 | H12: 0.004223963459 | I12: 0.005734032536 | J12: 0.002948109035
B14: Convert MY Real 20/21 to MY Nominal - Non Labour | D14: 1 | E14: =D14*(1+D10)*(1+E10) -> 1.007496898 | F14: 1.023842897 | G14: 1.046866146 | H14: 1.070407121 | I14: 1.094477463 | J14: 1.119089078
B15: Convert MY Real 20/21 to MY Nominal - Internal Labour | D15: 1 | E15: =D15*(1+D10) *(1+E10)*(1+D11)*(1+E11) -> 1.01308165 | F15: 1.034698708 | G15: 1.062685844 | H15: 1.093988216 | I15: 1.129718354 | J15: 1.165646747
B16: Convert MY Real 20/21 to MY Nominal - External Labour | D16: 1 | E16: =D16*(1+D10)*(1+E10)*(1+D12)*(1+E12) -> 1.00677188 | F16: 1.026585976 | G16: 1.053777125 | H16: 1.084522227 | I16: 1.119979357 | J16: 1.155126273
B18: Convert MY Nominal to EOY Real 21/22 | C18: =Conversion[[#This Row],[2021]]*(1+C6)*(1+D10)/(1+C10) -> 1.024348362 | D18: =Conversion[[#This Row],[2022]]*(1+D6)*(1+E10)/(1+D10) -> 1.012521852 | E18: =1+E10 -> 1.004987562 | F18: =(Conversion[[#This Row],[2022]]*(1+E10))/((1+E6)*(1+F10)) -> 0.9889425953 | G18: =(Conversion[[#This Row],[2023]]*(1+F10))/((1+F6)*(1+G10)) -> 0.9671932326 | H18: =(Conversion[[#This Row],[2024]]*(1+G10))/((1+G6)*(1+H10)) -> 0.9459221937 | I18: =(Conversion[[#This Row],[2025]]*(1+H10))/((1+H6)*(1+I10)) -> 0.925118959 | J18: =(Conversion[[#This Row],[2026]]*(1+I10))/((1+I6)*(1+J10)) -> 0.9047732403
B19: Convert EOY Real 21/22 to MY Nominal - CPI Only | D19: =1/D18 -> 0.987633006 | E19: 0.9950371902 | F19: 1.011181038 | G19: 1.033919558 | H19: 1.057169402 | I19: 1.080942067 | J19: 1.10524931

Sheet Input Project
A1: Contents
B3: Project Data
B4: This sheet describes information that is common for a "project" or a class of projects (ie: output from repex model) | K4: Asset Class Breakdown | AE4: For Non-load driven project categories, 2022 and later
AE5: Used to check forecast with approved projects.
A6: ID | B6: Project Name | C6: Type | D6: Notes | E6: PQ Project Driver | F6: Check True Project Driver | G6: Capitalisation | H6: Capitalisation Check | I6: RepexDollarsBasis | J6: Check Repex Dollar Basis | K6: LinesOH | L6: LinesUG | M6: LinesRefit | N6: SubsPrimary | O6: SubsSecondary | P6: Communications | Q6: CommsCivil | R6: SwitchgCentres | S6: Land | T6: Easement | U6: CommericalBuildings | V6: IT | W6: Office | X6: OfficeMachines | Y6: MV | Z6: MovablePlant | AA6: InsuranceSpares | AB6: Check Asset Class Breakdown | AC6: DMDLCCOCSplitType | AD6: Check True RIN Splits Type | AE6: Specific Approved Project | AF6: OnlyAssetClassAllocationIsToBeUsed
A7: 1 | B7: Repex Model Replacement - Foundation Repair | C7: Future - Repex Model | E7: Replacement | F7: =ISNUMBER(MATCH(ProjectData[[#This Row],[PQ Project Driver]],Lookup_ProjectDrivers,0)) -> TRUE | G7: As Specified | H7: =ISNUMBER(MATCH(ProjectData[[#This Row],[Capitalisation]],Lookup_CapitalisationTypes,0)) -> TRUE | I7: Real2021 | J7: =ISNUMBER(MATCH(ProjectData[[#This Row],[RepexDollarsBasis]],Lookup_RepexDollarBasis,0)) -> TRUE | K7: 1 | AB7: =OR(SUM(ProjectData[[#This Row],[LinesOH]:[InsuranceSpares]])=1,ProjectData[[#This Row],[OnlyAssetClassAllocationIsToBeUsed]]=TRUE) -> TRUE | AC7: Tower Replacement | AD7: =ISNUMBER(MATCH(ProjectData[[#This Row],[DMDLCCOCSplitType]],CostAllocationSplit[Type of Project],0)) -> TRUE | AE7: FALSE | AF7: FALSE
A8: 2 | B8: Repex Model Replacement - Tower Refit | C8: Future - Repex Model | E8: Replacement | F8: =ISNUMBER(MATCH(ProjectData[[#This Row],[PQ Project Driver]],Lookup_ProjectDrivers,0)) -> TRUE | G8: As Specified | H8: =ISNUMBER(MATCH(ProjectData[[#This Row],[Capitalisation]],Lookup_CapitalisationTypes,0)) -> TRUE | I8: Real2021 | J8: =ISNUMBER(MATCH(ProjectData[[#This Row],[RepexDollarsBasis]],Lookup_RepexDollarBasis,0)) -> TRUE | K8: 1 | AB8: =OR(SUM(ProjectData[[#This Row],[LinesOH]:[InsuranceSpares]])=1,ProjectData[[#This Row],[OnlyAssetClassAllocationIsToBeUsed]]=TRUE) -> TRUE | AC8: Tower Refit | AD8: =ISNUMBER(MATCH(ProjectData[[#This Row],[DMDLCCOCSplitType]],CostAllocationSplit[Type of Project],0)) -> TRUE | AE8: FALSE | AF8: FALSE
A9: 3 | B9: Repex Model Replacement - CB Replacements | C9: Future - Repex Model | E9: Replacement | F9: =ISNUMBER(MATCH(ProjectData[[#This Row],[PQ Project Driver]],Lookup_ProjectDrivers,0)) -> TRUE | G9: As Specified | H9: =ISNUMBER(MATCH(ProjectData[[#This Row],[Capitalisation]],Lookup_CapitalisationTypes,0)) -> TRUE | I9: Real2021 | J9: =ISNUMBER(MATCH(ProjectData[[#This Row],[RepexDollarsBasis]],Lookup_RepexDollarBasis,0)) -> TRUE | N9: 1 | AB9: =OR(SUM(ProjectData[[#This Row],[LinesOH]:[InsuranceSpares]])=1,ProjectData[[#This Row],[OnlyAssetClassAllocationIsToBeUsed]]=TRUE) -> TRUE | AC9: Primary Plant - Bay | AD9: =ISNUMBER(MATCH(ProjectData[[#This Row],[DMDLCCOCSplitType]],CostAllocationSplit[Type of Project],0)) -> TRUE | AE9: FALSE | AF9: FALSE
A10: 4 | B10: Repex Model Replacement - IsolES Replacements | C10: Future - Repex Model | E10: Replacement | F10: =ISNUMBER(MATCH(ProjectData[[#This Row],[PQ Project Driver]],Lookup_ProjectDrivers,0)) -> TRUE | G10: As Specified | H10: =ISNUMBER(MATCH(ProjectData[[#This Row],[Capitalisation]],Lookup_CapitalisationTypes,0)) -> TRUE | I10: Real2021 | J10: =ISNUMBER(MATCH(ProjectData[[#This Row],[RepexDollarsBasis]],Lookup_RepexDollarBasis,0)) -> TRUE | N10: 1 | AB10: =OR(SUM(ProjectData[[#This Row],[LinesOH]:[InsuranceSpares]])=1,ProjectData[[#This Row],[OnlyAssetClassAllocationIsToBeUsed]]=TRUE) -> TRUE | AC10: Primary Plant - Bay | AD10: =ISNUMBER(MATCH(ProjectData[[#This Row],[DMDLCCOCSplitType]],CostAllocationSplit[Type of Project],0)) -> TRUE | AE10: FALSE | AF10: FALSE
A11: 5 | B11: Repex Model Replacement - VT Replacements | C11: Future - Repex Model | E11: Replacement | F11: =ISNUMBER(MATCH(ProjectData[[#This Row],[PQ Project Driver]],Lookup_ProjectDrivers,0)) -> TRUE | G11: As Specified | H11: =ISNUMBER(MATCH(ProjectData[[#This Row],[Capitalisation]],Lookup_CapitalisationTypes,0)) -> TRUE | I11: Real2021 | J11: =ISNUMBER(MATCH(ProjectData[[#This Row],[RepexDollarsBasis]],Lookup_RepexDollarBasis,0)) -> TRUE | N11: 1 | AB11: =OR(SUM(ProjectData[[#This Row],[LinesOH]:[InsuranceSpares]])=1,ProjectData[[#This Row],[OnlyAssetClassAllocationIsToBeUsed]]=TRUE) -> TRUE | AC11: Primary Plant - Bay | AD11: =ISNUMBER(MATCH(ProjectData[[#This Row],[DMDLCCOCSplitType]],CostAllocationSplit[Type of Project],0)) -> TRUE | AE11: FALSE | AF11: FALSE
A12: 6 | B12: Repex Model Replacement - CT Replacements | C12: Future - Repex Model | E12: Replacement | F12: =ISNUMBER(MATCH(ProjectData[[#This Row],[PQ Project Driver]],Lookup_ProjectDrivers,0)) -> TRUE | G12: As Specified | H12: =ISNUMBER(MATCH(ProjectData[[#This Row],[Capitalisation]],Lookup_CapitalisationTypes,0)) -> TRUE | I12: Real2021 | J12: =ISNUMBER(MATCH(ProjectData[[#This Row],[RepexDollarsBasis]],Lookup_RepexDollarBasis,0)) -> TRUE | N12: 1 | AB12: =OR(SUM(ProjectData[[#This Row],[LinesOH]:[InsuranceSpares]])=1,ProjectData[[#This Row],[OnlyAssetClassAllocationIsToBeUsed]]=TRUE) -> TRUE | AC12: Primary Plant - Bay | AD12: =ISNUMBER(MATCH(ProjectData[[#This Row],[DMDLCCOCSplitType]],CostAllocationSplit[Type of Project],0)) -> TRUE | AE12: FALSE | AF12: FALSE
A13: 7 | B13: Repex Model Replacement - Secondary Systems | C13: Future - Repex Model | E13: Replacement | F13: =ISNUMBER(MATCH(ProjectData[[#This Row],[PQ Project Driver]],Lookup_ProjectDrivers,0)) -> TRUE | G13: As Specified | H13: =ISNUMBER(MATCH(ProjectData[[#This Row],[Capitalisation]],Lookup_CapitalisationTypes,0)) -> TRUE | I13: Real2021 | J13: =ISNUMBER(MATCH(ProjectData[[#This Row],[RepexDollarsBasis]],Lookup_RepexDollarBasis,0)) -> TRUE | O13: 1 | AB13: =OR(SUM(ProjectData[[#This Row],[LinesOH]:[InsuranceSpares]])=1,ProjectData[[#This Row],[OnlyAssetClassAllocationIsToBeUsed]]=TRUE) -> TRUE | AC13: Secondary Systems | AD13: =ISNUMBER(MATCH(ProjectData[[#This Row],[DMDLCCOCSplitType]],CostAllocationSplit[Type of Project],0)) -> TRUE | AE13: FALSE | AF13: FALSE
A14: 8 | B14: Trend Based Model - Substation Buildings | C14: Future - Trend | E14: Replacement | F14: =ISNUMBER(MATCH(ProjectData[[#This Row],[PQ Project Driver]],Lookup_ProjectDrivers,0)) -> TRUE | G14: As Incurred | H14: =ISNUMBER(MATCH(ProjectData[[#This Row],[Capitalisation]],Lookup_CapitalisationTypes,0)) -> TRUE | I14: Real2021 | J14: =ISNUMBER(MATCH(ProjectData[[#This Row],[RepexDollarsBasis]],Lookup_RepexDollarBasis,0)) -> TRUE | N14: 1 | AB14: =OR(SUM(ProjectData[[#This Row],[LinesOH]:[InsuranceSpares]])=1,ProjectData[[#This Row],[OnlyAssetClassAllocationIsToBeUsed]]=TRUE) -> TRUE | AC14: Primary Plant - Bay | AD14: =ISNUMBER(MATCH(ProjectData[[#This Row],[DMDLCCOCSplitType]],CostAllocationSplit[Type of Project],0)) -> TRUE | AE14: FALSE | AF14: FALSE
A15: 9 | B15: Trend Based Model - Other | C15: Future - Trend | E15: Other | F15: =ISNUMBER(MATCH(ProjectData[[#This Row],[PQ Project Driver]],Lookup_ProjectDrivers,0)) -> TRUE | G15: As Incurred | H15: =ISNUMBER(MATCH(ProjectData[[#This Row],[Capitalisation]],Lookup_CapitalisationTypes,0)) -> TRUE | I15: Real2021 | J15: =ISNUMBER(MATCH(ProjectData[[#This Row],[RepexDollarsBasis]],Lookup_RepexDollarBasis,0)) -> TRUE | N15: 0.25 | O15: 0.25 | P15: 0.25 | R15: 0.25 | AB15: =OR(SUM(ProjectData[[#This Row],[LinesOH]:[InsuranceSpares]])=1,ProjectData[[#This Row],[OnlyAssetClassAllocationIsToBeUsed]]=TRUE) -> TRUE | AC15: Other | AD15: =ISNUMBER(MATCH(ProjectData[[#This Row],[DMDLCCOCSplitType]],CostAllocationSplit[Type of Project],0)) -> TRUE | AE15: FALSE | AF15: FALSE
A16: 10 | B16: Trend Based Model - Security and Compliance | C16: Future - Trend | E16: Security and Compliance | F16: =ISNUMBER(MATCH(ProjectData[[#This Row],[PQ Project Driver]],Lookup_ProjectDrivers,0)) -> TRUE | G16: As Incurred | H16: =ISNUMBER(MATCH(ProjectData[[#This Row],[Capitalisation]],Lookup_CapitalisationTypes,0)) -> TRUE | I16: Real2021 | J16: =ISNUMBER(MATCH(ProjectData[[#This Row],[RepexDollarsBasis]],Lookup_RepexDollarBasis,0)) -> TRUE | N16: 0.25 | O16: 0.25 | P16: 0.25 | R16: 0.25 | AB16: =OR(SUM(ProjectData[[#This Row],[LinesOH]:[InsuranceSpares]])=1,ProjectData[[#This Row],[OnlyAssetClassAllocationIsToBeUsed]]=TRUE) -> TRUE | AC16: Security and Compliance | AD16: =ISNUMBER(MATCH(ProjectData[[#This Row],[DMDLCCOCSplitType]],CostAllocationSplit[Type of Project],0)) -> TRUE | AE16: FALSE | AF16: FALSE
A17: 11 | B17: CP.02584 - H018 - Tarong - T2, T3 | C17: Future - Transformer | E17: Replacement | F17: =ISNUMBER(MATCH(ProjectData[[#This Row],[PQ Project Driver]],Lookup_ProjectDrivers,0)) -> TRUE | G17: Project Close | H17: =ISNUMBER(MATCH(ProjectData[[#This Row],[Capitalisation]],Lookup_CapitalisationTypes,0)) -> TRUE | I17: Real2021 | J17: =ISNUMBER(MATCH(ProjectData[[#This Row],[RepexDollarsBasis]],Lookup_RepexDollarBasis,0)) -> TRUE | K17: 0 | L17: 0 | M17: 0 | N17: 0.94 | O17: 0.06 | P17: 0 | R17: 0 | AB17: =OR(SUM(ProjectData[[#This Row],[LinesOH]:[InsuranceSpares]])=1,ProjectData[[#This Row],[OnlyAssetClassAllocationIsToBeUsed]]=TRUE) -> TRUE | AC17: Primary Plant - Power Transformer | AD17: =ISNUMBER(MATCH(ProjectData[[#This Row],[DMDLCCOCSplitType]],CostAllocationSplit[Type of Project],0)) -> TRUE | AE17: FALSE | AF17: FALSE
A18: 12 | B18: CP.02370 - T084 Tully - Transformer 2 Replacement | C18: Future - Transformer | E18: Replacement | F18: =ISNUMBER(MATCH(ProjectData[[#This Row],[PQ Project Driver]],Lookup_ProjectDrivers,0)) -> TRUE | G18: Project Close | H18: =ISNUMBER(MATCH(ProjectData[[#This Row],[Capitalisation]],Lookup_CapitalisationTypes,0)) -> TRUE | I18: Real2021 | J18: =ISNUMBER(MATCH(ProjectData[[#This Row],[RepexDollarsBasis]],Lookup_RepexDollarBasis,0)) -> TRUE | K18: 0 | L18: 0 | M18: 0 | N18: 0.94 | O18: 0.06 | P18: 0 | R18: 0 | AB18: =OR(SUM(ProjectData[[#This Row],[LinesOH]:[InsuranceSpares]])=1,ProjectData[[#This Row],[OnlyAssetClassAllocationIsToBeUsed]]=TRUE) -> TRUE | AC18: Primary Plant - Power Transformer | AD18: =ISNUMBER(MATCH(ProjectData[[#This Row],[DMDLCCOCSplitType]],CostAllocationSplit[Type of Project],0)) -> TRUE | AE18: FALSE | AF18: FALSE
A19: 13 | B19: CP.02478 - H002 - South Pine, T5 | C19: Future - Transformer | E19: Replacement | F19: =ISNUMBER(MATCH(ProjectData[[#This Row],[PQ Project Driver]],Lookup_ProjectDrivers,0)) -> TRUE | G19: Project Close | H19: =ISNUMBER(MATCH(ProjectData[[#This Row],[Capitalisation]],Lookup_CapitalisationTypes,0)) -> TRUE | I19: Real2021 | J19: =ISNUMBER(MATCH(ProjectData[[#This Row],[RepexDollarsBasis]],Lookup_RepexDollarBasis,0)) -> TRUE | K19: 0 | L19: 0 | M19: 0 | N19: 0.83 | O19: 0.17 | P19: 0 | R19: 0 | AB19: =OR(SUM(ProjectData[[#This Row],[LinesOH]:[InsuranceSpares]])=1,ProjectData[[#This Row],[OnlyAssetClassAllocationIsToBeUsed]]=TRUE) -> TRUE | AC19: Primary Plant - Power Transformer | AD19: =ISNUMBER(MATCH(ProjectData[[#This Row],[DMDLCCOCSplitType]],CostAllocationSplit[Type of Project],0)) -> TRUE | AE19: FALSE | AF19: FALSE
A20: 14 | B20: C55.1200 - H016 - Rocklea - T1 | C20: Future - Transformer | E20: Replacement | F20: =ISNUMBER(MATCH(ProjectData[[#This Row],[PQ Project Driver]],Lookup_ProjectDrivers,0)) -> TRUE | G20: Project Close | H20: =ISNUMBER(MATCH(ProjectData[[#This Row],[Capitalisation]],Lookup_CapitalisationTypes,0)) -> TRUE | I20: Nominal | J20: =ISNUMBER(MATCH(ProjectData[[#This Row],[RepexDollarsBasis]],Lookup_RepexDollarBasis,0)) -> TRUE | K20: 0 | L20: 0 | M20: 0 | N20: 0.8 | O20: 0.15 | P20: 0.03 | R20: 0.02 | AB20: =OR(SUM(ProjectData[[#This Row],[LinesOH]:[InsuranceSpares]])=1,ProjectData[[#This Row],[OnlyAssetClassAllocationIsToBeUsed]]=TRUE) -> TRUE | AC20: Primary Plant - Power Transformer | AD20: =ISNUMBER(MATCH(ProjectData[[#This Row],[DMDLCCOCSplitType]],CostAllocationSplit[Type of Project],0)) -> TRUE | AE20: FALSE | AF20: FALSE
A21: 15 | B21: CP.02360 - H011 - Nebo - T3, T4 | C21: Future - Transformer | E21: Replacement | F21: =ISNUMBER(MATCH(ProjectData[[#This Row],[PQ Project Driver]],Lookup_ProjectDrivers,0)) -> TRUE | G21: Project Close | H21: =ISNUMBER(MATCH(ProjectData[[#This Row],[Capitalisation]],Lookup_CapitalisationTypes,0)) -> TRUE | I21: Real2021 | J21: =ISNUMBER(MATCH(ProjectData[[#This Row],[RepexDollarsBasis]],Lookup_RepexDollarBasis,0)) -> TRUE | K21: 0 | L21: 0 | M21: 0 | N21: 0.76 | O21: 0.18 | P21: 0.06 | R21: 0 | AB21: =OR(SUM(ProjectData[[#This Row],[LinesOH]:[InsuranceSpares]])=1,ProjectData[[#This Row],[OnlyAssetClassAllocationIsToBeUsed]]=TRUE) -> TRUE | AC21: Primary Plant - Power Transformer | AD21: =ISNUMBER(MATCH(ProjectData[[#This Row],[DMDLCCOCSplitType]],CostAllocationSplit[Type of Project],0)) -> TRUE | AE21: FALSE | AF21: FALSE
A22: 16 | B22: CP.02649 - T080 - Redbank Plains - 1T, 2T | C22: Future - Transformer | E22: Replacement | F22: =ISNUMBER(MATCH(ProjectData[[#This Row],[PQ Project Driver]],Lookup_ProjectDrivers,0)) -> TRUE | G22: Project Close | H22: =ISNUMBER(MATCH(ProjectData[[#This Row],[Capitalisation]],Lookup_CapitalisationTypes,0)) -> TRUE | I22: Real2021 | J22: =ISNUMBER(MATCH(ProjectData[[#This Row],[RepexDollarsBasis]],Lookup_RepexDollarBasis,0)) -> TRUE | K22: 0 | L22: 0 | M22: 0 | N22: 1 | O22: 0 | P22: 0 | R22: 0 | AB22: =OR(SUM(ProjectData[[#This Row],[LinesOH]:[InsuranceSpares]])=1,ProjectData[[#This Row],[OnlyAssetClassAllocationIsToBeUsed]]=TRUE) -> TRUE | AC22: Primary Plant - Power Transformer | AD22: =ISNUMBER(MATCH(ProjectData[[#This Row],[DMDLCCOCSplitType]],CostAllocationSplit[Type of Project],0)) -> TRUE | AE22: FALSE | AF22: FALSE
A23: 17 | B23: C55.1203 - T053 KAMERUNGA T1 Transformer Replacement | C23: Future - Transformer | E23: Replacement | F23: =ISNUMBER(MATCH(ProjectData[[#This Row],[PQ Project Driver]],Lookup_ProjectDrivers,0)) -> TRUE | G23: Project Close | H23: =ISNUMBER(MATCH(ProjectData[[#This Row],[Capitalisation]],Lookup_CapitalisationTypes,0)) -> TRUE | I23: Nominal | J23: =ISNUMBER(MATCH(ProjectData[[#This Row],[RepexDollarsBasis]],Lookup_RepexDollarBasis,0)) -> TRUE | K23: 0 | L23: 0 | M23: 0 | N23: 0.8 | O23: 0.15 | P23: 0.03 | R23: 0.02 | AB23: =OR(SUM(ProjectData[[#This Row],[LinesOH]:[InsuranceSpares]])=1,ProjectData[[#This Row],[OnlyAssetClassAllocationIsToBeUsed]]=TRUE) -> TRUE | AC23: Primary Plant - Power Transformer | AD23: =ISNUMBER(MATCH(ProjectData[[#This Row],[DMDLCCOCSplitType]],CostAllocationSplit[Type of Project],0)) -> TRUE | AE23: FALSE | AF23: FALSE
A24: 18 | B24: C55.PROV7 - H038 - Goodna, T6 | C24: Future - Transformer | E24: Connection | F24: =ISNUMBER(MATCH(ProjectData[[#This Row],[PQ Project Driver]],Lookup_ProjectDrivers,0)) -> TRUE | G24: Project Close | H24: =ISNUMBER(MATCH(ProjectData[[#This Row],[Capitalisation]],Lookup_CapitalisationTypes,0)) -> TRUE | I24: Nominal | J24: =ISNUMBER(MATCH(ProjectData[[#This Row],[RepexDollarsBasis]],Lookup_RepexDollarBasis,0)) -> TRUE | K24: 0.05 | L24: 0 | M24: 0 | N24: 0.75 | O24: 0.15 | P24: 0.03 | R24: 0.02 | AB24: =OR(SUM(ProjectData[[#This Row],[LinesOH]:[InsuranceSpares]])=1,ProjectData[[#This Row],[OnlyAssetClassAllocationIsToBeUsed]]=TRUE) -> TRUE | AC24: Primary Plant - Power Transformer | AD24: =ISNUMBER(MATCH(ProjectData[[#This Row],[DMDLCCOCSplitType]],CostAllocationSplit[Type of Project],0)) -> TRUE | AE24: FALSE | AF24: FALSE
A25: 19 | B25: 5 Future Easement - QNI | C25: Future - Easement | E25: Easement | F25: =ISNUMBER(MATCH(ProjectData[[#This Row],[PQ Project Driver]],Lookup_ProjectDrivers,0)) -> TRUE | G25: Project Close | H25: =ISNUMBER(MATCH(ProjectData[[#This Row],[Capitalisation]],Lookup_CapitalisationTypes,0)) -> TRUE | I25: Real2021 | J25: =ISNUMBER(MATCH(ProjectData[[#This Row],[RepexDollarsBasis]],Lookup_RepexDollarBasis,0)) -> TRUE | T25: 1 | AB25: =OR(SUM(ProjectData[[#This Row],[LinesOH]:[InsuranceSpares]])=1,ProjectData[[#This Row],[OnlyAssetClassAllocationIsToBeUsed]]=TRUE) -> TRUE | AC25: Easement | AD25: =ISNUMBER(MATCH(ProjectData[[#This Row],[DMDLCCOCSplitType]],CostAllocationSplit[Type of Project],0)) -> TRUE | AE25: FALSE | AF25: FALSE
A26: 20 | B26: 6 Future Easement - CQ-SQ | C26: Future - Easement | E26: Easement | F26: =ISNUMBER(MATCH(ProjectData[[#This Row],[PQ Project Driver]],Lookup_ProjectDrivers,0)) -> TRUE | G26: Project Close | H26: =ISNUMBER(MATCH(ProjectData[[#This Row],[Capitalisation]],Lookup_CapitalisationTypes,0)) -> TRUE | I26: Real2021 | J26: =ISNUMBER(MATCH(ProjectData[[#This Row],[RepexDollarsBasis]],Lookup_RepexDollarBasis,0)) -> TRUE | T26: 1 | AB26: =OR(SUM(ProjectData[[#This Row],[LinesOH]:[InsuranceSpares]])=1,ProjectData[[#This Row],[OnlyAssetClassAllocationIsToBeUsed]]=TRUE) -> TRUE | AC26: Easement | AD26: =ISNUMBER(MATCH(ProjectData[[#This Row],[DMDLCCOCSplitType]],CostAllocationSplit[Type of Project],0)) -> TRUE | AE26: FALSE | AF26: FALSE
A27: 21 | B27: 7 Future Easement - Easement (CC) | C27: Future - Easement | E27: Easement | F27: =ISNUMBER(MATCH(ProjectData[[#This Row],[PQ Project Driver]],Lookup_ProjectDrivers,0)) -> TRUE | G27: As incurred | H27: =ISNUMBER(MATCH(ProjectData[[#This Row],[Capitalisation]],Lookup_CapitalisationTypes,0)) -> TRUE | I27: Nominal | J27: =ISNUMBER(MATCH(ProjectData[[#This Row],[RepexDollarsBasis]],Lookup_RepexDollarBasis,0)) -> TRUE | T27: 1 | AB27: =OR(SUM(ProjectData[[#This Row],[LinesOH]:[InsuranceSpares]])=1,ProjectData[[#This Row],[OnlyAssetClassAllocationIsToBeUsed]]=TRUE) -> TRUE | AC27: Easement | AD27: =ISNUMBER(MATCH(ProjectData[[#This Row],[DMDLCCOCSplitType]],CostAllocationSplit[Type of Project],0)) -> TRUE | AE27: FALSE | AF27: FALSE
A28: 22 | B28: CP.01489 T053 Kamerunga to Redlynch Line Easement Acq | C28: Current - Easement | E28: Easement | F28: =ISNUMBER(MATCH(ProjectData[[#This Row],[PQ Project Driver]],Lookup_ProjectDrivers,0)) -> TRUE | G28: Project Close | H28: =ISNUMBER(MATCH(ProjectData[[#This Row],[Capitalisation]],Lookup_CapitalisationTypes,0)) -> TRUE | I28: Nominal | J28: =ISNUMBER(MATCH(ProjectData[[#This Row],[RepexDollarsBasis]],Lookup_RepexDollarBasis,0)) -> TRUE | T28: 1 | AB28: =OR(SUM(ProjectData[[#This Row],[LinesOH]:[InsuranceSpares]])=1,ProjectData[[#This Row],[OnlyAssetClassAllocationIsToBeUsed]]=TRUE) -> TRUE | AC28: Easement | AD28: =ISNUMBER(MATCH(ProjectData[[#This Row],[DMDLCCOCSplitType]],CostAllocationSplit[Type of Project],0)) -> TRUE | AE28: TRUE | AF28: FALSE
A29: 23 | B29: Ground Clearance Rectification - various | C29: Future - Project | E29: Augmentation | F29: =ISNUMBER(MATCH(ProjectData[[#This Row],[PQ Project Driver]],Lookup_ProjectDrivers,0)) -> TRUE | G29: Project Close | H29: =ISNUMBER(MATCH(ProjectData[[#This Row],[Capitalisation]],Lookup_CapitalisationTypes,0)) -> TRUE | I29: Nominal | J29: =ISNUMBER(MATCH(ProjectData[[#This Row],[RepexDollarsBasis]],Lookup_RepexDollarBasis,0)) -> TRUE | K29: 1 | AB29: =OR(SUM(ProjectData[[#This Row],[LinesOH]:[InsuranceSpares]])=1,ProjectData[[#This Row],[OnlyAssetClassAllocationIsToBeUsed]]=TRUE) -> TRUE | AC29: Easement | AD29: =ISNUMBER(MATCH(ProjectData[[#This Row],[DMDLCCOCSplitType]],CostAllocationSplit[Type of Project],0)) -> TRUE | AE29: FALSE | AF29: FALSE
A30: 24 | B30: Past Augmentations (CC) | C30: Past Projects | E30: Augmentation | F30: =ISNUMBER(MATCH(ProjectData[[#This Row],[PQ Project Driver]],Lookup_ProjectDrivers,0)) -> TRUE | G30: Project Close | H30: =ISNUMBER(MATCH(ProjectData[[#This Row],[Capitalisation]],Lookup_CapitalisationTypes,0)) -> TRUE | I30: Nominal | J30: =ISNUMBER(MATCH(ProjectData[[#This Row],[RepexDollarsBasis]],Lookup_RepexDollarBasis,0)) -> TRUE | K30: 0.9999120286 | L30: 0 | M30: 0 | N30: 6.842220378e-05 | O30: 1.588372588e-05 | P30: 3.665475202e-06 | AB30: =OR(SUM(ProjectData[[#This Row],[LinesOH]:[InsuranceSpares]])=1,ProjectData[[#This Row],[OnlyAssetClassAllocationIsToBeUsed]]=TRUE) -> TRUE | AC30: Primary Plant - Bay | AD30: =ISNUMBER(MATCH(ProjectData[[#This Row],[DMDLCCOCSplitType]],CostAllocationSplit[Type of Project],0)) -> TRUE | AE30: TRUE | AF30: FALSE
A31: 25 | B31: Not Yet Capitalised Past Projects - Other (AA2) | C31: Past Projects | E31: Other | F31: =ISNUMBER(MATCH(ProjectData[[#This Row],[PQ Project Driver]],Lookup_ProjectDrivers,0)) -> TRUE | G31: Project Close | H31: =ISNUMBER(MATCH(ProjectData[[#This Row],[Capitalisation]],Lookup_CapitalisationTypes,0)) -> TRUE | I31: Nominal | J31: =ISNUMBER(MATCH(ProjectData[[#This Row],[RepexDollarsBasis]],Lookup_RepexDollarBasis,0)) -> TRUE | K31: 0 | L31: 0 | M31: 0 | N31: 0.9006507864 | O31: 0.04740267297 | P31: 0.03259851082 | R31: =1-SUM(ProjectData[[#This Row],[LinesOH]:[Communications]]) -> 0.01934802978 | AB31: =OR(SUM(ProjectData[[#This Row],[LinesOH]:[InsuranceSpares]])=1,ProjectData[[#This Row],[OnlyAssetClassAllocationIsToBeUsed]]=TRUE) -> TRUE | AC31: Other | AD31: =ISNUMBER(MATCH(ProjectData[[#This Row],[DMDLCCOCSplitType]],CostAllocationSplit[Type of Project],0)) -> TRUE | AE31: FALSE | AF31: FALSE
A32: 26 | B32: Not Yet Capitalised Past Projects - Replacement (AA2) | C32: Past Projects | E32: Replacement | F32: =ISNUMBER(MATCH(ProjectData[[#This Row],[PQ Project Driver]],Lookup_ProjectDrivers,0)) -> TRUE | G32: Project Close | H32: =ISNUMBER(MATCH(ProjectData[[#This Row],[Capitalisation]],Lookup_CapitalisationTypes,0)) -> TRUE | I32: Nominal | J32: =ISNUMBER(MATCH(ProjectData[[#This Row],[RepexDollarsBasis]],Lookup_RepexDollarBasis,0)) -> TRUE | K32: 0.01640186706 | L32: 0 | M32: 0 | N32: 0.4469359506 | O32: 0.2783657637 | P32: 0.2501057063 | R32: 0.008190712332 | AB32: =OR(SUM(ProjectData[[#This Row],[LinesOH]:[InsuranceSpares]])=1,ProjectData[[#This Row],[OnlyAssetClassAllocationIsToBeUsed]]=TRUE) -> TRUE | AC32: Telecomms | AD32: =ISNUMBER(MATCH(ProjectData[[#This Row],[DMDLCCOCSplitType]],CostAllocationSplit[Type of Project],0)) -> TRUE | AE32: FALSE | AF32: FALSE
A33: 27 | B33: Tools | C33: Future - Non Network - Trend | E33: Tools | F33: =ISNUMBER(MATCH(ProjectData[[#This Row],[PQ Project Driver]],Lookup_ProjectDrivers,0)) -> TRUE | G33: As Incurred | H33: =ISNUMBER(MATCH(ProjectData[[#This Row],[Capitalisation]],Lookup_CapitalisationTypes,0)) -> TRUE | I33: Real2021 | J33: =ISNUMBER(MATCH(ProjectData[[#This Row],[RepexDollarsBasis]],Lookup_RepexDollarBasis,0)) -> TRUE | Z33: 1 | AB33: =OR(SUM(ProjectData[[#This Row],[LinesOH]:[InsuranceSpares]])=1,ProjectData[[#This Row],[OnlyAssetClassAllocationIsToBeUsed]]=TRUE) -> TRUE | AC33: Non Network - Tools | AD33: =ISNUMBER(MATCH(ProjectData[[#This Row],[DMDLCCOCSplitType]],CostAllocationSplit[Type of Project],0)) -> TRUE | AE33: FALSE | AF33: FALSE
A34: 28 | B34: MV | C34: Future - Non Network | E34: MV | F34: =ISNUMBER(MATCH(ProjectData[[#This Row],[PQ Project Driver]],Lookup_ProjectDrivers,0)) -> TRUE | G34: As Incurred | H34: =ISNUMBER(MATCH(ProjectData[[#This Row],[Capitalisation]],Lookup_CapitalisationTypes,0)) -> TRUE | I34: Real2021 | J34: =ISNUMBER(MATCH(ProjectData[[#This Row],[RepexDollarsBasis]],Lookup_RepexDollarBasis,0)) -> TRUE | Y34: 1 | AB34: =OR(SUM(ProjectData[[#This Row],[LinesOH]:[InsuranceSpares]])=1,ProjectData[[#This Row],[OnlyAssetClassAllocationIsToBeUsed]]=TRUE) -> TRUE | AC34: Non Network - MV | AD34: =ISNUMBER(MATCH(ProjectData[[#This Row],[DMDLCCOCSplitType]],CostAllocationSplit[Type of Project],0)) -> TRUE | AE34: FALSE | AF34: FALSE
A35: 29 | B35: Buildings | C35: Future - Non Network | E35: Buildings | F35: =ISNUMBER(MATCH(ProjectData[[#This Row],[PQ Project Driver]],Lookup_ProjectDrivers,0)) -> TRUE | G35: As Incurred | H35: =ISNUMBER(MATCH(ProjectData[[#This Row],[Capitalisation]],Lookup_CapitalisationTypes,0)) -> TRUE | I35: Real2021 | J35: =ISNUMBER(MATCH(ProjectData[[#This Row],[RepexDollarsBasis]],Lookup_RepexDollarBasis,0)) -> TRUE | U35: 1 | AB35: =OR(SUM(ProjectData[[#This Row],[LinesOH]:[InsuranceSpares]])=1,ProjectData[[#This Row],[OnlyAssetClassAllocationIsToBeUsed]]=TRUE) -> TRUE | AC35: Non Network - Buildings | AD35: =ISNUMBER(MATCH(ProjectData[[#This Row],[DMDLCCOCSplitType]],CostAllocationSplit[Type of Project],0)) -> TRUE | AE35: FALSE | AF35: FALSE
A36: 30 | B36: IT - The Early Years | C36: Future - Non Network | E36: IT | F36: =ISNUMBER(MATCH(ProjectData[[#This Row],[PQ Project Driver]],Lookup_ProjectDrivers,0)) -> TRUE | G36: As Incurred | H36: =ISNUMBER(MATCH(ProjectData[[#This Row],[Capitalisation]],Lookup_CapitalisationTypes,0)) -> TRUE | I36: Real2021 | J36: =ISNUMBER(MATCH(ProjectData[[#This Row],[RepexDollarsBasis]],Lookup_RepexDollarBasis,0)) -> TRUE | V36: 1 | AB36: =OR(SUM(ProjectData[[#This Row],[LinesOH]:[InsuranceSpares]])=1,ProjectData[[#This Row],[OnlyAssetClassAllocationIsToBeUsed]]=TRUE) -> TRUE | AC36: Non Network - IT - Early Years | AD36: =ISNUMBER(MATCH(ProjectData[[#This Row],[DMDLCCOCSplitType]],CostAllocationSplit[Type of Project],0)) -> TRUE | AE36: FALSE | AF36: FALSE
A37: 31 | B37: IT - Compliance & Risk | C37: Future - Non Network | E37: IT | F37: =ISNUMBER(MATCH(ProjectData[[#This Row],[PQ Project Driver]],Lookup_ProjectDrivers,0)) -> TRUE | G37: As Incurred | H37: =ISNUMBER(MATCH(ProjectData[[#This Row],[Capitalisation]],Lookup_CapitalisationTypes,0)) -> TRUE | I37: Real2021 | J37: =ISNUMBER(MATCH(ProjectData[[#This Row],[RepexDollarsBasis]],Lookup_RepexDollarBasis,0)) -> TRUE | V37: 1 | AB37: =OR(SUM(ProjectData[[#This Row],[LinesOH]:[InsuranceSpares]])=1,ProjectData[[#This Row],[OnlyAssetClassAllocationIsToBeUsed]]=TRUE) -> TRUE | AC37: Non Network - IT - Non-recurrent | AD37: =ISNUMBER(MATCH(ProjectData[[#This Row],[DMDLCCOCSplitType]],CostAllocationSplit[Type of Project],0)) -> TRUE | AE37: FALSE | AF37: FALSE
A38: 32 | B38: IT - Maintain Capability | C38: Future - Non Network | E38: IT | F38: =ISNUMBER(MATCH(ProjectData[[#This Row],[PQ Project Driver]],Lookup_ProjectDrivers,0)) -> TRUE | G38: As Incurred | H38: =ISNUMBER(MATCH(ProjectData[[#This Row],[Capitalisation]],Lookup_CapitalisationTypes,0)) -> TRUE | I38: Real2021 | J38: =ISNUMBER(MATCH(ProjectData[[#This Row],[RepexDollarsBasis]],Lookup_RepexDollarBasis,0)) -> TRUE | V38: 1 | AB38: =OR(SUM(ProjectData[[#This Row],[LinesOH]:[InsuranceSpares]])=1,ProjectData[[#This Row],[OnlyAssetClassAllocationIsToBeUsed]]=TRUE) -> TRUE | AC38: Non Network - IT - Non-recurrent | AD38: =ISNUMBER(MATCH(ProjectData[[#This Row],[DMDLCCOCSplitType]],CostAllocationSplit[Type of Project],0)) -> TRUE | AE38: FALSE | AF38: FALSE
A39: 33 | B39: IT - Recurrent | C39: Future - Non Network | E39: IT | F39: =ISNUMBER(MATCH(ProjectData[[#This Row],[PQ Project Driver]],Lookup_ProjectDrivers,0)) -> TRUE | G39: As Incurred | H39: =ISNUMBER(MATCH(ProjectData[[#This Row],[Capitalisation]],Lookup_CapitalisationTypes,0)) -> TRUE | I39: Real2021 | J39: =ISNUMBER(MATCH(ProjectData[[#This Row],[RepexDollarsBasis]],Lookup_RepexDollarBasis,0)) -> TRUE | V39: 1 | AB39: =OR(SUM(ProjectData[[#This Row],[LinesOH]:[InsuranceSpares]])=1,ProjectData[[#This Row],[OnlyAssetClassAllocationIsToBeUsed]]=TRUE) -> TRUE | AC39: Non Network - IT - Software Hardware Refresh | AD39: =ISNUMBER(MATCH(ProjectData[[#This Row],[DMDLCCOCSplitType]],CostAllocationSplit[Type of Project],0)) -> TRUE | AE39: FALSE | AF39: FALSE
A40: 34 | B40: Unapproved - Non Load Driven Other (BB) | C40: Current - Unapproved - Non Load Driven | E40: Other | F40: =ISNUMBER(MATCH(ProjectData[[#This Row],[PQ Project Driver]],Lookup_ProjectDrivers,0)) -> TRUE | G40: As Incurred | H40: =ISNUMBER(MATCH(ProjectData[[#This Row],[Capitalisation]],Lookup_CapitalisationTypes,0)) -> TRUE | I40: Nominal | J40: =ISNUMBER(MATCH(ProjectData[[#This Row],[RepexDollarsBasis]],Lookup_RepexDollarBasis,0)) -> TRUE | R40: 1 | AB40: =OR(SUM(ProjectData[[#This Row],[LinesOH]:[InsuranceSpares]])=1,ProjectData[[#This Row],[OnlyAssetClassAllocationIsToBeUsed]]=TRUE) -> TRUE | AC40: Other | AD40: =ISNUMBER(MATCH(ProjectData[[#This Row],[DMDLCCOCSplitType]],CostAllocationSplit[Type of Project],0)) -> TRUE | AE40: FALSE | AF40: FALSE
A41: 35 | B41: Unapproved - Non Load Driven Security / Compliance (BB) | C41: Current - Unapproved - Non Load Driven | E41: Security and Compliance | F41: =ISNUMBER(MATCH(ProjectData[[#This Row],[PQ Project Driver]],Lookup_ProjectDrivers,0)) -> TRUE | G41: As Incurred | H41: =ISNUMBER(MATCH(ProjectData[[#This Row],[Capitalisation]],Lookup_CapitalisationTypes,0)) -> TRUE | I41: Nominal | J41: =ISNUMBER(MATCH(ProjectData[[#This Row],[RepexDollarsBasis]],Lookup_RepexDollarBasis,0)) -> TRUE | K41: 0 | L41: 0 | M41: 0 | N41: 0.2493985693 | O41: 0.5687696086 | P41: 0.08636914748 | R41: 0.09546267464 | AB41: =OR(SUM(ProjectData[[#This Row],[LinesOH]:[InsuranceSpares]])=1,ProjectData[[#This Row],[OnlyAssetClassAllocationIsToBeUsed]]=TRUE) -> TRUE | AC41: Security and Compliance | AD41: =ISNUMBER(MATCH(ProjectData[[#This Row],[DMDLCCOCSplitType]],CostAllocationSplit[Type of Project],0)) -> TRUE | AE41: FALSE | AF41: FALSE
A42: 36 | B42: Unapproved - Non Load Driven Replacement (BB) | C42: Current - Unapproved - Non Load Driven | E42: Replacement | F42: =ISNUMBER(MATCH(ProjectData[[#This Row],[PQ Project Driver]],Lookup_ProjectDrivers,0)) -> TRUE | G42: As Incurred | H42: =ISNUMBER(MATCH(ProjectData[[#This Row],[Capitalisation]],Lookup_CapitalisationTypes,0)) -> TRUE | I42: Nominal | J42: =ISNUMBER(MATCH(ProjectData[[#This Row],[RepexDollarsBasis]],Lookup_RepexDollarBasis,0)) -> TRUE | K42: 0.0597667623 | L42: 0 | M42: 0.03648111216 | N42: 0.2213476355 | O42: 0.4313557478 | P42: 0.1407124782 | R42: 0.1103362641 | AB42: =OR(SUM(ProjectData[[#This Row],[LinesOH]:[InsuranceSpares]])=1,ProjectData[[#This Row],[OnlyAssetClassAllocationIsToBeUsed]]=TRUE) -> TRUE | AC42: Repex - Non Modelled | AD42: =ISNUMBER(MATCH(ProjectData[[#This Row],[DMDLCCOCSplitType]],CostAllocationSplit[Type of Project],0)) -> TRUE | AE42: FALSE | AF42: FALSE
A43: 37 | B43: CP.02740 - NGNO Advanced Energy Management System | C43: Current - Approved - Non Load Driven | E43: Replacement | F43: =ISNUMBER(MATCH(ProjectData[[#This Row],[PQ Project Driver]],Lookup_ProjectDrivers,0)) -> TRUE | G43: Project Close | H43: =ISNUMBER(MATCH(ProjectData[[#This Row],[Capitalisation]],Lookup_CapitalisationTypes,0)) -> TRUE | I43: Nominal | J43: =ISNUMBER(MATCH(ProjectData[[#This Row],[RepexDollarsBasis]],Lookup_RepexDollarBasis,0)) -> TRUE | K43: 0 | L43: 0 | M43: 0 | N43: 0 | O43: 0 | P43: 0.05 | R43: 0.95 | AB43: =OR(SUM(ProjectData[[#This Row],[LinesOH]:[InsuranceSpares]])=1,ProjectData[[#This Row],[OnlyAssetClassAllocationIsToBeUsed]]=TRUE) -> TRUE | AC43: EMS | AD43: =ISNUMBER(MATCH(ProjectData[[#This Row],[DMDLCCOCSplitType]],CostAllocationSplit[Type of Project],0)) -> TRUE | AE43: TRUE | AF43: FALSE
A44: 38 | B44: CP.02339 - Kemmis 132/66kV Transformer 2 Replacement | C44: Current - Approved - Non Load Driven | E44: Replacement | F44: =ISNUMBER(MATCH(ProjectData[[#This Row],[PQ Project Driver]],Lookup_ProjectDrivers,0)) -> TRUE | G44: Project Close | H44: =ISNUMBER(MATCH(ProjectData[[#This Row],[Capitalisation]],Lookup_CapitalisationTypes,0)) -> TRUE | I44: Nominal | J44: =ISNUMBER(MATCH(ProjectData[[#This Row],[RepexDollarsBasis]],Lookup_RepexDollarBasis,0)) -> TRUE | K44: 0 | L44: 0 | M44: 0 | N44: 0.8731329322 | O44: 0.1268670678 | P44: 0 | R44: 0 | AB44: =OR(SUM(ProjectData[[#This Row],[LinesOH]:[InsuranceSpares]])=1,ProjectData[[#This Row],[OnlyAssetClassAllocationIsToBeUsed]]=TRUE) -> TRUE | AC44: Primary Plant - Power Transformer | AD44: =ISNUMBER(MATCH(ProjectData[[#This Row],[DMDLCCOCSplitType]],CostAllocationSplit[Type of Project],0)) -> TRUE | AE44: TRUE | AF44: FALSE
A45: 39 | B45: CP.01128 - Mackay Substation Replacement | C45: Current - Approved - Non Load Driven | E45: Replacement | F45: =ISNUMBER(MATCH(ProjectData[[#This Row],[PQ Project Driver]],Lookup_ProjectDrivers,0)) -> TRUE | G45: Project Close | H45: =ISNUMBER(MATCH(ProjectData[[#This Row],[Capitalisation]],Lookup_CapitalisationTypes,0)) -> TRUE | I45: Nominal | J45: =ISNUMBER(MATCH(ProjectData[[#This Row],[RepexDollarsBasis]],Lookup_RepexDollarBasis,0)) -> TRUE | K45: 0.0487710106 | L45: 0 | M45: 0 | N45: 0.6459213535 | O45: 0.2738513228 | P45: 0.03145631315 | R45: 0 | AB45: =OR(SUM(ProjectData[[#This Row],[LinesOH]:[InsuranceSpares]])=1,ProjectData[[#This Row],[OnlyAssetClassAllocationIsToBeUsed]]=TRUE) -> TRUE | AC45: Primary Plant - Bay | AD45: =ISNUMBER(MATCH(ProjectData[[#This Row],[DMDLCCOCSplitType]],CostAllocationSplit[Type of Project],0)) -> TRUE | AE45: TRUE | AF45: FALSE
A46: 40 | B46: CP.02462 - Ingham South No.1 & 2 Transformers Replacement | C46: Current - Approved - Non Load Driven | E46: Replacement | F46: =ISNUMBER(MATCH(ProjectData[[#This Row],[PQ Project Driver]],Lookup_ProjectDrivers,0)) -> TRUE | G46: Project Close | H46: =ISNUMBER(MATCH(ProjectData[[#This Row],[Capitalisation]],Lookup_CapitalisationTypes,0)) -> TRUE | I46: Nominal | J46: =ISNUMBER(MATCH(ProjectData[[#This Row],[RepexDollarsBasis]],Lookup_RepexDollarBasis,0)) -> TRUE | K46: 0 | L46: 0.02455716661 | M46: 0 | N46: 0.8904026839 | O46: 0.0850401495 | P46: 0 | R46: 0 | AB46: =OR(SUM(ProjectData[[#This Row],[LinesOH]:[InsuranceSpares]])=1,ProjectData[[#This Row],[OnlyAssetClassAllocationIsToBeUsed]]=TRUE) -> TRUE | AC46: Primary Plant - Power Transformer | AD46: =ISNUMBER(MATCH(ProjectData[[#This Row],[DMDLCCOCSplitType]],CostAllocationSplit[Type of Project],0)) -> TRUE | AE46: TRUE | AF46: FALSE
A47: 41 | B47: CP.02507 - Collinsville-Proserpine Inland Section TL extn | C47: Current - Approved - Non Load Driven | E47: Replacement | F47: =ISNUMBER(MATCH(ProjectData[[#This Row],[PQ Project Driver]],Lookup_ProjectDrivers,0)) -> TRUE | G47: Project Close | H47: =ISNUMBER(MATCH(ProjectData[[#This Row],[Capitalisation]],Lookup_CapitalisationTypes,0)) -> TRUE | I47: Nominal | J47: =ISNUMBER(MATCH(ProjectData[[#This Row],[RepexDollarsBasis]],Lookup_RepexDollarBasis,0)) -> TRUE | K47: 0 | L47: 0 | M47: 1 | N47: 0 | O47: 0 | P47: 0 | R47: 0 | AB47: =OR(SUM(ProjectData[[#This Row],[LinesOH]:[InsuranceSpares]])=1,ProjectData[[#This Row],[OnlyAssetClassAllocationIsToBeUsed]]=TRUE) -> TRUE | AC47: Tower Replacement | AD47: =ISNUMBER(MATCH(ProjectData[[#This Row],[DMDLCCOCSplitType]],CostAllocationSplit[Type of Project],0)) -> TRUE | AE47: TRUE | AF47: FALSE
A48: 42 | B48: CP.02629 - Alligator Creek - Eton BS1205 TL Refit | C48: Current - Approved - Non Load Driven | E48: Replacement | F48: =ISNUMBER(MATCH(ProjectData[[#This Row],[PQ Project Driver]],Lookup_ProjectDrivers,0)) -> TRUE | G48: Project Close | H48: =ISNUMBER(MATCH(ProjectData[[#This Row],[Capitalisation]],Lookup_CapitalisationTypes,0)) -> TRUE | I48: Nominal | J48: =ISNUMBER(MATCH(ProjectData[[#This Row],[RepexDollarsBasis]],Lookup_RepexDollarBasis,0)) -> TRUE | K48: 0 | L48: 0 | M48: 1 | N48: 0 | O48: 0 | P48: 0 | R48: 0 | AB48: =OR(SUM(ProjectData[[#This Row],[LinesOH]:[InsuranceSpares]])=1,ProjectData[[#This Row],[OnlyAssetClassAllocationIsToBeUsed]]=TRUE) -> TRUE | AC48: Tower Refit | AD48: =ISNUMBER(MATCH(ProjectData[[#This Row],[DMDLCCOCSplitType]],CostAllocationSplit[Type of Project],0)) -> TRUE | AE48: TRUE | AF48: FALSE
A49: 43 | B49: CP.02355 - Ashgrove West Substation Rebuild | C49: Current - Approved - Non Load Driven | E49: Replacement | F49: =ISNUMBER(MATCH(ProjectData[[#This Row],[PQ Project Driver]],Lookup_ProjectDrivers,0)) -> TRUE | G49: Project Close | H49: =ISNUMBER(MATCH(ProjectData[[#This Row],[Capitalisation]],Lookup_CapitalisationTypes,0)) -> TRUE | I49: Nominal | J49: =ISNUMBER(MATCH(ProjectData[[#This Row],[RepexDollarsBasis]],Lookup_RepexDollarBasis,0)) -> TRUE | K49: 0 | L49: 0 | M49: 0 | N49: 0.6186577038 | O49: 0.3723210771 | P49: 0.00902121916 | R49: 0 | AB49: =OR(SUM(ProjectData[[#This Row],[LinesOH]:[InsuranceSpares]])=1,ProjectData[[#This Row],[OnlyAssetClassAllocationIsToBeUsed]]=TRUE) -> TRUE | AC49: Primary Plant - Bay | AD49: =ISNUMBER(MATCH(ProjectData[[#This Row],[DMDLCCOCSplitType]],CostAllocationSplit[Type of Project],0)) -> TRUE | AE49: TRUE | AF49: FALSE
A50: 44 | B50: CP.02290 - Egans Hill Secondary Systems Replacement | C50: Current - Approved - Non Load Driven | E50: Replacement | F50: =ISNUMBER(MATCH(ProjectData[[#This Row],[PQ Project Driver]],Lookup_ProjectDrivers,0)) -> TRUE | G50: Project Close | H50: =ISNUMBER(MATCH(ProjectData[[#This Row],[Capitalisation]],Lookup_CapitalisationTypes,0)) -> TRUE | I50: Nominal | J50: =ISNUMBER(MATCH(ProjectData[[#This Row],[RepexDollarsBasis]],Lookup_RepexDollarBasis,0)) -> TRUE | K50: 0 | L50: 0 | M50: 0 | N50: 0.289075333 | O50: 0.6477179963 | P50: 0.06320667064 | R50: 0 | AB50: =OR(SUM(ProjectData[[#This Row],[LinesOH]:[InsuranceSpares]])=1,ProjectData[[#This Row],[OnlyAssetClassAllocationIsToBeUsed]]=TRUE) -> TRUE | AC50: Secondary Systems | AD50: =ISNUMBER(MATCH(ProjectData[[#This Row],[DMDLCCOCSplitType]],CostAllocationSplit[Type of Project],0)) -> TRUE | AE50: TRUE | AF50: FALSE
A51: 45 | B51: CP.02311 - Woolooga - Palmwoods TL Refit | C51: Current - Approved - Non Load Driven | E51: Replacement | F51: =ISNUMBER(MATCH(ProjectData[[#This Row],[PQ Project Driver]],Lookup_ProjectDrivers,0)) -> TRUE | G51: Project Close | H51: =ISNUMBER(MATCH(ProjectData[[#This Row],[Capitalisation]],Lookup_CapitalisationTypes,0)) -> TRUE | I51: Nominal | J51: =ISNUMBER(MATCH(ProjectData[[#This Row],[RepexDollarsBasis]],Lookup_RepexDollarBasis,0)) -> TRUE | K51: 0 | L51: 0 | M51: 1 | N51: 0 | O51: 0 | P51: 0 | R51: 0 | AB51: =OR(SUM(ProjectData[[#This Row],[LinesOH]:[InsuranceSpares]])=1,ProjectData[[#This Row],[OnlyAssetClassAllocationIsToBeUsed]]=TRUE) -> TRUE | AC51: Tower Refit | AD51: =ISNUMBER(MATCH(ProjectData[[#This Row],[DMDLCCOCSplitType]],CostAllocationSplit[Type of Project],0)) -> TRUE | AE51: TRUE | AF51: FALSE
A52: 46 | B52: CP.02381 - Upgrade to Siemens PSS/ODMS | C52: Current - Approved - Non Load Driven | E52: Replacement | F52: =ISNUMBER(MATCH(ProjectData[[#This Row],[PQ Project Driver]],Lookup_ProjectDrivers,0)) -> TRUE | G52: Project Close | H52: =ISNUMBER(MATCH(ProjectData[[#This Row],[Capitalisation]],Lookup_CapitalisationTypes,0)) -> TRUE | I52: Nominal | J52: =ISNUMBER(MATCH(ProjectData[[#This Row],[RepexDollarsBasis]],Lookup_RepexDollarBasis,0)) -> TRUE | K52: 0 | L52: 0 | M52: 0 | N52: 0 | O52: 1 | P52: 0 | R52: 0 | AB52: =OR(SUM(ProjectData[[#This Row],[LinesOH]:[InsuranceSpares]])=1,ProjectData[[#This Row],[OnlyAssetClassAllocationIsToBeUsed]]=TRUE) -> TRUE | AC52: Telecomms | AD52: =ISNUMBER(MATCH(ProjectData[[#This Row],[DMDLCCOCSplitType]],CostAllocationSplit[Type of Project],0)) -> TRUE | AE52: TRUE | AF52: FALSE
A53: 47 | B53: CP.01457 - Baralaba Secondary Systems Replacement | C53: Current - Approved - Non Load Driven | E53: Replacement | F53: =ISNUMBER(MATCH(ProjectData[[#This Row],[PQ Project Driver]],Lookup_ProjectDrivers,0)) -> TRUE | G53: Project Close | H53: =ISNUMBER(MATCH(ProjectData[[#This Row],[Capitalisation]],Lookup_CapitalisationTypes,0)) -> TRUE | I53: Nominal | J53: =ISNUMBER(MATCH(ProjectData[[#This Row],[RepexDollarsBasis]],Lookup_RepexDollarBasis,0)) -> TRUE | K53: 0 | L53: 0 | M53: 0 | N53: 0.1686635545 | O53: 0.8033220216 | P53: 0.02801442393 | R53: 0 | AB53: =OR(SUM(ProjectData[[#This Row],[LinesOH]:[InsuranceSpares]])=1,ProjectData[[#This Row],[OnlyAssetClassAllocationIsToBeUsed]]=TRUE) -> TRUE | AC53: Secondary Systems | AD53: =ISNUMBER(MATCH(ProjectData[[#This Row],[DMDLCCOCSplitType]],CostAllocationSplit[Type of Project],0)) -> TRUE | AE53: TRUE | AF53: FALSE
A54: 48 | B54: CP.01546 - Callide A / Calvale 132kV Network Reinvestment | C54: Current - Approved - Non Load Driven | E54: Replacement | F54: =ISNUMBER(MATCH(ProjectData[[#This Row],[PQ Project Driver]],Lookup_ProjectDrivers,0)) -> TRUE | G54: Project Close | H54: =ISNUMBER(MATCH(ProjectData[[#This Row],[Capitalisation]],Lookup_CapitalisationTypes,0)) -> TRUE | I54: Nominal | J54: =ISNUMBER(MATCH(ProjectData[[#This Row],[RepexDollarsBasis]],Lookup_RepexDollarBasis,0)) -> TRUE | K54: 0.3 | L54: 0 | M54: 0 | N54: 0.5 | O54: 0.17 | P54: 0.03 | R54: 0 | AB54: =OR(SUM(ProjectData[[#This Row],[LinesOH]:[InsuranceSpares]])=1,ProjectData[[#This Row],[OnlyAssetClassAllocationIsToBeUsed]]=TRUE) -> TRUE | AC54: Tower Replacement | AD54: =ISNUMBER(MATCH(ProjectData[[#This Row],[DMDLCCOCSplitType]],CostAllocationSplit[Type of Project],0)) -> TRUE | AE54: TRUE | AF54: FALSE
A55: 49 | B55: CP.02319 - Belmont 275kV Secondary System Replacement | C55: Current - Approved - Non Load Driven | E55: Replacement | F55: =ISNUMBER(MATCH(ProjectData[[#This Row],[PQ Project Driver]],Lookup_ProjectDrivers,0)) -> TRUE | G55: Project Close | H55: =ISNUMBER(MATCH(ProjectData[[#This Row],[Capitalisation]],Lookup_CapitalisationTypes,0)) -> TRUE | I55: Nominal | J55: =ISNUMBER(MATCH(ProjectData[[#This Row],[RepexDollarsBasis]],Lookup_RepexDollarBasis,0)) -> TRUE | K55: 0 | L55: 0 | M55: 0 | N55: 0.18 | O55: 0.72 | P55: 0.07 | R55: 0.03 | AB55: =OR(SUM(ProjectData[[#This Row],[LinesOH]:[InsuranceSpares]])=1,ProjectData[[#This Row],[OnlyAssetClassAllocationIsToBeUsed]]=TRUE) -> TRUE | AC55: Secondary Systems | AD55: =ISNUMBER(MATCH(ProjectData[[#This Row],[DMDLCCOCSplitType]],CostAllocationSplit[Type of Project],0)) -> TRUE | AE55: TRUE | AF55: FALSE
A56: 50 | B56: CP.01158 - Egans Hill - Rockhampton TL Refit | C56: Current - Approved - Non Load Driven | E56: Replacement | F56: =ISNUMBER(MATCH(ProjectData[[#This Row],[PQ Project Driver]],Lookup_ProjectDrivers,0)) -> TRUE | G56: Project Close | H56: =ISNUMBER(MATCH(ProjectData[[#This Row],[Capitalisation]],Lookup_CapitalisationTypes,0)) -> TRUE | I56: Nominal | J56: =ISNUMBER(MATCH(ProjectData[[#This Row],[RepexDollarsBasis]],Lookup_RepexDollarBasis,0)) -> TRUE | K56: 0.28 | L56: 0 | M56: 0.72 | N56: 0 | O56: 0 | P56: 0 | R56: 0 | AB56: =OR(SUM(ProjectData[[#This Row],[LinesOH]:[InsuranceSpares]])=1,ProjectData[[#This Row],[OnlyAssetClassAllocationIsToBeUsed]]=TRUE) -> TRUE | AC56: Tower Refit | AD56: =ISNUMBER(MATCH(ProjectData[[#This Row],[DMDLCCOCSplitType]],CostAllocationSplit[Type of Project],0)) -> TRUE | AE56: TRUE | AF56: FALSE
A57: 51 | B57: CP.01640 - Dan Gleeson Secondary Systems Replacement | C57: Current - Approved - Non Load Driven | E57: Replacement | F57: =ISNUMBER(MATCH(ProjectData[[#This Row],[PQ Project Driver]],Lookup_ProjectDrivers,0)) -> TRUE | G57: Project Close | H57: =ISNUMBER(MATCH(ProjectData[[#This Row],[Capitalisation]],Lookup_CapitalisationTypes,0)) -> TRUE | I57: Nominal | J57: =ISNUMBER(MATCH(ProjectData[[#This Row],[RepexDollarsBasis]],Lookup_RepexDollarBasis,0)) -> TRUE | K57: 0 | L57: 0 | M57: 0 | N57: 0.232505133 | O57: 0.7299420414 | P57: 0.03755282563 | R57: 0 | AB57: =OR(SUM(ProjectData[[#This Row],[LinesOH]:[InsuranceSpares]])=1,ProjectData[[#This Row],[OnlyAssetClassAllocationIsToBeUsed]]=TRUE) -> TRUE | AC57: Secondary Systems | AD57: =ISNUMBER(MATCH(ProjectData[[#This Row],[DMDLCCOCSplitType]],CostAllocationSplit[Type of Project],0)) -> TRUE | AE57: TRUE | AF57: FALSE
A58: 52 | B58: CP.02508 - West Darra - Sumner 110kV BS1038 Life Extension | C58: Current - Approved - Non Load Driven | E58: Replacement | F58: =ISNUMBER(MATCH(ProjectData[[#This Row],[PQ Project Driver]],Lookup_ProjectDrivers,0)) -> TRUE | G58: Project Close | H58: =ISNUMBER(MATCH(ProjectData[[#This Row],[Capitalisation]],Lookup_CapitalisationTypes,0)) -> TRUE | I58: Nominal | J58: =ISNUMBER(MATCH(ProjectData[[#This Row],[RepexDollarsBasis]],Lookup_RepexDollarBasis,0)) -> TRUE | K58: 0 | L58: 0 | M58: 1 | N58: 0 | O58: 0 | P58: 0 | R58: 0 | AB58: =OR(SUM(ProjectData[[#This Row],[LinesOH]:[InsuranceSpares]])=1,ProjectData[[#This Row],[OnlyAssetClassAllocationIsToBeUsed]]=TRUE) -> TRUE | AC58: Tower Replacement | AD58: =ISNUMBER(MATCH(ProjectData[[#This Row],[DMDLCCOCSplitType]],CostAllocationSplit[Type of Project],0)) -> TRUE | AE58: TRUE | AF58: FALSE
A59: 53 | B59: CP.02509 - Rocklea - Sumner 110kV BS1039 Life Extension | C59: Current - Approved - Non Load Driven | E59: Replacement | F59: =ISNUMBER(MATCH(ProjectData[[#This Row],[PQ Project Driver]],Lookup_ProjectDrivers,0)) -> TRUE | G59: Project Close | H59: =ISNUMBER(MATCH(ProjectData[[#This Row],[Capitalisation]],Lookup_CapitalisationTypes,0)) -> TRUE | I59: Nominal | J59: =ISNUMBER(MATCH(ProjectData[[#This Row],[RepexDollarsBasis]],Lookup_RepexDollarBasis,0)) -> TRUE | K59: 0 | L59: 0 | M59: 1 | N59: 0 | O59: 0 | P59: 0 | R59: 0 | AB59: =OR(SUM(ProjectData[[#This Row],[LinesOH]:[InsuranceSpares]])=1,ProjectData[[#This Row],[OnlyAssetClassAllocationIsToBeUsed]]=TRUE) -> TRUE | AC59: Tower Replacement | AD59: =ISNUMBER(MATCH(ProjectData[[#This Row],[DMDLCCOCSplitType]],CostAllocationSplit[Type of Project],0)) -> TRUE | AE59: TRUE | AF59: FALSE
A60: 54 | B60: CP.01561 - Strathmore 2nd 275/132kV Transformer | C60: Current - Approved - Non Load Driven | E60: Replacement | F60: =ISNUMBER(MATCH(ProjectData[[#This Row],[PQ Project Driver]],Lookup_ProjectDrivers,0)) -> TRUE | G60: Project Close | H60: =ISNUMBER(MATCH(ProjectData[[#This Row],[Capitalisation]],Lookup_CapitalisationTypes,0)) -> TRUE | I60: Nominal | J60: =ISNUMBER(MATCH(ProjectData[[#This Row],[RepexDollarsBasis]],Lookup_RepexDollarBasis,0)) -> TRUE | K60: 0.2 | L60: 0 | M60: 0 | N60: 0.65 | O60: 0.14 | P60: 0.01 | R60: 0 | AB60: =OR(SUM(ProjectData[[#This Row],[LinesOH]:[InsuranceSpares]])=1,ProjectData[[#This Row],[OnlyAssetClassAllocationIsToBeUsed]]=TRUE) -> TRUE | AC60: Primary Plant - Power Transformer | AD60: =ISNUMBER(MATCH(ProjectData[[#This Row],[DMDLCCOCSplitType]],CostAllocationSplit[Type of Project],0)) -> TRUE | AE60: TRUE | AF60: FALSE
A61: 55 | B61: CP.02667 - Calliope River 275kV Tower Refit | C61: Current - Approved - Non Load Driven | E61: Replacement | F61: =ISNUMBER(MATCH(ProjectData[[#This Row],[PQ Project Driver]],Lookup_ProjectDrivers,0)) -> TRUE | G61: Project Close | H61: =ISNUMBER(MATCH(ProjectData[[#This Row],[Capitalisation]],Lookup_CapitalisationTypes,0)) -> TRUE | I61: Nominal | J61: =ISNUMBER(MATCH(ProjectData[[#This Row],[RepexDollarsBasis]],Lookup_RepexDollarBasis,0)) -> TRUE | K61: 0 | L61: 0 | M61: 1 | N61: 0 | O61: 0 | P61: 0 | R61: 0 | AB61: =OR(SUM(ProjectData[[#This Row],[LinesOH]:[InsuranceSpares]])=1,ProjectData[[#This Row],[OnlyAssetClassAllocationIsToBeUsed]]=TRUE) -> TRUE | AC61: Tower Refit | AD61: =ISNUMBER(MATCH(ProjectData[[#This Row],[DMDLCCOCSplitType]],CostAllocationSplit[Type of Project],0)) -> TRUE | AE61: TRUE | AF61: FALSE
A62: 56 | B62: CP.02356 - Lilyvale 132/66kV No.3&4 Transformers Replacement | C62: Current - Approved - Non Load Driven | E62: Replacement | F62: =ISNUMBER(MATCH(ProjectData[[#This Row],[PQ Project Driver]],Lookup_ProjectDrivers,0)) -> TRUE | G62: Project Close | H62: =ISNUMBER(MATCH(ProjectData[[#This Row],[Capitalisation]],Lookup_CapitalisationTypes,0)) -> TRUE | I62: Nominal | J62: =ISNUMBER(MATCH(ProjectData[[#This Row],[RepexDollarsBasis]],Lookup_RepexDollarBasis,0)) -> TRUE | K62: 0 | L62: 0 | M62: 0 | N62: 0.93 | O62: 0.07 | P62: 0 | R62: 0 | AB62: =OR(SUM(ProjectData[[#This Row],[LinesOH]:[InsuranceSpares]])=1,ProjectData[[#This Row],[OnlyAssetClassAllocationIsToBeUsed]]=TRUE) -> TRUE | AC62: Primary Plant - Power Transformer | AD62: =ISNUMBER(MATCH(ProjectData[[#This Row],[DMDLCCOCSplitType]],CostAllocationSplit[Type of Project],0)) -> TRUE | AE62: TRUE | AF62: FALSE
A63: 57 | B63: CP.02019 - Townsville South-Clare South T/L Refit | C63: Current - Approved - Non Load Driven | E63: Replacement | F63: =ISNUMBER(MATCH(ProjectData[[#This Row],[PQ Project Driver]],Lookup_ProjectDrivers,0)) -> TRUE | G63: Project Close | H63: =ISNUMBER(MATCH(ProjectData[[#This Row],[Capitalisation]],Lookup_CapitalisationTypes,0)) -> TRUE | I63: Nominal | J63: =ISNUMBER(MATCH(ProjectData[[#This Row],[RepexDollarsBasis]],Lookup_RepexDollarBasis,0)) -> TRUE | K63: 0 | L63: 0 | M63: 1 | N63: 0 | O63: 0 | P63: 0 | R63: 0 | AB63: =OR(SUM(ProjectData[[#This Row],[LinesOH]:[InsuranceSpares]])=1,ProjectData[[#This Row],[OnlyAssetClassAllocationIsToBeUsed]]=TRUE) -> TRUE | AC63: Tower Refit | AD63: =ISNUMBER(MATCH(ProjectData[[#This Row],[DMDLCCOCSplitType]],CostAllocationSplit[Type of Project],0)) -> TRUE | AE63: TRUE | AF63: FALSE
A64: 58 | B64: CP.02533 - South Pine - Upper Kedron 110kV BS1000 Life Extn | C64: Current - Approved - Non Load Driven | E64: Replacement | F64: =ISNUMBER(MATCH(ProjectData[[#This Row],[PQ Project Driver]],Lookup_ProjectDrivers,0)) -> TRUE | G64: Project Close | H64: =ISNUMBER(MATCH(ProjectData[[#This Row],[Capitalisation]],Lookup_CapitalisationTypes,0)) -> TRUE | I64: Nominal | J64: =ISNUMBER(MATCH(ProjectData[[#This Row],[RepexDollarsBasis]],Lookup_RepexDollarBasis,0)) -> TRUE | K64: 0 | L64: 0 | M64: 1 | N64: 0 | O64: 0 | P64: 0 | R64: 0 | AB64: =OR(SUM(ProjectData[[#This Row],[LinesOH]:[InsuranceSpares]])=1,ProjectData[[#This Row],[OnlyAssetClassAllocationIsToBeUsed]]=TRUE) -> TRUE | AC64: Tower Replacement | AD64: =ISNUMBER(MATCH(ProjectData[[#This Row],[DMDLCCOCSplitType]],CostAllocationSplit[Type of Project],0)) -> TRUE | AE64: TRUE | AF64: FALSE
A65: 59 | B65: CP.02303 - Palmwoods 275kV secondary system replacement | C65: Current - Approved - Non Load Driven | E65: Replacement | F65: =ISNUMBER(MATCH(ProjectData[[#This Row],[PQ Project Driver]],Lookup_ProjectDrivers,0)) -> TRUE | G65: Project Close | H65: =ISNUMBER(MATCH(ProjectData[[#This Row],[Capitalisation]],Lookup_CapitalisationTypes,0)) -> TRUE | I65: Nominal | J65: =ISNUMBER(MATCH(ProjectData[[#This Row],[RepexDollarsBasis]],Lookup_RepexDollarBasis,0)) -> TRUE | K65: 0 | L65: 0 | M65: 0 | N65: 0.18 | O65: 0.72 | P65: 0.07 | R65: 0.03 | AB65: =OR(SUM(ProjectData[[#This Row],[LinesOH]:[InsuranceSpares]])=1,ProjectData[[#This Row],[OnlyAssetClassAllocationIsToBeUsed]]=TRUE) -> TRUE | AC65: Secondary Systems | AD65: =ISNUMBER(MATCH(ProjectData[[#This Row],[DMDLCCOCSplitType]],CostAllocationSplit[Type of Project],0)) -> TRUE | AE65: TRUE | AF65: FALSE
A66: 60 | B66: CP.01635 - Abermain Secondary Systems Replacement | C66: Current - Approved - Non Load Driven | E66: Replacement | F66: =ISNUMBER(MATCH(ProjectData[[#This Row],[PQ Project Driver]],Lookup_ProjectDrivers,0)) -> TRUE | G66: Project Close | H66: =ISNUMBER(MATCH(ProjectData[[#This Row],[Capitalisation]],Lookup_CapitalisationTypes,0)) -> TRUE | I66: Nominal | J66: =ISNUMBER(MATCH(ProjectData[[#This Row],[RepexDollarsBasis]],Lookup_RepexDollarBasis,0)) -> TRUE | K66: 0 | L66: 0 | M66: 0 | N66: 0.06 | O66: 0.91 | P66: 0.03 | R66: 0 | AB66: =OR(SUM(ProjectData[[#This Row],[LinesOH]:[InsuranceSpares]])=1,ProjectData[[#This Row],[OnlyAssetClassAllocationIsToBeUsed]]=TRUE) -> TRUE | AC66: Secondary Systems | AD66: =ISNUMBER(MATCH(ProjectData[[#This Row],[DMDLCCOCSplitType]],CostAllocationSplit[Type of Project],0)) -> TRUE | AE66: TRUE | AF66: FALSE
A67: 61 | B67: CP.01148 - Wurdong Secondary Systems Replacement | C67: Current - Approved - Non Load Driven | E67: Replacement | F67: =ISNUMBER(MATCH(ProjectData[[#This Row],[PQ Project Driver]],Lookup_ProjectDrivers,0)) -> TRUE | G67: Project Close | H67: =ISNUMBER(MATCH(ProjectData[[#This Row],[Capitalisation]],Lookup_CapitalisationTypes,0)) -> TRUE | I67: Nominal | J67: =ISNUMBER(MATCH(ProjectData[[#This Row],[RepexDollarsBasis]],Lookup_RepexDollarBasis,0)) -> TRUE | K67: 0 | L67: 0 | M67: 0 | N67: =0.042169072831246/0.9 -> 0.04685452537 | O67: =0.857830927168754/0.9 -> 0.9531454746 | P67: 0 | R67: 0 | AB67: =OR(SUM(ProjectData[[#This Row],[LinesOH]:[InsuranceSpares]])=1,ProjectData[[#This Row],[OnlyAssetClassAllocationIsToBeUsed]]=TRUE) -> TRUE | AC67: Secondary Systems | AD67: =ISNUMBER(MATCH(ProjectData[[#This Row],[DMDLCCOCSplitType]],CostAllocationSplit[Type of Project],0)) -> TRUE | AE67: TRUE | AF67: FALSE
A68: 62 | B68: CP.02371 - H010 Bouldercombe - Transformer 1 & 2 Replacement | C68: Current - Approved - Non Load Driven | E68: Replacement | F68: =ISNUMBER(MATCH(ProjectData[[#This Row],[PQ Project Driver]],Lookup_ProjectDrivers,0)) -> TRUE | G68: Project Close | H68: =ISNUMBER(MATCH(ProjectData[[#This Row],[Capitalisation]],Lookup_CapitalisationTypes,0)) -> TRUE | I68: Nominal | J68: =ISNUMBER(MATCH(ProjectData[[#This Row],[RepexDollarsBasis]],Lookup_RepexDollarBasis,0)) -> TRUE | K68: 0 | L68: 0 | M68: 0 | N68: 0.9 | O68: 0.1 | P68: 0 | R68: 0 | AB68: =OR(SUM(ProjectData[[#This Row],[LinesOH]:[InsuranceSpares]])=1,ProjectData[[#This Row],[OnlyAssetClassAllocationIsToBeUsed]]=TRUE) -> TRUE | AC68: Primary Plant - Power Transformer | AD68: =ISNUMBER(MATCH(ProjectData[[#This Row],[DMDLCCOCSplitType]],CostAllocationSplit[Type of Project],0)) -> TRUE | AE68: TRUE | AF68: FALSE
A69: 63 | B69: CP.02531 - Boyne Island Secondary Systems Replacement | C69: Current - Approved - Non Load Driven | E69: Replacement | F69: =ISNUMBER(MATCH(ProjectData[[#This Row],[PQ Project Driver]],Lookup_ProjectDrivers,0)) -> TRUE | G69: Project Close | H69: =ISNUMBER(MATCH(ProjectData[[#This Row],[Capitalisation]],Lookup_CapitalisationTypes,0)) -> TRUE | I69: Nominal | J69: =ISNUMBER(MATCH(ProjectData[[#This Row],[RepexDollarsBasis]],Lookup_RepexDollarBasis,0)) -> TRUE | K69: 0 | L69: 0 | M69: 0 | N69: =0.0967182645048842/0.75 -> 0.128957686 | O69: =0.591280813142021/0.75 -> 0.7883744175 | P69: =0.0620009223530952/0.75 -> 0.08266789647 | R69: 0 | AB69: =OR(SUM(ProjectData[[#This Row],[LinesOH]:[InsuranceSpares]])=1,ProjectData[[#This Row],[OnlyAssetClassAllocationIsToBeUsed]]=TRUE) -> TRUE | AC69: Secondary Systems | AD69: =ISNUMBER(MATCH(ProjectData[[#This Row],[DMDLCCOCSplitType]],CostAllocationSplit[Type of Project],0)) -> TRUE | AE69: TRUE | AF69: FALSE
A70: 64 | B70: CP.02272 - Mudgeeraba 275kV Secondary System Replacement | C70: Current - Approved - Non Load Driven | E70: Replacement | F70: =ISNUMBER(MATCH(ProjectData[[#This Row],[PQ Project Driver]],Lookup_ProjectDrivers,0)) -> TRUE | G70: Project Close | H70: =ISNUMBER(MATCH(ProjectData[[#This Row],[Capitalisation]],Lookup_CapitalisationTypes,0)) -> TRUE | I70: Nominal | J70: =ISNUMBER(MATCH(ProjectData[[#This Row],[RepexDollarsBasis]],Lookup_RepexDollarBasis,0)) -> TRUE | K70: 0 | L70: 0 | M70: 0 | N70: 0.24 | O70: 0.76 | P70: 0 | R70: 0 | AB70: =OR(SUM(ProjectData[[#This Row],[LinesOH]:[InsuranceSpares]])=1,ProjectData[[#This Row],[OnlyAssetClassAllocationIsToBeUsed]]=TRUE) -> TRUE | AC70: Secondary Systems | AD70: =ISNUMBER(MATCH(ProjectData[[#This Row],[DMDLCCOCSplitType]],CostAllocationSplit[Type of Project],0)) -> TRUE | AE70: TRUE | AF70: FALSE
A71: 65 | B71: CP.01710 - Gin Gin Substation Rebuild | C71: Current - Approved - Non Load Driven | E71: Replacement | F71: =ISNUMBER(MATCH(ProjectData[[#This Row],[PQ Project Driver]],Lookup_ProjectDrivers,0)) -> TRUE | G71: Project Close | H71: =ISNUMBER(MATCH(ProjectData[[#This Row],[Capitalisation]],Lookup_CapitalisationTypes,0)) -> TRUE | I71: Nominal | J71: =ISNUMBER(MATCH(ProjectData[[#This Row],[RepexDollarsBasis]],Lookup_RepexDollarBasis,0)) -> TRUE | K71: 0.06547724827 | L71: 0 | M71: 0 | N71: 0.8554613883 | O71: 0.07426889761 | P71: 0.004792465808 | R71: 0 | AB71: =OR(SUM(ProjectData[[#This Row],[LinesOH]:[InsuranceSpares]])=1,ProjectData[[#This Row],[OnlyAssetClassAllocationIsToBeUsed]]=TRUE) -> TRUE | AC71: Primary Plant - Bay | AD71: =ISNUMBER(MATCH(ProjectData[[#This Row],[DMDLCCOCSplitType]],CostAllocationSplit[Type of Project],0)) -> TRUE | AE71: TRUE | AF71: FALSE
A72: 66 | B72: CP.01999 - Tarong Secondary Systems Replacement - Stage 2 | C72: Current - Approved - Non Load Driven | E72: Replacement | F72: =ISNUMBER(MATCH(ProjectData[[#This Row],[PQ Project Driver]],Lookup_ProjectDrivers,0)) -> TRUE | G72: Project Close | H72: =ISNUMBER(MATCH(ProjectData[[#This Row],[Capitalisation]],Lookup_CapitalisationTypes,0)) -> TRUE | I72: Nominal | J72: =ISNUMBER(MATCH(ProjectData[[#This Row],[RepexDollarsBasis]],Lookup_RepexDollarBasis,0)) -> TRUE | K72: 0 | L72: 0 | M72: 0 | N72: 0.18 | O72: 0.72 | P72: 0.07 | R72: 0.03 | AB72: =OR(SUM(ProjectData[[#This Row],[LinesOH]:[InsuranceSpares]])=1,ProjectData[[#This Row],[OnlyAssetClassAllocationIsToBeUsed]]=TRUE) -> TRUE | AC72: Secondary Systems | AD72: =ISNUMBER(MATCH(ProjectData[[#This Row],[DMDLCCOCSplitType]],CostAllocationSplit[Type of Project],0)) -> TRUE | AE72: TRUE | AF72: FALSE
A73: 67 | B73: CP.02369 - T032 Blackwater - Transformer 1 & 2 Replacement | C73: Current - Approved - Non Load Driven | E73: Replacement | F73: =ISNUMBER(MATCH(ProjectData[[#This Row],[PQ Project Driver]],Lookup_ProjectDrivers,0)) -> TRUE | G73: Project Close | H73: =ISNUMBER(MATCH(ProjectData[[#This Row],[Capitalisation]],Lookup_CapitalisationTypes,0)) -> TRUE | I73: Nominal | J73: =ISNUMBER(MATCH(ProjectData[[#This Row],[RepexDollarsBasis]],Lookup_RepexDollarBasis,0)) -> TRUE | K73: 0 | L73: 0 | M73: 0 | N73: 0.86 | O73: 0.14 | P73: 0 | R73: 0 | AB73: =OR(SUM(ProjectData[[#This Row],[LinesOH]:[InsuranceSpares]])=1,ProjectData[[#This Row],[OnlyAssetClassAllocationIsToBeUsed]]=TRUE) -> TRUE | AC73: Primary Plant - Power Transformer | AD73: =ISNUMBER(MATCH(ProjectData[[#This Row],[DMDLCCOCSplitType]],CostAllocationSplit[Type of Project],0)) -> TRUE | AE73: TRUE | AF73: FALSE
A74: 68 | B74: CP.02340 - H015 Lilyvale Selected Primary Plant Replacement | C74: Current - Approved - Non Load Driven | E74: Replacement | F74: =ISNUMBER(MATCH(ProjectData[[#This Row],[PQ Project Driver]],Lookup_ProjectDrivers,0)) -> TRUE | G74: Project Close | H74: =ISNUMBER(MATCH(ProjectData[[#This Row],[Capitalisation]],Lookup_CapitalisationTypes,0)) -> TRUE | I74: Nominal | J74: =ISNUMBER(MATCH(ProjectData[[#This Row],[RepexDollarsBasis]],Lookup_RepexDollarBasis,0)) -> TRUE | K74: 0 | L74: 0 | M74: 0 | N74: 0.91 | O74: 0.09 | P74: 0 | R74: 0 | AB74: =OR(SUM(ProjectData[[#This Row],[LinesOH]:[InsuranceSpares]])=1,ProjectData[[#This Row],[OnlyAssetClassAllocationIsToBeUsed]]=TRUE) -> TRUE | AC74: Primary Plant - Bay | AD74: =ISNUMBER(MATCH(ProjectData[[#This Row],[DMDLCCOCSplitType]],CostAllocationSplit[Type of Project],0)) -> TRUE | AE74: TRUE | AF74: FALSE
A75: 69 | B75: CP.02353 - Townsville South Primary Plant Replacement | C75: Current - Approved - Non Load Driven | E75: Replacement | F75: =ISNUMBER(MATCH(ProjectData[[#This Row],[PQ Project Driver]],Lookup_ProjectDrivers,0)) -> TRUE | G75: Project Close | H75: =ISNUMBER(MATCH(ProjectData[[#This Row],[Capitalisation]],Lookup_CapitalisationTypes,0)) -> TRUE | I75: Nominal | J75: =ISNUMBER(MATCH(ProjectData[[#This Row],[RepexDollarsBasis]],Lookup_RepexDollarBasis,0)) -> TRUE | K75: 0 | L75: 0 | M75: 0 | N75: 0.92 | O75: 0.08 | P75: 0 | R75: 0 | AB75: =OR(SUM(ProjectData[[#This Row],[LinesOH]:[InsuranceSpares]])=1,ProjectData[[#This Row],[OnlyAssetClassAllocationIsToBeUsed]]=TRUE) -> TRUE | AC75: Primary Plant - Bay | AD75: =ISNUMBER(MATCH(ProjectData[[#This Row],[DMDLCCOCSplitType]],CostAllocationSplit[Type of Project],0)) -> TRUE | AE75: TRUE | AF75: FALSE
A76: 70 | B76: CP.02717 - H039 Woree Secondary Systems Replacement Stage 1 | C76: Current - Approved - Non Load Driven | E76: Replacement | F76: =ISNUMBER(MATCH(ProjectData[[#This Row],[PQ Project Driver]],Lookup_ProjectDrivers,0)) -> TRUE | G76: Project Close | H76: =ISNUMBER(MATCH(ProjectData[[#This Row],[Capitalisation]],Lookup_CapitalisationTypes,0)) -> TRUE | I76: Nominal | J76: =ISNUMBER(MATCH(ProjectData[[#This Row],[RepexDollarsBasis]],Lookup_RepexDollarBasis,0)) -> TRUE | K76: 0 | L76: 0 | M76: 0 | N76: 0.1 | O76: 0.88 | P76: 0.02 | R76: 0 | AB76: =OR(SUM(ProjectData[[#This Row],[LinesOH]:[InsuranceSpares]])=1,ProjectData[[#This Row],[OnlyAssetClassAllocationIsToBeUsed]]=TRUE) -> TRUE | AC76: Secondary Systems | AD76: =ISNUMBER(MATCH(ProjectData[[#This Row],[DMDLCCOCSplitType]],CostAllocationSplit[Type of Project],0)) -> TRUE | AE76: TRUE | AF76: FALSE
A77: 71 | B77: CP.02321 - Woree SVC Secondary Systems Replacement | C77: Current - Approved - Non Load Driven | E77: Replacement | F77: =ISNUMBER(MATCH(ProjectData[[#This Row],[PQ Project Driver]],Lookup_ProjectDrivers,0)) -> TRUE | G77: Project Close | H77: =ISNUMBER(MATCH(ProjectData[[#This Row],[Capitalisation]],Lookup_CapitalisationTypes,0)) -> TRUE | I77: Nominal | J77: =ISNUMBER(MATCH(ProjectData[[#This Row],[RepexDollarsBasis]],Lookup_RepexDollarBasis,0)) -> TRUE | K77: 0.01 | L77: 0 | M77: 0 | N77: 0.97 | O77: 0.02 | P77: 0 | R77: 0 | AB77: =OR(SUM(ProjectData[[#This Row],[LinesOH]:[InsuranceSpares]])=1,ProjectData[[#This Row],[OnlyAssetClassAllocationIsToBeUsed]]=TRUE) -> TRUE | AC77: Secondary Systems | AD77: =ISNUMBER(MATCH(ProjectData[[#This Row],[DMDLCCOCSplitType]],CostAllocationSplit[Type of Project],0)) -> TRUE | AE77: TRUE | AF77: FALSE
A78: 72 | B78: CP.02350 - Bouldercombe Primary Plant Replacement | C78: Current - Approved - Non Load Driven | E78: Replacement | F78: =ISNUMBER(MATCH(ProjectData[[#This Row],[PQ Project Driver]],Lookup_ProjectDrivers,0)) -> TRUE | G78: Project Close | H78: =ISNUMBER(MATCH(ProjectData[[#This Row],[Capitalisation]],Lookup_CapitalisationTypes,0)) -> TRUE | I78: Nominal | J78: =ISNUMBER(MATCH(ProjectData[[#This Row],[RepexDollarsBasis]],Lookup_RepexDollarBasis,0)) -> TRUE | K78: 0.03 | L78: 0 | M78: 0 | N78: 0.9 | O78: 0.07 | P78: 0 | R78: 0 | AB78: =OR(SUM(ProjectData[[#This Row],[LinesOH]:[InsuranceSpares]])=1,ProjectData[[#This Row],[OnlyAssetClassAllocationIsToBeUsed]]=TRUE) -> TRUE | AC78: Primary Plant - Bay | AD78: =ISNUMBER(MATCH(ProjectData[[#This Row],[DMDLCCOCSplitType]],CostAllocationSplit[Type of Project],0)) -> TRUE | AE78: TRUE | AF78: FALSE
A79: 73 | B79: CP.02712 - T067 Kemmis Secondary Systems Replacement | C79: Current - Approved - Non Load Driven | E79: Replacement | F79: =ISNUMBER(MATCH(ProjectData[[#This Row],[PQ Project Driver]],Lookup_ProjectDrivers,0)) -> TRUE | G79: Project Close | H79: =ISNUMBER(MATCH(ProjectData[[#This Row],[Capitalisation]],Lookup_CapitalisationTypes,0)) -> TRUE | I79: Nominal | J79: =ISNUMBER(MATCH(ProjectData[[#This Row],[RepexDollarsBasis]],Lookup_RepexDollarBasis,0)) -> TRUE | K79: 0 | L79: 0 | M79: 0 | N79: 0.05 | O79: 0.8 | P79: 0.15 | R79: 0 | AB79: =OR(SUM(ProjectData[[#This Row],[LinesOH]:[InsuranceSpares]])=1,ProjectData[[#This Row],[OnlyAssetClassAllocationIsToBeUsed]]=TRUE) -> TRUE | AC79: Secondary Systems | AD79: =ISNUMBER(MATCH(ProjectData[[#This Row],[DMDLCCOCSplitType]],CostAllocationSplit[Type of Project],0)) -> TRUE | AE79: TRUE | AF79: FALSE
A80: 74 | B80: CP.01151 - Calvale & Callide B Secondary Systems Replacement | C80: Current - Approved - Non Load Driven | E80: Replacement | F80: =ISNUMBER(MATCH(ProjectData[[#This Row],[PQ Project Driver]],Lookup_ProjectDrivers,0)) -> TRUE | G80: Project Close | H80: =ISNUMBER(MATCH(ProjectData[[#This Row],[Capitalisation]],Lookup_CapitalisationTypes,0)) -> TRUE | I80: Nominal | J80: =ISNUMBER(MATCH(ProjectData[[#This Row],[RepexDollarsBasis]],Lookup_RepexDollarBasis,0)) -> TRUE | K80: 0 | L80: 0 | M80: 0 | N80: 0.04500536904 | O80: 0.9377061474 | P80: 0.01728848355 | R80: 0 | AB80: =OR(SUM(ProjectData[[#This Row],[LinesOH]:[InsuranceSpares]])=1,ProjectData[[#This Row],[OnlyAssetClassAllocationIsToBeUsed]]=TRUE) -> TRUE | AC80: Secondary Systems | AD80: =ISNUMBER(MATCH(ProjectData[[#This Row],[DMDLCCOCSplitType]],CostAllocationSplit[Type of Project],0)) -> TRUE | AE80: TRUE | AF80: FALSE
A81: 75 | B81: CP.02351 - Nebo Primary Plant Replacement | C81: Current - Approved - Non Load Driven | E81: Replacement | F81: =ISNUMBER(MATCH(ProjectData[[#This Row],[PQ Project Driver]],Lookup_ProjectDrivers,0)) -> TRUE | G81: Project Close | H81: =ISNUMBER(MATCH(ProjectData[[#This Row],[Capitalisation]],Lookup_CapitalisationTypes,0)) -> TRUE | I81: Nominal | J81: =ISNUMBER(MATCH(ProjectData[[#This Row],[RepexDollarsBasis]],Lookup_RepexDollarBasis,0)) -> TRUE | K81: 0.0274857991 | L81: 0 | M81: 0 | N81: 0.9316953934 | O81: 0.04081880745 | P81: 0 | R81: 0 | AB81: =OR(SUM(ProjectData[[#This Row],[LinesOH]:[InsuranceSpares]])=1,ProjectData[[#This Row],[OnlyAssetClassAllocationIsToBeUsed]]=TRUE) -> TRUE | AC81: Primary Plant - Bay | AD81: =ISNUMBER(MATCH(ProjectData[[#This Row],[DMDLCCOCSplitType]],CostAllocationSplit[Type of Project],0)) -> TRUE | AE81: TRUE | AF81: FALSE
A82: 113 | B82: CP.02351 - Nebo Primary Plant Replacement 275kV | C82: Current - Approved - Non Load Driven | E82: Replacement | F82: =ISNUMBER(MATCH(ProjectData[[#This Row],[PQ Project Driver]],Lookup_ProjectDrivers,0)) -> TRUE | G82: Project Close | H82: =ISNUMBER(MATCH(ProjectData[[#This Row],[Capitalisation]],Lookup_CapitalisationTypes,0)) -> TRUE | I82: Nominal | J82: =ISNUMBER(MATCH(ProjectData[[#This Row],[RepexDollarsBasis]],Lookup_RepexDollarBasis,0)) -> TRUE | K82: 0.0274857991 | L82: 0 | M82: 0 | N82: 0.9316953934 | O82: 0.04081880745 | P82: 0 | R82: 0 | AB82: =OR(SUM(ProjectData[[#This Row],[LinesOH]:[InsuranceSpares]])=1,ProjectData[[#This Row],[OnlyAssetClassAllocationIsToBeUsed]]=TRUE) -> TRUE | AC82: Primary Plant - Bay | AD82: =ISNUMBER(MATCH(ProjectData[[#This Row],[DMDLCCOCSplitType]],CostAllocationSplit[Type of Project],0)) -> TRUE | AE82: TRUE | AF82: FALSE
A83: 76 | B83: CP.01016 - Nebo Secondary Systems Replacement | C83: Current - Approved - Non Load Driven | E83: Replacement | F83: =ISNUMBER(MATCH(ProjectData[[#This Row],[PQ Project Driver]],Lookup_ProjectDrivers,0)) -> TRUE | G83: Project Close | H83: =ISNUMBER(MATCH(ProjectData[[#This Row],[Capitalisation]],Lookup_CapitalisationTypes,0)) -> TRUE | I83: Nominal | J83: =ISNUMBER(MATCH(ProjectData[[#This Row],[RepexDollarsBasis]],Lookup_RepexDollarBasis,0)) -> TRUE | K83: 0 | L83: 0 | M83: 0 | N83: 0.1213650628 | O83: 0.8314172384 | P83: 0.04721769884 | R83: 0 | AB83: =OR(SUM(ProjectData[[#This Row],[LinesOH]:[InsuranceSpares]])=1,ProjectData[[#This Row],[OnlyAssetClassAllocationIsToBeUsed]]=TRUE) -> TRUE | AC83: Secondary Systems | AD83: =ISNUMBER(MATCH(ProjectData[[#This Row],[DMDLCCOCSplitType]],CostAllocationSplit[Type of Project],0)) -> TRUE | AE83: TRUE | AF83: FALSE
A84: 77 | B84: CP.02617 - Kamerunga Substation Rebuild | C84: Current - Approved - Non Load Driven | E84: Replacement | F84: =ISNUMBER(MATCH(ProjectData[[#This Row],[PQ Project Driver]],Lookup_ProjectDrivers,0)) -> TRUE | G84: Project Close | H84: =ISNUMBER(MATCH(ProjectData[[#This Row],[Capitalisation]],Lookup_CapitalisationTypes,0)) -> TRUE | I84: Nominal | J84: =ISNUMBER(MATCH(ProjectData[[#This Row],[RepexDollarsBasis]],Lookup_RepexDollarBasis,0)) -> TRUE | K84: 0 | L84: 0.1 | M84: 0 | N84: 0.62 | O84: 0.25 | P84: 0.03 | R84: 0 | AB84: =OR(SUM(ProjectData[[#This Row],[LinesOH]:[InsuranceSpares]])=1,ProjectData[[#This Row],[OnlyAssetClassAllocationIsToBeUsed]]=TRUE) -> TRUE | AC84: Primary Plant - Bay | AD84: =ISNUMBER(MATCH(ProjectData[[#This Row],[DMDLCCOCSplitType]],CostAllocationSplit[Type of Project],0)) -> TRUE | AE84: TRUE | AF84: FALSE
A85: 78 | B85: CP.02723 - H013 Ross 275kV Primary Plant Replacement | C85: Current - Approved - Non Load Driven | E85: Replacement | F85: =ISNUMBER(MATCH(ProjectData[[#This Row],[PQ Project Driver]],Lookup_ProjectDrivers,0)) -> TRUE | G85: Project Close | H85: =ISNUMBER(MATCH(ProjectData[[#This Row],[Capitalisation]],Lookup_CapitalisationTypes,0)) -> TRUE | I85: Nominal | J85: =ISNUMBER(MATCH(ProjectData[[#This Row],[RepexDollarsBasis]],Lookup_RepexDollarBasis,0)) -> TRUE | K85: 0.01 | L85: 0 | M85: 0 | N85: 0.92 | O85: 0.07 | P85: 0 | R85: 0 | AB85: =OR(SUM(ProjectData[[#This Row],[LinesOH]:[InsuranceSpares]])=1,ProjectData[[#This Row],[OnlyAssetClassAllocationIsToBeUsed]]=TRUE) -> TRUE | AC85: Primary Plant - Bay | AD85: =ISNUMBER(MATCH(ProjectData[[#This Row],[DMDLCCOCSplitType]],CostAllocationSplit[Type of Project],0)) -> TRUE | AE85: TRUE | AF85: FALSE
A86: 79 | B86: CP.02721 - H013 Ross 132kV Primary Plant Replacement | C86: Current - Approved - Non Load Driven | E86: Replacement | F86: =ISNUMBER(MATCH(ProjectData[[#This Row],[PQ Project Driver]],Lookup_ProjectDrivers,0)) -> TRUE | G86: Project Close | H86: =ISNUMBER(MATCH(ProjectData[[#This Row],[Capitalisation]],Lookup_CapitalisationTypes,0)) -> TRUE | I86: Nominal | J86: =ISNUMBER(MATCH(ProjectData[[#This Row],[RepexDollarsBasis]],Lookup_RepexDollarBasis,0)) -> TRUE | K86: 0 | L86: 0 | M86: 0 | N86: 0.92 | O86: 0.08 | P86: 0 | R86: 0 | AB86: =OR(SUM(ProjectData[[#This Row],[LinesOH]:[InsuranceSpares]])=1,ProjectData[[#This Row],[OnlyAssetClassAllocationIsToBeUsed]]=TRUE) -> TRUE | AC86: Primary Plant - Bay | AD86: =ISNUMBER(MATCH(ProjectData[[#This Row],[DMDLCCOCSplitType]],CostAllocationSplit[Type of Project],0)) -> TRUE | AE86: TRUE | AF86: FALSE
A87: 80 | B87: CP.02744 - H035 Strathmore 132kV Sec Sys Replacement | C87: Current - Approved - Non Load Driven | E87: Replacement | F87: =ISNUMBER(MATCH(ProjectData[[#This Row],[PQ Project Driver]],Lookup_ProjectDrivers,0)) -> TRUE | G87: Project Close | H87: =ISNUMBER(MATCH(ProjectData[[#This Row],[Capitalisation]],Lookup_CapitalisationTypes,0)) -> TRUE | I87: Nominal | J87: =ISNUMBER(MATCH(ProjectData[[#This Row],[RepexDollarsBasis]],Lookup_RepexDollarBasis,0)) -> TRUE | K87: 0 | L87: 0 | M87: 0 | N87: 0.05 | O87: 0.8 | P87: 0.15 | R87: 0 | AB87: =OR(SUM(ProjectData[[#This Row],[LinesOH]:[InsuranceSpares]])=1,ProjectData[[#This Row],[OnlyAssetClassAllocationIsToBeUsed]]=TRUE) -> TRUE | AC87: Secondary Systems | AD87: =ISNUMBER(MATCH(ProjectData[[#This Row],[DMDLCCOCSplitType]],CostAllocationSplit[Type of Project],0)) -> TRUE | AE87: TRUE | AF87: FALSE
A88: 81 | B88: CP.02772 - H005 Woolooga Install Revenue Metering for F7190 | C88: Current - Approved - Non Load Driven | E88: Security and Compliance | F88: =ISNUMBER(MATCH(ProjectData[[#This Row],[PQ Project Driver]],Lookup_ProjectDrivers,0)) -> TRUE | G88: Project Close | H88: =ISNUMBER(MATCH(ProjectData[[#This Row],[Capitalisation]],Lookup_CapitalisationTypes,0)) -> TRUE | I88: Nominal | J88: =ISNUMBER(MATCH(ProjectData[[#This Row],[RepexDollarsBasis]],Lookup_RepexDollarBasis,0)) -> TRUE | K88: 0 | L88: 0 | M88: 0 | N88: 0.8 | O88: 0.15 | P88: 0.03 | R88: 0.02 | AB88: =OR(SUM(ProjectData[[#This Row],[LinesOH]:[InsuranceSpares]])=1,ProjectData[[#This Row],[OnlyAssetClassAllocationIsToBeUsed]]=TRUE) -> TRUE | AC88: Security and Compliance | AD88: =ISNUMBER(MATCH(ProjectData[[#This Row],[DMDLCCOCSplitType]],CostAllocationSplit[Type of Project],0)) -> TRUE | AE88: TRUE | AF88: FALSE
A89: 82 | B89: CP.02765 - H020 Broadsound 275kV Bus Reactors | C89: Future - Project | E89: System Services | F89: =ISNUMBER(MATCH(ProjectData[[#This Row],[PQ Project Driver]],Lookup_ProjectDrivers,0)) -> TRUE | G89: Project Close | H89: =ISNUMBER(MATCH(ProjectData[[#This Row],[Capitalisation]],Lookup_CapitalisationTypes,0)) -> TRUE | I89: Real2021 | J89: =ISNUMBER(MATCH(ProjectData[[#This Row],[RepexDollarsBasis]],Lookup_RepexDollarBasis,0)) -> TRUE | K89: 0 | L89: 0 | M89: 0 | N89: 0.75 | O89: 0.16 | P89: 0.02 | R89: 0.07 | AB89: =OR(SUM(ProjectData[[#This Row],[LinesOH]:[InsuranceSpares]])=1,ProjectData[[#This Row],[OnlyAssetClassAllocationIsToBeUsed]]=TRUE) -> TRUE | AC89: Primary Plant - Power Transformer | AD89: =ISNUMBER(MATCH(ProjectData[[#This Row],[DMDLCCOCSplitType]],CostAllocationSplit[Type of Project],0)) -> TRUE | AE89: FALSE | AF89: FALSE
A90: 83 | B90: CP.02814 - Managing SEQ voltages SEQ 275KV Bus Reactor (C55.1433) | C90: Future - Project | E90: System Services | F90: =ISNUMBER(MATCH(ProjectData[[#This Row],[PQ Project Driver]],Lookup_ProjectDrivers,0)) -> TRUE | G90: Project Close | H90: =ISNUMBER(MATCH(ProjectData[[#This Row],[Capitalisation]],Lookup_CapitalisationTypes,0)) -> TRUE | I90: Real2021 | J90: =ISNUMBER(MATCH(ProjectData[[#This Row],[RepexDollarsBasis]],Lookup_RepexDollarBasis,0)) -> TRUE | K90: 0 | L90: 0 | M90: 0 | N90: 0.85 | O90: 0.06 | P90: 0.09 | AB90: =OR(SUM(ProjectData[[#This Row],[LinesOH]:[InsuranceSpares]])=1,ProjectData[[#This Row],[OnlyAssetClassAllocationIsToBeUsed]]=TRUE) -> TRUE | AC90: Primary Plant - Power Transformer | AD90: =ISNUMBER(MATCH(ProjectData[[#This Row],[DMDLCCOCSplitType]],CostAllocationSplit[Type of Project],0)) -> TRUE | AE90: FALSE | AF90: FALSE
A91: 84 | B91: CP.02741 - Real Time Rating of Loaded Feeders | C91: Future - Project | E91: Augmentation | F91: =ISNUMBER(MATCH(ProjectData[[#This Row],[PQ Project Driver]],Lookup_ProjectDrivers,0)) -> TRUE | G91: Project Close | H91: =ISNUMBER(MATCH(ProjectData[[#This Row],[Capitalisation]],Lookup_CapitalisationTypes,0)) -> TRUE | I91: Nominal | J91: =ISNUMBER(MATCH(ProjectData[[#This Row],[RepexDollarsBasis]],Lookup_RepexDollarBasis,0)) -> TRUE | K91: 0 | L91: 0 | M91: 0 | N91: 0 | O91: 0 | P91: 0 | R91: 1 | AB91: =OR(SUM(ProjectData[[#This Row],[LinesOH]:[InsuranceSpares]])=1,ProjectData[[#This Row],[OnlyAssetClassAllocationIsToBeUsed]]=TRUE) -> TRUE | AC91: Primary Plant - Power Transformer | AD91: =ISNUMBER(MATCH(ProjectData[[#This Row],[DMDLCCOCSplitType]],CostAllocationSplit[Type of Project],0)) -> TRUE | AE91: FALSE | AF91: FALSE
A92: 85 | B92: CP.02759 - T053 Kamerunga Transformer Ratings | C92: Future - Project | E92: Augmentation | F92: =ISNUMBER(MATCH(ProjectData[[#This Row],[PQ Project Driver]],Lookup_ProjectDrivers,0)) -> TRUE | G92: Project Close | H92: =ISNUMBER(MATCH(ProjectData[[#This Row],[Capitalisation]],Lookup_CapitalisationTypes,0)) -> TRUE | I92: Nominal | J92: =ISNUMBER(MATCH(ProjectData[[#This Row],[RepexDollarsBasis]],Lookup_RepexDollarBasis,0)) -> TRUE | K92: 0 | L92: 0 | M92: 0 | N92: 0.95 | O92: 0.05 | P92: 0 | R92: 0 | AB92: =OR(SUM(ProjectData[[#This Row],[LinesOH]:[InsuranceSpares]])=1,ProjectData[[#This Row],[OnlyAssetClassAllocationIsToBeUsed]]=TRUE) -> TRUE | AC92: Primary Plant - Power Transformer | AD92: =ISNUMBER(MATCH(ProjectData[[#This Row],[DMDLCCOCSplitType]],CostAllocationSplit[Type of Project],0)) -> TRUE | AE92: FALSE | AF92: FALSE
A93: 86 | B93: CP.02750 - BS1220 Ross-Chalumbin Struct Refit | C93: Future - Project | E93: Replacement | F93: =ISNUMBER(MATCH(ProjectData[[#This Row],[PQ Project Driver]],Lookup_ProjectDrivers,0)) -> TRUE | G93: Project Close | H93: =ISNUMBER(MATCH(ProjectData[[#This Row],[Capitalisation]],Lookup_CapitalisationTypes,0)) -> TRUE | I93: Real2021 | J93: =ISNUMBER(MATCH(ProjectData[[#This Row],[RepexDollarsBasis]],Lookup_RepexDollarBasis,0)) -> TRUE | M93: 1 | AB93: =OR(SUM(ProjectData[[#This Row],[LinesOH]:[InsuranceSpares]])=1,ProjectData[[#This Row],[OnlyAssetClassAllocationIsToBeUsed]]=TRUE) -> TRUE | AC93: Tower Refit | AD93: =ISNUMBER(MATCH(ProjectData[[#This Row],[DMDLCCOCSplitType]],CostAllocationSplit[Type of Project],0)) -> TRUE | AE93: FALSE | AF93: FALSE
A94: 87 | B94: CP.02754 - BS1664 Davies Creek – Bayview Heights 275kV Refit | C94: Future - Project | E94: Replacement | F94: =ISNUMBER(MATCH(ProjectData[[#This Row],[PQ Project Driver]],Lookup_ProjectDrivers,0)) -> TRUE | G94: Project Close | H94: =ISNUMBER(MATCH(ProjectData[[#This Row],[Capitalisation]],Lookup_CapitalisationTypes,0)) -> TRUE | I94: Real2021 | J94: =ISNUMBER(MATCH(ProjectData[[#This Row],[RepexDollarsBasis]],Lookup_RepexDollarBasis,0)) -> TRUE | M94: 1 | AB94: =OR(SUM(ProjectData[[#This Row],[LinesOH]:[InsuranceSpares]])=1,ProjectData[[#This Row],[OnlyAssetClassAllocationIsToBeUsed]]=TRUE) -> TRUE | AC94: Tower Refit | AD94: =ISNUMBER(MATCH(ProjectData[[#This Row],[DMDLCCOCSplitType]],CostAllocationSplit[Type of Project],0)) -> TRUE | AE94: FALSE | AF94: FALSE
A95: 88 | B95: CP.02727 - T152 Gladstone South Secondary Systems Replacement | C95: Future - Project | E95: Replacement | F95: =ISNUMBER(MATCH(ProjectData[[#This Row],[PQ Project Driver]],Lookup_ProjectDrivers,0)) -> TRUE | G95: Project Close | H95: =ISNUMBER(MATCH(ProjectData[[#This Row],[Capitalisation]],Lookup_CapitalisationTypes,0)) -> TRUE | I95: Real2021 | J95: =ISNUMBER(MATCH(ProjectData[[#This Row],[RepexDollarsBasis]],Lookup_RepexDollarBasis,0)) -> TRUE | K95: 0 | L95: 0 | M95: 0 | N95: 0.05 | O95: 0.8 | P95: 0.15 | AB95: =OR(SUM(ProjectData[[#This Row],[LinesOH]:[InsuranceSpares]])=1,ProjectData[[#This Row],[OnlyAssetClassAllocationIsToBeUsed]]=TRUE) -> TRUE | AC95: Secondary Systems | AD95: =ISNUMBER(MATCH(ProjectData[[#This Row],[DMDLCCOCSplitType]],CostAllocationSplit[Type of Project],0)) -> TRUE | AE95: FALSE | AF95: FALSE
A96: 89 | B96: CP.02760 - Middle Ridge Secondary Systems Replacement | C96: Future - Project | E96: Replacement | F96: =ISNUMBER(MATCH(ProjectData[[#This Row],[PQ Project Driver]],Lookup_ProjectDrivers,0)) -> TRUE | G96: Project Close | H96: =ISNUMBER(MATCH(ProjectData[[#This Row],[Capitalisation]],Lookup_CapitalisationTypes,0)) -> TRUE | I96: Real2021 | J96: =ISNUMBER(MATCH(ProjectData[[#This Row],[RepexDollarsBasis]],Lookup_RepexDollarBasis,0)) -> TRUE | K96: 0 | L96: 0 | M96: 0 | N96: 0.18 | O96: 0.78 | P96: 0.04 | AB96: =OR(SUM(ProjectData[[#This Row],[LinesOH]:[InsuranceSpares]])=1,ProjectData[[#This Row],[OnlyAssetClassAllocationIsToBeUsed]]=TRUE) -> TRUE | AC96: Secondary Systems | AD96: =ISNUMBER(MATCH(ProjectData[[#This Row],[DMDLCCOCSplitType]],CostAllocationSplit[Type of Project],0)) -> TRUE | AE96: FALSE | AF96: FALSE
A97: 90 | B97: CP.02694 - BS1170 Callemondah - Gladstone South Transmission Line Refit | C97: Future - Project | E97: Replacement | F97: =ISNUMBER(MATCH(ProjectData[[#This Row],[PQ Project Driver]],Lookup_ProjectDrivers,0)) -> TRUE | G97: Project Close | H97: =ISNUMBER(MATCH(ProjectData[[#This Row],[Capitalisation]],Lookup_CapitalisationTypes,0)) -> TRUE | I97: Real2021 | J97: =ISNUMBER(MATCH(ProjectData[[#This Row],[RepexDollarsBasis]],Lookup_RepexDollarBasis,0)) -> TRUE | K97: 1 | L97: 0 | M97: 0 | N97: 0 | O97: 0 | P97: 0 | AB97: =OR(SUM(ProjectData[[#This Row],[LinesOH]:[InsuranceSpares]])=1,ProjectData[[#This Row],[OnlyAssetClassAllocationIsToBeUsed]]=TRUE) -> TRUE | AC97: Tower Replacement | AD97: =ISNUMBER(MATCH(ProjectData[[#This Row],[DMDLCCOCSplitType]],CostAllocationSplit[Type of Project],0)) -> TRUE | AE97: FALSE | AF97: FALSE
A98: 91 | B98: CP.02415 - Greenbank - Mudgeeraba 275kV TL Refit | C98: Future - Project | E98: Replacement | F98: =ISNUMBER(MATCH(ProjectData[[#This Row],[PQ Project Driver]],Lookup_ProjectDrivers,0)) -> TRUE | G98: Project Close | H98: =ISNUMBER(MATCH(ProjectData[[#This Row],[Capitalisation]],Lookup_CapitalisationTypes,0)) -> TRUE | I98: Real2021 | J98: =ISNUMBER(MATCH(ProjectData[[#This Row],[RepexDollarsBasis]],Lookup_RepexDollarBasis,0)) -> TRUE | M98: 1 | AB98: =OR(SUM(ProjectData[[#This Row],[LinesOH]:[InsuranceSpares]])=1,ProjectData[[#This Row],[OnlyAssetClassAllocationIsToBeUsed]]=TRUE) -> TRUE | AC98: Tower Refit | AD98: =ISNUMBER(MATCH(ProjectData[[#This Row],[DMDLCCOCSplitType]],CostAllocationSplit[Type of Project],0)) -> TRUE | AE98: FALSE | AF98: FALSE
A99: 92 | B99: CP.02778 - BS1122/1123 Calliope River - Wurdong Tee Rebuild | C99: Future - Project | E99: Replacement | F99: =ISNUMBER(MATCH(ProjectData[[#This Row],[PQ Project Driver]],Lookup_ProjectDrivers,0)) -> TRUE | G99: Project Close | H99: =ISNUMBER(MATCH(ProjectData[[#This Row],[Capitalisation]],Lookup_CapitalisationTypes,0)) -> TRUE | I99: Real2021 | J99: =ISNUMBER(MATCH(ProjectData[[#This Row],[RepexDollarsBasis]],Lookup_RepexDollarBasis,0)) -> TRUE | K99: 1 | AB99: =OR(SUM(ProjectData[[#This Row],[LinesOH]:[InsuranceSpares]])=1,ProjectData[[#This Row],[OnlyAssetClassAllocationIsToBeUsed]]=TRUE) -> TRUE | AC99: Tower Replacement | AD99: =ISNUMBER(MATCH(ProjectData[[#This Row],[DMDLCCOCSplitType]],CostAllocationSplit[Type of Project],0)) -> TRUE | AE99: FALSE | AF99: FALSE
A100: 93 | B100: CP.01656 - Calliope - Larcom Creek 275kV TL Extension | C100: Future - Project | E100: Replacement | F100: =ISNUMBER(MATCH(ProjectData[[#This Row],[PQ Project Driver]],Lookup_ProjectDrivers,0)) -> TRUE | G100: Project Close | H100: =ISNUMBER(MATCH(ProjectData[[#This Row],[Capitalisation]],Lookup_CapitalisationTypes,0)) -> TRUE | I100: Real2021 | J100: =ISNUMBER(MATCH(ProjectData[[#This Row],[RepexDollarsBasis]],Lookup_RepexDollarBasis,0)) -> TRUE | M100: 1 | AB100: =OR(SUM(ProjectData[[#This Row],[LinesOH]:[InsuranceSpares]])=1,ProjectData[[#This Row],[OnlyAssetClassAllocationIsToBeUsed]]=TRUE) -> TRUE | AC100: Tower Refit | AD100: =ISNUMBER(MATCH(ProjectData[[#This Row],[DMDLCCOCSplitType]],CostAllocationSplit[Type of Project],0)) -> TRUE | AE100: FALSE | AF100: FALSE
A101: 94 | B101: CP.02796 - Goodna Secondary Systems Replacement | C101: Future - Project | E101: Replacement | F101: =ISNUMBER(MATCH(ProjectData[[#This Row],[PQ Project Driver]],Lookup_ProjectDrivers,0)) -> TRUE | G101: Project Close | H101: =ISNUMBER(MATCH(ProjectData[[#This Row],[Capitalisation]],Lookup_CapitalisationTypes,0)) -> TRUE | I101: Real2021 | J101: =ISNUMBER(MATCH(ProjectData[[#This Row],[RepexDollarsBasis]],Lookup_RepexDollarBasis,0)) -> TRUE | N101: 0.2 | O101: 0.75 | P101: 0.05 | AB101: =OR(SUM(ProjectData[[#This Row],[LinesOH]:[InsuranceSpares]])=1,ProjectData[[#This Row],[OnlyAssetClassAllocationIsToBeUsed]]=TRUE) -> TRUE | AC101: Secondary Systems | AD101: =ISNUMBER(MATCH(ProjectData[[#This Row],[DMDLCCOCSplitType]],CostAllocationSplit[Type of Project],0)) -> TRUE | AE101: FALSE | AF101: FALSE
A102: 95 | B102: CP.02751 - Murarrie Secondary Systems Replacement | C102: Future - Project | E102: Replacement | F102: =ISNUMBER(MATCH(ProjectData[[#This Row],[PQ Project Driver]],Lookup_ProjectDrivers,0)) -> TRUE | G102: Project Close | H102: =ISNUMBER(MATCH(ProjectData[[#This Row],[Capitalisation]],Lookup_CapitalisationTypes,0)) -> TRUE | I102: Real2021 | J102: =ISNUMBER(MATCH(ProjectData[[#This Row],[RepexDollarsBasis]],Lookup_RepexDollarBasis,0)) -> TRUE | N102: 0.05 | O102: 0.8 | P102: 0.15 | AB102: =OR(SUM(ProjectData[[#This Row],[LinesOH]:[InsuranceSpares]])=1,ProjectData[[#This Row],[OnlyAssetClassAllocationIsToBeUsed]]=TRUE) -> TRUE | AC102: Secondary Systems | AD102: =ISNUMBER(MATCH(ProjectData[[#This Row],[DMDLCCOCSplitType]],CostAllocationSplit[Type of Project],0)) -> TRUE | AE102: FALSE | AF102: FALSE
A103: 96 | B103: CP.02644 - Calliope River - Wurdong F818 T/L Refit | C103: Future - Project | E103: Replacement | F103: =ISNUMBER(MATCH(ProjectData[[#This Row],[PQ Project Driver]],Lookup_ProjectDrivers,0)) -> TRUE | G103: Project Close | H103: =ISNUMBER(MATCH(ProjectData[[#This Row],[Capitalisation]],Lookup_CapitalisationTypes,0)) -> TRUE | I103: Real2021 | J103: =ISNUMBER(MATCH(ProjectData[[#This Row],[RepexDollarsBasis]],Lookup_RepexDollarBasis,0)) -> TRUE | K103: 0.82 | L103: 0.14 | M103: 0 | N103: 0.03 | O103: 0.01 | AB103: =OR(SUM(ProjectData[[#This Row],[LinesOH]:[InsuranceSpares]])=1,ProjectData[[#This Row],[OnlyAssetClassAllocationIsToBeUsed]]=TRUE) -> TRUE | AC103: Tower Refit | AD103: =ISNUMBER(MATCH(ProjectData[[#This Row],[DMDLCCOCSplitType]],CostAllocationSplit[Type of Project],0)) -> TRUE | AE103: FALSE | AF103: FALSE
A104: 97 | B104: C55.1128 - Woree-Kamerunga 132kV Line Replacement | C104: Future - Project | E104: Replacement | F104: =ISNUMBER(MATCH(ProjectData[[#This Row],[PQ Project Driver]],Lookup_ProjectDrivers,0)) -> TRUE | G104: Project Close | H104: =ISNUMBER(MATCH(ProjectData[[#This Row],[Capitalisation]],Lookup_CapitalisationTypes,0)) -> TRUE | I104: Real2021 | J104: =ISNUMBER(MATCH(ProjectData[[#This Row],[RepexDollarsBasis]],Lookup_RepexDollarBasis,0)) -> TRUE | K104: 0.23 | L104: 0.76 | M104: 0 | N104: 0 | O104: 0.01 | P104: 0 | R104: 0 | AB104: =OR(SUM(ProjectData[[#This Row],[LinesOH]:[InsuranceSpares]])=1,ProjectData[[#This Row],[OnlyAssetClassAllocationIsToBeUsed]]=TRUE) -> TRUE | AC104: Tower Replacement | AD104: =ISNUMBER(MATCH(ProjectData[[#This Row],[DMDLCCOCSplitType]],CostAllocationSplit[Type of Project],0)) -> TRUE | AE104: FALSE | AF104: FALSE
A105: 98 | B105: CP.02392 - Woolooga 275/132kV Secondary System Replacement | C105: Future - Project | E105: Replacement | F105: =ISNUMBER(MATCH(ProjectData[[#This Row],[PQ Project Driver]],Lookup_ProjectDrivers,0)) -> TRUE | G105: Project Close | H105: =ISNUMBER(MATCH(ProjectData[[#This Row],[Capitalisation]],Lookup_CapitalisationTypes,0)) -> TRUE | I105: Real2021 | J105: =ISNUMBER(MATCH(ProjectData[[#This Row],[RepexDollarsBasis]],Lookup_RepexDollarBasis,0)) -> TRUE | N105: 0.12 | O105: 0.84 | P105: 0.04 | AB105: =OR(SUM(ProjectData[[#This Row],[LinesOH]:[InsuranceSpares]])=1,ProjectData[[#This Row],[OnlyAssetClassAllocationIsToBeUsed]]=TRUE) -> TRUE | AC105: Secondary Systems | AD105: =ISNUMBER(MATCH(ProjectData[[#This Row],[DMDLCCOCSplitType]],CostAllocationSplit[Type of Project],0)) -> TRUE | AE105: FALSE | AF105: FALSE
A106: 99 | B106: C55.1102 - H024 Calvale Substation Primary Plant 275kV | C106: Future - Project | E106: Replacement | F106: =ISNUMBER(MATCH(ProjectData[[#This Row],[PQ Project Driver]],Lookup_ProjectDrivers,0)) -> TRUE | G106: Project Close | H106: =ISNUMBER(MATCH(ProjectData[[#This Row],[Capitalisation]],Lookup_CapitalisationTypes,0)) -> TRUE | I106: Real2021 | J106: =ISNUMBER(MATCH(ProjectData[[#This Row],[RepexDollarsBasis]],Lookup_RepexDollarBasis,0)) -> TRUE | N106: 0.78 | O106: 0.22 | AB106: =OR(SUM(ProjectData[[#This Row],[LinesOH]:[InsuranceSpares]])=1,ProjectData[[#This Row],[OnlyAssetClassAllocationIsToBeUsed]]=TRUE) -> TRUE | AC106: Primary Plant - Bay | AD106: =ISNUMBER(MATCH(ProjectData[[#This Row],[DMDLCCOCSplitType]],CostAllocationSplit[Type of Project],0)) -> TRUE | AE106: FALSE | AF106: FALSE
A107: 100 | B107: CP.02756 - H031 Molendinar Secondary Systems Replacement | C107: Future - Project | E107: Replacement | F107: =ISNUMBER(MATCH(ProjectData[[#This Row],[PQ Project Driver]],Lookup_ProjectDrivers,0)) -> TRUE | G107: Project Close | H107: =ISNUMBER(MATCH(ProjectData[[#This Row],[Capitalisation]],Lookup_CapitalisationTypes,0)) -> TRUE | I107: Real2021 | J107: =ISNUMBER(MATCH(ProjectData[[#This Row],[RepexDollarsBasis]],Lookup_RepexDollarBasis,0)) -> TRUE | N107: 0.19 | O107: 0.74 | P107: 0.07 | AB107: =OR(SUM(ProjectData[[#This Row],[LinesOH]:[InsuranceSpares]])=1,ProjectData[[#This Row],[OnlyAssetClassAllocationIsToBeUsed]]=TRUE) -> TRUE | AC107: Secondary Systems | AD107: =ISNUMBER(MATCH(ProjectData[[#This Row],[DMDLCCOCSplitType]],CostAllocationSplit[Type of Project],0)) -> TRUE | AE107: FALSE | AF107: FALSE
A108: 101 | B108: CP.02817 - Teebar Creek Secondary Systems Replacement | C108: Future - Project | E108: Replacement | F108: =ISNUMBER(MATCH(ProjectData[[#This Row],[PQ Project Driver]],Lookup_ProjectDrivers,0)) -> TRUE | G108: Project Close | H108: =ISNUMBER(MATCH(ProjectData[[#This Row],[Capitalisation]],Lookup_CapitalisationTypes,0)) -> TRUE | I108: Real2021 | J108: =ISNUMBER(MATCH(ProjectData[[#This Row],[RepexDollarsBasis]],Lookup_RepexDollarBasis,0)) -> TRUE | N108: 0.18 | O108: 0.78 | P108: 0.04 | AB108: =OR(SUM(ProjectData[[#This Row],[LinesOH]:[InsuranceSpares]])=1,ProjectData[[#This Row],[OnlyAssetClassAllocationIsToBeUsed]]=TRUE) -> TRUE | AC108: Secondary Systems | AD108: =ISNUMBER(MATCH(ProjectData[[#This Row],[DMDLCCOCSplitType]],CostAllocationSplit[Type of Project],0)) -> TRUE | AE108: FALSE | AF108: FALSE
A109: 102 | B109: C55.1238 - Greenbank Secondary Systems Replacement | C109: Future - Project | E109: Replacement | F109: =ISNUMBER(MATCH(ProjectData[[#This Row],[PQ Project Driver]],Lookup_ProjectDrivers,0)) -> TRUE | G109: Project Close | H109: =ISNUMBER(MATCH(ProjectData[[#This Row],[Capitalisation]],Lookup_CapitalisationTypes,0)) -> TRUE | I109: Real2021 | J109: =ISNUMBER(MATCH(ProjectData[[#This Row],[RepexDollarsBasis]],Lookup_RepexDollarBasis,0)) -> TRUE | N109: 0.13 | O109: 0.84 | P109: 0.03 | AB109: =OR(SUM(ProjectData[[#This Row],[LinesOH]:[InsuranceSpares]])=1,ProjectData[[#This Row],[OnlyAssetClassAllocationIsToBeUsed]]=TRUE) -> TRUE | AC109: Secondary Systems | AD109: =ISNUMBER(MATCH(ProjectData[[#This Row],[DMDLCCOCSplitType]],CostAllocationSplit[Type of Project],0)) -> TRUE | AE109: FALSE | AF109: FALSE
A110: 103 | B110: CP.02771 - Telecommunication Network Consolidation Stage 1 | C110: Future - Project | E110: Replacement | F110: =ISNUMBER(MATCH(ProjectData[[#This Row],[PQ Project Driver]],Lookup_ProjectDrivers,0)) -> TRUE | G110: Project Close | H110: =ISNUMBER(MATCH(ProjectData[[#This Row],[Capitalisation]],Lookup_CapitalisationTypes,0)) -> TRUE | I110: Real2021 | J110: =ISNUMBER(MATCH(ProjectData[[#This Row],[RepexDollarsBasis]],Lookup_RepexDollarBasis,0)) -> TRUE | O110: 0.01 | P110: 0.99 | AB110: =OR(SUM(ProjectData[[#This Row],[LinesOH]:[InsuranceSpares]])=1,ProjectData[[#This Row],[OnlyAssetClassAllocationIsToBeUsed]]=TRUE) -> TRUE | AC110: Telecomms | AD110: =ISNUMBER(MATCH(ProjectData[[#This Row],[DMDLCCOCSplitType]],CostAllocationSplit[Type of Project],0)) -> TRUE | AE110: FALSE | AF110: FALSE
A111: 104 | B111: CP.02811 - Telecommunication Network Consolidation Stage 2 | C111: Future - Project | E111: Replacement | F111: =ISNUMBER(MATCH(ProjectData[[#This Row],[PQ Project Driver]],Lookup_ProjectDrivers,0)) -> TRUE | G111: Project Close | H111: =ISNUMBER(MATCH(ProjectData[[#This Row],[Capitalisation]],Lookup_CapitalisationTypes,0)) -> TRUE | I111: Real2021 | J111: =ISNUMBER(MATCH(ProjectData[[#This Row],[RepexDollarsBasis]],Lookup_RepexDollarBasis,0)) -> TRUE | O111: 0.01 | P111: 0.99 | AB111: =OR(SUM(ProjectData[[#This Row],[LinesOH]:[InsuranceSpares]])=1,ProjectData[[#This Row],[OnlyAssetClassAllocationIsToBeUsed]]=TRUE) -> TRUE | AC111: Telecomms | AD111: =ISNUMBER(MATCH(ProjectData[[#This Row],[DMDLCCOCSplitType]],CostAllocationSplit[Type of Project],0)) -> TRUE | AE111: FALSE | AF111: FALSE
A112: 105 | B112: CP.02812 - Telecommunication Network Consolidation Stage 3 | C112: Future - Project | E112: Replacement | F112: =ISNUMBER(MATCH(ProjectData[[#This Row],[PQ Project Driver]],Lookup_ProjectDrivers,0)) -> TRUE | G112: Project Close | H112: =ISNUMBER(MATCH(ProjectData[[#This Row],[Capitalisation]],Lookup_CapitalisationTypes,0)) -> TRUE | I112: Real2021 | J112: =ISNUMBER(MATCH(ProjectData[[#This Row],[RepexDollarsBasis]],Lookup_RepexDollarBasis,0)) -> TRUE | O112: 0.01 | P112: 0.99 | AB112: =OR(SUM(ProjectData[[#This Row],[LinesOH]:[InsuranceSpares]])=1,ProjectData[[#This Row],[OnlyAssetClassAllocationIsToBeUsed]]=TRUE) -> TRUE | AC112: Telecomms | AD112: =ISNUMBER(MATCH(ProjectData[[#This Row],[DMDLCCOCSplitType]],CostAllocationSplit[Type of Project],0)) -> TRUE | AE112: FALSE | AF112: FALSE
A113: 106 | B113: CP.02813 - Telecommunication Network Consolidation Stage 4 | C113: Future - Project | E113: Replacement | F113: =ISNUMBER(MATCH(ProjectData[[#This Row],[PQ Project Driver]],Lookup_ProjectDrivers,0)) -> TRUE | G113: Project Close | H113: =ISNUMBER(MATCH(ProjectData[[#This Row],[Capitalisation]],Lookup_CapitalisationTypes,0)) -> TRUE | I113: Real2021 | J113: =ISNUMBER(MATCH(ProjectData[[#This Row],[RepexDollarsBasis]],Lookup_RepexDollarBasis,0)) -> TRUE | O113: 0.01 | P113: 0.99 | AB113: =OR(SUM(ProjectData[[#This Row],[LinesOH]:[InsuranceSpares]])=1,ProjectData[[#This Row],[OnlyAssetClassAllocationIsToBeUsed]]=TRUE) -> TRUE | AC113: Telecomms | AD113: =ISNUMBER(MATCH(ProjectData[[#This Row],[DMDLCCOCSplitType]],CostAllocationSplit[Type of Project],0)) -> TRUE | AE113: FALSE | AF113: FALSE
A114: 107 | B114: CP.02512 - OpsWAN Replacement Stage 1 | C114: Future - Project | E114: Replacement | F114: =ISNUMBER(MATCH(ProjectData[[#This Row],[PQ Project Driver]],Lookup_ProjectDrivers,0)) -> TRUE | G114: Project Close | H114: =ISNUMBER(MATCH(ProjectData[[#This Row],[Capitalisation]],Lookup_CapitalisationTypes,0)) -> TRUE | I114: Real2021 | J114: =ISNUMBER(MATCH(ProjectData[[#This Row],[RepexDollarsBasis]],Lookup_RepexDollarBasis,0)) -> TRUE | O114: 0.55 | P114: 0.45 | AB114: =OR(SUM(ProjectData[[#This Row],[LinesOH]:[InsuranceSpares]])=1,ProjectData[[#This Row],[OnlyAssetClassAllocationIsToBeUsed]]=TRUE) -> TRUE | AC114: Telecomms | AD114: =ISNUMBER(MATCH(ProjectData[[#This Row],[DMDLCCOCSplitType]],CostAllocationSplit[Type of Project],0)) -> TRUE | AE114: FALSE | AF114: FALSE
A115: 108 | B115: CP.02513 - OpsWAN Replacement Stage 2 | C115: Future - Project | E115: Replacement | F115: =ISNUMBER(MATCH(ProjectData[[#This Row],[PQ Project Driver]],Lookup_ProjectDrivers,0)) -> TRUE | G115: Project Close | H115: =ISNUMBER(MATCH(ProjectData[[#This Row],[Capitalisation]],Lookup_CapitalisationTypes,0)) -> TRUE | I115: Real2021 | J115: =ISNUMBER(MATCH(ProjectData[[#This Row],[RepexDollarsBasis]],Lookup_RepexDollarBasis,0)) -> TRUE | O115: 0.67 | P115: 0.33 | AB115: =OR(SUM(ProjectData[[#This Row],[LinesOH]:[InsuranceSpares]])=1,ProjectData[[#This Row],[OnlyAssetClassAllocationIsToBeUsed]]=TRUE) -> TRUE | AC115: Telecomms | AD115: =ISNUMBER(MATCH(ProjectData[[#This Row],[DMDLCCOCSplitType]],CostAllocationSplit[Type of Project],0)) -> TRUE | AE115: FALSE | AF115: FALSE
A116: 109 | B116: CP.02514 - OpsWAN Replacement Stage 3 | C116: Future - Project | E116: Replacement | F116: =ISNUMBER(MATCH(ProjectData[[#This Row],[PQ Project Driver]],Lookup_ProjectDrivers,0)) -> TRUE | G116: Project Close | H116: =ISNUMBER(MATCH(ProjectData[[#This Row],[Capitalisation]],Lookup_CapitalisationTypes,0)) -> TRUE | I116: Real2021 | J116: =ISNUMBER(MATCH(ProjectData[[#This Row],[RepexDollarsBasis]],Lookup_RepexDollarBasis,0)) -> TRUE | O116: 0.63 | P116: 0.37 | AB116: =OR(SUM(ProjectData[[#This Row],[LinesOH]:[InsuranceSpares]])=1,ProjectData[[#This Row],[OnlyAssetClassAllocationIsToBeUsed]]=TRUE) -> TRUE | AC116: Telecomms | AD116: =ISNUMBER(MATCH(ProjectData[[#This Row],[DMDLCCOCSplitType]],CostAllocationSplit[Type of Project],0)) -> TRUE | AE116: FALSE | AF116: FALSE
A117: 110 | B117: CP.02822 - OpsWAN Replacement Stage 4 | C117: Future - Project | E117: Replacement | F117: =ISNUMBER(MATCH(ProjectData[[#This Row],[PQ Project Driver]],Lookup_ProjectDrivers,0)) -> TRUE | G117: Project Close | H117: =ISNUMBER(MATCH(ProjectData[[#This Row],[Capitalisation]],Lookup_CapitalisationTypes,0)) -> TRUE | I117: Real2021 | J117: =ISNUMBER(MATCH(ProjectData[[#This Row],[RepexDollarsBasis]],Lookup_RepexDollarBasis,0)) -> TRUE | O117: 0.66 | P117: 0.34 | AB117: =OR(SUM(ProjectData[[#This Row],[LinesOH]:[InsuranceSpares]])=1,ProjectData[[#This Row],[OnlyAssetClassAllocationIsToBeUsed]]=TRUE) -> TRUE | AC117: Telecomms | AD117: =ISNUMBER(MATCH(ProjectData[[#This Row],[DMDLCCOCSplitType]],CostAllocationSplit[Type of Project],0)) -> TRUE | AE117: FALSE | AF117: FALSE
A118: 111 | B118: CP.02269 DWDM Replacement | C118: Future - Project | E118: Replacement | F118: =ISNUMBER(MATCH(ProjectData[[#This Row],[PQ Project Driver]],Lookup_ProjectDrivers,0)) -> TRUE | G118: Project Close | H118: =ISNUMBER(MATCH(ProjectData[[#This Row],[Capitalisation]],Lookup_CapitalisationTypes,0)) -> TRUE | I118: Real2021 | J118: =ISNUMBER(MATCH(ProjectData[[#This Row],[RepexDollarsBasis]],Lookup_RepexDollarBasis,0)) -> TRUE | P118: 1 | AB118: =OR(SUM(ProjectData[[#This Row],[LinesOH]:[InsuranceSpares]])=1,ProjectData[[#This Row],[OnlyAssetClassAllocationIsToBeUsed]]=TRUE) -> TRUE | AC118: Telecomms | AD118: =ISNUMBER(MATCH(ProjectData[[#This Row],[DMDLCCOCSplitType]],CostAllocationSplit[Type of Project],0)) -> TRUE | AE118: FALSE | AF118: FALSE
A119: 112 | B119: NGNO Program (non EMS Replacement) | C119: Future - Project | E119: Replacement | F119: =ISNUMBER(MATCH(ProjectData[[#This Row],[PQ Project Driver]],Lookup_ProjectDrivers,0)) -> TRUE | G119: As Incurred | H119: =ISNUMBER(MATCH(ProjectData[[#This Row],[Capitalisation]],Lookup_CapitalisationTypes,0)) -> TRUE | I119: Nominal | J119: =ISNUMBER(MATCH(ProjectData[[#This Row],[RepexDollarsBasis]],Lookup_RepexDollarBasis,0)) -> TRUE | P119: 0.05 | R119: 0.95 | AB119: =OR(SUM(ProjectData[[#This Row],[LinesOH]:[InsuranceSpares]])=1,ProjectData[[#This Row],[OnlyAssetClassAllocationIsToBeUsed]]=TRUE) -> TRUE | AC119: EMS | AD119: =ISNUMBER(MATCH(ProjectData[[#This Row],[DMDLCCOCSplitType]],CostAllocationSplit[Type of Project],0)) -> TRUE | AE119: FALSE | AF119: FALSE

Sheet Input Project Details
A1: Contents
B3: Project Details Data
B4: This sheet lists the details for each project item.
G5: Replacement Quantities. | N5: Nominal (Mid Year), As Incurred, $k | V5: Real 20/21 (End of year), As Incurred, $k | AS5: Real 20/21 (End of year), As Commissioned, $k
A6: Notes:
A7: 9 | B7: Project ID = 999. Indicates that the values aren't used. | N7: WIP as at 30/06/2020. | AC7: If relevant (project close) | AE7: Internal + External <> 1 (remainder is non labour component).
A9: ID | B9: ProjectID | C9: ID Again | D9: PQ Description | E9: RIN Asset Description | F9: Check RIN Asset | G9: RepexQty2021 | H9: RepexQty2022 | I9: RepexQty2023 | J9: RepexQty2024 | K9: RepexQty2025 | L9: RepexQty2026 | M9: RepexQty2027 | N9: WIP | O9: NomIncur2021 | P9: NomIncur2022 | Q9: NomIncur2023 | R9: NomIncur2024 | S9: NomIncur2025 | T9: NomIncur2026 | U9: NomIncur2027 | V9: RealIncur2021 | W9: RealIncur2022 | X9: RealIncur2023 | Y9: RealIncur2024 | Z9: RealIncur2025 | AA9: RealIncur2026 | AB9: RealIncur2027 | AC9: Capitalisation Year | AD9: Check Non value capitalisation year, and project set to capitalise on project close | AE9: Labour Internal | AF9: Labour External | AG9: DollarBasisImpliesNominal | AH9: DollarBasisImpliesReal2021 | AI9: DollarBasisOK | AJ9: DollarBasisConsistentWithProject | AK9: LabourRatesPresent | AL9: IncorrectLabourRatesNotPresent | AM9: LastYearOfNominalCashFlow | AN9: OverWrite_CashFlowAndCapitalisationYearAreOK | AO9: CashFlowandCapitalisationYearLineUp | AP9: Not_LabourRatesPresentWhenTheyShouldntBe | AQ9: ExpenditureAfter2021IsNotUsed | AR9: PowerTransformerIsNotExcludedFromForecast | AS9: RealAsCom2021 | AT9: RealAsCom2022 | AU9: RealAsCom2023 | AV9: RealAsCom2024 | AW9: RealAsCom2025 | AX9: RealAsCom2026 | AY9: RealAsCom2027 | AZ9: ProjectHasNoDollarBasis | BA9: CheckCapitalisationYearNowOrLater | BB9: ID Check | BC9: Project Is Specific Approved
A10: 1 | B10: 1 | C10: =Project_Details[ID] -> 1 | D10: TowerRebuild_132_Grillage | E10: Towers - > 66 kV & < = 132 kV ; Single Circuit - REFURBISHED | F10: =ISNUMBER(MATCH(Project_Details[[#This Row],[RIN Asset Description]],Lookup_RIN_AssetCategory,0)) -> TRUE | J10: 42 | K10: 18 | X10: 1672.553804 | Y10: 1697.086112 | Z10: 1693.976877 | AA10: 1663.389154 | AB10: 1606.819172 | AD10: =IF((VLOOKUP(Project_Details[[#This Row],[ProjectID]],ProjectData[],MATCH("Capitalisation",ProjectData[#Headers],0),FALSE)="Project Close"),ISNUMBER(Project_Details[[#This Row],[Capitalisation Year]]),"NA") -> NA | AE10: 0.174031552 | AF10: 0.4449377479 | AG10: =MAX(ABS(Project_Details[[#This Row],[NomIncur2021]:[NomIncur2027]]))>0 -> FALSE | AH10: =MAX(ABS(Project_Details[[#This Row],[RealIncur2021]:[RealIncur2027]]))>0 -> TRUE | AI10: =OR(AND(Project_Details[[#This Row],[DollarBasisImpliesNominal]],NOT(Project_Details[[#This Row],[DollarBasisImpliesReal2021]])), AND(NOT(Project_Details[[#This Row],[DollarBasisImpliesNominal]]),Project_Details[[#This Row],[DollarBasisImpliesReal2021]]),AND(NOT(Project_Details[[#This Row],[DollarBasisImpliesNominal]]),NOT(Project_Details[[#This Row],[DollarBasisImpliesReal2021]]))) -> TRUE | AJ10: =IFERROR(OR(AND(Project_Details[[#This Row],[DollarBasisImpliesNominal]],VLOOKUP(Project_Details[[#This Row],[ProjectID]],ProjectData[],MATCH("RepexDollarsBasis",ProjectData[#Headers],0),FALSE)="Nominal"),AND(Project_Details[[#This Row],[DollarBasisImpliesReal2021]],VLOOKUP(Project_Details[[#This Row],[ProjectID]],ProjectData[],MATCH("RepexDollarsBasis",ProjectData[#Headers],0),FALSE)="Real2021"),Project_Details[[#This Row],[ProjectHasNoDollarBasis]]),FALSE) -> TRUE | AK10: =IF(Project_Details[[#This Row],[DollarBasisImpliesReal2021]],AND(ISNUMBER(Project_Details[[#This Row],[Labour Internal]]),ISNUMBER(Project_Details[[#This Row],[Labour External]])),"NA") -> TRUE | AL10: =IF(Project_Details[[#This Row],[DollarBasisImpliesNominal]],NOT(OR(ISNUMBER(Project_Details[[#This Row],[Labour Internal]]),ISNUMBER(Project_Details[[#This Row],[Labour External]]))),"NA") -> NA | AM10: =IF(AND(Project_Details[[#This Row],[NomIncur2021]]=0,Project_Details[[#This Row],[WIP]]<>0),2021,IF(AND(Project_Details[[#This Row],[NomIncur2022]]=0,Project_Details[[#This Row],[NomIncur2021]]<>0),2021,IF(AND(Project_Details[[#This Row],[NomIncur2023]]=0,Project_Details[[#This Row],[NomIncur2022]]<>0),2022,IF(AND(Project_Details[[#This Row],[NomIncur2024]]=0,Project_Details[[#This Row],[NomIncur2023]]<>0),2023,IF(AND(Project_Details[[#This Row],[NomIncur2025]]=0,Project_Details[[#This Row],[NomIncur2024]]<>0),2024,IF(AND(Project_Details[[#This Row],[NomIncur2026]]=0,Project_Details[[#This Row],[NomIncur2025]]<>0),2025,IF(AND(Project_Details[[#This Row],[NomIncur2027]]=0,Project_Details[[#This Row],[NomIncur2026]]<>0),2026,IF(Project_Details[[#This Row],[NomIncur2027]]<>0,2027,"")))))))) ->  | AO10: =IF(NOT(ISNUMBER(Project_Details[[#This Row],[Capitalisation Year]])), "NA", OR(Project_Details[[#This Row],[OverWrite_CashFlowAndCapitalisationYearAreOK]],(Project_Details[[#This Row],[LastYearOfNominalCashFlow]]=Project_Details[[#This Row],[Capitalisation Year]]))) -> NA | AP10: =NOT(AND(Project_Details[[#This Row],[DollarBasisImpliesNominal]],OR(ISNUMBER(Project_Details[[#This Row],[Labour Internal]]),ISNUMBER(Project_Details[[#This Row],[Labour External]])))) -> TRUE | AR10: =IF(LEFT(Project_Details[[#This Row],[RIN Asset Description]],17)="Power Transformer",IF((Project_Details[[#This Row],[ExpenditureAfter2021IsNotUsed]]=TRUE),FALSE,TRUE),"NA") -> NA | AU10: 0 | AV10: 5040 | AW10: 2160 | AX10: 0 | AY10: 0 | AZ10: =IFERROR(("None"=VLOOKUP(Project_Details[[#This Row],[ProjectID]],ProjectData[],MATCH("RepexDollarsBasis",ProjectData[#Headers],0),FALSE)),FALSE) -> FALSE | BA10: =IF(ISNUMBER(Project_Details[[#This Row],[Capitalisation Year]]),(Project_Details[[#This Row],[Capitalisation Year]]>=2016),"NA") -> NA | BB10: =(Project_Details[[#This Row],[ID]]=(ROW()-ProjectDetailsTableStartRow)) -> TRUE | BC10: =VLOOKUP(Project_Details[[#This Row],[ProjectID]],ProjectData[],MATCH("Specific Approved Project", ProjectData[#Headers],0),FALSE) -> FALSE
A11: 2 | B11: 2 | C11: =Project_Details[ID] -> 2 | D11: TowerRefit_ZoneB_275_SC_NonGrillage | E11: Towers - > 132 kV & < = 275 kV ; Single Circuit - REFURBISHED | F11: =ISNUMBER(MATCH(Project_Details[[#This Row],[RIN Asset Description]],Lookup_RIN_AssetCategory,0)) -> TRUE | X11: 30.54770098 | Y11: 42.87102049 | Z11: 59.39099088 | AA11: 81.2184319 | AB11: 109.6408248 | AD11: =IF((VLOOKUP(Project_Details[[#This Row],[ProjectID]],ProjectData[],MATCH("Capitalisation",ProjectData[#Headers],0),FALSE)="Project Close"),ISNUMBER(Project_Details[[#This Row],[Capitalisation Year]]),"NA") -> NA | AE11: 0.174031552 | AF11: 0.4449377479 | AG11: =MAX(ABS(Project_Details[[#This Row],[NomIncur2021]:[NomIncur2027]]))>0 -> FALSE | AH11: =MAX(ABS(Project_Details[[#This Row],[RealIncur2021]:[RealIncur2027]]))>0 -> TRUE | AI11: =OR(AND(Project_Details[[#This Row],[DollarBasisImpliesNominal]],NOT(Project_Details[[#This Row],[DollarBasisImpliesReal2021]])), AND(NOT(Project_Details[[#This Row],[DollarBasisImpliesNominal]]),Project_Details[[#This Row],[DollarBasisImpliesReal2021]]),AND(NOT(Project_Details[[#This Row],[DollarBasisImpliesNominal]]),NOT(Project_Details[[#This Row],[DollarBasisImpliesReal2021]]))) -> TRUE | AJ11: =IFERROR(OR(AND(Project_Details[[#This Row],[DollarBasisImpliesNominal]],VLOOKUP(Project_Details[[#This Row],[ProjectID]],ProjectData[],MATCH("RepexDollarsBasis",ProjectData[#Headers],0),FALSE)="Nominal"),AND(Project_Details[[#This Row],[DollarBasisImpliesReal2021]],VLOOKUP(Project_Details[[#This Row],[ProjectID]],ProjectData[],MATCH("RepexDollarsBasis",ProjectData[#Headers],0),FALSE)="Real2021"),Project_Details[[#This Row],[ProjectHasNoDollarBasis]]),FALSE) -> TRUE | AK11: =IF(Project_Details[[#This Row],[DollarBasisImpliesReal2021]],AND(ISNUMBER(Project_Details[[#This Row],[Labour Internal]]),ISNUMBER(Project_Details[[#This Row],[Labour External]])),"NA") -> TRUE | AL11: =IF(Project_Details[[#This Row],[DollarBasisImpliesNominal]],NOT(OR(ISNUMBER(Project_Details[[#This Row],[Labour Internal]]),ISNUMBER(Project_Details[[#This Row],[Labour External]]))),"NA") -> NA | AM11: =IF(AND(Project_Details[[#This Row],[NomIncur2021]]=0,Project_Details[[#This Row],[WIP]]<>0),2021,IF(AND(Project_Details[[#This Row],[NomIncur2022]]=0,Project_Details[[#This Row],[NomIncur2021]]<>0),2021,IF(AND(Project_Details[[#This Row],[NomIncur2023]]=0,Project_Details[[#This Row],[NomIncur2022]]<>0),2022,IF(AND(Project_Details[[#This Row],[NomIncur2024]]=0,Project_Details[[#This Row],[NomIncur2023]]<>0),2023,IF(AND(Project_Details[[#This Row],[NomIncur2025]]=0,Project_Details[[#This Row],[NomIncur2024]]<>0),2024,IF(AND(Project_Details[[#This Row],[NomIncur2026]]=0,Project_Details[[#This Row],[NomIncur2025]]<>0),2025,IF(AND(Project_Details[[#This Row],[NomIncur2027]]=0,Project_Details[[#This Row],[NomIncur2026]]<>0),2026,IF(Project_Details[[#This Row],[NomIncur2027]]<>0,2027,"")))))))) ->  | AO11: =IF(NOT(ISNUMBER(Project_Details[[#This Row],[Capitalisation Year]])), "NA", OR(Project_Details[[#This Row],[OverWrite_CashFlowAndCapitalisationYearAreOK]],(Project_Details[[#This Row],[LastYearOfNominalCashFlow]]=Project_Details[[#This Row],[Capitalisation Year]]))) -> NA | AP11: =NOT(AND(Project_Details[[#This Row],[DollarBasisImpliesNominal]],OR(ISNUMBER(Project_Details[[#This Row],[Labour Internal]]),ISNUMBER(Project_Details[[#This Row],[Labour External]])))) -> TRUE | AR11: =IF(LEFT(Project_Details[[#This Row],[RIN Asset Description]],17)="Power Transformer",IF((Project_Details[[#This Row],[ExpenditureAfter2021IsNotUsed]]=TRUE),FALSE,TRUE),"NA") -> NA | AU11: 0 | AV11: 0 | AW11: 0 | AX11: 0 | AY11: 0 | AZ11: =IFERROR(("None"=VLOOKUP(Project_Details[[#This Row],[ProjectID]],ProjectData[],MATCH("RepexDollarsBasis",ProjectData[#Headers],0),FALSE)),FALSE) -> FALSE | BA11: =IF(ISNUMBER(Project_Details[[#This Row],[Capitalisation Year]]),(Project_Details[[#This Row],[Capitalisation Year]]>=2016),"NA") -> NA | BB11: =(Project_Details[[#This Row],[ID]]=(ROW()-ProjectDetailsTableStartRow)) -> TRUE | BC11: =VLOOKUP(Project_Details[[#This Row],[ProjectID]],ProjectData[],MATCH("Specific Approved Project", ProjectData[#Headers],0),FALSE) -> FALSE
A12: 3 | B12: 2 | C12: =Project_Details[ID] -> 3 | D12: TowerRefit_ZoneC_275_SC_NonGrillage | E12: Towers - > 132 kV & < = 275 kV ; Single Circuit - REFURBISHED | F12: =ISNUMBER(MATCH(Project_Details[[#This Row],[RIN Asset Description]],Lookup_RIN_AssetCategory,0)) -> TRUE | L12: 43 | X12: 1851.69231 | Y12: 2371.040379 | Z12: 2992.438646 | AA12: 3722.228485 | AB12: 4562.954686 | AD12: =IF((VLOOKUP(Project_Details[[#This Row],[ProjectID]],ProjectData[],MATCH("Capitalisation",ProjectData[#Headers],0),FALSE)="Project Close"),ISNUMBER(Project_Details[[#This Row],[Capitalisation Year]]),"NA") -> NA | AE12: 0.174031552 | AF12: 0.4449377479 | AG12: =MAX(ABS(Project_Details[[#This Row],[NomIncur2021]:[NomIncur2027]]))>0 -> FALSE | AH12: =MAX(ABS(Project_Details[[#This Row],[RealIncur2021]:[RealIncur2027]]))>0 -> TRUE | AI12: =OR(AND(Project_Details[[#This Row],[DollarBasisImpliesNominal]],NOT(Project_Details[[#This Row],[DollarBasisImpliesReal2021]])), AND(NOT(Project_Details[[#This Row],[DollarBasisImpliesNominal]]),Project_Details[[#This Row],[DollarBasisImpliesReal2021]]),AND(NOT(Project_Details[[#This Row],[DollarBasisImpliesNominal]]),NOT(Project_Details[[#This Row],[DollarBasisImpliesReal2021]]))) -> TRUE | AJ12: =IFERROR(OR(AND(Project_Details[[#This Row],[DollarBasisImpliesNominal]],VLOOKUP(Project_Details[[#This Row],[ProjectID]],ProjectData[],MATCH("RepexDollarsBasis",ProjectData[#Headers],0),FALSE)="Nominal"),AND(Project_Details[[#This Row],[DollarBasisImpliesReal2021]],VLOOKUP(Project_Details[[#This Row],[ProjectID]],ProjectData[],MATCH("RepexDollarsBasis",ProjectData[#Headers],0),FALSE)="Real2021"),Project_Details[[#This Row],[ProjectHasNoDollarBasis]]),FALSE) -> TRUE | AK12: =IF(Project_Details[[#This Row],[DollarBasisImpliesReal2021]],AND(ISNUMBER(Project_Details[[#This Row],[Labour Internal]]),ISNUMBER(Project_Details[[#This Row],[Labour External]])),"NA") -> TRUE | AL12: =IF(Project_Details[[#This Row],[DollarBasisImpliesNominal]],NOT(OR(ISNUMBER(Project_Details[[#This Row],[Labour Internal]]),ISNUMBER(Project_Details[[#This Row],[Labour External]]))),"NA") -> NA | AM12: =IF(AND(Project_Details[[#This Row],[NomIncur2021]]=0,Project_Details[[#This Row],[WIP]]<>0),2021,IF(AND(Project_Details[[#This Row],[NomIncur2022]]=0,Project_Details[[#This Row],[NomIncur2021]]<>0),2021,IF(AND(Project_Details[[#This Row],[NomIncur2023]]=0,Project_Details[[#This Row],[NomIncur2022]]<>0),2022,IF(AND(Project_Details[[#This Row],[NomIncur2024]]=0,Project_Details[[#This Row],[NomIncur2023]]<>0),2023,IF(AND(Project_Details[[#This Row],[NomIncur2025]]=0,Project_Details[[#This Row],[NomIncur2024]]<>0),2024,IF(AND(Project_Details[[#This Row],[NomIncur2026]]=0,Project_Details[[#This Row],[NomIncur2025]]<>0),2025,IF(AND(Project_Details[[#This Row],[NomIncur2027]]=0,Project_Details[[#This Row],[NomIncur2026]]<>0),2026,IF(Project_Details[[#This Row],[NomIncur2027]]<>0,2027,"")))))))) ->  | AO12: =IF(NOT(ISNUMBER(Project_Details[[#This Row],[Capitalisation Year]])), "NA", OR(Project_Details[[#This Row],[OverWrite_CashFlowAndCapitalisationYearAreOK]],(Project_Details[[#This Row],[LastYearOfNominalCashFlow]]=Project_Details[[#This Row],[Capitalisation Year]]))) -> NA | AP12: =NOT(AND(Project_Details[[#This Row],[DollarBasisImpliesNominal]],OR(ISNUMBER(Project_Details[[#This Row],[Labour Internal]]),ISNUMBER(Project_Details[[#This Row],[Labour External]])))) -> TRUE | AR12: =IF(LEFT(Project_Details[[#This Row],[RIN Asset Description]],17)="Power Transformer",IF((Project_Details[[#This Row],[ExpenditureAfter2021IsNotUsed]]=TRUE),FALSE,TRUE),"NA") -> NA | AU12: 0 | AV12: 0 | AW12: 0 | AX12: 11485.41377 | AY12: 0 | AZ12: =IFERROR(("None"=VLOOKUP(Project_Details[[#This Row],[ProjectID]],ProjectData[],MATCH("RepexDollarsBasis",ProjectData[#Headers],0),FALSE)),FALSE) -> FALSE | BA12: =IF(ISNUMBER(Project_Details[[#This Row],[Capitalisation Year]]),(Project_Details[[#This Row],[Capitalisation Year]]>=2016),"NA") -> NA | BB12: =(Project_Details[[#This Row],[ID]]=(ROW()-ProjectDetailsTableStartRow)) -> TRUE | BC12: =VLOOKUP(Project_Details[[#This Row],[ProjectID]],ProjectData[],MATCH("Specific Approved Project", ProjectData[#Headers],0),FALSE) -> FALSE
A13: 4 | B13: 2 | C13: =Project_Details[ID] -> 4 | D13: TowerRefit_ZoneD_275_SC_NonGrillage | E13: Towers - > 132 kV & < = 275 kV ; Single Circuit - REFURBISHED | F13: =ISNUMBER(MATCH(Project_Details[[#This Row],[RIN Asset Description]],Lookup_RIN_AssetCategory,0)) -> TRUE | X13: 528.9498649 | Y13: 512.7871279 | Z13: 486.2363921 | AA13: 450.9678119 | AB13: 409.1017776 | AD13: =IF((VLOOKUP(Project_Details[[#This Row],[ProjectID]],ProjectData[],MATCH("Capitalisation",ProjectData[#Headers],0),FALSE)="Project Close"),ISNUMBER(Project_Details[[#This Row],[Capitalisation Year]]),"NA") -> NA | AE13: 0.174031552 | AF13: 0.4449377479 | AG13: =MAX(ABS(Project_Details[[#This Row],[NomIncur2021]:[NomIncur2027]]))>0 -> FALSE | AH13: =MAX(ABS(Project_Details[[#This Row],[RealIncur2021]:[RealIncur2027]]))>0 -> TRUE | AI13: =OR(AND(Project_Details[[#This Row],[DollarBasisImpliesNominal]],NOT(Project_Details[[#This Row],[DollarBasisImpliesReal2021]])), AND(NOT(Project_Details[[#This Row],[DollarBasisImpliesNominal]]),Project_Details[[#This Row],[DollarBasisImpliesReal2021]]),AND(NOT(Project_Details[[#This Row],[DollarBasisImpliesNominal]]),NOT(Project_Details[[#This Row],[DollarBasisImpliesReal2021]]))) -> TRUE | AJ13: =IFERROR(OR(AND(Project_Details[[#This Row],[DollarBasisImpliesNominal]],VLOOKUP(Project_Details[[#This Row],[ProjectID]],ProjectData[],MATCH("RepexDollarsBasis",ProjectData[#Headers],0),FALSE)="Nominal"),AND(Project_Details[[#This Row],[DollarBasisImpliesReal2021]],VLOOKUP(Project_Details[[#This Row],[ProjectID]],ProjectData[],MATCH("RepexDollarsBasis",ProjectData[#Headers],0),FALSE)="Real2021"),Project_Details[[#This Row],[ProjectHasNoDollarBasis]]),FALSE) -> TRUE | AK13: =IF(Project_Details[[#This Row],[DollarBasisImpliesReal2021]],AND(ISNUMBER(Project_Details[[#This Row],[Labour Internal]]),ISNUMBER(Project_Details[[#This Row],[Labour External]])),"NA") -> TRUE | AL13: =IF(Project_Details[[#This Row],[DollarBasisImpliesNominal]],NOT(OR(ISNUMBER(Project_Details[[#This Row],[Labour Internal]]),ISNUMBER(Project_Details[[#This Row],[Labour External]]))),"NA") -> NA | AM13: =IF(AND(Project_Details[[#This Row],[NomIncur2021]]=0,Project_Details[[#This Row],[WIP]]<>0),2021,IF(AND(Project_Details[[#This Row],[NomIncur2022]]=0,Project_Details[[#This Row],[NomIncur2021]]<>0),2021,IF(AND(Project_Details[[#This Row],[NomIncur2023]]=0,Project_Details[[#This Row],[NomIncur2022]]<>0),2022,IF(AND(Project_Details[[#This Row],[NomIncur2024]]=0,Project_Details[[#This Row],[NomIncur2023]]<>0),2023,IF(AND(Project_Details[[#This Row],[NomIncur2025]]=0,Project_Details[[#This Row],[NomIncur2024]]<>0),2024,IF(AND(Project_Details[[#This Row],[NomIncur2026]]=0,Project_Details[[#This Row],[NomIncur2025]]<>0),2025,IF(AND(Project_Details[[#This Row],[NomIncur2027]]=0,Project_Details[[#This Row],[NomIncur2026]]<>0),2026,IF(Project_Details[[#This Row],[NomIncur2027]]<>0,2027,"")))))))) ->  | AO13: =IF(NOT(ISNUMBER(Project_Details[[#This Row],[Capitalisation Year]])), "NA", OR(Project_Details[[#This Row],[OverWrite_CashFlowAndCapitalisationYearAreOK]],(Project_Details[[#This Row],[LastYearOfNominalCashFlow]]=Project_Details[[#This Row],[Capitalisation Year]]))) -> NA | AP13: =NOT(AND(Project_Details[[#This Row],[DollarBasisImpliesNominal]],OR(ISNUMBER(Project_Details[[#This Row],[Labour Internal]]),ISNUMBER(Project_Details[[#This Row],[Labour External]])))) -> TRUE | AR13: =IF(LEFT(Project_Details[[#This Row],[RIN Asset Description]],17)="Power Transformer",IF((Project_Details[[#This Row],[ExpenditureAfter2021IsNotUsed]]=TRUE),FALSE,TRUE),"NA") -> NA | AU13: 0 | AV13: 0 | AW13: 0 | AX13: 0 | AY13: 0 | AZ13: =IFERROR(("None"=VLOOKUP(Project_Details[[#This Row],[ProjectID]],ProjectData[],MATCH("RepexDollarsBasis",ProjectData[#Headers],0),FALSE)),FALSE) -> FALSE | BA13: =IF(ISNUMBER(Project_Details[[#This Row],[Capitalisation Year]]),(Project_Details[[#This Row],[Capitalisation Year]]>=2016),"NA") -> NA | BB13: =(Project_Details[[#This Row],[ID]]=(ROW()-ProjectDetailsTableStartRow)) -> TRUE | BC13: =VLOOKUP(Project_Details[[#This Row],[ProjectID]],ProjectData[],MATCH("Specific Approved Project", ProjectData[#Headers],0),FALSE) -> FALSE
A14: 5 | B14: 3 | C14: =Project_Details[ID] -> 5 | D14: Switchgear_CB_132kV | E14: Switchgear - > 66 kV & < = 132 kV ; Air Insulated circuit Breaker | F14: =ISNUMBER(MATCH(Project_Details[[#This Row],[RIN Asset Description]],Lookup_RIN_AssetCategory,0)) -> TRUE | I14: 2 | J14: 1 | K14: 2 | L14: 3 | M14: 2 | X14: 685.2939842 | Y14: 762.9949503 | Z14: 837.36884 | AA14: 907.5103188 | AB14: 973.3818412 | AD14: =IF((VLOOKUP(Project_Details[[#This Row],[ProjectID]],ProjectData[],MATCH("Capitalisation",ProjectData[#Headers],0),FALSE)="Project Close"),ISNUMBER(Project_Details[[#This Row],[Capitalisation Year]]),"NA") -> NA | AE14: 0.2918348559 | AF14: 0.3411598504 | AG14: =MAX(ABS(Project_Details[[#This Row],[NomIncur2021]:[NomIncur2027]]))>0 -> FALSE | AH14: =MAX(ABS(Project_Details[[#This Row],[RealIncur2021]:[RealIncur2027]]))>0 -> TRUE | AI14: =OR(AND(Project_Details[[#This Row],[DollarBasisImpliesNominal]],NOT(Project_Details[[#This Row],[DollarBasisImpliesReal2021]])), AND(NOT(Project_Details[[#This Row],[DollarBasisImpliesNominal]]),Project_Details[[#This Row],[DollarBasisImpliesReal2021]]),AND(NOT(Project_Details[[#This Row],[DollarBasisImpliesNominal]]),NOT(Project_Details[[#This Row],[DollarBasisImpliesReal2021]]))) -> TRUE | AJ14: =IFERROR(OR(AND(Project_Details[[#This Row],[DollarBasisImpliesNominal]],VLOOKUP(Project_Details[[#This Row],[ProjectID]],ProjectData[],MATCH("RepexDollarsBasis",ProjectData[#Headers],0),FALSE)="Nominal"),AND(Project_Details[[#This Row],[DollarBasisImpliesReal2021]],VLOOKUP(Project_Details[[#This Row],[ProjectID]],ProjectData[],MATCH("RepexDollarsBasis",ProjectData[#Headers],0),FALSE)="Real2021"),Project_Details[[#This Row],[ProjectHasNoDollarBasis]]),FALSE) -> TRUE | AK14: =IF(Project_Details[[#This Row],[DollarBasisImpliesReal2021]],AND(ISNUMBER(Project_Details[[#This Row],[Labour Internal]]),ISNUMBER(Project_Details[[#This Row],[Labour External]])),"NA") -> TRUE | AL14: =IF(Project_Details[[#This Row],[DollarBasisImpliesNominal]],NOT(OR(ISNUMBER(Project_Details[[#This Row],[Labour Internal]]),ISNUMBER(Project_Details[[#This Row],[Labour External]]))),"NA") -> NA | AM14: =IF(AND(Project_Details[[#This Row],[NomIncur2021]]=0,Project_Details[[#This Row],[WIP]]<>0),2021,IF(AND(Project_Details[[#This Row],[NomIncur2022]]=0,Project_Details[[#This Row],[NomIncur2021]]<>0),2021,IF(AND(Project_Details[[#This Row],[NomIncur2023]]=0,Project_Details[[#This Row],[NomIncur2022]]<>0),2022,IF(AND(Project_Details[[#This Row],[NomIncur2024]]=0,Project_Details[[#This Row],[NomIncur2023]]<>0),2023,IF(AND(Project_Details[[#This Row],[NomIncur2025]]=0,Project_Details[[#This Row],[NomIncur2024]]<>0),2024,IF(AND(Project_Details[[#This Row],[NomIncur2026]]=0,Project_Details[[#This Row],[NomIncur2025]]<>0),2025,IF(AND(Project_Details[[#This Row],[NomIncur2027]]=0,Project_Details[[#This Row],[NomIncur2026]]<>0),2026,IF(Project_Details[[#This Row],[NomIncur2027]]<>0,2027,"")))))))) ->  | AO14: =IF(NOT(ISNUMBER(Project_Details[[#This Row],[Capitalisation Year]])), "NA", OR(Project_Details[[#This Row],[OverWrite_CashFlowAndCapitalisationYearAreOK]],(Project_Details[[#This Row],[LastYearOfNominalCashFlow]]=Project_Details[[#This Row],[Capitalisation Year]]))) -> NA | AP14: =NOT(AND(Project_Details[[#This Row],[DollarBasisImpliesNominal]],OR(ISNUMBER(Project_Details[[#This Row],[Labour Internal]]),ISNUMBER(Project_Details[[#This Row],[Labour External]])))) -> TRUE | AR14: =IF(LEFT(Project_Details[[#This Row],[RIN Asset Description]],17)="Power Transformer",IF((Project_Details[[#This Row],[ExpenditureAfter2021IsNotUsed]]=TRUE),FALSE,TRUE),"NA") -> NA | AU14: 750.9115289 | AV14: 375.4557644 | AW14: 750.9115289 | AX14: 1126.367293 | AY14: 750.9115289 | AZ14: =IFERROR(("None"=VLOOKUP(Project_Details[[#This Row],[ProjectID]],ProjectData[],MATCH("RepexDollarsBasis",ProjectData[#Headers],0),FALSE)),FALSE) -> FALSE | BA14: =IF(ISNUMBER(Project_Details[[#This Row],[Capitalisation Year]]),(Project_Details[[#This Row],[Capitalisation Year]]>=2016),"NA") -> NA | BB14: =(Project_Details[[#This Row],[ID]]=(ROW()-ProjectDetailsTableStartRow)) -> TRUE | BC14: =VLOOKUP(Project_Details[[#This Row],[ProjectID]],ProjectData[],MATCH("Specific Approved Project", ProjectData[#Headers],0),FALSE) -> FALSE
A15: 6 | B15: 3 | C15: =Project_Details[ID] -> 6 | D15: Switchgear_CB_275kV | E15: Switchgear - > 132 kV & < = 275 kV ; Air Insulated circuit Breaker | F15: =ISNUMBER(MATCH(Project_Details[[#This Row],[RIN Asset Description]],Lookup_RIN_AssetCategory,0)) -> TRUE | I15: 1 | J15: 1 | K15: 1 | L15: 1 | M15: 2 | X15: 615.3116835 | Y15: 737.3780961 | Z15: 872.8854875 | AA15: 1021.827441 | AB15: 1184.358336 | AD15: =IF((VLOOKUP(Project_Details[[#This Row],[ProjectID]],ProjectData[],MATCH("Capitalisation",ProjectData[#Headers],0),FALSE)="Project Close"),ISNUMBER(Project_Details[[#This Row],[Capitalisation Year]]),"NA") -> NA | AE15: 0.2918348559 | AF15: 0.2450148017 | AG15: =MAX(ABS(Project_Details[[#This Row],[NomIncur2021]:[NomIncur2027]]))>0 -> FALSE | AH15: =MAX(ABS(Project_Details[[#This Row],[RealIncur2021]:[RealIncur2027]]))>0 -> TRUE | AI15: =OR(AND(Project_Details[[#This Row],[DollarBasisImpliesNominal]],NOT(Project_Details[[#This Row],[DollarBasisImpliesReal2021]])), AND(NOT(Project_Details[[#This Row],[DollarBasisImpliesNominal]]),Project_Details[[#This Row],[DollarBasisImpliesReal2021]]),AND(NOT(Project_Details[[#This Row],[DollarBasisImpliesNominal]]),NOT(Project_Details[[#This Row],[DollarBasisImpliesReal2021]]))) -> TRUE | AJ15: =IFERROR(OR(AND(Project_Details[[#This Row],[DollarBasisImpliesNominal]],VLOOKUP(Project_Details[[#This Row],[ProjectID]],ProjectData[],MATCH("RepexDollarsBasis",ProjectData[#Headers],0),FALSE)="Nominal"),AND(Project_Details[[#This Row],[DollarBasisImpliesReal2021]],VLOOKUP(Project_Details[[#This Row],[ProjectID]],ProjectData[],MATCH("RepexDollarsBasis",ProjectData[#Headers],0),FALSE)="Real2021"),Project_Details[[#This Row],[ProjectHasNoDollarBasis]]),FALSE) -> TRUE | AK15: =IF(Project_Details[[#This Row],[DollarBasisImpliesReal2021]],AND(ISNUMBER(Project_Details[[#This Row],[Labour Internal]]),ISNUMBER(Project_Details[[#This Row],[Labour External]])),"NA") -> TRUE | AL15: =IF(Project_Details[[#This Row],[DollarBasisImpliesNominal]],NOT(OR(ISNUMBER(Project_Details[[#This Row],[Labour Internal]]),ISNUMBER(Project_Details[[#This Row],[Labour External]]))),"NA") -> NA | AM15: =IF(AND(Project_Details[[#This Row],[NomIncur2021]]=0,Project_Details[[#This Row],[WIP]]<>0),2021,IF(AND(Project_Details[[#This Row],[NomIncur2022]]=0,Project_Details[[#This Row],[NomIncur2021]]<>0),2021,IF(AND(Project_Details[[#This Row],[NomIncur2023]]=0,Project_Details[[#This Row],[NomIncur2022]]<>0),2022,IF(AND(Project_Details[[#This Row],[NomIncur2024]]=0,Project_Details[[#This Row],[NomIncur2023]]<>0),2023,IF(AND(Project_Details[[#This Row],[NomIncur2025]]=0,Project_Details[[#This Row],[NomIncur2024]]<>0),2024,IF(AND(Project_Details[[#This Row],[NomIncur2026]]=0,Project_Details[[#This Row],[NomIncur2025]]<>0),2025,IF(AND(Project_Details[[#This Row],[NomIncur2027]]=0,Project_Details[[#This Row],[NomIncur2026]]<>0),2026,IF(Project_Details[[#This Row],[NomIncur2027]]<>0,2027,"")))))))) ->  | AO15: =IF(NOT(ISNUMBER(Project_Details[[#This Row],[Capitalisation Year]])), "NA", OR(Project_Details[[#This Row],[OverWrite_CashFlowAndCapitalisationYearAreOK]],(Project_Details[[#This Row],[LastYearOfNominalCashFlow]]=Project_Details[[#This Row],[Capitalisation Year]]))) -> NA | AP15: =NOT(AND(Project_Details[[#This Row],[DollarBasisImpliesNominal]],OR(ISNUMBER(Project_Details[[#This Row],[Labour Internal]]),ISNUMBER(Project_Details[[#This Row],[Labour External]])))) -> TRUE | AR15: =IF(LEFT(Project_Details[[#This Row],[RIN Asset Description]],17)="Power Transformer",IF((Project_Details[[#This Row],[ExpenditureAfter2021IsNotUsed]]=TRUE),FALSE,TRUE),"NA") -> NA | AU15: 635.4308218 | AV15: 635.4308218 | AW15: 635.4308218 | AX15: 635.4308218 | AY15: 1270.861644 | AZ15: =IFERROR(("None"=VLOOKUP(Project_Details[[#This Row],[ProjectID]],ProjectData[],MATCH("RepexDollarsBasis",ProjectData[#Headers],0),FALSE)),FALSE) -> FALSE | BA15: =IF(ISNUMBER(Project_Details[[#This Row],[Capitalisation Year]]),(Project_Details[[#This Row],[Capitalisation Year]]>=2016),"NA") -> NA | BB15: =(Project_Details[[#This Row],[ID]]=(ROW()-ProjectDetailsTableStartRow)) -> TRUE | BC15: =VLOOKUP(Project_Details[[#This Row],[ProjectID]],ProjectData[],MATCH("Specific Approved Project", ProjectData[#Headers],0),FALSE) -> FALSE
A16: 7 | B16: 4 | C16: =Project_Details[ID] -> 7 | D16: Switchgear_IsolES_132kV | E16: Switchgear - > 66 kV & < = 132 kV ; Air Insulated Isolators / Earth Switch | F16: =ISNUMBER(MATCH(Project_Details[[#This Row],[RIN Asset Description]],Lookup_RIN_AssetCategory,0)) -> TRUE | I16: 6 | J16: 6 | K16: 6 | L16: 7 | M16: 7 | X16: 492.9441813 | Y16: 523.6670754 | Z16: 553.7855322 | AA16: 583.033001 | AB16: 611.1276175 | AD16: =IF((VLOOKUP(Project_Details[[#This Row],[ProjectID]],ProjectData[],MATCH("Capitalisation",ProjectData[#Headers],0),FALSE)="Project Close"),ISNUMBER(Project_Details[[#This Row],[Capitalisation Year]]),"NA") -> NA | AE16: 0.2918348559 | AF16: 0.4507445297 | AG16: =MAX(ABS(Project_Details[[#This Row],[NomIncur2021]:[NomIncur2027]]))>0 -> FALSE | AH16: =MAX(ABS(Project_Details[[#This Row],[RealIncur2021]:[RealIncur2027]]))>0 -> TRUE | AI16: =OR(AND(Project_Details[[#This Row],[DollarBasisImpliesNominal]],NOT(Project_Details[[#This Row],[DollarBasisImpliesReal2021]])), AND(NOT(Project_Details[[#This Row],[DollarBasisImpliesNominal]]),Project_Details[[#This Row],[DollarBasisImpliesReal2021]]),AND(NOT(Project_Details[[#This Row],[DollarBasisImpliesNominal]]),NOT(Project_Details[[#This Row],[DollarBasisImpliesReal2021]]))) -> TRUE | AJ16: =IFERROR(OR(AND(Project_Details[[#This Row],[DollarBasisImpliesNominal]],VLOOKUP(Project_Details[[#This Row],[ProjectID]],ProjectData[],MATCH("RepexDollarsBasis",ProjectData[#Headers],0),FALSE)="Nominal"),AND(Project_Details[[#This Row],[DollarBasisImpliesReal2021]],VLOOKUP(Project_Details[[#This Row],[ProjectID]],ProjectData[],MATCH("RepexDollarsBasis",ProjectData[#Headers],0),FALSE)="Real2021"),Project_Details[[#This Row],[ProjectHasNoDollarBasis]]),FALSE) -> TRUE | AK16: =IF(Project_Details[[#This Row],[DollarBasisImpliesReal2021]],AND(ISNUMBER(Project_Details[[#This Row],[Labour Internal]]),ISNUMBER(Project_Details[[#This Row],[Labour External]])),"NA") -> TRUE | AL16: =IF(Project_Details[[#This Row],[DollarBasisImpliesNominal]],NOT(OR(ISNUMBER(Project_Details[[#This Row],[Labour Internal]]),ISNUMBER(Project_Details[[#This Row],[Labour External]]))),"NA") -> NA | AM16: =IF(AND(Project_Details[[#This Row],[NomIncur2021]]=0,Project_Details[[#This Row],[WIP]]<>0),2021,IF(AND(Project_Details[[#This Row],[NomIncur2022]]=0,Project_Details[[#This Row],[NomIncur2021]]<>0),2021,IF(AND(Project_Details[[#This Row],[NomIncur2023]]=0,Project_Details[[#This Row],[NomIncur2022]]<>0),2022,IF(AND(Project_Details[[#This Row],[NomIncur2024]]=0,Project_Details[[#This Row],[NomIncur2023]]<>0),2023,IF(AND(Project_Details[[#This Row],[NomIncur2025]]=0,Project_Details[[#This Row],[NomIncur2024]]<>0),2024,IF(AND(Project_Details[[#This Row],[NomIncur2026]]=0,Project_Details[[#This Row],[NomIncur2025]]<>0),2025,IF(AND(Project_Details[[#This Row],[NomIncur2027]]=0,Project_Details[[#This Row],[NomIncur2026]]<>0),2026,IF(Project_Details[[#This Row],[NomIncur2027]]<>0,2027,"")))))))) ->  | AO16: =IF(NOT(ISNUMBER(Project_Details[[#This Row],[Capitalisation Year]])), "NA", OR(Project_Details[[#This Row],[OverWrite_CashFlowAndCapitalisationYearAreOK]],(Project_Details[[#This Row],[LastYearOfNominalCashFlow]]=Project_Details[[#This Row],[Capitalisation Year]]))) -> NA | AP16: =NOT(AND(Project_Details[[#This Row],[DollarBasisImpliesNominal]],OR(ISNUMBER(Project_Details[[#This Row],[Labour Internal]]),ISNUMBER(Project_Details[[#This Row],[Labour External]])))) -> TRUE | AR16: =IF(LEFT(Project_Details[[#This Row],[RIN Asset Description]],17)="Power Transformer",IF((Project_Details[[#This Row],[ExpenditureAfter2021IsNotUsed]]=TRUE),FALSE,TRUE),"NA") -> NA | AU16: 482.2898359 | AV16: 482.2898359 | AW16: 482.2898359 | AX16: 562.6714752 | AY16: 562.6714752 | AZ16: =IFERROR(("None"=VLOOKUP(Project_Details[[#This Row],[ProjectID]],ProjectData[],MATCH("RepexDollarsBasis",ProjectData[#Headers],0),FALSE)),FALSE) -> FALSE | BA16: =IF(ISNUMBER(Project_Details[[#This Row],[Capitalisation Year]]),(Project_Details[[#This Row],[Capitalisation Year]]>=2016),"NA") -> NA | BB16: =(Project_Details[[#This Row],[ID]]=(ROW()-ProjectDetailsTableStartRow)) -> TRUE | BC16: =VLOOKUP(Project_Details[[#This Row],[ProjectID]],ProjectData[],MATCH("Specific Approved Project", ProjectData[#Headers],0),FALSE) -> FALSE
A17: 8 | B17: 4 | C17: =Project_Details[ID] -> 8 | D17: Switchgear_IsolES_275kV | E17: Switchgear - > 132 kV & < = 275 kV ; Air Insulated Isolators / Earth Switch | F17: =ISNUMBER(MATCH(Project_Details[[#This Row],[RIN Asset Description]],Lookup_RIN_AssetCategory,0)) -> TRUE | I17: 14 | J17: 14 | K17: 15 | L17: 15 | M17: 15 | X17: 2096.273953 | Y17: 2170.574592 | Z17: 2233.323466 | AA17: 2286.84217 | AB17: 2334.060654 | AD17: =IF((VLOOKUP(Project_Details[[#This Row],[ProjectID]],ProjectData[],MATCH("Capitalisation",ProjectData[#Headers],0),FALSE)="Project Close"),ISNUMBER(Project_Details[[#This Row],[Capitalisation Year]]),"NA") -> NA | AE17: 0.2918348559 | AF17: 0.3230680402 | AG17: =MAX(ABS(Project_Details[[#This Row],[NomIncur2021]:[NomIncur2027]]))>0 -> FALSE | AH17: =MAX(ABS(Project_Details[[#This Row],[RealIncur2021]:[RealIncur2027]]))>0 -> TRUE | AI17: =OR(AND(Project_Details[[#This Row],[DollarBasisImpliesNominal]],NOT(Project_Details[[#This Row],[DollarBasisImpliesReal2021]])), AND(NOT(Project_Details[[#This Row],[DollarBasisImpliesNominal]]),Project_Details[[#This Row],[DollarBasisImpliesReal2021]]),AND(NOT(Project_Details[[#This Row],[DollarBasisImpliesNominal]]),NOT(Project_Details[[#This Row],[DollarBasisImpliesReal2021]]))) -> TRUE | AJ17: =IFERROR(OR(AND(Project_Details[[#This Row],[DollarBasisImpliesNominal]],VLOOKUP(Project_Details[[#This Row],[ProjectID]],ProjectData[],MATCH("RepexDollarsBasis",ProjectData[#Headers],0),FALSE)="Nominal"),AND(Project_Details[[#This Row],[DollarBasisImpliesReal2021]],VLOOKUP(Project_Details[[#This Row],[ProjectID]],ProjectData[],MATCH("RepexDollarsBasis",ProjectData[#Headers],0),FALSE)="Real2021"),Project_Details[[#This Row],[ProjectHasNoDollarBasis]]),FALSE) -> TRUE | AK17: =IF(Project_Details[[#This Row],[DollarBasisImpliesReal2021]],AND(ISNUMBER(Project_Details[[#This Row],[Labour Internal]]),ISNUMBER(Project_Details[[#This Row],[Labour External]])),"NA") -> TRUE | AL17: =IF(Project_Details[[#This Row],[DollarBasisImpliesNominal]],NOT(OR(ISNUMBER(Project_Details[[#This Row],[Labour Internal]]),ISNUMBER(Project_Details[[#This Row],[Labour External]]))),"NA") -> NA | AM17: =IF(AND(Project_Details[[#This Row],[NomIncur2021]]=0,Project_Details[[#This Row],[WIP]]<>0),2021,IF(AND(Project_Details[[#This Row],[NomIncur2022]]=0,Project_Details[[#This Row],[NomIncur2021]]<>0),2021,IF(AND(Project_Details[[#This Row],[NomIncur2023]]=0,Project_Details[[#This Row],[NomIncur2022]]<>0),2022,IF(AND(Project_Details[[#This Row],[NomIncur2024]]=0,Project_Details[[#This Row],[NomIncur2023]]<>0),2023,IF(AND(Project_Details[[#This Row],[NomIncur2025]]=0,Project_Details[[#This Row],[NomIncur2024]]<>0),2024,IF(AND(Project_Details[[#This Row],[NomIncur2026]]=0,Project_Details[[#This Row],[NomIncur2025]]<>0),2025,IF(AND(Project_Details[[#This Row],[NomIncur2027]]=0,Project_Details[[#This Row],[NomIncur2026]]<>0),2026,IF(Project_Details[[#This Row],[NomIncur2027]]<>0,2027,"")))))))) ->  | AO17: =IF(NOT(ISNUMBER(Project_Details[[#This Row],[Capitalisation Year]])), "NA", OR(Project_Details[[#This Row],[OverWrite_CashFlowAndCapitalisationYearAreOK]],(Project_Details[[#This Row],[LastYearOfNominalCashFlow]]=Project_Details[[#This Row],[Capitalisation Year]]))) -> NA | AP17: =NOT(AND(Project_Details[[#This Row],[DollarBasisImpliesNominal]],OR(ISNUMBER(Project_Details[[#This Row],[Labour Internal]]),ISNUMBER(Project_Details[[#This Row],[Labour External]])))) -> TRUE | AR17: =IF(LEFT(Project_Details[[#This Row],[RIN Asset Description]],17)="Power Transformer",IF((Project_Details[[#This Row],[ExpenditureAfter2021IsNotUsed]]=TRUE),FALSE,TRUE),"NA") -> NA | AU17: 2073.282858 | AV17: 2073.282858 | AW17: 2221.374491 | AX17: 2221.374491 | AY17: 2221.374491 | AZ17: =IFERROR(("None"=VLOOKUP(Project_Details[[#This Row],[ProjectID]],ProjectData[],MATCH("RepexDollarsBasis",ProjectData[#Headers],0),FALSE)),FALSE) -> FALSE | BA17: =IF(ISNUMBER(Project_Details[[#This Row],[Capitalisation Year]]),(Project_Details[[#This Row],[Capitalisation Year]]>=2016),"NA") -> NA | BB17: =(Project_Details[[#This Row],[ID]]=(ROW()-ProjectDetailsTableStartRow)) -> TRUE | BC17: =VLOOKUP(Project_Details[[#This Row],[ProjectID]],ProjectData[],MATCH("Specific Approved Project", ProjectData[#Headers],0),FALSE) -> FALSE
A18: 9 | B18: 5 | C18: =Project_Details[ID] -> 9 | D18: Switchgear_VT_132kV | E18: Switchgear - > 66 kV & < = 132 kV ; VT | F18: =ISNUMBER(MATCH(Project_Details[[#This Row],[RIN Asset Description]],Lookup_RIN_AssetCategory,0)) -> TRUE | I18: 3 | J18: 4 | K18: 4 | L18: 4 | M18: 4 | X18: 278.7556065 | Y18: 303.4328928 | Z18: 330.1223918 | AA18: 360.5521069 | AB18: 396.9920793 | AD18: =IF((VLOOKUP(Project_Details[[#This Row],[ProjectID]],ProjectData[],MATCH("Capitalisation",ProjectData[#Headers],0),FALSE)="Project Close"),ISNUMBER(Project_Details[[#This Row],[Capitalisation Year]]),"NA") -> NA | AE18: 0.2918348559 | AF18: 0.2631066119 | AG18: =MAX(ABS(Project_Details[[#This Row],[NomIncur2021]:[NomIncur2027]]))>0 -> FALSE | AH18: =MAX(ABS(Project_Details[[#This Row],[RealIncur2021]:[RealIncur2027]]))>0 -> TRUE | AI18: =OR(AND(Project_Details[[#This Row],[DollarBasisImpliesNominal]],NOT(Project_Details[[#This Row],[DollarBasisImpliesReal2021]])), AND(NOT(Project_Details[[#This Row],[DollarBasisImpliesNominal]]),Project_Details[[#This Row],[DollarBasisImpliesReal2021]]),AND(NOT(Project_Details[[#This Row],[DollarBasisImpliesNominal]]),NOT(Project_Details[[#This Row],[DollarBasisImpliesReal2021]]))) -> TRUE | AJ18: =IFERROR(OR(AND(Project_Details[[#This Row],[DollarBasisImpliesNominal]],VLOOKUP(Project_Details[[#This Row],[ProjectID]],ProjectData[],MATCH("RepexDollarsBasis",ProjectData[#Headers],0),FALSE)="Nominal"),AND(Project_Details[[#This Row],[DollarBasisImpliesReal2021]],VLOOKUP(Project_Details[[#This Row],[ProjectID]],ProjectData[],MATCH("RepexDollarsBasis",ProjectData[#Headers],0),FALSE)="Real2021"),Project_Details[[#This Row],[ProjectHasNoDollarBasis]]),FALSE) -> TRUE | AK18: =IF(Project_Details[[#This Row],[DollarBasisImpliesReal2021]],AND(ISNUMBER(Project_Details[[#This Row],[Labour Internal]]),ISNUMBER(Project_Details[[#This Row],[Labour External]])),"NA") -> TRUE | AL18: =IF(Project_Details[[#This Row],[DollarBasisImpliesNominal]],NOT(OR(ISNUMBER(Project_Details[[#This Row],[Labour Internal]]),ISNUMBER(Project_Details[[#This Row],[Labour External]]))),"NA") -> NA | AM18: =IF(AND(Project_Details[[#This Row],[NomIncur2021]]=0,Project_Details[[#This Row],[WIP]]<>0),2021,IF(AND(Project_Details[[#This Row],[NomIncur2022]]=0,Project_Details[[#This Row],[NomIncur2021]]<>0),2021,IF(AND(Project_Details[[#This Row],[NomIncur2023]]=0,Project_Details[[#This Row],[NomIncur2022]]<>0),2022,IF(AND(Project_Details[[#This Row],[NomIncur2024]]=0,Project_Details[[#This Row],[NomIncur2023]]<>0),2023,IF(AND(Project_Details[[#This Row],[NomIncur2025]]=0,Project_Details[[#This Row],[NomIncur2024]]<>0),2024,IF(AND(Project_Details[[#This Row],[NomIncur2026]]=0,Project_Details[[#This Row],[NomIncur2025]]<>0),2025,IF(AND(Project_Details[[#This Row],[NomIncur2027]]=0,Project_Details[[#This Row],[NomIncur2026]]<>0),2026,IF(Project_Details[[#This Row],[NomIncur2027]]<>0,2027,"")))))))) ->  | AO18: =IF(NOT(ISNUMBER(Project_Details[[#This Row],[Capitalisation Year]])), "NA", OR(Project_Details[[#This Row],[OverWrite_CashFlowAndCapitalisationYearAreOK]],(Project_Details[[#This Row],[LastYearOfNominalCashFlow]]=Project_Details[[#This Row],[Capitalisation Year]]))) -> NA | AP18: =NOT(AND(Project_Details[[#This Row],[DollarBasisImpliesNominal]],OR(ISNUMBER(Project_Details[[#This Row],[Labour Internal]]),ISNUMBER(Project_Details[[#This Row],[Labour External]])))) -> TRUE | AR18: =IF(LEFT(Project_Details[[#This Row],[RIN Asset Description]],17)="Power Transformer",IF((Project_Details[[#This Row],[ExpenditureAfter2021IsNotUsed]]=TRUE),FALSE,TRUE),"NA") -> NA | AU18: 245.5162277 | AV18: 327.3549703 | AW18: 327.3549703 | AX18: 327.3549703 | AY18: 327.3549703 | AZ18: =IFERROR(("None"=VLOOKUP(Project_Details[[#This Row],[ProjectID]],ProjectData[],MATCH("RepexDollarsBasis",ProjectData[#Headers],0),FALSE)),FALSE) -> FALSE | BA18: =IF(ISNUMBER(Project_Details[[#This Row],[Capitalisation Year]]),(Project_Details[[#This Row],[Capitalisation Year]]>=2016),"NA") -> NA | BB18: =(Project_Details[[#This Row],[ID]]=(ROW()-ProjectDetailsTableStartRow)) -> TRUE | BC18: =VLOOKUP(Project_Details[[#This Row],[ProjectID]],ProjectData[],MATCH("Specific Approved Project", ProjectData[#Headers],0),FALSE) -> FALSE
A19: 10 | B19: 5 | C19: =Project_Details[ID] -> 10 | D19: Switchgear_VT_275kV | E19: Switchgear - > 132 kV & < = 275 kV ; VT | F19: =ISNUMBER(MATCH(Project_Details[[#This Row],[RIN Asset Description]],Lookup_RIN_AssetCategory,0)) -> TRUE | I19: 3 | J19: 2 | K19: 3 | L19: 3 | M19: 2 | X19: 235.5302161 | Y19: 237.007574 | Z19: 242.8790143 | AA19: 253.5594189 | AB19: 269.8407995 | AD19: =IF((VLOOKUP(Project_Details[[#This Row],[ProjectID]],ProjectData[],MATCH("Capitalisation",ProjectData[#Headers],0),FALSE)="Project Close"),ISNUMBER(Project_Details[[#This Row],[Capitalisation Year]]),"NA") -> NA | AE19: 0.2918348559 | AF19: 0.2496669815 | AG19: =MAX(ABS(Project_Details[[#This Row],[NomIncur2021]:[NomIncur2027]]))>0 -> FALSE | AH19: =MAX(ABS(Project_Details[[#This Row],[RealIncur2021]:[RealIncur2027]]))>0 -> TRUE | AI19: =OR(AND(Project_Details[[#This Row],[DollarBasisImpliesNominal]],NOT(Project_Details[[#This Row],[DollarBasisImpliesReal2021]])), AND(NOT(Project_Details[[#This Row],[DollarBasisImpliesNominal]]),Project_Details[[#This Row],[DollarBasisImpliesReal2021]]),AND(NOT(Project_Details[[#This Row],[DollarBasisImpliesNominal]]),NOT(Project_Details[[#This Row],[DollarBasisImpliesReal2021]]))) -> TRUE | AJ19: =IFERROR(OR(AND(Project_Details[[#This Row],[DollarBasisImpliesNominal]],VLOOKUP(Project_Details[[#This Row],[ProjectID]],ProjectData[],MATCH("RepexDollarsBasis",ProjectData[#Headers],0),FALSE)="Nominal"),AND(Project_Details[[#This Row],[DollarBasisImpliesReal2021]],VLOOKUP(Project_Details[[#This Row],[ProjectID]],ProjectData[],MATCH("RepexDollarsBasis",ProjectData[#Headers],0),FALSE)="Real2021"),Project_Details[[#This Row],[ProjectHasNoDollarBasis]]),FALSE) -> TRUE | AK19: =IF(Project_Details[[#This Row],[DollarBasisImpliesReal2021]],AND(ISNUMBER(Project_Details[[#This Row],[Labour Internal]]),ISNUMBER(Project_Details[[#This Row],[Labour External]])),"NA") -> TRUE | AL19: =IF(Project_Details[[#This Row],[DollarBasisImpliesNominal]],NOT(OR(ISNUMBER(Project_Details[[#This Row],[Labour Internal]]),ISNUMBER(Project_Details[[#This Row],[Labour External]]))),"NA") -> NA | AM19: =IF(AND(Project_Details[[#This Row],[NomIncur2021]]=0,Project_Details[[#This Row],[WIP]]<>0),2021,IF(AND(Project_Details[[#This Row],[NomIncur2022]]=0,Project_Details[[#This Row],[NomIncur2021]]<>0),2021,IF(AND(Project_Details[[#This Row],[NomIncur2023]]=0,Project_Details[[#This Row],[NomIncur2022]]<>0),2022,IF(AND(Project_Details[[#This Row],[NomIncur2024]]=0,Project_Details[[#This Row],[NomIncur2023]]<>0),2023,IF(AND(Project_Details[[#This Row],[NomIncur2025]]=0,Project_Details[[#This Row],[NomIncur2024]]<>0),2024,IF(AND(Project_Details[[#This Row],[NomIncur2026]]=0,Project_Details[[#This Row],[NomIncur2025]]<>0),2025,IF(AND(Project_Details[[#This Row],[NomIncur2027]]=0,Project_Details[[#This Row],[NomIncur2026]]<>0),2026,IF(Project_Details[[#This Row],[NomIncur2027]]<>0,2027,"")))))))) ->  | AO19: =IF(NOT(ISNUMBER(Project_Details[[#This Row],[Capitalisation Year]])), "NA", OR(Project_Details[[#This Row],[OverWrite_CashFlowAndCapitalisationYearAreOK]],(Project_Details[[#This Row],[LastYearOfNominalCashFlow]]=Project_Details[[#This Row],[Capitalisation Year]]))) -> NA | AP19: =NOT(AND(Project_Details[[#This Row],[DollarBasisImpliesNominal]],OR(ISNUMBER(Project_Details[[#This Row],[Labour Internal]]),ISNUMBER(Project_Details[[#This Row],[Labour External]])))) -> TRUE | AR19: =IF(LEFT(Project_Details[[#This Row],[RIN Asset Description]],17)="Power Transformer",IF((Project_Details[[#This Row],[ExpenditureAfter2021IsNotUsed]]=TRUE),FALSE,TRUE),"NA") -> NA | AU19: 275.3648139 | AV19: 183.5765426 | AW19: 275.3648139 | AX19: 275.3648139 | AY19: 183.5765426 | AZ19: =IFERROR(("None"=VLOOKUP(Project_Details[[#This Row],[ProjectID]],ProjectData[],MATCH("RepexDollarsBasis",ProjectData[#Headers],0),FALSE)),FALSE) -> FALSE | BA19: =IF(ISNUMBER(Project_Details[[#This Row],[Capitalisation Year]]),(Project_Details[[#This Row],[Capitalisation Year]]>=2016),"NA") -> NA | BB19: =(Project_Details[[#This Row],[ID]]=(ROW()-ProjectDetailsTableStartRow)) -> TRUE | BC19: =VLOOKUP(Project_Details[[#This Row],[ProjectID]],ProjectData[],MATCH("Specific Approved Project", ProjectData[#Headers],0),FALSE) -> FALSE
A20: 11 | B20: 6 | C20: =Project_Details[ID] -> 11 | D20: Switchgear_CT_132kV | E20: Switchgear - > 66 kV & < = 132 kV ; CT | F20: =ISNUMBER(MATCH(Project_Details[[#This Row],[RIN Asset Description]],Lookup_RIN_AssetCategory,0)) -> TRUE | I20: 5 | J20: 6 | K20: 6 | L20: 7 | M20: 8 | X20: 705.1149265 | Y20: 788.7860968 | Z20: 874.0857613 | AA20: 961.4715922 | AB20: 1051.991454 | AD20: =IF((VLOOKUP(Project_Details[[#This Row],[ProjectID]],ProjectData[],MATCH("Capitalisation",ProjectData[#Headers],0),FALSE)="Project Close"),ISNUMBER(Project_Details[[#This Row],[Capitalisation Year]]),"NA") -> NA | AE20: 0.2918348559 | AF20: 0.2470824371 | AG20: =MAX(ABS(Project_Details[[#This Row],[NomIncur2021]:[NomIncur2027]]))>0 -> FALSE | AH20: =MAX(ABS(Project_Details[[#This Row],[RealIncur2021]:[RealIncur2027]]))>0 -> TRUE | AI20: =OR(AND(Project_Details[[#This Row],[DollarBasisImpliesNominal]],NOT(Project_Details[[#This Row],[DollarBasisImpliesReal2021]])), AND(NOT(Project_Details[[#This Row],[DollarBasisImpliesNominal]]),Project_Details[[#This Row],[DollarBasisImpliesReal2021]]),AND(NOT(Project_Details[[#This Row],[DollarBasisImpliesNominal]]),NOT(Project_Details[[#This Row],[DollarBasisImpliesReal2021]]))) -> TRUE | AJ20: =IFERROR(OR(AND(Project_Details[[#This Row],[DollarBasisImpliesNominal]],VLOOKUP(Project_Details[[#This Row],[ProjectID]],ProjectData[],MATCH("RepexDollarsBasis",ProjectData[#Headers],0),FALSE)="Nominal"),AND(Project_Details[[#This Row],[DollarBasisImpliesReal2021]],VLOOKUP(Project_Details[[#This Row],[ProjectID]],ProjectData[],MATCH("RepexDollarsBasis",ProjectData[#Headers],0),FALSE)="Real2021"),Project_Details[[#This Row],[ProjectHasNoDollarBasis]]),FALSE) -> TRUE | AK20: =IF(Project_Details[[#This Row],[DollarBasisImpliesReal2021]],AND(ISNUMBER(Project_Details[[#This Row],[Labour Internal]]),ISNUMBER(Project_Details[[#This Row],[Labour External]])),"NA") -> TRUE | AL20: =IF(Project_Details[[#This Row],[DollarBasisImpliesNominal]],NOT(OR(ISNUMBER(Project_Details[[#This Row],[Labour Internal]]),ISNUMBER(Project_Details[[#This Row],[Labour External]]))),"NA") -> NA | AM20: =IF(AND(Project_Details[[#This Row],[NomIncur2021]]=0,Project_Details[[#This Row],[WIP]]<>0),2021,IF(AND(Project_Details[[#This Row],[NomIncur2022]]=0,Project_Details[[#This Row],[NomIncur2021]]<>0),2021,IF(AND(Project_Details[[#This Row],[NomIncur2023]]=0,Project_Details[[#This Row],[NomIncur2022]]<>0),2022,IF(AND(Project_Details[[#This Row],[NomIncur2024]]=0,Project_Details[[#This Row],[NomIncur2023]]<>0),2023,IF(AND(Project_Details[[#This Row],[NomIncur2025]]=0,Project_Details[[#This Row],[NomIncur2024]]<>0),2024,IF(AND(Project_Details[[#This Row],[NomIncur2026]]=0,Project_Details[[#This Row],[NomIncur2025]]<>0),2025,IF(AND(Project_Details[[#This Row],[NomIncur2027]]=0,Project_Details[[#This Row],[NomIncur2026]]<>0),2026,IF(Project_Details[[#This Row],[NomIncur2027]]<>0,2027,"")))))))) ->  | AO20: =IF(NOT(ISNUMBER(Project_Details[[#This Row],[Capitalisation Year]])), "NA", OR(Project_Details[[#This Row],[OverWrite_CashFlowAndCapitalisationYearAreOK]],(Project_Details[[#This Row],[LastYearOfNominalCashFlow]]=Project_Details[[#This Row],[Capitalisation Year]]))) -> NA | AP20: =NOT(AND(Project_Details[[#This Row],[DollarBasisImpliesNominal]],OR(ISNUMBER(Project_Details[[#This Row],[Labour Internal]]),ISNUMBER(Project_Details[[#This Row],[Labour External]])))) -> TRUE | AR20: =IF(LEFT(Project_Details[[#This Row],[RIN Asset Description]],17)="Power Transformer",IF((Project_Details[[#This Row],[ExpenditureAfter2021IsNotUsed]]=TRUE),FALSE,TRUE),"NA") -> NA | AU20: 620.9053409 | AV20: 745.086409 | AW20: 745.086409 | AX20: 869.2674772 | AY20: 993.4485454 | AZ20: =IFERROR(("None"=VLOOKUP(Project_Details[[#This Row],[ProjectID]],ProjectData[],MATCH("RepexDollarsBasis",ProjectData[#Headers],0),FALSE)),FALSE) -> FALSE | BA20: =IF(ISNUMBER(Project_Details[[#This Row],[Capitalisation Year]]),(Project_Details[[#This Row],[Capitalisation Year]]>=2016),"NA") -> NA | BB20: =(Project_Details[[#This Row],[ID]]=(ROW()-ProjectDetailsTableStartRow)) -> TRUE | BC20: =VLOOKUP(Project_Details[[#This Row],[ProjectID]],ProjectData[],MATCH("Specific Approved Project", ProjectData[#Headers],0),FALSE) -> FALSE
A21: 12 | B21: 6 | C21: =Project_Details[ID] -> 12 | D21: Switchgear_CT_275kV | E21: Switchgear - > 132 kV & < = 275 kV ; CT | F21: =ISNUMBER(MATCH(Project_Details[[#This Row],[RIN Asset Description]],Lookup_RIN_AssetCategory,0)) -> TRUE | I21: 2 | J21: 2 | K21: 2 | L21: 3 | M21: 2 | X21: 230.1487175 | Y21: 256.5813198 | Z21: 285.7303469 | AA21: 318.8677285 | AB21: 357.6734424 | AD21: =IF((VLOOKUP(Project_Details[[#This Row],[ProjectID]],ProjectData[],MATCH("Capitalisation",ProjectData[#Headers],0),FALSE)="Project Close"),ISNUMBER(Project_Details[[#This Row],[Capitalisation Year]]),"NA") -> NA | AE21: 0.2918348559 | AF21: 0.2422234938 | AG21: =MAX(ABS(Project_Details[[#This Row],[NomIncur2021]:[NomIncur2027]]))>0 -> FALSE | AH21: =MAX(ABS(Project_Details[[#This Row],[RealIncur2021]:[RealIncur2027]]))>0 -> TRUE | AI21: =OR(AND(Project_Details[[#This Row],[DollarBasisImpliesNominal]],NOT(Project_Details[[#This Row],[DollarBasisImpliesReal2021]])), AND(NOT(Project_Details[[#This Row],[DollarBasisImpliesNominal]]),Project_Details[[#This Row],[DollarBasisImpliesReal2021]]),AND(NOT(Project_Details[[#This Row],[DollarBasisImpliesNominal]]),NOT(Project_Details[[#This Row],[DollarBasisImpliesReal2021]]))) -> TRUE | AJ21: =IFERROR(OR(AND(Project_Details[[#This Row],[DollarBasisImpliesNominal]],VLOOKUP(Project_Details[[#This Row],[ProjectID]],ProjectData[],MATCH("RepexDollarsBasis",ProjectData[#Headers],0),FALSE)="Nominal"),AND(Project_Details[[#This Row],[DollarBasisImpliesReal2021]],VLOOKUP(Project_Details[[#This Row],[ProjectID]],ProjectData[],MATCH("RepexDollarsBasis",ProjectData[#Headers],0),FALSE)="Real2021"),Project_Details[[#This Row],[ProjectHasNoDollarBasis]]),FALSE) -> TRUE | AK21: =IF(Project_Details[[#This Row],[DollarBasisImpliesReal2021]],AND(ISNUMBER(Project_Details[[#This Row],[Labour Internal]]),ISNUMBER(Project_Details[[#This Row],[Labour External]])),"NA") -> TRUE | AL21: =IF(Project_Details[[#This Row],[DollarBasisImpliesNominal]],NOT(OR(ISNUMBER(Project_Details[[#This Row],[Labour Internal]]),ISNUMBER(Project_Details[[#This Row],[Labour External]]))),"NA") -> NA | AM21: =IF(AND(Project_Details[[#This Row],[NomIncur2021]]=0,Project_Details[[#This Row],[WIP]]<>0),2021,IF(AND(Project_Details[[#This Row],[NomIncur2022]]=0,Project_Details[[#This Row],[NomIncur2021]]<>0),2021,IF(AND(Project_Details[[#This Row],[NomIncur2023]]=0,Project_Details[[#This Row],[NomIncur2022]]<>0),2022,IF(AND(Project_Details[[#This Row],[NomIncur2024]]=0,Project_Details[[#This Row],[NomIncur2023]]<>0),2023,IF(AND(Project_Details[[#This Row],[NomIncur2025]]=0,Project_Details[[#This Row],[NomIncur2024]]<>0),2024,IF(AND(Project_Details[[#This Row],[NomIncur2026]]=0,Project_Details[[#This Row],[NomIncur2025]]<>0),2025,IF(AND(Project_Details[[#This Row],[NomIncur2027]]=0,Project_Details[[#This Row],[NomIncur2026]]<>0),2026,IF(Project_Details[[#This Row],[NomIncur2027]]<>0,2027,"")))))))) ->  | AO21: =IF(NOT(ISNUMBER(Project_Details[[#This Row],[Capitalisation Year]])), "NA", OR(Project_Details[[#This Row],[OverWrite_CashFlowAndCapitalisationYearAreOK]],(Project_Details[[#This Row],[LastYearOfNominalCashFlow]]=Project_Details[[#This Row],[Capitalisation Year]]))) -> NA | AP21: =NOT(AND(Project_Details[[#This Row],[DollarBasisImpliesNominal]],OR(ISNUMBER(Project_Details[[#This Row],[Labour Internal]]),ISNUMBER(Project_Details[[#This Row],[Labour External]])))) -> TRUE | AR21: =IF(LEFT(Project_Details[[#This Row],[RIN Asset Description]],17)="Power Transformer",IF((Project_Details[[#This Row],[ExpenditureAfter2021IsNotUsed]]=TRUE),FALSE,TRUE),"NA") -> NA | AU21: 229.703473 | AV21: 229.703473 | AW21: 229.703473 | AX21: 344.5552095 | AY21: 229.703473 | AZ21: =IFERROR(("None"=VLOOKUP(Project_Details[[#This Row],[ProjectID]],ProjectData[],MATCH("RepexDollarsBasis",ProjectData[#Headers],0),FALSE)),FALSE) -> FALSE | BA21: =IF(ISNUMBER(Project_Details[[#This Row],[Capitalisation Year]]),(Project_Details[[#This Row],[Capitalisation Year]]>=2016),"NA") -> NA | BB21: =(Project_Details[[#This Row],[ID]]=(ROW()-ProjectDetailsTableStartRow)) -> TRUE | BC21: =VLOOKUP(Project_Details[[#This Row],[ProjectID]],ProjectData[],MATCH("Specific Approved Project", ProjectData[#Headers],0),FALSE) -> FALSE
A22: 13 | B22: 7 | C22: =Project_Details[ID] -> 13 | D22: Bay Non Bay | E22: Sec Sys - Bay Non Bay | F22: =ISNUMBER(MATCH(Project_Details[[#This Row],[RIN Asset Description]],Lookup_RIN_AssetCategory,0)) -> TRUE | I22: 9 | J22: 12 | K22: 16 | L22: 19 | M22: 24 | X22: 8665.307642 | Y22: 11237.4593 | Z22: 14280.20383 | AA22: 17728.77886 | AB22: 21466.49353 | AD22: =IF((VLOOKUP(Project_Details[[#This Row],[ProjectID]],ProjectData[],MATCH("Capitalisation",ProjectData[#Headers],0),FALSE)="Project Close"),ISNUMBER(Project_Details[[#This Row],[Capitalisation Year]]),"NA") -> NA | AE22: 0.2918348559 | AF22: 0.4901124462 | AG22: =MAX(ABS(Project_Details[[#This Row],[NomIncur2021]:[NomIncur2027]]))>0 -> FALSE | AH22: =MAX(ABS(Project_Details[[#This Row],[RealIncur2021]:[RealIncur2027]]))>0 -> TRUE | AI22: =OR(AND(Project_Details[[#This Row],[DollarBasisImpliesNominal]],NOT(Project_Details[[#This Row],[DollarBasisImpliesReal2021]])), AND(NOT(Project_Details[[#This Row],[DollarBasisImpliesNominal]]),Project_Details[[#This Row],[DollarBasisImpliesReal2021]]),AND(NOT(Project_Details[[#This Row],[DollarBasisImpliesNominal]]),NOT(Project_Details[[#This Row],[DollarBasisImpliesReal2021]]))) -> TRUE | AJ22: =IFERROR(OR(AND(Project_Details[[#This Row],[DollarBasisImpliesNominal]],VLOOKUP(Project_Details[[#This Row],[ProjectID]],ProjectData[],MATCH("RepexDollarsBasis",ProjectData[#Headers],0),FALSE)="Nominal"),AND(Project_Details[[#This Row],[DollarBasisImpliesReal2021]],VLOOKUP(Project_Details[[#This Row],[ProjectID]],ProjectData[],MATCH("RepexDollarsBasis",ProjectData[#Headers],0),FALSE)="Real2021"),Project_Details[[#This Row],[ProjectHasNoDollarBasis]]),FALSE) -> TRUE | AK22: =IF(Project_Details[[#This Row],[DollarBasisImpliesReal2021]],AND(ISNUMBER(Project_Details[[#This Row],[Labour Internal]]),ISNUMBER(Project_Details[[#This Row],[Labour External]])),"NA") -> TRUE | AL22: =IF(Project_Details[[#This Row],[DollarBasisImpliesNominal]],NOT(OR(ISNUMBER(Project_Details[[#This Row],[Labour Internal]]),ISNUMBER(Project_Details[[#This Row],[Labour External]]))),"NA") -> NA | AM22: =IF(AND(Project_Details[[#This Row],[NomIncur2021]]=0,Project_Details[[#This Row],[WIP]]<>0),2021,IF(AND(Project_Details[[#This Row],[NomIncur2022]]=0,Project_Details[[#This Row],[NomIncur2021]]<>0),2021,IF(AND(Project_Details[[#This Row],[NomIncur2023]]=0,Project_Details[[#This Row],[NomIncur2022]]<>0),2022,IF(AND(Project_Details[[#This Row],[NomIncur2024]]=0,Project_Details[[#This Row],[NomIncur2023]]<>0),2023,IF(AND(Project_Details[[#This Row],[NomIncur2025]]=0,Project_Details[[#This Row],[NomIncur2024]]<>0),2024,IF(AND(Project_Details[[#This Row],[NomIncur2026]]=0,Project_Details[[#This Row],[NomIncur2025]]<>0),2025,IF(AND(Project_Details[[#This Row],[NomIncur2027]]=0,Project_Details[[#This Row],[NomIncur2026]]<>0),2026,IF(Project_Details[[#This Row],[NomIncur2027]]<>0,2027,"")))))))) ->  | AO22: =IF(NOT(ISNUMBER(Project_Details[[#This Row],[Capitalisation Year]])), "NA", OR(Project_Details[[#This Row],[OverWrite_CashFlowAndCapitalisationYearAreOK]],(Project_Details[[#This Row],[LastYearOfNominalCashFlow]]=Project_Details[[#This Row],[Capitalisation Year]]))) -> NA | AP22: =NOT(AND(Project_Details[[#This Row],[DollarBasisImpliesNominal]],OR(ISNUMBER(Project_Details[[#This Row],[Labour Internal]]),ISNUMBER(Project_Details[[#This Row],[Labour External]])))) -> TRUE | AR22: =IF(LEFT(Project_Details[[#This Row],[RIN Asset Description]],17)="Power Transformer",IF((Project_Details[[#This Row],[ExpenditureAfter2021IsNotUsed]]=TRUE),FALSE,TRUE),"NA") -> NA | AU22: 6578.538744 | AV22: 8771.384992 | AW22: 11695.17999 | AX22: 13888.02624 | AY22: 17542.76998 | AZ22: =IFERROR(("None"=VLOOKUP(Project_Details[[#This Row],[ProjectID]],ProjectData[],MATCH("RepexDollarsBasis",ProjectData[#Headers],0),FALSE)),FALSE) -> FALSE | BA22: =IF(ISNUMBER(Project_Details[[#This Row],[Capitalisation Year]]),(Project_Details[[#This Row],[Capitalisation Year]]>=2016),"NA") -> NA | BB22: =(Project_Details[[#This Row],[ID]]=(ROW()-ProjectDetailsTableStartRow)) -> TRUE | BC22: =VLOOKUP(Project_Details[[#This Row],[ProjectID]],ProjectData[],MATCH("Specific Approved Project", ProjectData[#Headers],0),FALSE) -> FALSE
A23: 14 | B23: 7 | C23: =Project_Details[ID] -> 14 | D23: Metering | E23: Sec Sys - Metering | F23: =ISNUMBER(MATCH(Project_Details[[#This Row],[RIN Asset Description]],Lookup_RIN_AssetCategory,0)) -> TRUE | I23: 2 | J23: 2 | K23: 4 | L23: 4 | M23: 5 | X23: 166.7988222 | Y23: 216.3102631 | Z23: 274.8801634 | AA23: 341.2619096 | AB23: 413.2093154 | AD23: =IF((VLOOKUP(Project_Details[[#This Row],[ProjectID]],ProjectData[],MATCH("Capitalisation",ProjectData[#Headers],0),FALSE)="Project Close"),ISNUMBER(Project_Details[[#This Row],[Capitalisation Year]]),"NA") -> NA | AE23: 0.2918348559 | AF23: 0.5530924848 | AG23: =MAX(ABS(Project_Details[[#This Row],[NomIncur2021]:[NomIncur2027]]))>0 -> FALSE | AH23: =MAX(ABS(Project_Details[[#This Row],[RealIncur2021]:[RealIncur2027]]))>0 -> TRUE | AI23: =OR(AND(Project_Details[[#This Row],[DollarBasisImpliesNominal]],NOT(Project_Details[[#This Row],[DollarBasisImpliesReal2021]])), AND(NOT(Project_Details[[#This Row],[DollarBasisImpliesNominal]]),Project_Details[[#This Row],[DollarBasisImpliesReal2021]]),AND(NOT(Project_Details[[#This Row],[DollarBasisImpliesNominal]]),NOT(Project_Details[[#This Row],[DollarBasisImpliesReal2021]]))) -> TRUE | AJ23: =IFERROR(OR(AND(Project_Details[[#This Row],[DollarBasisImpliesNominal]],VLOOKUP(Project_Details[[#This Row],[ProjectID]],ProjectData[],MATCH("RepexDollarsBasis",ProjectData[#Headers],0),FALSE)="Nominal"),AND(Project_Details[[#This Row],[DollarBasisImpliesReal2021]],VLOOKUP(Project_Details[[#This Row],[ProjectID]],ProjectData[],MATCH("RepexDollarsBasis",ProjectData[#Headers],0),FALSE)="Real2021"),Project_Details[[#This Row],[ProjectHasNoDollarBasis]]),FALSE) -> TRUE | AK23: =IF(Project_Details[[#This Row],[DollarBasisImpliesReal2021]],AND(ISNUMBER(Project_Details[[#This Row],[Labour Internal]]),ISNUMBER(Project_Details[[#This Row],[Labour External]])),"NA") -> TRUE | AL23: =IF(Project_Details[[#This Row],[DollarBasisImpliesNominal]],NOT(OR(ISNUMBER(Project_Details[[#This Row],[Labour Internal]]),ISNUMBER(Project_Details[[#This Row],[Labour External]]))),"NA") -> NA | AM23: =IF(AND(Project_Details[[#This Row],[NomIncur2021]]=0,Project_Details[[#This Row],[WIP]]<>0),2021,IF(AND(Project_Details[[#This Row],[NomIncur2022]]=0,Project_Details[[#This Row],[NomIncur2021]]<>0),2021,IF(AND(Project_Details[[#This Row],[NomIncur2023]]=0,Project_Details[[#This Row],[NomIncur2022]]<>0),2022,IF(AND(Project_Details[[#This Row],[NomIncur2024]]=0,Project_Details[[#This Row],[NomIncur2023]]<>0),2023,IF(AND(Project_Details[[#This Row],[NomIncur2025]]=0,Project_Details[[#This Row],[NomIncur2024]]<>0),2024,IF(AND(Project_Details[[#This Row],[NomIncur2026]]=0,Project_Details[[#This Row],[NomIncur2025]]<>0),2025,IF(AND(Project_Details[[#This Row],[NomIncur2027]]=0,Project_Details[[#This Row],[NomIncur2026]]<>0),2026,IF(Project_Details[[#This Row],[NomIncur2027]]<>0,2027,"")))))))) ->  | AO23: =IF(NOT(ISNUMBER(Project_Details[[#This Row],[Capitalisation Year]])), "NA", OR(Project_Details[[#This Row],[OverWrite_CashFlowAndCapitalisationYearAreOK]],(Project_Details[[#This Row],[LastYearOfNominalCashFlow]]=Project_Details[[#This Row],[Capitalisation Year]]))) -> NA | AP23: =NOT(AND(Project_Details[[#This Row],[DollarBasisImpliesNominal]],OR(ISNUMBER(Project_Details[[#This Row],[Labour Internal]]),ISNUMBER(Project_Details[[#This Row],[Labour External]])))) -> TRUE | AR23: =IF(LEFT(Project_Details[[#This Row],[RIN Asset Description]],17)="Power Transformer",IF((Project_Details[[#This Row],[ExpenditureAfter2021IsNotUsed]]=TRUE),FALSE,TRUE),"NA") -> NA | AU23: 130.04 | AV23: 130.04 | AW23: 260.08 | AX23: 260.08 | AY23: 325.1 | AZ23: =IFERROR(("None"=VLOOKUP(Project_Details[[#This Row],[ProjectID]],ProjectData[],MATCH("RepexDollarsBasis",ProjectData[#Headers],0),FALSE)),FALSE) -> FALSE | BA23: =IF(ISNUMBER(Project_Details[[#This Row],[Capitalisation Year]]),(Project_Details[[#This Row],[Capitalisation Year]]>=2016),"NA") -> NA | BB23: =(Project_Details[[#This Row],[ID]]=(ROW()-ProjectDetailsTableStartRow)) -> TRUE | BC23: =VLOOKUP(Project_Details[[#This Row],[ProjectID]],ProjectData[],MATCH("Specific Approved Project", ProjectData[#Headers],0),FALSE) -> FALSE
A24: 15 | B24: 8 | C24: =Project_Details[ID] -> 15 | D24: Trend Based Model - Substation Buildings | E24: Other - Buildings | F24: =ISNUMBER(MATCH(Project_Details[[#This Row],[RIN Asset Description]],Lookup_RIN_AssetCategory,0)) -> TRUE | I24: 3 | J24: 2 | K24: 2 | L24: 2 | M24: 1 | X24: 1861.9 | Y24: 1604.2 | Z24: 1346.5 | AA24: 1088.8 | AB24: 831.1 | AD24: =IF((VLOOKUP(Project_Details[[#This Row],[ProjectID]],ProjectData[],MATCH("Capitalisation",ProjectData[#Headers],0),FALSE)="Project Close"),ISNUMBER(Project_Details[[#This Row],[Capitalisation Year]]),"NA") -> NA | AE24: 0.2918348559 | AF24: 0.3204834959 | AG24: =MAX(ABS(Project_Details[[#This Row],[NomIncur2021]:[NomIncur2027]]))>0 -> FALSE | AH24: =MAX(ABS(Project_Details[[#This Row],[RealIncur2021]:[RealIncur2027]]))>0 -> TRUE | AI24: =OR(AND(Project_Details[[#This Row],[DollarBasisImpliesNominal]],NOT(Project_Details[[#This Row],[DollarBasisImpliesReal2021]])), AND(NOT(Project_Details[[#This Row],[DollarBasisImpliesNominal]]),Project_Details[[#This Row],[DollarBasisImpliesReal2021]]),AND(NOT(Project_Details[[#This Row],[DollarBasisImpliesNominal]]),NOT(Project_Details[[#This Row],[DollarBasisImpliesReal2021]]))) -> TRUE | AJ24: =IFERROR(OR(AND(Project_Details[[#This Row],[DollarBasisImpliesNominal]],VLOOKUP(Project_Details[[#This Row],[ProjectID]],ProjectData[],MATCH("RepexDollarsBasis",ProjectData[#Headers],0),FALSE)="Nominal"),AND(Project_Details[[#This Row],[DollarBasisImpliesReal2021]],VLOOKUP(Project_Details[[#This Row],[ProjectID]],ProjectData[],MATCH("RepexDollarsBasis",ProjectData[#Headers],0),FALSE)="Real2021"),Project_Details[[#This Row],[ProjectHasNoDollarBasis]]),FALSE) -> TRUE | AK24: =IF(Project_Details[[#This Row],[DollarBasisImpliesReal2021]],AND(ISNUMBER(Project_Details[[#This Row],[Labour Internal]]),ISNUMBER(Project_Details[[#This Row],[Labour External]])),"NA") -> TRUE | AL24: =IF(Project_Details[[#This Row],[DollarBasisImpliesNominal]],NOT(OR(ISNUMBER(Project_Details[[#This Row],[Labour Internal]]),ISNUMBER(Project_Details[[#This Row],[Labour External]]))),"NA") -> NA | AM24: =IF(AND(Project_Details[[#This Row],[NomIncur2021]]=0,Project_Details[[#This Row],[WIP]]<>0),2021,IF(AND(Project_Details[[#This Row],[NomIncur2022]]=0,Project_Details[[#This Row],[NomIncur2021]]<>0),2021,IF(AND(Project_Details[[#This Row],[NomIncur2023]]=0,Project_Details[[#This Row],[NomIncur2022]]<>0),2022,IF(AND(Project_Details[[#This Row],[NomIncur2024]]=0,Project_Details[[#This Row],[NomIncur2023]]<>0),2023,IF(AND(Project_Details[[#This Row],[NomIncur2025]]=0,Project_Details[[#This Row],[NomIncur2024]]<>0),2024,IF(AND(Project_Details[[#This Row],[NomIncur2026]]=0,Project_Details[[#This Row],[NomIncur2025]]<>0),2025,IF(AND(Project_Details[[#This Row],[NomIncur2027]]=0,Project_Details[[#This Row],[NomIncur2026]]<>0),2026,IF(Project_Details[[#This Row],[NomIncur2027]]<>0,2027,"")))))))) ->  | AO24: =IF(NOT(ISNUMBER(Project_Details[[#This Row],[Capitalisation Year]])), "NA", OR(Project_Details[[#This Row],[OverWrite_CashFlowAndCapitalisationYearAreOK]],(Project_Details[[#This Row],[LastYearOfNominalCashFlow]]=Project_Details[[#This Row],[Capitalisation Year]]))) -> NA | AP24: =NOT(AND(Project_Details[[#This Row],[DollarBasisImpliesNominal]],OR(ISNUMBER(Project_Details[[#This Row],[Labour Internal]]),ISNUMBER(Project_Details[[#This Row],[Labour External]])))) -> TRUE | AR24: =IF(LEFT(Project_Details[[#This Row],[RIN Asset Description]],17)="Power Transformer",IF((Project_Details[[#This Row],[ExpenditureAfter2021IsNotUsed]]=TRUE),FALSE,TRUE),"NA") -> NA | AZ24: =IFERROR(("None"=VLOOKUP(Project_Details[[#This Row],[ProjectID]],ProjectData[],MATCH("RepexDollarsBasis",ProjectData[#Headers],0),FALSE)),FALSE) -> FALSE | BA24: =IF(ISNUMBER(Project_Details[[#This Row],[Capitalisation Year]]),(Project_Details[[#This Row],[Capitalisation Year]]>=2016),"NA") -> NA | BB24: =(Project_Details[[#This Row],[ID]]=(ROW()-ProjectDetailsTableStartRow)) -> TRUE | BC24: =VLOOKUP(Project_Details[[#This Row],[ProjectID]],ProjectData[],MATCH("Specific Approved Project", ProjectData[#Headers],0),FALSE) -> FALSE
A25: 16 | B25: 9 | C25: =Project_Details[ID] -> 16 | D25: Trend Based Model - Other | E25: Balancing Item - Other and Security and Compliance | F25: =ISNUMBER(MATCH(Project_Details[[#This Row],[RIN Asset Description]],Lookup_RIN_AssetCategory,0)) -> TRUE | N25: 0 | X25: 2819.291033 | Y25: 2819.291033 | Z25: 2819.291033 | AA25: 2819.291033 | AB25: 2819.291033 | AD25: =IF((VLOOKUP(Project_Details[[#This Row],[ProjectID]],ProjectData[],MATCH("Capitalisation",ProjectData[#Headers],0),FALSE)="Project Close"),ISNUMBER(Project_Details[[#This Row],[Capitalisation Year]]),"NA") -> NA | AE25: 0.2 | AF25: 0 | AG25: =MAX(ABS(Project_Details[[#This Row],[NomIncur2021]:[NomIncur2027]]))>0 -> FALSE | AH25: =MAX(ABS(Project_Details[[#This Row],[RealIncur2021]:[RealIncur2027]]))>0 -> TRUE | AI25: =OR(AND(Project_Details[[#This Row],[DollarBasisImpliesNominal]],NOT(Project_Details[[#This Row],[DollarBasisImpliesReal2021]])), AND(NOT(Project_Details[[#This Row],[DollarBasisImpliesNominal]]),Project_Details[[#This Row],[DollarBasisImpliesReal2021]]),AND(NOT(Project_Details[[#This Row],[DollarBasisImpliesNominal]]),NOT(Project_Details[[#This Row],[DollarBasisImpliesReal2021]]))) -> TRUE | AJ25: =IFERROR(OR(AND(Project_Details[[#This Row],[DollarBasisImpliesNominal]],VLOOKUP(Project_Details[[#This Row],[ProjectID]],ProjectData[],MATCH("RepexDollarsBasis",ProjectData[#Headers],0),FALSE)="Nominal"),AND(Project_Details[[#This Row],[DollarBasisImpliesReal2021]],VLOOKUP(Project_Details[[#This Row],[ProjectID]],ProjectData[],MATCH("RepexDollarsBasis",ProjectData[#Headers],0),FALSE)="Real2021"),Project_Details[[#This Row],[ProjectHasNoDollarBasis]]),FALSE) -> TRUE | AK25: =IF(Project_Details[[#This Row],[DollarBasisImpliesReal2021]],AND(ISNUMBER(Project_Details[[#This Row],[Labour Internal]]),ISNUMBER(Project_Details[[#This Row],[Labour External]])),"NA") -> TRUE | AL25: =IF(Project_Details[[#This Row],[DollarBasisImpliesNominal]],NOT(OR(ISNUMBER(Project_Details[[#This Row],[Labour Internal]]),ISNUMBER(Project_Details[[#This Row],[Labour External]]))),"NA") -> NA | AM25: =IF(AND(Project_Details[[#This Row],[NomIncur2021]]=0,Project_Details[[#This Row],[WIP]]<>0),2021,IF(AND(Project_Details[[#This Row],[NomIncur2022]]=0,Project_Details[[#This Row],[NomIncur2021]]<>0),2021,IF(AND(Project_Details[[#This Row],[NomIncur2023]]=0,Project_Details[[#This Row],[NomIncur2022]]<>0),2022,IF(AND(Project_Details[[#This Row],[NomIncur2024]]=0,Project_Details[[#This Row],[NomIncur2023]]<>0),2023,IF(AND(Project_Details[[#This Row],[NomIncur2025]]=0,Project_Details[[#This Row],[NomIncur2024]]<>0),2024,IF(AND(Project_Details[[#This Row],[NomIncur2026]]=0,Project_Details[[#This Row],[NomIncur2025]]<>0),2025,IF(AND(Project_Details[[#This Row],[NomIncur2027]]=0,Project_Details[[#This Row],[NomIncur2026]]<>0),2026,IF(Project_Details[[#This Row],[NomIncur2027]]<>0,2027,"")))))))) ->  | AO25: =IF(NOT(ISNUMBER(Project_Details[[#This Row],[Capitalisation Year]])), "NA", OR(Project_Details[[#This Row],[OverWrite_CashFlowAndCapitalisationYearAreOK]],(Project_Details[[#This Row],[LastYearOfNominalCashFlow]]=Project_Details[[#This Row],[Capitalisation Year]]))) -> NA | AP25: =NOT(AND(Project_Details[[#This Row],[DollarBasisImpliesNominal]],OR(ISNUMBER(Project_Details[[#This Row],[Labour Internal]]),ISNUMBER(Project_Details[[#This Row],[Labour External]])))) -> TRUE | AR25: =IF(LEFT(Project_Details[[#This Row],[RIN Asset Description]],17)="Power Transformer",IF((Project_Details[[#This Row],[ExpenditureAfter2021IsNotUsed]]=TRUE),FALSE,TRUE),"NA") -> NA | AZ25: =IFERROR(("None"=VLOOKUP(Project_Details[[#This Row],[ProjectID]],ProjectData[],MATCH("RepexDollarsBasis",ProjectData[#Headers],0),FALSE)),FALSE) -> FALSE | BA25: =IF(ISNUMBER(Project_Details[[#This Row],[Capitalisation Year]]),(Project_Details[[#This Row],[Capitalisation Year]]>=2016),"NA") -> NA | BB25: =(Project_Details[[#This Row],[ID]]=(ROW()-ProjectDetailsTableStartRow)) -> TRUE | BC25: =VLOOKUP(Project_Details[[#This Row],[ProjectID]],ProjectData[],MATCH("Specific Approved Project", ProjectData[#Headers],0),FALSE) -> FALSE
A26: 17 | B26: 10 | C26: =Project_Details[ID] -> 17 | D26: Trend Based Model - Security and Compliance | E26: Balancing Item - Other and Security and Compliance | F26: =ISNUMBER(MATCH(Project_Details[[#This Row],[RIN Asset Description]],Lookup_RIN_AssetCategory,0)) -> TRUE | N26: 0 | X26: 2834.487277 | Y26: 2834.487277 | Z26: 2834.487277 | AA26: 2834.487277 | AB26: 2834.487277 | AD26: =IF((VLOOKUP(Project_Details[[#This Row],[ProjectID]],ProjectData[],MATCH("Capitalisation",ProjectData[#Headers],0),FALSE)="Project Close"),ISNUMBER(Project_Details[[#This Row],[Capitalisation Year]]),"NA") -> NA | AE26: 0.3 | AF26: 0 | AG26: =MAX(ABS(Project_Details[[#This Row],[NomIncur2021]:[NomIncur2027]]))>0 -> FALSE | AH26: =MAX(ABS(Project_Details[[#This Row],[RealIncur2021]:[RealIncur2027]]))>0 -> TRUE | AI26: =OR(AND(Project_Details[[#This Row],[DollarBasisImpliesNominal]],NOT(Project_Details[[#This Row],[DollarBasisImpliesReal2021]])), AND(NOT(Project_Details[[#This Row],[DollarBasisImpliesNominal]]),Project_Details[[#This Row],[DollarBasisImpliesReal2021]]),AND(NOT(Project_Details[[#This Row],[DollarBasisImpliesNominal]]),NOT(Project_Details[[#This Row],[DollarBasisImpliesReal2021]]))) -> TRUE | AJ26: =IFERROR(OR(AND(Project_Details[[#This Row],[DollarBasisImpliesNominal]],VLOOKUP(Project_Details[[#This Row],[ProjectID]],ProjectData[],MATCH("RepexDollarsBasis",ProjectData[#Headers],0),FALSE)="Nominal"),AND(Project_Details[[#This Row],[DollarBasisImpliesReal2021]],VLOOKUP(Project_Details[[#This Row],[ProjectID]],ProjectData[],MATCH("RepexDollarsBasis",ProjectData[#Headers],0),FALSE)="Real2021"),Project_Details[[#This Row],[ProjectHasNoDollarBasis]]),FALSE) -> TRUE | AK26: =IF(Project_Details[[#This Row],[DollarBasisImpliesReal2021]],AND(ISNUMBER(Project_Details[[#This Row],[Labour Internal]]),ISNUMBER(Project_Details[[#This Row],[Labour External]])),"NA") -> TRUE | AL26: =IF(Project_Details[[#This Row],[DollarBasisImpliesNominal]],NOT(OR(ISNUMBER(Project_Details[[#This Row],[Labour Internal]]),ISNUMBER(Project_Details[[#This Row],[Labour External]]))),"NA") -> NA | AM26: =IF(AND(Project_Details[[#This Row],[NomIncur2021]]=0,Project_Details[[#This Row],[WIP]]<>0),2021,IF(AND(Project_Details[[#This Row],[NomIncur2022]]=0,Project_Details[[#This Row],[NomIncur2021]]<>0),2021,IF(AND(Project_Details[[#This Row],[NomIncur2023]]=0,Project_Details[[#This Row],[NomIncur2022]]<>0),2022,IF(AND(Project_Details[[#This Row],[NomIncur2024]]=0,Project_Details[[#This Row],[NomIncur2023]]<>0),2023,IF(AND(Project_Details[[#This Row],[NomIncur2025]]=0,Project_Details[[#This Row],[NomIncur2024]]<>0),2024,IF(AND(Project_Details[[#This Row],[NomIncur2026]]=0,Project_Details[[#This Row],[NomIncur2025]]<>0),2025,IF(AND(Project_Details[[#This Row],[NomIncur2027]]=0,Project_Details[[#This Row],[NomIncur2026]]<>0),2026,IF(Project_Details[[#This Row],[NomIncur2027]]<>0,2027,"")))))))) ->  | AO26: =IF(NOT(ISNUMBER(Project_Details[[#This Row],[Capitalisation Year]])), "NA", OR(Project_Details[[#This Row],[OverWrite_CashFlowAndCapitalisationYearAreOK]],(Project_Details[[#This Row],[LastYearOfNominalCashFlow]]=Project_Details[[#This Row],[Capitalisation Year]]))) -> NA | AP26: =NOT(AND(Project_Details[[#This Row],[DollarBasisImpliesNominal]],OR(ISNUMBER(Project_Details[[#This Row],[Labour Internal]]),ISNUMBER(Project_Details[[#This Row],[Labour External]])))) -> TRUE | AR26: =IF(LEFT(Project_Details[[#This Row],[RIN Asset Description]],17)="Power Transformer",IF((Project_Details[[#This Row],[ExpenditureAfter2021IsNotUsed]]=TRUE),FALSE,TRUE),"NA") -> NA | AZ26: =IFERROR(("None"=VLOOKUP(Project_Details[[#This Row],[ProjectID]],ProjectData[],MATCH("RepexDollarsBasis",ProjectData[#Headers],0),FALSE)),FALSE) -> FALSE | BA26: =IF(ISNUMBER(Project_Details[[#This Row],[Capitalisation Year]]),(Project_Details[[#This Row],[Capitalisation Year]]>=2016),"NA") -> NA | BB26: =(Project_Details[[#This Row],[ID]]=(ROW()-ProjectDetailsTableStartRow)) -> TRUE | BC26: =VLOOKUP(Project_Details[[#This Row],[ProjectID]],ProjectData[],MATCH("Specific Approved Project", ProjectData[#Headers],0),FALSE) -> FALSE
A27: 18 | B27: 11 | C27: =Project_Details[ID] -> 18 | D27: CP.02584 - H018 - Tarong - T2, T3 | E27: Power Transformer - > 220 kV & < = 275 kV ; > 100 MVA | F27: =ISNUMBER(MATCH(Project_Details[[#This Row],[RIN Asset Description]],Lookup_RIN_AssetCategory,0)) -> TRUE | G27: 0 | H27: 0 | I27: 0 | J27: 2 | K27: 0 | L27: 0 | M27: 0 | N27: 94.3226 | V27: 340.0059515 | W27: 4605.688321 | X27: 4605.688321 | Y27: 4618.306645 | AC27: 2024 | AD27: =IF((VLOOKUP(Project_Details[[#This Row],[ProjectID]],ProjectData[],MATCH("Capitalisation",ProjectData[#Headers],0),FALSE)="Project Close"),ISNUMBER(Project_Details[[#This Row],[Capitalisation Year]]),"NA") -> TRUE | AE27: 0.11 | AF27: 0.21 | AG27: =MAX(ABS(Project_Details[[#This Row],[NomIncur2021]:[NomIncur2027]]))>0 -> FALSE | AH27: =MAX(ABS(Project_Details[[#This Row],[RealIncur2021]:[RealIncur2027]]))>0 -> TRUE | AI27: =OR(AND(Project_Details[[#This Row],[DollarBasisImpliesNominal]],NOT(Project_Details[[#This Row],[DollarBasisImpliesReal2021]])), AND(NOT(Project_Details[[#This Row],[DollarBasisImpliesNominal]]),Project_Details[[#This Row],[DollarBasisImpliesReal2021]]),AND(NOT(Project_Details[[#This Row],[DollarBasisImpliesNominal]]),NOT(Project_Details[[#This Row],[DollarBasisImpliesReal2021]]))) -> TRUE | AJ27: =IFERROR(OR(AND(Project_Details[[#This Row],[DollarBasisImpliesNominal]],VLOOKUP(Project_Details[[#This Row],[ProjectID]],ProjectData[],MATCH("RepexDollarsBasis",ProjectData[#Headers],0),FALSE)="Nominal"),AND(Project_Details[[#This Row],[DollarBasisImpliesReal2021]],VLOOKUP(Project_Details[[#This Row],[ProjectID]],ProjectData[],MATCH("RepexDollarsBasis",ProjectData[#Headers],0),FALSE)="Real2021"),Project_Details[[#This Row],[ProjectHasNoDollarBasis]]),FALSE) -> TRUE | AK27: =IF(Project_Details[[#This Row],[DollarBasisImpliesReal2021]],AND(ISNUMBER(Project_Details[[#This Row],[Labour Internal]]),ISNUMBER(Project_Details[[#This Row],[Labour External]])),"NA") -> TRUE | AL27: =IF(Project_Details[[#This Row],[DollarBasisImpliesNominal]],NOT(OR(ISNUMBER(Project_Details[[#This Row],[Labour Internal]]),ISNUMBER(Project_Details[[#This Row],[Labour External]]))),"NA") -> NA | AM27: =IF(AND(Project_Details[[#This Row],[NomIncur2021]]=0,Project_Details[[#This Row],[WIP]]<>0),2021,IF(AND(Project_Details[[#This Row],[NomIncur2022]]=0,Project_Details[[#This Row],[NomIncur2021]]<>0),2021,IF(AND(Project_Details[[#This Row],[NomIncur2023]]=0,Project_Details[[#This Row],[NomIncur2022]]<>0),2022,IF(AND(Project_Details[[#This Row],[NomIncur2024]]=0,Project_Details[[#This Row],[NomIncur2023]]<>0),2023,IF(AND(Project_Details[[#This Row],[NomIncur2025]]=0,Project_Details[[#This Row],[NomIncur2024]]<>0),2024,IF(AND(Project_Details[[#This Row],[NomIncur2026]]=0,Project_Details[[#This Row],[NomIncur2025]]<>0),2025,IF(AND(Project_Details[[#This Row],[NomIncur2027]]=0,Project_Details[[#This Row],[NomIncur2026]]<>0),2026,IF(Project_Details[[#This Row],[NomIncur2027]]<>0,2027,"")))))))) -> 2021 | AN27: TRUE | AO27: =IF(NOT(ISNUMBER(Project_Details[[#This Row],[Capitalisation Year]])), "NA", OR(Project_Details[[#This Row],[OverWrite_CashFlowAndCapitalisationYearAreOK]],(Project_Details[[#This Row],[LastYearOfNominalCashFlow]]=Project_Details[[#This Row],[Capitalisation Year]]))) -> TRUE | AP27: =NOT(AND(Project_Details[[#This Row],[DollarBasisImpliesNominal]],OR(ISNUMBER(Project_Details[[#This Row],[Labour Internal]]),ISNUMBER(Project_Details[[#This Row],[Labour External]])))) -> TRUE | AR27: =IF(LEFT(Project_Details[[#This Row],[RIN Asset Description]],17)="Power Transformer",IF((Project_Details[[#This Row],[ExpenditureAfter2021IsNotUsed]]=TRUE),FALSE,TRUE),"NA") -> TRUE | AZ27: =IFERROR(("None"=VLOOKUP(Project_Details[[#This Row],[ProjectID]],ProjectData[],MATCH("RepexDollarsBasis",ProjectData[#Headers],0),FALSE)),FALSE) -> FALSE | BA27: =IF(ISNUMBER(Project_Details[[#This Row],[Capitalisation Year]]),(Project_Details[[#This Row],[Capitalisation Year]]>=2016),"NA") -> TRUE | BB27: =(Project_Details[[#This Row],[ID]]=(ROW()-ProjectDetailsTableStartRow)) -> TRUE | BC27: =VLOOKUP(Project_Details[[#This Row],[ProjectID]],ProjectData[],MATCH("Specific Approved Project", ProjectData[#Headers],0),FALSE) -> FALSE
A28: 19 | B28: 12 | C28: =Project_Details[ID] -> 19 | D28: CP.02370 - T084 Tully - Transformer 2 Replacement | E28: Power Transformer - > 66 kV & < = 132 kV ; < = 30 MVA | F28: =ISNUMBER(MATCH(Project_Details[[#This Row],[RIN Asset Description]],Lookup_RIN_AssetCategory,0)) -> TRUE | G28: 0 | H28: 0 | I28: 0 | J28: 0 | K28: 1 | L28: 0 | M28: 0 | N28: 0 | O28: 0 | P28: 0 | Q28: 0 | R28: 0 | S28: 0 | T28: 0 | U28: 0 | X28: 1607 | Y28: 2687 | Z28: 903 | AA28: 0 | AB28: 0 | AC28: 2025 | AD28: =IF((VLOOKUP(Project_Details[[#This Row],[ProjectID]],ProjectData[],MATCH("Capitalisation",ProjectData[#Headers],0),FALSE)="Project Close"),ISNUMBER(Project_Details[[#This Row],[Capitalisation Year]]),"NA") -> TRUE | AE28: 0.18 | AF28: 0.27 | AG28: =MAX(ABS(Project_Details[[#This Row],[NomIncur2021]:[NomIncur2027]]))>0 -> FALSE | AH28: =MAX(ABS(Project_Details[[#This Row],[RealIncur2021]:[RealIncur2027]]))>0 -> TRUE | AI28: =OR(AND(Project_Details[[#This Row],[DollarBasisImpliesNominal]],NOT(Project_Details[[#This Row],[DollarBasisImpliesReal2021]])), AND(NOT(Project_Details[[#This Row],[DollarBasisImpliesNominal]]),Project_Details[[#This Row],[DollarBasisImpliesReal2021]]),AND(NOT(Project_Details[[#This Row],[DollarBasisImpliesNominal]]),NOT(Project_Details[[#This Row],[DollarBasisImpliesReal2021]]))) -> TRUE | AJ28: =IFERROR(OR(AND(Project_Details[[#This Row],[DollarBasisImpliesNominal]],VLOOKUP(Project_Details[[#This Row],[ProjectID]],ProjectData[],MATCH("RepexDollarsBasis",ProjectData[#Headers],0),FALSE)="Nominal"),AND(Project_Details[[#This Row],[DollarBasisImpliesReal2021]],VLOOKUP(Project_Details[[#This Row],[ProjectID]],ProjectData[],MATCH("RepexDollarsBasis",ProjectData[#Headers],0),FALSE)="Real2021"),Project_Details[[#This Row],[ProjectHasNoDollarBasis]]),FALSE) -> TRUE | AK28: =IF(Project_Details[[#This Row],[DollarBasisImpliesReal2021]],AND(ISNUMBER(Project_Details[[#This Row],[Labour Internal]]),ISNUMBER(Project_Details[[#This Row],[Labour External]])),"NA") -> TRUE | AL28: =IF(Project_Details[[#This Row],[DollarBasisImpliesNominal]],NOT(OR(ISNUMBER(Project_Details[[#This Row],[Labour Internal]]),ISNUMBER(Project_Details[[#This Row],[Labour External]]))),"NA") -> NA | AM28: =IF(AND(Project_Details[[#This Row],[NomIncur2021]]=0,Project_Details[[#This Row],[WIP]]<>0),2021,IF(AND(Project_Details[[#This Row],[NomIncur2022]]=0,Project_Details[[#This Row],[NomIncur2021]]<>0),2021,IF(AND(Project_Details[[#This Row],[NomIncur2023]]=0,Project_Details[[#This Row],[NomIncur2022]]<>0),2022,IF(AND(Project_Details[[#This Row],[NomIncur2024]]=0,Project_Details[[#This Row],[NomIncur2023]]<>0),2023,IF(AND(Project_Details[[#This Row],[NomIncur2025]]=0,Project_Details[[#This Row],[NomIncur2024]]<>0),2024,IF(AND(Project_Details[[#This Row],[NomIncur2026]]=0,Project_Details[[#This Row],[NomIncur2025]]<>0),2025,IF(AND(Project_Details[[#This Row],[NomIncur2027]]=0,Project_Details[[#This Row],[NomIncur2026]]<>0),2026,IF(Project_Details[[#This Row],[NomIncur2027]]<>0,2027,"")))))))) ->  | AN28: TRUE | AO28: =IF(NOT(ISNUMBER(Project_Details[[#This Row],[Capitalisation Year]])), "NA", OR(Project_Details[[#This Row],[OverWrite_CashFlowAndCapitalisationYearAreOK]],(Project_Details[[#This Row],[LastYearOfNominalCashFlow]]=Project_Details[[#This Row],[Capitalisation Year]]))) -> TRUE | AP28: =NOT(AND(Project_Details[[#This Row],[DollarBasisImpliesNominal]],OR(ISNUMBER(Project_Details[[#This Row],[Labour Internal]]),ISNUMBER(Project_Details[[#This Row],[Labour External]])))) -> TRUE | AR28: =IF(LEFT(Project_Details[[#This Row],[RIN Asset Description]],17)="Power Transformer",IF((Project_Details[[#This Row],[ExpenditureAfter2021IsNotUsed]]=TRUE),FALSE,TRUE),"NA") -> TRUE | AZ28: =IFERROR(("None"=VLOOKUP(Project_Details[[#This Row],[ProjectID]],ProjectData[],MATCH("RepexDollarsBasis",ProjectData[#Headers],0),FALSE)),FALSE) -> FALSE | BA28: =IF(ISNUMBER(Project_Details[[#This Row],[Capitalisation Year]]),(Project_Details[[#This Row],[Capitalisation Year]]>=2016),"NA") -> TRUE | BB28: =(Project_Details[[#This Row],[ID]]=(ROW()-ProjectDetailsTableStartRow)) -> TRUE | BC28: =VLOOKUP(Project_Details[[#This Row],[ProjectID]],ProjectData[],MATCH("Specific Approved Project", ProjectData[#Headers],0),FALSE) -> FALSE
A29: 20 | B29: 13 | C29: =Project_Details[ID] -> 20 | D29: CP.02478 - H002 - South Pine, T5 | E29: Power Transformer - > 220 kV & < = 275 kV ; > 100 MVA - REFURBISHED | F29: =ISNUMBER(MATCH(Project_Details[[#This Row],[RIN Asset Description]],Lookup_RIN_AssetCategory,0)) -> TRUE | G29: 0 | H29: 0 | I29: 0 | J29: 0 | K29: 1 | L29: 0 | M29: 0 | N29: 0 | O29: 0 | P29: 0 | Q29: 0 | R29: 0 | S29: 0 | T29: 0 | U29: 0 | X29: 386 | Y29: 596 | Z29: 594 | AA29: 0 | AB29: 0 | AC29: 2025 | AD29: =IF((VLOOKUP(Project_Details[[#This Row],[ProjectID]],ProjectData[],MATCH("Capitalisation",ProjectData[#Headers],0),FALSE)="Project Close"),ISNUMBER(Project_Details[[#This Row],[Capitalisation Year]]),"NA") -> TRUE | AE29: 0.27 | AF29: 0.16 | AG29: =MAX(ABS(Project_Details[[#This Row],[NomIncur2021]:[NomIncur2027]]))>0 -> FALSE | AH29: =MAX(ABS(Project_Details[[#This Row],[RealIncur2021]:[RealIncur2027]]))>0 -> TRUE | AI29: =OR(AND(Project_Details[[#This Row],[DollarBasisImpliesNominal]],NOT(Project_Details[[#This Row],[DollarBasisImpliesReal2021]])), AND(NOT(Project_Details[[#This Row],[DollarBasisImpliesNominal]]),Project_Details[[#This Row],[DollarBasisImpliesReal2021]]),AND(NOT(Project_Details[[#This Row],[DollarBasisImpliesNominal]]),NOT(Project_Details[[#This Row],[DollarBasisImpliesReal2021]]))) -> TRUE | AJ29: =IFERROR(OR(AND(Project_Details[[#This Row],[DollarBasisImpliesNominal]],VLOOKUP(Project_Details[[#This Row],[ProjectID]],ProjectData[],MATCH("RepexDollarsBasis",ProjectData[#Headers],0),FALSE)="Nominal"),AND(Project_Details[[#This Row],[DollarBasisImpliesReal2021]],VLOOKUP(Project_Details[[#This Row],[ProjectID]],ProjectData[],MATCH("RepexDollarsBasis",ProjectData[#Headers],0),FALSE)="Real2021"),Project_Details[[#This Row],[ProjectHasNoDollarBasis]]),FALSE) -> TRUE | AK29: =IF(Project_Details[[#This Row],[DollarBasisImpliesReal2021]],AND(ISNUMBER(Project_Details[[#This Row],[Labour Internal]]),ISNUMBER(Project_Details[[#This Row],[Labour External]])),"NA") -> TRUE | AL29: =IF(Project_Details[[#This Row],[DollarBasisImpliesNominal]],NOT(OR(ISNUMBER(Project_Details[[#This Row],[Labour Internal]]),ISNUMBER(Project_Details[[#This Row],[Labour External]]))),"NA") -> NA | AM29: =IF(AND(Project_Details[[#This Row],[NomIncur2021]]=0,Project_Details[[#This Row],[WIP]]<>0),2021,IF(AND(Project_Details[[#This Row],[NomIncur2022]]=0,Project_Details[[#This Row],[NomIncur2021]]<>0),2021,IF(AND(Project_Details[[#This Row],[NomIncur2023]]=0,Project_Details[[#This Row],[NomIncur2022]]<>0),2022,IF(AND(Project_Details[[#This Row],[NomIncur2024]]=0,Project_Details[[#This Row],[NomIncur2023]]<>0),2023,IF(AND(Project_Details[[#This Row],[NomIncur2025]]=0,Project_Details[[#This Row],[NomIncur2024]]<>0),2024,IF(AND(Project_Details[[#This Row],[NomIncur2026]]=0,Project_Details[[#This Row],[NomIncur2025]]<>0),2025,IF(AND(Project_Details[[#This Row],[NomIncur2027]]=0,Project_Details[[#This Row],[NomIncur2026]]<>0),2026,IF(Project_Details[[#This Row],[NomIncur2027]]<>0,2027,"")))))))) ->  | AN29: TRUE | AO29: =IF(NOT(ISNUMBER(Project_Details[[#This Row],[Capitalisation Year]])), "NA", OR(Project_Details[[#This Row],[OverWrite_CashFlowAndCapitalisationYearAreOK]],(Project_Details[[#This Row],[LastYearOfNominalCashFlow]]=Project_Details[[#This Row],[Capitalisation Year]]))) -> TRUE | AP29: =NOT(AND(Project_Details[[#This Row],[DollarBasisImpliesNominal]],OR(ISNUMBER(Project_Details[[#This Row],[Labour Internal]]),ISNUMBER(Project_Details[[#This Row],[Labour External]])))) -> TRUE | AR29: =IF(LEFT(Project_Details[[#This Row],[RIN Asset Description]],17)="Power Transformer",IF((Project_Details[[#This Row],[ExpenditureAfter2021IsNotUsed]]=TRUE),FALSE,TRUE),"NA") -> TRUE | AZ29: =IFERROR(("None"=VLOOKUP(Project_Details[[#This Row],[ProjectID]],ProjectData[],MATCH("RepexDollarsBasis",ProjectData[#Headers],0),FALSE)),FALSE) -> FALSE | BA29: =IF(ISNUMBER(Project_Details[[#This Row],[Capitalisation Year]]),(Project_Details[[#This Row],[Capitalisation Year]]>=2016),"NA") -> TRUE | BB29: =(Project_Details[[#This Row],[ID]]=(ROW()-ProjectDetailsTableStartRow)) -> TRUE | BC29: =VLOOKUP(Project_Details[[#This Row],[ProjectID]],ProjectData[],MATCH("Specific Approved Project", ProjectData[#Headers],0),FALSE) -> FALSE
A30: 21 | B30: 14 | C30: =Project_Details[ID] -> 21 | D30: C55.1200 - H016 - Rocklea - T1 | E30: Power Transformer - > 220 kV & < = 275 kV ; > 100 MVA | F30: =ISNUMBER(MATCH(Project_Details[[#This Row],[RIN Asset Description]],Lookup_RIN_AssetCategory,0)) -> TRUE | G30: 0 | H30: 0 | I30: 0 | J30: 0 | K30: 0 | L30: 0 | M30: 0 | N30: 0 | O30: 0 | P30: 0 | Q30: 0 | R30: 0 | S30: 0 | T30: 0 | U30: 10 | V30: 0 | W30: 0 | X30: 0 | Y30: 0 | Z30: 0 | AA30: 0 | AB30: 0 | AC30: 2029 | AD30: =IF((VLOOKUP(Project_Details[[#This Row],[ProjectID]],ProjectData[],MATCH("Capitalisation",ProjectData[#Headers],0),FALSE)="Project Close"),ISNUMBER(Project_Details[[#This Row],[Capitalisation Year]]),"NA") -> TRUE | AG30: =MAX(ABS(Project_Details[[#This Row],[NomIncur2021]:[NomIncur2027]]))>0 -> TRUE | AH30: =MAX(ABS(Project_Details[[#This Row],[RealIncur2021]:[RealIncur2027]]))>0 -> FALSE | AI30: =OR(AND(Project_Details[[#This Row],[DollarBasisImpliesNominal]],NOT(Project_Details[[#This Row],[DollarBasisImpliesReal2021]])), AND(NOT(Project_Details[[#This Row],[DollarBasisImpliesNominal]]),Project_Details[[#This Row],[DollarBasisImpliesReal2021]]),AND(NOT(Project_Details[[#This Row],[DollarBasisImpliesNominal]]),NOT(Project_Details[[#This Row],[DollarBasisImpliesReal2021]]))) -> TRUE | AJ30: =IFERROR(OR(AND(Project_Details[[#This Row],[DollarBasisImpliesNominal]],VLOOKUP(Project_Details[[#This Row],[ProjectID]],ProjectData[],MATCH("RepexDollarsBasis",ProjectData[#Headers],0),FALSE)="Nominal"),AND(Project_Details[[#This Row],[DollarBasisImpliesReal2021]],VLOOKUP(Project_Details[[#This Row],[ProjectID]],ProjectData[],MATCH("RepexDollarsBasis",ProjectData[#Headers],0),FALSE)="Real2021"),Project_Details[[#This Row],[ProjectHasNoDollarBasis]]),FALSE) -> TRUE | AK30: =IF(Project_Details[[#This Row],[DollarBasisImpliesReal2021]],AND(ISNUMBER(Project_Details[[#This Row],[Labour Internal]]),ISNUMBER(Project_Details[[#This Row],[Labour External]])),"NA") -> NA | AL30: =IF(Project_Details[[#This Row],[DollarBasisImpliesNominal]],NOT(OR(ISNUMBER(Project_Details[[#This Row],[Labour Internal]]),ISNUMBER(Project_Details[[#This Row],[Labour External]]))),"NA") -> TRUE | AM30: =IF(AND(Project_Details[[#This Row],[NomIncur2021]]=0,Project_Details[[#This Row],[WIP]]<>0),2021,IF(AND(Project_Details[[#This Row],[NomIncur2022]]=0,Project_Details[[#This Row],[NomIncur2021]]<>0),2021,IF(AND(Project_Details[[#This Row],[NomIncur2023]]=0,Project_Details[[#This Row],[NomIncur2022]]<>0),2022,IF(AND(Project_Details[[#This Row],[NomIncur2024]]=0,Project_Details[[#This Row],[NomIncur2023]]<>0),2023,IF(AND(Project_Details[[#This Row],[NomIncur2025]]=0,Project_Details[[#This Row],[NomIncur2024]]<>0),2024,IF(AND(Project_Details[[#This Row],[NomIncur2026]]=0,Project_Details[[#This Row],[NomIncur2025]]<>0),2025,IF(AND(Project_Details[[#This Row],[NomIncur2027]]=0,Project_Details[[#This Row],[NomIncur2026]]<>0),2026,IF(Project_Details[[#This Row],[NomIncur2027]]<>0,2027,"")))))))) -> 2027 | AN30: TRUE | AO30: =IF(NOT(ISNUMBER(Project_Details[[#This Row],[Capitalisation Year]])), "NA", OR(Project_Details[[#This Row],[OverWrite_CashFlowAndCapitalisationYearAreOK]],(Project_Details[[#This Row],[LastYearOfNominalCashFlow]]=Project_Details[[#This Row],[Capitalisation Year]]))) -> TRUE | AP30: =NOT(AND(Project_Details[[#This Row],[DollarBasisImpliesNominal]],OR(ISNUMBER(Project_Details[[#This Row],[Labour Internal]]),ISNUMBER(Project_Details[[#This Row],[Labour External]])))) -> TRUE | AR30: =IF(LEFT(Project_Details[[#This Row],[RIN Asset Description]],17)="Power Transformer",IF((Project_Details[[#This Row],[ExpenditureAfter2021IsNotUsed]]=TRUE),FALSE,TRUE),"NA") -> TRUE | AZ30: =IFERROR(("None"=VLOOKUP(Project_Details[[#This Row],[ProjectID]],ProjectData[],MATCH("RepexDollarsBasis",ProjectData[#Headers],0),FALSE)),FALSE) -> FALSE | BA30: =IF(ISNUMBER(Project_Details[[#This Row],[Capitalisation Year]]),(Project_Details[[#This Row],[Capitalisation Year]]>=2016),"NA") -> TRUE | BB30: =(Project_Details[[#This Row],[ID]]=(ROW()-ProjectDetailsTableStartRow)) -> TRUE | BC30: =VLOOKUP(Project_Details[[#This Row],[ProjectID]],ProjectData[],MATCH("Specific Approved Project", ProjectData[#Headers],0),FALSE) -> FALSE
A31: 22 | B31: 15 | C31: =Project_Details[ID] -> 22 | D31: CP.02360 - H011 - Nebo - T3, T4 | E31: Power Transformer - > 66 kV & < = 132 kV ; < = 30 MVA | F31: =ISNUMBER(MATCH(Project_Details[[#This Row],[RIN Asset Description]],Lookup_RIN_AssetCategory,0)) -> TRUE | G31: 0 | H31: 2 | I31: 0 | J31: 0 | K31: 0 | L31: 0 | M31: 0 | N31: 42.58821 | O31: 0 | P31: 0 | Q31: 0 | R31: 0 | S31: 0 | T31: 0 | U31: 0 | V31: 3628.572844 | W31: 1954.902405 | X31: 0 | Y31: 0 | Z31: 0 | AA31: 0 | AB31: 0 | AC31: 2022 | AD31: =IF((VLOOKUP(Project_Details[[#This Row],[ProjectID]],ProjectData[],MATCH("Capitalisation",ProjectData[#Headers],0),FALSE)="Project Close"),ISNUMBER(Project_Details[[#This Row],[Capitalisation Year]]),"NA") -> TRUE | AE31: 0.19 | AF31: 0.25 | AG31: =MAX(ABS(Project_Details[[#This Row],[NomIncur2021]:[NomIncur2027]]))>0 -> FALSE | AH31: =MAX(ABS(Project_Details[[#This Row],[RealIncur2021]:[RealIncur2027]]))>0 -> TRUE | AI31: =OR(AND(Project_Details[[#This Row],[DollarBasisImpliesNominal]],NOT(Project_Details[[#This Row],[DollarBasisImpliesReal2021]])), AND(NOT(Project_Details[[#This Row],[DollarBasisImpliesNominal]]),Project_Details[[#This Row],[DollarBasisImpliesReal2021]]),AND(NOT(Project_Details[[#This Row],[DollarBasisImpliesNominal]]),NOT(Project_Details[[#This Row],[DollarBasisImpliesReal2021]]))) -> TRUE | AJ31: =IFERROR(OR(AND(Project_Details[[#This Row],[DollarBasisImpliesNominal]],VLOOKUP(Project_Details[[#This Row],[ProjectID]],ProjectData[],MATCH("RepexDollarsBasis",ProjectData[#Headers],0),FALSE)="Nominal"),AND(Project_Details[[#This Row],[DollarBasisImpliesReal2021]],VLOOKUP(Project_Details[[#This Row],[ProjectID]],ProjectData[],MATCH("RepexDollarsBasis",ProjectData[#Headers],0),FALSE)="Real2021"),Project_Details[[#This Row],[ProjectHasNoDollarBasis]]),FALSE) -> TRUE | AK31: =IF(Project_Details[[#This Row],[DollarBasisImpliesReal2021]],AND(ISNUMBER(Project_Details[[#This Row],[Labour Internal]]),ISNUMBER(Project_Details[[#This Row],[Labour External]])),"NA") -> TRUE | AL31: =IF(Project_Details[[#This Row],[DollarBasisImpliesNominal]],NOT(OR(ISNUMBER(Project_Details[[#This Row],[Labour Internal]]),ISNUMBER(Project_Details[[#This Row],[Labour External]]))),"NA") -> NA | AM31: =IF(AND(Project_Details[[#This Row],[NomIncur2021]]=0,Project_Details[[#This Row],[WIP]]<>0),2021,IF(AND(Project_Details[[#This Row],[NomIncur2022]]=0,Project_Details[[#This Row],[NomIncur2021]]<>0),2021,IF(AND(Project_Details[[#This Row],[NomIncur2023]]=0,Project_Details[[#This Row],[NomIncur2022]]<>0),2022,IF(AND(Project_Details[[#This Row],[NomIncur2024]]=0,Project_Details[[#This Row],[NomIncur2023]]<>0),2023,IF(AND(Project_Details[[#This Row],[NomIncur2025]]=0,Project_Details[[#This Row],[NomIncur2024]]<>0),2024,IF(AND(Project_Details[[#This Row],[NomIncur2026]]=0,Project_Details[[#This Row],[NomIncur2025]]<>0),2025,IF(AND(Project_Details[[#This Row],[NomIncur2027]]=0,Project_Details[[#This Row],[NomIncur2026]]<>0),2026,IF(Project_Details[[#This Row],[NomIncur2027]]<>0,2027,"")))))))) -> 2021 | AN31: TRUE | AO31: =IF(NOT(ISNUMBER(Project_Details[[#This Row],[Capitalisation Year]])), "NA", OR(Project_Details[[#This Row],[OverWrite_CashFlowAndCapitalisationYearAreOK]],(Project_Details[[#This Row],[LastYearOfNominalCashFlow]]=Project_Details[[#This Row],[Capitalisation Year]]))) -> TRUE | AP31: =NOT(AND(Project_Details[[#This Row],[DollarBasisImpliesNominal]],OR(ISNUMBER(Project_Details[[#This Row],[Labour Internal]]),ISNUMBER(Project_Details[[#This Row],[Labour External]])))) -> TRUE | AR31: =IF(LEFT(Project_Details[[#This Row],[RIN Asset Description]],17)="Power Transformer",IF((Project_Details[[#This Row],[ExpenditureAfter2021IsNotUsed]]=TRUE),FALSE,TRUE),"NA") -> TRUE | AZ31: =IFERROR(("None"=VLOOKUP(Project_Details[[#This Row],[ProjectID]],ProjectData[],MATCH("RepexDollarsBasis",ProjectData[#Headers],0),FALSE)),FALSE) -> FALSE | BA31: =IF(ISNUMBER(Project_Details[[#This Row],[Capitalisation Year]]),(Project_Details[[#This Row],[Capitalisation Year]]>=2016),"NA") -> TRUE | BB31: =(Project_Details[[#This Row],[ID]]=(ROW()-ProjectDetailsTableStartRow)) -> TRUE | BC31: =VLOOKUP(Project_Details[[#This Row],[ProjectID]],ProjectData[],MATCH("Specific Approved Project", ProjectData[#Headers],0),FALSE) -> FALSE
A32: 23 | B32: 16 | C32: =Project_Details[ID] -> 23 | D32: CP.02649 - T080 - Redbank Plains - 1T, 2T | E32: Power Transformer - > 66 kV & < = 132 kV ; < = 30 MVA - REFURBISHED | F32: =ISNUMBER(MATCH(Project_Details[[#This Row],[RIN Asset Description]],Lookup_RIN_AssetCategory,0)) -> TRUE | G32: 0 | H32: 0 | I32: 0 | J32: 2 | K32: 0 | L32: 0 | M32: 0 | N32: 150.19044 | O32: 0 | P32: 0 | Q32: 0 | R32: 0 | S32: 0 | T32: 0 | U32: 0 | V32: 153.986784 | W32: 1164.876622 | X32: 1379.323904 | Y32: 863.40093 | Z32: 0 | AA32: 0 | AB32: 0 | AC32: 2024 | AD32: =IF((VLOOKUP(Project_Details[[#This Row],[ProjectID]],ProjectData[],MATCH("Capitalisation",ProjectData[#Headers],0),FALSE)="Project Close"),ISNUMBER(Project_Details[[#This Row],[Capitalisation Year]]),"NA") -> TRUE | AE32: 0.15 | AF32: 0.23 | AG32: =MAX(ABS(Project_Details[[#This Row],[NomIncur2021]:[NomIncur2027]]))>0 -> FALSE | AH32: =MAX(ABS(Project_Details[[#This Row],[RealIncur2021]:[RealIncur2027]]))>0 -> TRUE | AI32: =OR(AND(Project_Details[[#This Row],[DollarBasisImpliesNominal]],NOT(Project_Details[[#This Row],[DollarBasisImpliesReal2021]])), AND(NOT(Project_Details[[#This Row],[DollarBasisImpliesNominal]]),Project_Details[[#This Row],[DollarBasisImpliesReal2021]]),AND(NOT(Project_Details[[#This Row],[DollarBasisImpliesNominal]]),NOT(Project_Details[[#This Row],[DollarBasisImpliesReal2021]]))) -> TRUE | AJ32: =IFERROR(OR(AND(Project_Details[[#This Row],[DollarBasisImpliesNominal]],VLOOKUP(Project_Details[[#This Row],[ProjectID]],ProjectData[],MATCH("RepexDollarsBasis",ProjectData[#Headers],0),FALSE)="Nominal"),AND(Project_Details[[#This Row],[DollarBasisImpliesReal2021]],VLOOKUP(Project_Details[[#This Row],[ProjectID]],ProjectData[],MATCH("RepexDollarsBasis",ProjectData[#Headers],0),FALSE)="Real2021"),Project_Details[[#This Row],[ProjectHasNoDollarBasis]]),FALSE) -> TRUE | AK32: =IF(Project_Details[[#This Row],[DollarBasisImpliesReal2021]],AND(ISNUMBER(Project_Details[[#This Row],[Labour Internal]]),ISNUMBER(Project_Details[[#This Row],[Labour External]])),"NA") -> TRUE | AL32: =IF(Project_Details[[#This Row],[DollarBasisImpliesNominal]],NOT(OR(ISNUMBER(Project_Details[[#This Row],[Labour Internal]]),ISNUMBER(Project_Details[[#This Row],[Labour External]]))),"NA") -> NA | AM32: =IF(AND(Project_Details[[#This Row],[NomIncur2021]]=0,Project_Details[[#This Row],[WIP]]<>0),2021,IF(AND(Project_Details[[#This Row],[NomIncur2022]]=0,Project_Details[[#This Row],[NomIncur2021]]<>0),2021,IF(AND(Project_Details[[#This Row],[NomIncur2023]]=0,Project_Details[[#This Row],[NomIncur2022]]<>0),2022,IF(AND(Project_Details[[#This Row],[NomIncur2024]]=0,Project_Details[[#This Row],[NomIncur2023]]<>0),2023,IF(AND(Project_Details[[#This Row],[NomIncur2025]]=0,Project_Details[[#This Row],[NomIncur2024]]<>0),2024,IF(AND(Project_Details[[#This Row],[NomIncur2026]]=0,Project_Details[[#This Row],[NomIncur2025]]<>0),2025,IF(AND(Project_Details[[#This Row],[NomIncur2027]]=0,Project_Details[[#This Row],[NomIncur2026]]<>0),2026,IF(Project_Details[[#This Row],[NomIncur2027]]<>0,2027,"")))))))) -> 2021 | AN32: TRUE | AO32: =IF(NOT(ISNUMBER(Project_Details[[#This Row],[Capitalisation Year]])), "NA", OR(Project_Details[[#This Row],[OverWrite_CashFlowAndCapitalisationYearAreOK]],(Project_Details[[#This Row],[LastYearOfNominalCashFlow]]=Project_Details[[#This Row],[Capitalisation Year]]))) -> TRUE | AP32: =NOT(AND(Project_Details[[#This Row],[DollarBasisImpliesNominal]],OR(ISNUMBER(Project_Details[[#This Row],[Labour Internal]]),ISNUMBER(Project_Details[[#This Row],[Labour External]])))) -> TRUE | AR32: =IF(LEFT(Project_Details[[#This Row],[RIN Asset Description]],17)="Power Transformer",IF((Project_Details[[#This Row],[ExpenditureAfter2021IsNotUsed]]=TRUE),FALSE,TRUE),"NA") -> TRUE | AZ32: =IFERROR(("None"=VLOOKUP(Project_Details[[#This Row],[ProjectID]],ProjectData[],MATCH("RepexDollarsBasis",ProjectData[#Headers],0),FALSE)),FALSE) -> FALSE | BA32: =IF(ISNUMBER(Project_Details[[#This Row],[Capitalisation Year]]),(Project_Details[[#This Row],[Capitalisation Year]]>=2016),"NA") -> TRUE | BB32: =(Project_Details[[#This Row],[ID]]=(ROW()-ProjectDetailsTableStartRow)) -> TRUE | BC32: =VLOOKUP(Project_Details[[#This Row],[ProjectID]],ProjectData[],MATCH("Specific Approved Project", ProjectData[#Headers],0),FALSE) -> FALSE
A33: 24 | B33: 17 | C33: =Project_Details[ID] -> 24 | D33: C55.1203 - T053 KAMERUNGA T1 Transformer Replacement | E33: Power Transformer - > 66 kV & < = 132 kV ; > 30 MVA & < = 60 MVA | F33: =ISNUMBER(MATCH(Project_Details[[#This Row],[RIN Asset Description]],Lookup_RIN_AssetCategory,0)) -> TRUE | G33: 0 | H33: 0 | I33: 0 | J33: 0 | K33: 0 | L33: 0 | M33: 0 | N33: 0 | O33: 0 | P33: 0 | Q33: 0 | R33: 0 | S33: 0 | T33: 0 | U33: 10 | V33: 0 | W33: 0 | X33: 0 | Y33: 0 | Z33: 0 | AA33: 0 | AB33: 0 | AC33: 2029 | AD33: =IF((VLOOKUP(Project_Details[[#This Row],[ProjectID]],ProjectData[],MATCH("Capitalisation",ProjectData[#Headers],0),FALSE)="Project Close"),ISNUMBER(Project_Details[[#This Row],[Capitalisation Year]]),"NA") -> TRUE | AG33: =MAX(ABS(Project_Details[[#This Row],[NomIncur2021]:[NomIncur2027]]))>0 -> TRUE | AH33: =MAX(ABS(Project_Details[[#This Row],[RealIncur2021]:[RealIncur2027]]))>0 -> FALSE | AI33: =OR(AND(Project_Details[[#This Row],[DollarBasisImpliesNominal]],NOT(Project_Details[[#This Row],[DollarBasisImpliesReal2021]])), AND(NOT(Project_Details[[#This Row],[DollarBasisImpliesNominal]]),Project_Details[[#This Row],[DollarBasisImpliesReal2021]]),AND(NOT(Project_Details[[#This Row],[DollarBasisImpliesNominal]]),NOT(Project_Details[[#This Row],[DollarBasisImpliesReal2021]]))) -> TRUE | AJ33: =IFERROR(OR(AND(Project_Details[[#This Row],[DollarBasisImpliesNominal]],VLOOKUP(Project_Details[[#This Row],[ProjectID]],ProjectData[],MATCH("RepexDollarsBasis",ProjectData[#Headers],0),FALSE)="Nominal"),AND(Project_Details[[#This Row],[DollarBasisImpliesReal2021]],VLOOKUP(Project_Details[[#This Row],[ProjectID]],ProjectData[],MATCH("RepexDollarsBasis",ProjectData[#Headers],0),FALSE)="Real2021"),Project_Details[[#This Row],[ProjectHasNoDollarBasis]]),FALSE) -> TRUE | AK33: =IF(Project_Details[[#This Row],[DollarBasisImpliesReal2021]],AND(ISNUMBER(Project_Details[[#This Row],[Labour Internal]]),ISNUMBER(Project_Details[[#This Row],[Labour External]])),"NA") -> NA | AL33: =IF(Project_Details[[#This Row],[DollarBasisImpliesNominal]],NOT(OR(ISNUMBER(Project_Details[[#This Row],[Labour Internal]]),ISNUMBER(Project_Details[[#This Row],[Labour External]]))),"NA") -> TRUE | AM33: =IF(AND(Project_Details[[#This Row],[NomIncur2021]]=0,Project_Details[[#This Row],[WIP]]<>0),2021,IF(AND(Project_Details[[#This Row],[NomIncur2022]]=0,Project_Details[[#This Row],[NomIncur2021]]<>0),2021,IF(AND(Project_Details[[#This Row],[NomIncur2023]]=0,Project_Details[[#This Row],[NomIncur2022]]<>0),2022,IF(AND(Project_Details[[#This Row],[NomIncur2024]]=0,Project_Details[[#This Row],[NomIncur2023]]<>0),2023,IF(AND(Project_Details[[#This Row],[NomIncur2025]]=0,Project_Details[[#This Row],[NomIncur2024]]<>0),2024,IF(AND(Project_Details[[#This Row],[NomIncur2026]]=0,Project_Details[[#This Row],[NomIncur2025]]<>0),2025,IF(AND(Project_Details[[#This Row],[NomIncur2027]]=0,Project_Details[[#This Row],[NomIncur2026]]<>0),2026,IF(Project_Details[[#This Row],[NomIncur2027]]<>0,2027,"")))))))) -> 2027 | AN33: TRUE | AO33: =IF(NOT(ISNUMBER(Project_Details[[#This Row],[Capitalisation Year]])), "NA", OR(Project_Details[[#This Row],[OverWrite_CashFlowAndCapitalisationYearAreOK]],(Project_Details[[#This Row],[LastYearOfNominalCashFlow]]=Project_Details[[#This Row],[Capitalisation Year]]))) -> TRUE | AP33: =NOT(AND(Project_Details[[#This Row],[DollarBasisImpliesNominal]],OR(ISNUMBER(Project_Details[[#This Row],[Labour Internal]]),ISNUMBER(Project_Details[[#This Row],[Labour External]])))) -> TRUE | AR33: =IF(LEFT(Project_Details[[#This Row],[RIN Asset Description]],17)="Power Transformer",IF((Project_Details[[#This Row],[ExpenditureAfter2021IsNotUsed]]=TRUE),FALSE,TRUE),"NA") -> TRUE | AZ33: =IFERROR(("None"=VLOOKUP(Project_Details[[#This Row],[ProjectID]],ProjectData[],MATCH("RepexDollarsBasis",ProjectData[#Headers],0),FALSE)),FALSE) -> FALSE | BA33: =IF(ISNUMBER(Project_Details[[#This Row],[Capitalisation Year]]),(Project_Details[[#This Row],[Capitalisation Year]]>=2016),"NA") -> TRUE | BB33: =(Project_Details[[#This Row],[ID]]=(ROW()-ProjectDetailsTableStartRow)) -> TRUE | BC33: =VLOOKUP(Project_Details[[#This Row],[ProjectID]],ProjectData[],MATCH("Specific Approved Project", ProjectData[#Headers],0),FALSE) -> FALSE
A34: 25 | B34: 18 | C34: =Project_Details[ID] -> 25 | D34: C55.PROV7 - H038 - Goodna, T6 | E34: Connections | F34: =ISNUMBER(MATCH(Project_Details[[#This Row],[RIN Asset Description]],Lookup_RIN_AssetCategory,0)) -> TRUE | N34: 0 | O34: 0 | P34: 0 | Q34: 0 | R34: 0 | S34: 0 | T34: 13 | U34: 2588 | AC34: 2028 | AD34: =IF((VLOOKUP(Project_Details[[#This Row],[ProjectID]],ProjectData[],MATCH("Capitalisation",ProjectData[#Headers],0),FALSE)="Project Close"),ISNUMBER(Project_Details[[#This Row],[Capitalisation Year]]),"NA") -> TRUE | AG34: =MAX(ABS(Project_Details[[#This Row],[NomIncur2021]:[NomIncur2027]]))>0 -> TRUE | AH34: =MAX(ABS(Project_Details[[#This Row],[RealIncur2021]:[RealIncur2027]]))>0 -> FALSE | AI34: =OR(AND(Project_Details[[#This Row],[DollarBasisImpliesNominal]],NOT(Project_Details[[#This Row],[DollarBasisImpliesReal2021]])), AND(NOT(Project_Details[[#This Row],[DollarBasisImpliesNominal]]),Project_Details[[#This Row],[DollarBasisImpliesReal2021]]),AND(NOT(Project_Details[[#This Row],[DollarBasisImpliesNominal]]),NOT(Project_Details[[#This Row],[DollarBasisImpliesReal2021]]))) -> TRUE | AJ34: =IFERROR(OR(AND(Project_Details[[#This Row],[DollarBasisImpliesNominal]],VLOOKUP(Project_Details[[#This Row],[ProjectID]],ProjectData[],MATCH("RepexDollarsBasis",ProjectData[#Headers],0),FALSE)="Nominal"),AND(Project_Details[[#This Row],[DollarBasisImpliesReal2021]],VLOOKUP(Project_Details[[#This Row],[ProjectID]],ProjectData[],MATCH("RepexDollarsBasis",ProjectData[#Headers],0),FALSE)="Real2021"),Project_Details[[#This Row],[ProjectHasNoDollarBasis]]),FALSE) -> TRUE | AK34: =IF(Project_Details[[#This Row],[DollarBasisImpliesReal2021]],AND(ISNUMBER(Project_Details[[#This Row],[Labour Internal]]),ISNUMBER(Project_Details[[#This Row],[Labour External]])),"NA") -> NA | AL34: =IF(Project_Details[[#This Row],[DollarBasisImpliesNominal]],NOT(OR(ISNUMBER(Project_Details[[#This Row],[Labour Internal]]),ISNUMBER(Project_Details[[#This Row],[Labour External]]))),"NA") -> TRUE | AM34: =IF(AND(Project_Details[[#This Row],[NomIncur2021]]=0,Project_Details[[#This Row],[WIP]]<>0),2021,IF(AND(Project_Details[[#This Row],[NomIncur2022]]=0,Project_Details[[#This Row],[NomIncur2021]]<>0),2021,IF(AND(Project_Details[[#This Row],[NomIncur2023]]=0,Project_Details[[#This Row],[NomIncur2022]]<>0),2022,IF(AND(Project_Details[[#This Row],[NomIncur2024]]=0,Project_Details[[#This Row],[NomIncur2023]]<>0),2023,IF(AND(Project_Details[[#This Row],[NomIncur2025]]=0,Project_Details[[#This Row],[NomIncur2024]]<>0),2024,IF(AND(Project_Details[[#This Row],[NomIncur2026]]=0,Project_Details[[#This Row],[NomIncur2025]]<>0),2025,IF(AND(Project_Details[[#This Row],[NomIncur2027]]=0,Project_Details[[#This Row],[NomIncur2026]]<>0),2026,IF(Project_Details[[#This Row],[NomIncur2027]]<>0,2027,"")))))))) -> 2027 | AN34: TRUE | AO34: =IF(NOT(ISNUMBER(Project_Details[[#This Row],[Capitalisation Year]])), "NA", OR(Project_Details[[#This Row],[OverWrite_CashFlowAndCapitalisationYearAreOK]],(Project_Details[[#This Row],[LastYearOfNominalCashFlow]]=Project_Details[[#This Row],[Capitalisation Year]]))) -> TRUE | AP34: =NOT(AND(Project_Details[[#This Row],[DollarBasisImpliesNominal]],OR(ISNUMBER(Project_Details[[#This Row],[Labour Internal]]),ISNUMBER(Project_Details[[#This Row],[Labour External]])))) -> TRUE | AR34: =IF(LEFT(Project_Details[[#This Row],[RIN Asset Description]],17)="Power Transformer",IF((Project_Details[[#This Row],[ExpenditureAfter2021IsNotUsed]]=TRUE),FALSE,TRUE),"NA") -> NA | AZ34: =IFERROR(("None"=VLOOKUP(Project_Details[[#This Row],[ProjectID]],ProjectData[],MATCH("RepexDollarsBasis",ProjectData[#Headers],0),FALSE)),FALSE) -> FALSE | BA34: =IF(ISNUMBER(Project_Details[[#This Row],[Capitalisation Year]]),(Project_Details[[#This Row],[Capitalisation Year]]>=2016),"NA") -> TRUE | BB34: =(Project_Details[[#This Row],[ID]]=(ROW()-ProjectDetailsTableStartRow)) -> TRUE | BC34: =VLOOKUP(Project_Details[[#This Row],[ProjectID]],ProjectData[],MATCH("Specific Approved Project", ProjectData[#Headers],0),FALSE) -> FALSE
A35: 26 | B35: 19 | C35: =Project_Details[ID] -> 26 | D35: 5 Future Easement - QNI | E35: Balancing Item - Easements | F35: =ISNUMBER(MATCH(Project_Details[[#This Row],[RIN Asset Description]],Lookup_RIN_AssetCategory,0)) -> TRUE | V35: 200 | W35: 250 | X35: 1851.735 | Y35: 2301.735 | Z35: 2301.735 | AA35: 2301.735 | AB35: 5360 | AC35: 2028 | AD35: =IF((VLOOKUP(Project_Details[[#This Row],[ProjectID]],ProjectData[],MATCH("Capitalisation",ProjectData[#Headers],0),FALSE)="Project Close"),ISNUMBER(Project_Details[[#This Row],[Capitalisation Year]]),"NA") -> TRUE | AE35: 0.1 | AF35: 0 | AG35: =MAX(ABS(Project_Details[[#This Row],[NomIncur2021]:[NomIncur2027]]))>0 -> FALSE | AH35: =MAX(ABS(Project_Details[[#This Row],[RealIncur2021]:[RealIncur2027]]))>0 -> TRUE | AI35: =OR(AND(Project_Details[[#This Row],[DollarBasisImpliesNominal]],NOT(Project_Details[[#This Row],[DollarBasisImpliesReal2021]])), AND(NOT(Project_Details[[#This Row],[DollarBasisImpliesNominal]]),Project_Details[[#This Row],[DollarBasisImpliesReal2021]]),AND(NOT(Project_Details[[#This Row],[DollarBasisImpliesNominal]]),NOT(Project_Details[[#This Row],[DollarBasisImpliesReal2021]]))) -> TRUE | AJ35: =IFERROR(OR(AND(Project_Details[[#This Row],[DollarBasisImpliesNominal]],VLOOKUP(Project_Details[[#This Row],[ProjectID]],ProjectData[],MATCH("RepexDollarsBasis",ProjectData[#Headers],0),FALSE)="Nominal"),AND(Project_Details[[#This Row],[DollarBasisImpliesReal2021]],VLOOKUP(Project_Details[[#This Row],[ProjectID]],ProjectData[],MATCH("RepexDollarsBasis",ProjectData[#Headers],0),FALSE)="Real2021"),Project_Details[[#This Row],[ProjectHasNoDollarBasis]]),FALSE) -> TRUE | AK35: =IF(Project_Details[[#This Row],[DollarBasisImpliesReal2021]],AND(ISNUMBER(Project_Details[[#This Row],[Labour Internal]]),ISNUMBER(Project_Details[[#This Row],[Labour External]])),"NA") -> TRUE | AL35: =IF(Project_Details[[#This Row],[DollarBasisImpliesNominal]],NOT(OR(ISNUMBER(Project_Details[[#This Row],[Labour Internal]]),ISNUMBER(Project_Details[[#This Row],[Labour External]]))),"NA") -> NA | AM35: =IF(AND(Project_Details[[#This Row],[NomIncur2021]]=0,Project_Details[[#This Row],[WIP]]<>0),2021,IF(AND(Project_Details[[#This Row],[NomIncur2022]]=0,Project_Details[[#This Row],[NomIncur2021]]<>0),2021,IF(AND(Project_Details[[#This Row],[NomIncur2023]]=0,Project_Details[[#This Row],[NomIncur2022]]<>0),2022,IF(AND(Project_Details[[#This Row],[NomIncur2024]]=0,Project_Details[[#This Row],[NomIncur2023]]<>0),2023,IF(AND(Project_Details[[#This Row],[NomIncur2025]]=0,Project_Details[[#This Row],[NomIncur2024]]<>0),2024,IF(AND(Project_Details[[#This Row],[NomIncur2026]]=0,Project_Details[[#This Row],[NomIncur2025]]<>0),2025,IF(AND(Project_Details[[#This Row],[NomIncur2027]]=0,Project_Details[[#This Row],[NomIncur2026]]<>0),2026,IF(Project_Details[[#This Row],[NomIncur2027]]<>0,2027,"")))))))) ->  | AN35: TRUE | AO35: =IF(NOT(ISNUMBER(Project_Details[[#This Row],[Capitalisation Year]])), "NA", OR(Project_Details[[#This Row],[OverWrite_CashFlowAndCapitalisationYearAreOK]],(Project_Details[[#This Row],[LastYearOfNominalCashFlow]]=Project_Details[[#This Row],[Capitalisation Year]]))) -> TRUE | AP35: =NOT(AND(Project_Details[[#This Row],[DollarBasisImpliesNominal]],OR(ISNUMBER(Project_Details[[#This Row],[Labour Internal]]),ISNUMBER(Project_Details[[#This Row],[Labour External]])))) -> TRUE | AR35: =IF(LEFT(Project_Details[[#This Row],[RIN Asset Description]],17)="Power Transformer",IF((Project_Details[[#This Row],[ExpenditureAfter2021IsNotUsed]]=TRUE),FALSE,TRUE),"NA") -> NA | AZ35: =IFERROR(("None"=VLOOKUP(Project_Details[[#This Row],[ProjectID]],ProjectData[],MATCH("RepexDollarsBasis",ProjectData[#Headers],0),FALSE)),FALSE) -> FALSE | BA35: =IF(ISNUMBER(Project_Details[[#This Row],[Capitalisation Year]]),(Project_Details[[#This Row],[Capitalisation Year]]>=2016),"NA") -> TRUE | BB35: =(Project_Details[[#This Row],[ID]]=(ROW()-ProjectDetailsTableStartRow)) -> TRUE | BC35: =VLOOKUP(Project_Details[[#This Row],[ProjectID]],ProjectData[],MATCH("Specific Approved Project", ProjectData[#Headers],0),FALSE) -> FALSE
A36: 27 | B36: 20 | C36: =Project_Details[ID] -> 27 | D36: 6 Future Easement - CQ-SQ | E36: Balancing Item - Easements | F36: =ISNUMBER(MATCH(Project_Details[[#This Row],[RIN Asset Description]],Lookup_RIN_AssetCategory,0)) -> TRUE | X36: 150 | Y36: 150 | Z36: 1032.49 | AA36: 1332.49 | AB36: 1332.49 | AC36: 2030 | AD36: =IF((VLOOKUP(Project_Details[[#This Row],[ProjectID]],ProjectData[],MATCH("Capitalisation",ProjectData[#Headers],0),FALSE)="Project Close"),ISNUMBER(Project_Details[[#This Row],[Capitalisation Year]]),"NA") -> TRUE | AE36: 0.1 | AF36: 0 | AG36: =MAX(ABS(Project_Details[[#This Row],[NomIncur2021]:[NomIncur2027]]))>0 -> FALSE | AH36: =MAX(ABS(Project_Details[[#This Row],[RealIncur2021]:[RealIncur2027]]))>0 -> TRUE | AI36: =OR(AND(Project_Details[[#This Row],[DollarBasisImpliesNominal]],NOT(Project_Details[[#This Row],[DollarBasisImpliesReal2021]])), AND(NOT(Project_Details[[#This Row],[DollarBasisImpliesNominal]]),Project_Details[[#This Row],[DollarBasisImpliesReal2021]]),AND(NOT(Project_Details[[#This Row],[DollarBasisImpliesNominal]]),NOT(Project_Details[[#This Row],[DollarBasisImpliesReal2021]]))) -> TRUE | AJ36: =IFERROR(OR(AND(Project_Details[[#This Row],[DollarBasisImpliesNominal]],VLOOKUP(Project_Details[[#This Row],[ProjectID]],ProjectData[],MATCH("RepexDollarsBasis",ProjectData[#Headers],0),FALSE)="Nominal"),AND(Project_Details[[#This Row],[DollarBasisImpliesReal2021]],VLOOKUP(Project_Details[[#This Row],[ProjectID]],ProjectData[],MATCH("RepexDollarsBasis",ProjectData[#Headers],0),FALSE)="Real2021"),Project_Details[[#This Row],[ProjectHasNoDollarBasis]]),FALSE) -> TRUE | AK36: =IF(Project_Details[[#This Row],[DollarBasisImpliesReal2021]],AND(ISNUMBER(Project_Details[[#This Row],[Labour Internal]]),ISNUMBER(Project_Details[[#This Row],[Labour External]])),"NA") -> TRUE | AL36: =IF(Project_Details[[#This Row],[DollarBasisImpliesNominal]],NOT(OR(ISNUMBER(Project_Details[[#This Row],[Labour Internal]]),ISNUMBER(Project_Details[[#This Row],[Labour External]]))),"NA") -> NA | AM36: =IF(AND(Project_Details[[#This Row],[NomIncur2021]]=0,Project_Details[[#This Row],[WIP]]<>0),2021,IF(AND(Project_Details[[#This Row],[NomIncur2022]]=0,Project_Details[[#This Row],[NomIncur2021]]<>0),2021,IF(AND(Project_Details[[#This Row],[NomIncur2023]]=0,Project_Details[[#This Row],[NomIncur2022]]<>0),2022,IF(AND(Project_Details[[#This Row],[NomIncur2024]]=0,Project_Details[[#This Row],[NomIncur2023]]<>0),2023,IF(AND(Project_Details[[#This Row],[NomIncur2025]]=0,Project_Details[[#This Row],[NomIncur2024]]<>0),2024,IF(AND(Project_Details[[#This Row],[NomIncur2026]]=0,Project_Details[[#This Row],[NomIncur2025]]<>0),2025,IF(AND(Project_Details[[#This Row],[NomIncur2027]]=0,Project_Details[[#This Row],[NomIncur2026]]<>0),2026,IF(Project_Details[[#This Row],[NomIncur2027]]<>0,2027,"")))))))) ->  | AN36: TRUE | AO36: =IF(NOT(ISNUMBER(Project_Details[[#This Row],[Capitalisation Year]])), "NA", OR(Project_Details[[#This Row],[OverWrite_CashFlowAndCapitalisationYearAreOK]],(Project_Details[[#This Row],[LastYearOfNominalCashFlow]]=Project_Details[[#This Row],[Capitalisation Year]]))) -> TRUE | AP36: =NOT(AND(Project_Details[[#This Row],[DollarBasisImpliesNominal]],OR(ISNUMBER(Project_Details[[#This Row],[Labour Internal]]),ISNUMBER(Project_Details[[#This Row],[Labour External]])))) -> TRUE | AR36: =IF(LEFT(Project_Details[[#This Row],[RIN Asset Description]],17)="Power Transformer",IF((Project_Details[[#This Row],[ExpenditureAfter2021IsNotUsed]]=TRUE),FALSE,TRUE),"NA") -> NA | AZ36: =IFERROR(("None"=VLOOKUP(Project_Details[[#This Row],[ProjectID]],ProjectData[],MATCH("RepexDollarsBasis",ProjectData[#Headers],0),FALSE)),FALSE) -> FALSE | BA36: =IF(ISNUMBER(Project_Details[[#This Row],[Capitalisation Year]]),(Project_Details[[#This Row],[Capitalisation Year]]>=2016),"NA") -> TRUE | BB36: =(Project_Details[[#This Row],[ID]]=(ROW()-ProjectDetailsTableStartRow)) -> TRUE | BC36: =VLOOKUP(Project_Details[[#This Row],[ProjectID]],ProjectData[],MATCH("Specific Approved Project", ProjectData[#Headers],0),FALSE) -> FALSE
A37: 28 | B37: 21 | C37: =Project_Details[ID] -> 28 | D37: 7 Future Easement - Easement (CC) | E37: Balancing Item - Easements | F37: =ISNUMBER(MATCH(Project_Details[[#This Row],[RIN Asset Description]],Lookup_RIN_AssetCategory,0)) -> TRUE | N37: 1020.89418 | O37: 99.917 | P37: 15.49 | Q37: 0 | R37: 0 | S37: 0 | T37: 1500 | U37: 1500 | AD37: =IF((VLOOKUP(Project_Details[[#This Row],[ProjectID]],ProjectData[],MATCH("Capitalisation",ProjectData[#Headers],0),FALSE)="Project Close"),ISNUMBER(Project_Details[[#This Row],[Capitalisation Year]]),"NA") -> NA | AG37: =MAX(ABS(Project_Details[[#This Row],[NomIncur2021]:[NomIncur2027]]))>0 -> TRUE | AH37: =MAX(ABS(Project_Details[[#This Row],[RealIncur2021]:[RealIncur2027]]))>0 -> FALSE | AI37: =OR(AND(Project_Details[[#This Row],[DollarBasisImpliesNominal]],NOT(Project_Details[[#This Row],[DollarBasisImpliesReal2021]])), AND(NOT(Project_Details[[#This Row],[DollarBasisImpliesNominal]]),Project_Details[[#This Row],[DollarBasisImpliesReal2021]]),AND(NOT(Project_Details[[#This Row],[DollarBasisImpliesNominal]]),NOT(Project_Details[[#This Row],[DollarBasisImpliesReal2021]]))) -> TRUE | AJ37: =IFERROR(OR(AND(Project_Details[[#This Row],[DollarBasisImpliesNominal]],VLOOKUP(Project_Details[[#This Row],[ProjectID]],ProjectData[],MATCH("RepexDollarsBasis",ProjectData[#Headers],0),FALSE)="Nominal"),AND(Project_Details[[#This Row],[DollarBasisImpliesReal2021]],VLOOKUP(Project_Details[[#This Row],[ProjectID]],ProjectData[],MATCH("RepexDollarsBasis",ProjectData[#Headers],0),FALSE)="Real2021"),Project_Details[[#This Row],[ProjectHasNoDollarBasis]]),FALSE) -> TRUE | AK37: =IF(Project_Details[[#This Row],[DollarBasisImpliesReal2021]],AND(ISNUMBER(Project_Details[[#This Row],[Labour Internal]]),ISNUMBER(Project_Details[[#This Row],[Labour External]])),"NA") -> NA | AL37: =IF(Project_Details[[#This Row],[DollarBasisImpliesNominal]],NOT(OR(ISNUMBER(Project_Details[[#This Row],[Labour Internal]]),ISNUMBER(Project_Details[[#This Row],[Labour External]]))),"NA") -> TRUE | AM37: =IF(AND(Project_Details[[#This Row],[NomIncur2021]]=0,Project_Details[[#This Row],[WIP]]<>0),2021,IF(AND(Project_Details[[#This Row],[NomIncur2022]]=0,Project_Details[[#This Row],[NomIncur2021]]<>0),2021,IF(AND(Project_Details[[#This Row],[NomIncur2023]]=0,Project_Details[[#This Row],[NomIncur2022]]<>0),2022,IF(AND(Project_Details[[#This Row],[NomIncur2024]]=0,Project_Details[[#This Row],[NomIncur2023]]<>0),2023,IF(AND(Project_Details[[#This Row],[NomIncur2025]]=0,Project_Details[[#This Row],[NomIncur2024]]<>0),2024,IF(AND(Project_Details[[#This Row],[NomIncur2026]]=0,Project_Details[[#This Row],[NomIncur2025]]<>0),2025,IF(AND(Project_Details[[#This Row],[NomIncur2027]]=0,Project_Details[[#This Row],[NomIncur2026]]<>0),2026,IF(Project_Details[[#This Row],[NomIncur2027]]<>0,2027,"")))))))) -> 2022 | AO37: =IF(NOT(ISNUMBER(Project_Details[[#This Row],[Capitalisation Year]])), "NA", OR(Project_Details[[#This Row],[OverWrite_CashFlowAndCapitalisationYearAreOK]],(Project_Details[[#This Row],[LastYearOfNominalCashFlow]]=Project_Details[[#This Row],[Capitalisation Year]]))) -> NA | AP37: =NOT(AND(Project_Details[[#This Row],[DollarBasisImpliesNominal]],OR(ISNUMBER(Project_Details[[#This Row],[Labour Internal]]),ISNUMBER(Project_Details[[#This Row],[Labour External]])))) -> TRUE | AR37: =IF(LEFT(Project_Details[[#This Row],[RIN Asset Description]],17)="Power Transformer",IF((Project_Details[[#This Row],[ExpenditureAfter2021IsNotUsed]]=TRUE),FALSE,TRUE),"NA") -> NA | AZ37: =IFERROR(("None"=VLOOKUP(Project_Details[[#This Row],[ProjectID]],ProjectData[],MATCH("RepexDollarsBasis",ProjectData[#Headers],0),FALSE)),FALSE) -> FALSE | BA37: =IF(ISNUMBER(Project_Details[[#This Row],[Capitalisation Year]]),(Project_Details[[#This Row],[Capitalisation Year]]>=2016),"NA") -> NA | BB37: =(Project_Details[[#This Row],[ID]]=(ROW()-ProjectDetailsTableStartRow)) -> TRUE | BC37: =VLOOKUP(Project_Details[[#This Row],[ProjectID]],ProjectData[],MATCH("Specific Approved Project", ProjectData[#Headers],0),FALSE) -> FALSE
A38: 29 | B38: 22 | C38: =Project_Details[ID] -> 29 | D38: CP.01489 T053 Kamerunga to Redlynch Line Easement Acq | E38: Balancing Item - Easements | F38: =ISNUMBER(MATCH(Project_Details[[#This Row],[RIN Asset Description]],Lookup_RIN_AssetCategory,0)) -> TRUE | N38: 557.49682 | O38: 2156.571 | P38: 10.252 | Q38: 0 | R38: 0 | S38: 0 | T38: 0 | U38: 0 | AC38: 2022 | AD38: =IF((VLOOKUP(Project_Details[[#This Row],[ProjectID]],ProjectData[],MATCH("Capitalisation",ProjectData[#Headers],0),FALSE)="Project Close"),ISNUMBER(Project_Details[[#This Row],[Capitalisation Year]]),"NA") -> TRUE | AG38: =MAX(ABS(Project_Details[[#This Row],[NomIncur2021]:[NomIncur2027]]))>0 -> TRUE | AH38: =MAX(ABS(Project_Details[[#This Row],[RealIncur2021]:[RealIncur2027]]))>0 -> FALSE | AI38: =OR(AND(Project_Details[[#This Row],[DollarBasisImpliesNominal]],NOT(Project_Details[[#This Row],[DollarBasisImpliesReal2021]])), AND(NOT(Project_Details[[#This Row],[DollarBasisImpliesNominal]]),Project_Details[[#This Row],[DollarBasisImpliesReal2021]]),AND(NOT(Project_Details[[#This Row],[DollarBasisImpliesNominal]]),NOT(Project_Details[[#This Row],[DollarBasisImpliesReal2021]]))) -> TRUE | AJ38: =IFERROR(OR(AND(Project_Details[[#This Row],[DollarBasisImpliesNominal]],VLOOKUP(Project_Details[[#This Row],[ProjectID]],ProjectData[],MATCH("RepexDollarsBasis",ProjectData[#Headers],0),FALSE)="Nominal"),AND(Project_Details[[#This Row],[DollarBasisImpliesReal2021]],VLOOKUP(Project_Details[[#This Row],[ProjectID]],ProjectData[],MATCH("RepexDollarsBasis",ProjectData[#Headers],0),FALSE)="Real2021"),Project_Details[[#This Row],[ProjectHasNoDollarBasis]]),FALSE) -> TRUE | AK38: =IF(Project_Details[[#This Row],[DollarBasisImpliesReal2021]],AND(ISNUMBER(Project_Details[[#This Row],[Labour Internal]]),ISNUMBER(Project_Details[[#This Row],[Labour External]])),"NA") -> NA | AL38: =IF(Project_Details[[#This Row],[DollarBasisImpliesNominal]],NOT(OR(ISNUMBER(Project_Details[[#This Row],[Labour Internal]]),ISNUMBER(Project_Details[[#This Row],[Labour External]]))),"NA") -> TRUE | AM38: =IF(AND(Project_Details[[#This Row],[NomIncur2021]]=0,Project_Details[[#This Row],[WIP]]<>0),2021,IF(AND(Project_Details[[#This Row],[NomIncur2022]]=0,Project_Details[[#This Row],[NomIncur2021]]<>0),2021,IF(AND(Project_Details[[#This Row],[NomIncur2023]]=0,Project_Details[[#This Row],[NomIncur2022]]<>0),2022,IF(AND(Project_Details[[#This Row],[NomIncur2024]]=0,Project_Details[[#This Row],[NomIncur2023]]<>0),2023,IF(AND(Project_Details[[#This Row],[NomIncur2025]]=0,Project_Details[[#This Row],[NomIncur2024]]<>0),2024,IF(AND(Project_Details[[#This Row],[NomIncur2026]]=0,Project_Details[[#This Row],[NomIncur2025]]<>0),2025,IF(AND(Project_Details[[#This Row],[NomIncur2027]]=0,Project_Details[[#This Row],[NomIncur2026]]<>0),2026,IF(Project_Details[[#This Row],[NomIncur2027]]<>0,2027,"")))))))) -> 2022 | AO38: =IF(NOT(ISNUMBER(Project_Details[[#This Row],[Capitalisation Year]])), "NA", OR(Project_Details[[#This Row],[OverWrite_CashFlowAndCapitalisationYearAreOK]],(Project_Details[[#This Row],[LastYearOfNominalCashFlow]]=Project_Details[[#This Row],[Capitalisation Year]]))) -> TRUE | AP38: =NOT(AND(Project_Details[[#This Row],[DollarBasisImpliesNominal]],OR(ISNUMBER(Project_Details[[#This Row],[Labour Internal]]),ISNUMBER(Project_Details[[#This Row],[Labour External]])))) -> TRUE | AR38: =IF(LEFT(Project_Details[[#This Row],[RIN Asset Description]],17)="Power Transformer",IF((Project_Details[[#This Row],[ExpenditureAfter2021IsNotUsed]]=TRUE),FALSE,TRUE),"NA") -> NA | AZ38: =IFERROR(("None"=VLOOKUP(Project_Details[[#This Row],[ProjectID]],ProjectData[],MATCH("RepexDollarsBasis",ProjectData[#Headers],0),FALSE)),FALSE) -> FALSE | BA38: =IF(ISNUMBER(Project_Details[[#This Row],[Capitalisation Year]]),(Project_Details[[#This Row],[Capitalisation Year]]>=2016),"NA") -> TRUE | BB38: =(Project_Details[[#This Row],[ID]]=(ROW()-ProjectDetailsTableStartRow)) -> TRUE | BC38: =VLOOKUP(Project_Details[[#This Row],[ProjectID]],ProjectData[],MATCH("Specific Approved Project", ProjectData[#Headers],0),FALSE) -> TRUE
A39: 30 | B39: 23 | C39: =Project_Details[ID] -> 30 | D39: CP.02382 GCR Bundaberg Region | E39: Augmentation - Overhead Transmission Lines, Underground Cables | F39: =ISNUMBER(MATCH(Project_Details[[#This Row],[RIN Asset Description]],Lookup_RIN_AssetCategory,0)) -> TRUE | N39: 13.93898 | O39: 250 | P39: 250 | Q39: 500 | R39: 500 | S39: 250 | T39: 0 | U39: 0 | AC39: 2025 | AD39: =IF((VLOOKUP(Project_Details[[#This Row],[ProjectID]],ProjectData[],MATCH("Capitalisation",ProjectData[#Headers],0),FALSE)="Project Close"),ISNUMBER(Project_Details[[#This Row],[Capitalisation Year]]),"NA") -> TRUE | AG39: =MAX(ABS(Project_Details[[#This Row],[NomIncur2021]:[NomIncur2027]]))>0 -> TRUE | AH39: =MAX(ABS(Project_Details[[#This Row],[RealIncur2021]:[RealIncur2027]]))>0 -> FALSE | AI39: =OR(AND(Project_Details[[#This Row],[DollarBasisImpliesNominal]],NOT(Project_Details[[#This Row],[DollarBasisImpliesReal2021]])), AND(NOT(Project_Details[[#This Row],[DollarBasisImpliesNominal]]),Project_Details[[#This Row],[DollarBasisImpliesReal2021]]),AND(NOT(Project_Details[[#This Row],[DollarBasisImpliesNominal]]),NOT(Project_Details[[#This Row],[DollarBasisImpliesReal2021]]))) -> TRUE | AJ39: =IFERROR(OR(AND(Project_Details[[#This Row],[DollarBasisImpliesNominal]],VLOOKUP(Project_Details[[#This Row],[ProjectID]],ProjectData[],MATCH("RepexDollarsBasis",ProjectData[#Headers],0),FALSE)="Nominal"),AND(Project_Details[[#This Row],[DollarBasisImpliesReal2021]],VLOOKUP(Project_Details[[#This Row],[ProjectID]],ProjectData[],MATCH("RepexDollarsBasis",ProjectData[#Headers],0),FALSE)="Real2021"),Project_Details[[#This Row],[ProjectHasNoDollarBasis]]),FALSE) -> TRUE | AK39: =IF(Project_Details[[#This Row],[DollarBasisImpliesReal2021]],AND(ISNUMBER(Project_Details[[#This Row],[Labour Internal]]),ISNUMBER(Project_Details[[#This Row],[Labour External]])),"NA") -> NA | AL39: =IF(Project_Details[[#This Row],[DollarBasisImpliesNominal]],NOT(OR(ISNUMBER(Project_Details[[#This Row],[Labour Internal]]),ISNUMBER(Project_Details[[#This Row],[Labour External]]))),"NA") -> TRUE | AM39: =IF(AND(Project_Details[[#This Row],[NomIncur2021]]=0,Project_Details[[#This Row],[WIP]]<>0),2021,IF(AND(Project_Details[[#This Row],[NomIncur2022]]=0,Project_Details[[#This Row],[NomIncur2021]]<>0),2021,IF(AND(Project_Details[[#This Row],[NomIncur2023]]=0,Project_Details[[#This Row],[NomIncur2022]]<>0),2022,IF(AND(Project_Details[[#This Row],[NomIncur2024]]=0,Project_Details[[#This Row],[NomIncur2023]]<>0),2023,IF(AND(Project_Details[[#This Row],[NomIncur2025]]=0,Project_Details[[#This Row],[NomIncur2024]]<>0),2024,IF(AND(Project_Details[[#This Row],[NomIncur2026]]=0,Project_Details[[#This Row],[NomIncur2025]]<>0),2025,IF(AND(Project_Details[[#This Row],[NomIncur2027]]=0,Project_Details[[#This Row],[NomIncur2026]]<>0),2026,IF(Project_Details[[#This Row],[NomIncur2027]]<>0,2027,"")))))))) -> 2025 | AO39: =IF(NOT(ISNUMBER(Project_Details[[#This Row],[Capitalisation Year]])), "NA", OR(Project_Details[[#This Row],[OverWrite_CashFlowAndCapitalisationYearAreOK]],(Project_Details[[#This Row],[LastYearOfNominalCashFlow]]=Project_Details[[#This Row],[Capitalisation Year]]))) -> TRUE | AP39: =NOT(AND(Project_Details[[#This Row],[DollarBasisImpliesNominal]],OR(ISNUMBER(Project_Details[[#This Row],[Labour Internal]]),ISNUMBER(Project_Details[[#This Row],[Labour External]])))) -> TRUE | AR39: =IF(LEFT(Project_Details[[#This Row],[RIN Asset Description]],17)="Power Transformer",IF((Project_Details[[#This Row],[ExpenditureAfter2021IsNotUsed]]=TRUE),FALSE,TRUE),"NA") -> NA | AZ39: =IFERROR(("None"=VLOOKUP(Project_Details[[#This Row],[ProjectID]],ProjectData[],MATCH("RepexDollarsBasis",ProjectData[#Headers],0),FALSE)),FALSE) -> FALSE | BA39: =IF(ISNUMBER(Project_Details[[#This Row],[Capitalisation Year]]),(Project_Details[[#This Row],[Capitalisation Year]]>=2016),"NA") -> TRUE | BB39: =(Project_Details[[#This Row],[ID]]=(ROW()-ProjectDetailsTableStartRow)) -> TRUE | BC39: =VLOOKUP(Project_Details[[#This Row],[ProjectID]],ProjectData[],MATCH("Specific Approved Project", ProjectData[#Headers],0),FALSE) -> FALSE
A40: 31 | B40: 23 | C40: =Project_Details[ID] -> 31 | D40: CP.02789 GCR Brisbane & Sunshine Coast Region | E40: Augmentation - Overhead Transmission Lines, Underground Cables | F40: =ISNUMBER(MATCH(Project_Details[[#This Row],[RIN Asset Description]],Lookup_RIN_AssetCategory,0)) -> TRUE | N40: 492.35336 | O40: 2069.937 | P40: 1013.658 | Q40: 128.731 | R40: 127.45 | S40: 73.005 | T40: 10.229 | U40: 0 | AC40: 2025 | AD40: =IF((VLOOKUP(Project_Details[[#This Row],[ProjectID]],ProjectData[],MATCH("Capitalisation",ProjectData[#Headers],0),FALSE)="Project Close"),ISNUMBER(Project_Details[[#This Row],[Capitalisation Year]]),"NA") -> TRUE | AG40: =MAX(ABS(Project_Details[[#This Row],[NomIncur2021]:[NomIncur2027]]))>0 -> TRUE | AH40: =MAX(ABS(Project_Details[[#This Row],[RealIncur2021]:[RealIncur2027]]))>0 -> FALSE | AI40: =OR(AND(Project_Details[[#This Row],[DollarBasisImpliesNominal]],NOT(Project_Details[[#This Row],[DollarBasisImpliesReal2021]])), AND(NOT(Project_Details[[#This Row],[DollarBasisImpliesNominal]]),Project_Details[[#This Row],[DollarBasisImpliesReal2021]]),AND(NOT(Project_Details[[#This Row],[DollarBasisImpliesNominal]]),NOT(Project_Details[[#This Row],[DollarBasisImpliesReal2021]]))) -> TRUE | AJ40: =IFERROR(OR(AND(Project_Details[[#This Row],[DollarBasisImpliesNominal]],VLOOKUP(Project_Details[[#This Row],[ProjectID]],ProjectData[],MATCH("RepexDollarsBasis",ProjectData[#Headers],0),FALSE)="Nominal"),AND(Project_Details[[#This Row],[DollarBasisImpliesReal2021]],VLOOKUP(Project_Details[[#This Row],[ProjectID]],ProjectData[],MATCH("RepexDollarsBasis",ProjectData[#Headers],0),FALSE)="Real2021"),Project_Details[[#This Row],[ProjectHasNoDollarBasis]]),FALSE) -> TRUE | AK40: =IF(Project_Details[[#This Row],[DollarBasisImpliesReal2021]],AND(ISNUMBER(Project_Details[[#This Row],[Labour Internal]]),ISNUMBER(Project_Details[[#This Row],[Labour External]])),"NA") -> NA | AL40: =IF(Project_Details[[#This Row],[DollarBasisImpliesNominal]],NOT(OR(ISNUMBER(Project_Details[[#This Row],[Labour Internal]]),ISNUMBER(Project_Details[[#This Row],[Labour External]]))),"NA") -> TRUE | AM40: =IF(AND(Project_Details[[#This Row],[NomIncur2021]]=0,Project_Details[[#This Row],[WIP]]<>0),2021,IF(AND(Project_Details[[#This Row],[NomIncur2022]]=0,Project_Details[[#This Row],[NomIncur2021]]<>0),2021,IF(AND(Project_Details[[#This Row],[NomIncur2023]]=0,Project_Details[[#This Row],[NomIncur2022]]<>0),2022,IF(AND(Project_Details[[#This Row],[NomIncur2024]]=0,Project_Details[[#This Row],[NomIncur2023]]<>0),2023,IF(AND(Project_Details[[#This Row],[NomIncur2025]]=0,Project_Details[[#This Row],[NomIncur2024]]<>0),2024,IF(AND(Project_Details[[#This Row],[NomIncur2026]]=0,Project_Details[[#This Row],[NomIncur2025]]<>0),2025,IF(AND(Project_Details[[#This Row],[NomIncur2027]]=0,Project_Details[[#This Row],[NomIncur2026]]<>0),2026,IF(Project_Details[[#This Row],[NomIncur2027]]<>0,2027,"")))))))) -> 2026 | AN40: TRUE | AO40: =IF(NOT(ISNUMBER(Project_Details[[#This Row],[Capitalisation Year]])), "NA", OR(Project_Details[[#This Row],[OverWrite_CashFlowAndCapitalisationYearAreOK]],(Project_Details[[#This Row],[LastYearOfNominalCashFlow]]=Project_Details[[#This Row],[Capitalisation Year]]))) -> TRUE | AP40: =NOT(AND(Project_Details[[#This Row],[DollarBasisImpliesNominal]],OR(ISNUMBER(Project_Details[[#This Row],[Labour Internal]]),ISNUMBER(Project_Details[[#This Row],[Labour External]])))) -> TRUE | AR40: =IF(LEFT(Project_Details[[#This Row],[RIN Asset Description]],17)="Power Transformer",IF((Project_Details[[#This Row],[ExpenditureAfter2021IsNotUsed]]=TRUE),FALSE,TRUE),"NA") -> NA | AZ40: =IFERROR(("None"=VLOOKUP(Project_Details[[#This Row],[ProjectID]],ProjectData[],MATCH("RepexDollarsBasis",ProjectData[#Headers],0),FALSE)),FALSE) -> FALSE | BA40: =IF(ISNUMBER(Project_Details[[#This Row],[Capitalisation Year]]),(Project_Details[[#This Row],[Capitalisation Year]]>=2016),"NA") -> TRUE | BB40: =(Project_Details[[#This Row],[ID]]=(ROW()-ProjectDetailsTableStartRow)) -> TRUE | BC40: =VLOOKUP(Project_Details[[#This Row],[ProjectID]],ProjectData[],MATCH("Specific Approved Project", ProjectData[#Headers],0),FALSE) -> FALSE
A41: 32 | B41: 23 | C41: =Project_Details[ID] -> 32 | D41: CP.02791 GCR Collinsville and Rockhampton Region | E41: Augmentation - Overhead Transmission Lines, Underground Cables | F41: =ISNUMBER(MATCH(Project_Details[[#This Row],[RIN Asset Description]],Lookup_RIN_AssetCategory,0)) -> TRUE | N41: 276.57187 | O41: 570 | P41: 930 | Q41: 1668 | R41: 430 | S41: 216 | T41: 0 | U41: 0 | AC41: 2025 | AD41: =IF((VLOOKUP(Project_Details[[#This Row],[ProjectID]],ProjectData[],MATCH("Capitalisation",ProjectData[#Headers],0),FALSE)="Project Close"),ISNUMBER(Project_Details[[#This Row],[Capitalisation Year]]),"NA") -> TRUE | AG41: =MAX(ABS(Project_Details[[#This Row],[NomIncur2021]:[NomIncur2027]]))>0 -> TRUE | AH41: =MAX(ABS(Project_Details[[#This Row],[RealIncur2021]:[RealIncur2027]]))>0 -> FALSE | AI41: =OR(AND(Project_Details[[#This Row],[DollarBasisImpliesNominal]],NOT(Project_Details[[#This Row],[DollarBasisImpliesReal2021]])), AND(NOT(Project_Details[[#This Row],[DollarBasisImpliesNominal]]),Project_Details[[#This Row],[DollarBasisImpliesReal2021]]),AND(NOT(Project_Details[[#This Row],[DollarBasisImpliesNominal]]),NOT(Project_Details[[#This Row],[DollarBasisImpliesReal2021]]))) -> TRUE | AJ41: =IFERROR(OR(AND(Project_Details[[#This Row],[DollarBasisImpliesNominal]],VLOOKUP(Project_Details[[#This Row],[ProjectID]],ProjectData[],MATCH("RepexDollarsBasis",ProjectData[#Headers],0),FALSE)="Nominal"),AND(Project_Details[[#This Row],[DollarBasisImpliesReal2021]],VLOOKUP(Project_Details[[#This Row],[ProjectID]],ProjectData[],MATCH("RepexDollarsBasis",ProjectData[#Headers],0),FALSE)="Real2021"),Project_Details[[#This Row],[ProjectHasNoDollarBasis]]),FALSE) -> TRUE | AK41: =IF(Project_Details[[#This Row],[DollarBasisImpliesReal2021]],AND(ISNUMBER(Project_Details[[#This Row],[Labour Internal]]),ISNUMBER(Project_Details[[#This Row],[Labour External]])),"NA") -> NA | AL41: =IF(Project_Details[[#This Row],[DollarBasisImpliesNominal]],NOT(OR(ISNUMBER(Project_Details[[#This Row],[Labour Internal]]),ISNUMBER(Project_Details[[#This Row],[Labour External]]))),"NA") -> TRUE | AM41: =IF(AND(Project_Details[[#This Row],[NomIncur2021]]=0,Project_Details[[#This Row],[WIP]]<>0),2021,IF(AND(Project_Details[[#This Row],[NomIncur2022]]=0,Project_Details[[#This Row],[NomIncur2021]]<>0),2021,IF(AND(Project_Details[[#This Row],[NomIncur2023]]=0,Project_Details[[#This Row],[NomIncur2022]]<>0),2022,IF(AND(Project_Details[[#This Row],[NomIncur2024]]=0,Project_Details[[#This Row],[NomIncur2023]]<>0),2023,IF(AND(Project_Details[[#This Row],[NomIncur2025]]=0,Project_Details[[#This Row],[NomIncur2024]]<>0),2024,IF(AND(Project_Details[[#This Row],[NomIncur2026]]=0,Project_Details[[#This Row],[NomIncur2025]]<>0),2025,IF(AND(Project_Details[[#This Row],[NomIncur2027]]=0,Project_Details[[#This Row],[NomIncur2026]]<>0),2026,IF(Project_Details[[#This Row],[NomIncur2027]]<>0,2027,"")))))))) -> 2025 | AO41: =IF(NOT(ISNUMBER(Project_Details[[#This Row],[Capitalisation Year]])), "NA", OR(Project_Details[[#This Row],[OverWrite_CashFlowAndCapitalisationYearAreOK]],(Project_Details[[#This Row],[LastYearOfNominalCashFlow]]=Project_Details[[#This Row],[Capitalisation Year]]))) -> TRUE | AP41: =NOT(AND(Project_Details[[#This Row],[DollarBasisImpliesNominal]],OR(ISNUMBER(Project_Details[[#This Row],[Labour Internal]]),ISNUMBER(Project_Details[[#This Row],[Labour External]])))) -> TRUE | AR41: =IF(LEFT(Project_Details[[#This Row],[RIN Asset Description]],17)="Power Transformer",IF((Project_Details[[#This Row],[ExpenditureAfter2021IsNotUsed]]=TRUE),FALSE,TRUE),"NA") -> NA | AZ41: =IFERROR(("None"=VLOOKUP(Project_Details[[#This Row],[ProjectID]],ProjectData[],MATCH("RepexDollarsBasis",ProjectData[#Headers],0),FALSE)),FALSE) -> FALSE | BA41: =IF(ISNUMBER(Project_Details[[#This Row],[Capitalisation Year]]),(Project_Details[[#This Row],[Capitalisation Year]]>=2016),"NA") -> TRUE | BB41: =(Project_Details[[#This Row],[ID]]=(ROW()-ProjectDetailsTableStartRow)) -> TRUE | BC41: =VLOOKUP(Project_Details[[#This Row],[ProjectID]],ProjectData[],MATCH("Specific Approved Project", ProjectData[#Headers],0),FALSE) -> FALSE
A42: 33 | B42: 23 | C42: =Project_Details[ID] -> 33 | D42: CP.02792 GCR Mackay and Moranbah Region | E42: Augmentation - Overhead Transmission Lines, Underground Cables | F42: =ISNUMBER(MATCH(Project_Details[[#This Row],[RIN Asset Description]],Lookup_RIN_AssetCategory,0)) -> TRUE | N42: 12.84289 | O42: 250 | P42: 250 | Q42: 500 | R42: 500 | S42: 250 | T42: 0 | U42: 0 | AC42: 2025 | AD42: =IF((VLOOKUP(Project_Details[[#This Row],[ProjectID]],ProjectData[],MATCH("Capitalisation",ProjectData[#Headers],0),FALSE)="Project Close"),ISNUMBER(Project_Details[[#This Row],[Capitalisation Year]]),"NA") -> TRUE | AG42: =MAX(ABS(Project_Details[[#This Row],[NomIncur2021]:[NomIncur2027]]))>0 -> TRUE | AH42: =MAX(ABS(Project_Details[[#This Row],[RealIncur2021]:[RealIncur2027]]))>0 -> FALSE | AI42: =OR(AND(Project_Details[[#This Row],[DollarBasisImpliesNominal]],NOT(Project_Details[[#This Row],[DollarBasisImpliesReal2021]])), AND(NOT(Project_Details[[#This Row],[DollarBasisImpliesNominal]]),Project_Details[[#This Row],[DollarBasisImpliesReal2021]]),AND(NOT(Project_Details[[#This Row],[DollarBasisImpliesNominal]]),NOT(Project_Details[[#This Row],[DollarBasisImpliesReal2021]]))) -> TRUE | AJ42: =IFERROR(OR(AND(Project_Details[[#This Row],[DollarBasisImpliesNominal]],VLOOKUP(Project_Details[[#This Row],[ProjectID]],ProjectData[],MATCH("RepexDollarsBasis",ProjectData[#Headers],0),FALSE)="Nominal"),AND(Project_Details[[#This Row],[DollarBasisImpliesReal2021]],VLOOKUP(Project_Details[[#This Row],[ProjectID]],ProjectData[],MATCH("RepexDollarsBasis",ProjectData[#Headers],0),FALSE)="Real2021"),Project_Details[[#This Row],[ProjectHasNoDollarBasis]]),FALSE) -> TRUE | AK42: =IF(Project_Details[[#This Row],[DollarBasisImpliesReal2021]],AND(ISNUMBER(Project_Details[[#This Row],[Labour Internal]]),ISNUMBER(Project_Details[[#This Row],[Labour External]])),"NA") -> NA | AL42: =IF(Project_Details[[#This Row],[DollarBasisImpliesNominal]],NOT(OR(ISNUMBER(Project_Details[[#This Row],[Labour Internal]]),ISNUMBER(Project_Details[[#This Row],[Labour External]]))),"NA") -> TRUE | AM42: =IF(AND(Project_Details[[#This Row],[NomIncur2021]]=0,Project_Details[[#This Row],[WIP]]<>0),2021,IF(AND(Project_Details[[#This Row],[NomIncur2022]]=0,Project_Details[[#This Row],[NomIncur2021]]<>0),2021,IF(AND(Project_Details[[#This Row],[NomIncur2023]]=0,Project_Details[[#This Row],[NomIncur2022]]<>0),2022,IF(AND(Project_Details[[#This Row],[NomIncur2024]]=0,Project_Details[[#This Row],[NomIncur2023]]<>0),2023,IF(AND(Project_Details[[#This Row],[NomIncur2025]]=0,Project_Details[[#This Row],[NomIncur2024]]<>0),2024,IF(AND(Project_Details[[#This Row],[NomIncur2026]]=0,Project_Details[[#This Row],[NomIncur2025]]<>0),2025,IF(AND(Project_Details[[#This Row],[NomIncur2027]]=0,Project_Details[[#This Row],[NomIncur2026]]<>0),2026,IF(Project_Details[[#This Row],[NomIncur2027]]<>0,2027,"")))))))) -> 2025 | AO42: =IF(NOT(ISNUMBER(Project_Details[[#This Row],[Capitalisation Year]])), "NA", OR(Project_Details[[#This Row],[OverWrite_CashFlowAndCapitalisationYearAreOK]],(Project_Details[[#This Row],[LastYearOfNominalCashFlow]]=Project_Details[[#This Row],[Capitalisation Year]]))) -> TRUE | AP42: =NOT(AND(Project_Details[[#This Row],[DollarBasisImpliesNominal]],OR(ISNUMBER(Project_Details[[#This Row],[Labour Internal]]),ISNUMBER(Project_Details[[#This Row],[Labour External]])))) -> TRUE | AR42: =IF(LEFT(Project_Details[[#This Row],[RIN Asset Description]],17)="Power Transformer",IF((Project_Details[[#This Row],[ExpenditureAfter2021IsNotUsed]]=TRUE),FALSE,TRUE),"NA") -> NA | AZ42: =IFERROR(("None"=VLOOKUP(Project_Details[[#This Row],[ProjectID]],ProjectData[],MATCH("RepexDollarsBasis",ProjectData[#Headers],0),FALSE)),FALSE) -> FALSE | BA42: =IF(ISNUMBER(Project_Details[[#This Row],[Capitalisation Year]]),(Project_Details[[#This Row],[Capitalisation Year]]>=2016),"NA") -> TRUE | BB42: =(Project_Details[[#This Row],[ID]]=(ROW()-ProjectDetailsTableStartRow)) -> TRUE | BC42: =VLOOKUP(Project_Details[[#This Row],[ProjectID]],ProjectData[],MATCH("Specific Approved Project", ProjectData[#Headers],0),FALSE) -> FALSE
A43: 34 | B43: 23 | C43: =Project_Details[ID] -> 34 | D43: CP.02793 GCR Townsville and Cairns Region | E43: Augmentation - Overhead Transmission Lines, Underground Cables | F43: =ISNUMBER(MATCH(Project_Details[[#This Row],[RIN Asset Description]],Lookup_RIN_AssetCategory,0)) -> TRUE | N43: 108.22713 | O43: 250 | P43: 250 | Q43: 500 | R43: 500 | S43: 250 | T43: 0 | U43: 0 | AC43: 2025 | AD43: =IF((VLOOKUP(Project_Details[[#This Row],[ProjectID]],ProjectData[],MATCH("Capitalisation",ProjectData[#Headers],0),FALSE)="Project Close"),ISNUMBER(Project_Details[[#This Row],[Capitalisation Year]]),"NA") -> TRUE | AG43: =MAX(ABS(Project_Details[[#This Row],[NomIncur2021]:[NomIncur2027]]))>0 -> TRUE | AH43: =MAX(ABS(Project_Details[[#This Row],[RealIncur2021]:[RealIncur2027]]))>0 -> FALSE | AI43: =OR(AND(Project_Details[[#This Row],[DollarBasisImpliesNominal]],NOT(Project_Details[[#This Row],[DollarBasisImpliesReal2021]])), AND(NOT(Project_Details[[#This Row],[DollarBasisImpliesNominal]]),Project_Details[[#This Row],[DollarBasisImpliesReal2021]]),AND(NOT(Project_Details[[#This Row],[DollarBasisImpliesNominal]]),NOT(Project_Details[[#This Row],[DollarBasisImpliesReal2021]]))) -> TRUE | AJ43: =IFERROR(OR(AND(Project_Details[[#This Row],[DollarBasisImpliesNominal]],VLOOKUP(Project_Details[[#This Row],[ProjectID]],ProjectData[],MATCH("RepexDollarsBasis",ProjectData[#Headers],0),FALSE)="Nominal"),AND(Project_Details[[#This Row],[DollarBasisImpliesReal2021]],VLOOKUP(Project_Details[[#This Row],[ProjectID]],ProjectData[],MATCH("RepexDollarsBasis",ProjectData[#Headers],0),FALSE)="Real2021"),Project_Details[[#This Row],[ProjectHasNoDollarBasis]]),FALSE) -> TRUE | AK43: =IF(Project_Details[[#This Row],[DollarBasisImpliesReal2021]],AND(ISNUMBER(Project_Details[[#This Row],[Labour Internal]]),ISNUMBER(Project_Details[[#This Row],[Labour External]])),"NA") -> NA | AL43: =IF(Project_Details[[#This Row],[DollarBasisImpliesNominal]],NOT(OR(ISNUMBER(Project_Details[[#This Row],[Labour Internal]]),ISNUMBER(Project_Details[[#This Row],[Labour External]]))),"NA") -> TRUE | AM43: =IF(AND(Project_Details[[#This Row],[NomIncur2021]]=0,Project_Details[[#This Row],[WIP]]<>0),2021,IF(AND(Project_Details[[#This Row],[NomIncur2022]]=0,Project_Details[[#This Row],[NomIncur2021]]<>0),2021,IF(AND(Project_Details[[#This Row],[NomIncur2023]]=0,Project_Details[[#This Row],[NomIncur2022]]<>0),2022,IF(AND(Project_Details[[#This Row],[NomIncur2024]]=0,Project_Details[[#This Row],[NomIncur2023]]<>0),2023,IF(AND(Project_Details[[#This Row],[NomIncur2025]]=0,Project_Details[[#This Row],[NomIncur2024]]<>0),2024,IF(AND(Project_Details[[#This Row],[NomIncur2026]]=0,Project_Details[[#This Row],[NomIncur2025]]<>0),2025,IF(AND(Project_Details[[#This Row],[NomIncur2027]]=0,Project_Details[[#This Row],[NomIncur2026]]<>0),2026,IF(Project_Details[[#This Row],[NomIncur2027]]<>0,2027,"")))))))) -> 2025 | AO43: =IF(NOT(ISNUMBER(Project_Details[[#This Row],[Capitalisation Year]])), "NA", OR(Project_Details[[#This Row],[OverWrite_CashFlowAndCapitalisationYearAreOK]],(Project_Details[[#This Row],[LastYearOfNominalCashFlow]]=Project_Details[[#This Row],[Capitalisation Year]]))) -> TRUE | AP43: =NOT(AND(Project_Details[[#This Row],[DollarBasisImpliesNominal]],OR(ISNUMBER(Project_Details[[#This Row],[Labour Internal]]),ISNUMBER(Project_Details[[#This Row],[Labour External]])))) -> TRUE | AR43: =IF(LEFT(Project_Details[[#This Row],[RIN Asset Description]],17)="Power Transformer",IF((Project_Details[[#This Row],[ExpenditureAfter2021IsNotUsed]]=TRUE),FALSE,TRUE),"NA") -> NA | AZ43: =IFERROR(("None"=VLOOKUP(Project_Details[[#This Row],[ProjectID]],ProjectData[],MATCH("RepexDollarsBasis",ProjectData[#Headers],0),FALSE)),FALSE) -> FALSE | BA43: =IF(ISNUMBER(Project_Details[[#This Row],[Capitalisation Year]]),(Project_Details[[#This Row],[Capitalisation Year]]>=2016),"NA") -> TRUE | BB43: =(Project_Details[[#This Row],[ID]]=(ROW()-ProjectDetailsTableStartRow)) -> TRUE | BC43: =VLOOKUP(Project_Details[[#This Row],[ProjectID]],ProjectData[],MATCH("Specific Approved Project", ProjectData[#Headers],0),FALSE) -> FALSE
A44: 35 | B44: 23 | C44: =Project_Details[ID] -> 35 | D44: CP.02788 GCR Gold Coast South & West Region | E44: Augmentation - Overhead Transmission Lines, Underground Cables | F44: =ISNUMBER(MATCH(Project_Details[[#This Row],[RIN Asset Description]],Lookup_RIN_AssetCategory,0)) -> TRUE | N44: 384.50589 | O44: 1939.91 | P44: 1381.675 | Q44: 128.095 | R44: 128.103 | S44: 141.775 | T44: 78.092 | U44: 0 | AC44: 2025 | AD44: =IF((VLOOKUP(Project_Details[[#This Row],[ProjectID]],ProjectData[],MATCH("Capitalisation",ProjectData[#Headers],0),FALSE)="Project Close"),ISNUMBER(Project_Details[[#This Row],[Capitalisation Year]]),"NA") -> TRUE | AG44: =MAX(ABS(Project_Details[[#This Row],[NomIncur2021]:[NomIncur2027]]))>0 -> TRUE | AH44: =MAX(ABS(Project_Details[[#This Row],[RealIncur2021]:[RealIncur2027]]))>0 -> FALSE | AI44: =OR(AND(Project_Details[[#This Row],[DollarBasisImpliesNominal]],NOT(Project_Details[[#This Row],[DollarBasisImpliesReal2021]])), AND(NOT(Project_Details[[#This Row],[DollarBasisImpliesNominal]]),Project_Details[[#This Row],[DollarBasisImpliesReal2021]]),AND(NOT(Project_Details[[#This Row],[DollarBasisImpliesNominal]]),NOT(Project_Details[[#This Row],[DollarBasisImpliesReal2021]]))) -> TRUE | AJ44: =IFERROR(OR(AND(Project_Details[[#This Row],[DollarBasisImpliesNominal]],VLOOKUP(Project_Details[[#This Row],[ProjectID]],ProjectData[],MATCH("RepexDollarsBasis",ProjectData[#Headers],0),FALSE)="Nominal"),AND(Project_Details[[#This Row],[DollarBasisImpliesReal2021]],VLOOKUP(Project_Details[[#This Row],[ProjectID]],ProjectData[],MATCH("RepexDollarsBasis",ProjectData[#Headers],0),FALSE)="Real2021"),Project_Details[[#This Row],[ProjectHasNoDollarBasis]]),FALSE) -> TRUE | AK44: =IF(Project_Details[[#This Row],[DollarBasisImpliesReal2021]],AND(ISNUMBER(Project_Details[[#This Row],[Labour Internal]]),ISNUMBER(Project_Details[[#This Row],[Labour External]])),"NA") -> NA | AL44: =IF(Project_Details[[#This Row],[DollarBasisImpliesNominal]],NOT(OR(ISNUMBER(Project_Details[[#This Row],[Labour Internal]]),ISNUMBER(Project_Details[[#This Row],[Labour External]]))),"NA") -> TRUE | AM44: =IF(AND(Project_Details[[#This Row],[NomIncur2021]]=0,Project_Details[[#This Row],[WIP]]<>0),2021,IF(AND(Project_Details[[#This Row],[NomIncur2022]]=0,Project_Details[[#This Row],[NomIncur2021]]<>0),2021,IF(AND(Project_Details[[#This Row],[NomIncur2023]]=0,Project_Details[[#This Row],[NomIncur2022]]<>0),2022,IF(AND(Project_Details[[#This Row],[NomIncur2024]]=0,Project_Details[[#This Row],[NomIncur2023]]<>0),2023,IF(AND(Project_Details[[#This Row],[NomIncur2025]]=0,Project_Details[[#This Row],[NomIncur2024]]<>0),2024,IF(AND(Project_Details[[#This Row],[NomIncur2026]]=0,Project_Details[[#This Row],[NomIncur2025]]<>0),2025,IF(AND(Project_Details[[#This Row],[NomIncur2027]]=0,Project_Details[[#This Row],[NomIncur2026]]<>0),2026,IF(Project_Details[[#This Row],[NomIncur2027]]<>0,2027,"")))))))) -> 2026 | AN44: TRUE | AO44: =IF(NOT(ISNUMBER(Project_Details[[#This Row],[Capitalisation Year]])), "NA", OR(Project_Details[[#This Row],[OverWrite_CashFlowAndCapitalisationYearAreOK]],(Project_Details[[#This Row],[LastYearOfNominalCashFlow]]=Project_Details[[#This Row],[Capitalisation Year]]))) -> TRUE | AP44: =NOT(AND(Project_Details[[#This Row],[DollarBasisImpliesNominal]],OR(ISNUMBER(Project_Details[[#This Row],[Labour Internal]]),ISNUMBER(Project_Details[[#This Row],[Labour External]])))) -> TRUE | AR44: =IF(LEFT(Project_Details[[#This Row],[RIN Asset Description]],17)="Power Transformer",IF((Project_Details[[#This Row],[ExpenditureAfter2021IsNotUsed]]=TRUE),FALSE,TRUE),"NA") -> NA | AZ44: =IFERROR(("None"=VLOOKUP(Project_Details[[#This Row],[ProjectID]],ProjectData[],MATCH("RepexDollarsBasis",ProjectData[#Headers],0),FALSE)),FALSE) -> FALSE | BA44: =IF(ISNUMBER(Project_Details[[#This Row],[Capitalisation Year]]),(Project_Details[[#This Row],[Capitalisation Year]]>=2016),"NA") -> TRUE | BB44: =(Project_Details[[#This Row],[ID]]=(ROW()-ProjectDetailsTableStartRow)) -> TRUE | BC44: =VLOOKUP(Project_Details[[#This Row],[ProjectID]],ProjectData[],MATCH("Specific Approved Project", ProjectData[#Headers],0),FALSE) -> FALSE
A45: 36 | B45: 24 | C45: =Project_Details[ID] -> 36 | D45: CP.01705 Calvale - Stanwell 275kV DCST Line (CC) | E45: Balancing Item - Post Commissioning | F45: =ISNUMBER(MATCH(Project_Details[[#This Row],[RIN Asset Description]],Lookup_RIN_AssetCategory,0)) -> TRUE | N45: 0 | O45: 0.112608 | P45: 0 | Q45: 0 | R45: 0 | S45: 0 | T45: 0 | U45: 0 | AC45: 2020 | AD45: =IF((VLOOKUP(Project_Details[[#This Row],[ProjectID]],ProjectData[],MATCH("Capitalisation",ProjectData[#Headers],0),FALSE)="Project Close"),ISNUMBER(Project_Details[[#This Row],[Capitalisation Year]]),"NA") -> TRUE | AG45: =MAX(ABS(Project_Details[[#This Row],[NomIncur2021]:[NomIncur2027]]))>0 -> TRUE | AH45: =MAX(ABS(Project_Details[[#This Row],[RealIncur2021]:[RealIncur2027]]))>0 -> FALSE | AI45: =OR(AND(Project_Details[[#This Row],[DollarBasisImpliesNominal]],NOT(Project_Details[[#This Row],[DollarBasisImpliesReal2021]])), AND(NOT(Project_Details[[#This Row],[DollarBasisImpliesNominal]]),Project_Details[[#This Row],[DollarBasisImpliesReal2021]]),AND(NOT(Project_Details[[#This Row],[DollarBasisImpliesNominal]]),NOT(Project_Details[[#This Row],[DollarBasisImpliesReal2021]]))) -> TRUE | AJ45: =IFERROR(OR(AND(Project_Details[[#This Row],[DollarBasisImpliesNominal]],VLOOKUP(Project_Details[[#This Row],[ProjectID]],ProjectData[],MATCH("RepexDollarsBasis",ProjectData[#Headers],0),FALSE)="Nominal"),AND(Project_Details[[#This Row],[DollarBasisImpliesReal2021]],VLOOKUP(Project_Details[[#This Row],[ProjectID]],ProjectData[],MATCH("RepexDollarsBasis",ProjectData[#Headers],0),FALSE)="Real2021"),Project_Details[[#This Row],[ProjectHasNoDollarBasis]]),FALSE) -> TRUE | AK45: =IF(Project_Details[[#This Row],[DollarBasisImpliesReal2021]],AND(ISNUMBER(Project_Details[[#This Row],[Labour Internal]]),ISNUMBER(Project_Details[[#This Row],[Labour External]])),"NA") -> NA | AL45: =IF(Project_Details[[#This Row],[DollarBasisImpliesNominal]],NOT(OR(ISNUMBER(Project_Details[[#This Row],[Labour Internal]]),ISNUMBER(Project_Details[[#This Row],[Labour External]]))),"NA") -> TRUE | AM45: =IF(AND(Project_Details[[#This Row],[NomIncur2021]]=0,Project_Details[[#This Row],[WIP]]<>0),2021,IF(AND(Project_Details[[#This Row],[NomIncur2022]]=0,Project_Details[[#This Row],[NomIncur2021]]<>0),2021,IF(AND(Project_Details[[#This Row],[NomIncur2023]]=0,Project_Details[[#This Row],[NomIncur2022]]<>0),2022,IF(AND(Project_Details[[#This Row],[NomIncur2024]]=0,Project_Details[[#This Row],[NomIncur2023]]<>0),2023,IF(AND(Project_Details[[#This Row],[NomIncur2025]]=0,Project_Details[[#This Row],[NomIncur2024]]<>0),2024,IF(AND(Project_Details[[#This Row],[NomIncur2026]]=0,Project_Details[[#This Row],[NomIncur2025]]<>0),2025,IF(AND(Project_Details[[#This Row],[NomIncur2027]]=0,Project_Details[[#This Row],[NomIncur2026]]<>0),2026,IF(Project_Details[[#This Row],[NomIncur2027]]<>0,2027,"")))))))) -> 2021 | AN45: TRUE | AO45: =IF(NOT(ISNUMBER(Project_Details[[#This Row],[Capitalisation Year]])), "NA", OR(Project_Details[[#This Row],[OverWrite_CashFlowAndCapitalisationYearAreOK]],(Project_Details[[#This Row],[LastYearOfNominalCashFlow]]=Project_Details[[#This Row],[Capitalisation Year]]))) -> TRUE | AP45: =NOT(AND(Project_Details[[#This Row],[DollarBasisImpliesNominal]],OR(ISNUMBER(Project_Details[[#This Row],[Labour Internal]]),ISNUMBER(Project_Details[[#This Row],[Labour External]])))) -> TRUE | AR45: =IF(LEFT(Project_Details[[#This Row],[RIN Asset Description]],17)="Power Transformer",IF((Project_Details[[#This Row],[ExpenditureAfter2021IsNotUsed]]=TRUE),FALSE,TRUE),"NA") -> NA | AZ45: =IFERROR(("None"=VLOOKUP(Project_Details[[#This Row],[ProjectID]],ProjectData[],MATCH("RepexDollarsBasis",ProjectData[#Headers],0),FALSE)),FALSE) -> FALSE | BA45: =IF(ISNUMBER(Project_Details[[#This Row],[Capitalisation Year]]),(Project_Details[[#This Row],[Capitalisation Year]]>=2016),"NA") -> TRUE | BB45: =(Project_Details[[#This Row],[ID]]=(ROW()-ProjectDetailsTableStartRow)) -> TRUE | BC45: =VLOOKUP(Project_Details[[#This Row],[ProjectID]],ProjectData[],MATCH("Specific Approved Project", ProjectData[#Headers],0),FALSE) -> TRUE
A46: 37 | B46: 24 | C46: =Project_Details[ID] -> 37 | D46: CP.02718 QNI - Upgrade Transfer Capacity (CC) | E46: Balancing Item - Post Commissioning | F46: =ISNUMBER(MATCH(Project_Details[[#This Row],[RIN Asset Description]],Lookup_RIN_AssetCategory,0)) -> TRUE | N46: 1279.27031 | O46: 0 | P46: 0 | Q46: 0 | R46: 0 | S46: 0 | T46: 0 | U46: 0 | AC46: 2020 | AD46: =IF((VLOOKUP(Project_Details[[#This Row],[ProjectID]],ProjectData[],MATCH("Capitalisation",ProjectData[#Headers],0),FALSE)="Project Close"),ISNUMBER(Project_Details[[#This Row],[Capitalisation Year]]),"NA") -> TRUE | AG46: =MAX(ABS(Project_Details[[#This Row],[WIP]:[NomIncur2027]]))>0 -> TRUE | AH46: =MAX(ABS(Project_Details[[#This Row],[RealIncur2021]:[RealIncur2027]]))>0 -> FALSE | AI46: =OR(AND(Project_Details[[#This Row],[DollarBasisImpliesNominal]],NOT(Project_Details[[#This Row],[DollarBasisImpliesReal2021]])), AND(NOT(Project_Details[[#This Row],[DollarBasisImpliesNominal]]),Project_Details[[#This Row],[DollarBasisImpliesReal2021]]),AND(NOT(Project_Details[[#This Row],[DollarBasisImpliesNominal]]),NOT(Project_Details[[#This Row],[DollarBasisImpliesReal2021]]))) -> TRUE | AJ46: =IFERROR(OR(AND(Project_Details[[#This Row],[DollarBasisImpliesNominal]],VLOOKUP(Project_Details[[#This Row],[ProjectID]],ProjectData[],MATCH("RepexDollarsBasis",ProjectData[#Headers],0),FALSE)="Nominal"),AND(Project_Details[[#This Row],[DollarBasisImpliesReal2021]],VLOOKUP(Project_Details[[#This Row],[ProjectID]],ProjectData[],MATCH("RepexDollarsBasis",ProjectData[#Headers],0),FALSE)="Real2021"),Project_Details[[#This Row],[ProjectHasNoDollarBasis]]),FALSE) -> TRUE | AK46: =IF(Project_Details[[#This Row],[DollarBasisImpliesReal2021]],AND(ISNUMBER(Project_Details[[#This Row],[Labour Internal]]),ISNUMBER(Project_Details[[#This Row],[Labour External]])),"NA") -> NA | AL46: =IF(Project_Details[[#This Row],[DollarBasisImpliesNominal]],NOT(OR(ISNUMBER(Project_Details[[#This Row],[Labour Internal]]),ISNUMBER(Project_Details[[#This Row],[Labour External]]))),"NA") -> TRUE | AM46: =IF(AND(Project_Details[[#This Row],[NomIncur2021]]=0,Project_Details[[#This Row],[WIP]]<>0),2021,IF(AND(Project_Details[[#This Row],[NomIncur2022]]=0,Project_Details[[#This Row],[NomIncur2021]]<>0),2021,IF(AND(Project_Details[[#This Row],[NomIncur2023]]=0,Project_Details[[#This Row],[NomIncur2022]]<>0),2022,IF(AND(Project_Details[[#This Row],[NomIncur2024]]=0,Project_Details[[#This Row],[NomIncur2023]]<>0),2023,IF(AND(Project_Details[[#This Row],[NomIncur2025]]=0,Project_Details[[#This Row],[NomIncur2024]]<>0),2024,IF(AND(Project_Details[[#This Row],[NomIncur2026]]=0,Project_Details[[#This Row],[NomIncur2025]]<>0),2025,IF(AND(Project_Details[[#This Row],[NomIncur2027]]=0,Project_Details[[#This Row],[NomIncur2026]]<>0),2026,IF(Project_Details[[#This Row],[NomIncur2027]]<>0,2027,"")))))))) -> 2021 | AN46: TRUE | AO46: =IF(NOT(ISNUMBER(Project_Details[[#This Row],[Capitalisation Year]])), "NA", OR(Project_Details[[#This Row],[OverWrite_CashFlowAndCapitalisationYearAreOK]],(Project_Details[[#This Row],[LastYearOfNominalCashFlow]]=Project_Details[[#This Row],[Capitalisation Year]]))) -> TRUE | AP46: =NOT(AND(Project_Details[[#This Row],[DollarBasisImpliesNominal]],OR(ISNUMBER(Project_Details[[#This Row],[Labour Internal]]),ISNUMBER(Project_Details[[#This Row],[Labour External]])))) -> TRUE | AR46: =IF(LEFT(Project_Details[[#This Row],[RIN Asset Description]],17)="Power Transformer",IF((Project_Details[[#This Row],[ExpenditureAfter2021IsNotUsed]]=TRUE),FALSE,TRUE),"NA") -> NA | AZ46: =IFERROR(("None"=VLOOKUP(Project_Details[[#This Row],[ProjectID]],ProjectData[],MATCH("RepexDollarsBasis",ProjectData[#Headers],0),FALSE)),FALSE) -> FALSE | BA46: =IF(ISNUMBER(Project_Details[[#This Row],[Capitalisation Year]]),(Project_Details[[#This Row],[Capitalisation Year]]>=2016),"NA") -> TRUE | BB46: =(Project_Details[[#This Row],[ID]]=(ROW()-ProjectDetailsTableStartRow)) -> TRUE | BC46: =VLOOKUP(Project_Details[[#This Row],[ProjectID]],ProjectData[],MATCH("Specific Approved Project", ProjectData[#Headers],0),FALSE) -> TRUE
A47: 38 | B47: 25 | C47: =Project_Details[ID] -> 38 | D47: Not Yet Capitalised Past Projects - Other (AA2) | E47: Balancing Item - Post Commissioning | F47: =ISNUMBER(MATCH(Project_Details[[#This Row],[RIN Asset Description]],Lookup_RIN_AssetCategory,0)) -> TRUE | N47: 701.7381116 | O47: 642.239151 | P47: 40.3267168 | Q47: 0 | R47: 0 | S47: 0 | T47: 0 | U47: 0 | AC47: 2021 | AD47: =IF((VLOOKUP(Project_Details[[#This Row],[ProjectID]],ProjectData[],MATCH("Capitalisation",ProjectData[#Headers],0),FALSE)="Project Close"),ISNUMBER(Project_Details[[#This Row],[Capitalisation Year]]),"NA") -> TRUE | AG47: =MAX(ABS(Project_Details[[#This Row],[NomIncur2021]:[NomIncur2027]]))>0 -> TRUE | AH47: =MAX(ABS(Project_Details[[#This Row],[RealIncur2021]:[RealIncur2027]]))>0 -> FALSE | AI47: =OR(AND(Project_Details[[#This Row],[DollarBasisImpliesNominal]],NOT(Project_Details[[#This Row],[DollarBasisImpliesReal2021]])), AND(NOT(Project_Details[[#This Row],[DollarBasisImpliesNominal]]),Project_Details[[#This Row],[DollarBasisImpliesReal2021]]),AND(NOT(Project_Details[[#This Row],[DollarBasisImpliesNominal]]),NOT(Project_Details[[#This Row],[DollarBasisImpliesReal2021]]))) -> TRUE | AJ47: =IFERROR(OR(AND(Project_Details[[#This Row],[DollarBasisImpliesNominal]],VLOOKUP(Project_Details[[#This Row],[ProjectID]],ProjectData[],MATCH("RepexDollarsBasis",ProjectData[#Headers],0),FALSE)="Nominal"),AND(Project_Details[[#This Row],[DollarBasisImpliesReal2021]],VLOOKUP(Project_Details[[#This Row],[ProjectID]],ProjectData[],MATCH("RepexDollarsBasis",ProjectData[#Headers],0),FALSE)="Real2021"),Project_Details[[#This Row],[ProjectHasNoDollarBasis]]),FALSE) -> TRUE | AK47: =IF(Project_Details[[#This Row],[DollarBasisImpliesReal2021]],AND(ISNUMBER(Project_Details[[#This Row],[Labour Internal]]),ISNUMBER(Project_Details[[#This Row],[Labour External]])),"NA") -> NA | AL47: =IF(Project_Details[[#This Row],[DollarBasisImpliesNominal]],NOT(OR(ISNUMBER(Project_Details[[#This Row],[Labour Internal]]),ISNUMBER(Project_Details[[#This Row],[Labour External]]))),"NA") -> TRUE | AM47: =IF(AND(Project_Details[[#This Row],[NomIncur2021]]=0,Project_Details[[#This Row],[WIP]]<>0),2021,IF(AND(Project_Details[[#This Row],[NomIncur2022]]=0,Project_Details[[#This Row],[NomIncur2021]]<>0),2021,IF(AND(Project_Details[[#This Row],[NomIncur2023]]=0,Project_Details[[#This Row],[NomIncur2022]]<>0),2022,IF(AND(Project_Details[[#This Row],[NomIncur2024]]=0,Project_Details[[#This Row],[NomIncur2023]]<>0),2023,IF(AND(Project_Details[[#This Row],[NomIncur2025]]=0,Project_Details[[#This Row],[NomIncur2024]]<>0),2024,IF(AND(Project_Details[[#This Row],[NomIncur2026]]=0,Project_Details[[#This Row],[NomIncur2025]]<>0),2025,IF(AND(Project_Details[[#This Row],[NomIncur2027]]=0,Project_Details[[#This Row],[NomIncur2026]]<>0),2026,IF(Project_Details[[#This Row],[NomIncur2027]]<>0,2027,"")))))))) -> 2022 | AN47: TRUE | AO47: =IF(NOT(ISNUMBER(Project_Details[[#This Row],[Capitalisation Year]])), "NA", OR(Project_Details[[#This Row],[OverWrite_CashFlowAndCapitalisationYearAreOK]],(Project_Details[[#This Row],[LastYearOfNominalCashFlow]]=Project_Details[[#This Row],[Capitalisation Year]]))) -> TRUE | AP47: =NOT(AND(Project_Details[[#This Row],[DollarBasisImpliesNominal]],OR(ISNUMBER(Project_Details[[#This Row],[Labour Internal]]),ISNUMBER(Project_Details[[#This Row],[Labour External]])))) -> TRUE | AR47: =IF(LEFT(Project_Details[[#This Row],[RIN Asset Description]],17)="Power Transformer",IF((Project_Details[[#This Row],[ExpenditureAfter2021IsNotUsed]]=TRUE),FALSE,TRUE),"NA") -> NA | AZ47: =IFERROR(("None"=VLOOKUP(Project_Details[[#This Row],[ProjectID]],ProjectData[],MATCH("RepexDollarsBasis",ProjectData[#Headers],0),FALSE)),FALSE) -> FALSE | BA47: =IF(ISNUMBER(Project_Details[[#This Row],[Capitalisation Year]]),(Project_Details[[#This Row],[Capitalisation Year]]>=2016),"NA") -> TRUE | BB47: =(Project_Details[[#This Row],[ID]]=(ROW()-ProjectDetailsTableStartRow)) -> TRUE | BC47: =VLOOKUP(Project_Details[[#This Row],[ProjectID]],ProjectData[],MATCH("Specific Approved Project", ProjectData[#Headers],0),FALSE) -> FALSE
A48: 39 | B48: 26 | C48: =Project_Details[ID] -> 39 | D48: Not Yet Capitalised Past Projects - Replacement (AA2) | E48: Balancing Item - Post Commissioning | F48: =ISNUMBER(MATCH(Project_Details[[#This Row],[RIN Asset Description]],Lookup_RIN_AssetCategory,0)) -> TRUE | N48: 30348.7623 | O48: 2714.04203 | P48: 2938.964057 | Q48: 204.3881073 | R48: 615.69188 | S48: 0 | T48: 0 | U48: 0 | AC48: 2021 | AD48: =IF((VLOOKUP(Project_Details[[#This Row],[ProjectID]],ProjectData[],MATCH("Capitalisation",ProjectData[#Headers],0),FALSE)="Project Close"),ISNUMBER(Project_Details[[#This Row],[Capitalisation Year]]),"NA") -> TRUE | AG48: =MAX(ABS(Project_Details[[#This Row],[NomIncur2021]:[NomIncur2027]]))>0 -> TRUE | AH48: =MAX(ABS(Project_Details[[#This Row],[RealIncur2021]:[RealIncur2027]]))>0 -> FALSE | AI48: =OR(AND(Project_Details[[#This Row],[DollarBasisImpliesNominal]],NOT(Project_Details[[#This Row],[DollarBasisImpliesReal2021]])), AND(NOT(Project_Details[[#This Row],[DollarBasisImpliesNominal]]),Project_Details[[#This Row],[DollarBasisImpliesReal2021]]),AND(NOT(Project_Details[[#This Row],[DollarBasisImpliesNominal]]),NOT(Project_Details[[#This Row],[DollarBasisImpliesReal2021]]))) -> TRUE | AJ48: =IFERROR(OR(AND(Project_Details[[#This Row],[DollarBasisImpliesNominal]],VLOOKUP(Project_Details[[#This Row],[ProjectID]],ProjectData[],MATCH("RepexDollarsBasis",ProjectData[#Headers],0),FALSE)="Nominal"),AND(Project_Details[[#This Row],[DollarBasisImpliesReal2021]],VLOOKUP(Project_Details[[#This Row],[ProjectID]],ProjectData[],MATCH("RepexDollarsBasis",ProjectData[#Headers],0),FALSE)="Real2021"),Project_Details[[#This Row],[ProjectHasNoDollarBasis]]),FALSE) -> TRUE | AK48: =IF(Project_Details[[#This Row],[DollarBasisImpliesReal2021]],AND(ISNUMBER(Project_Details[[#This Row],[Labour Internal]]),ISNUMBER(Project_Details[[#This Row],[Labour External]])),"NA") -> NA | AL48: =IF(Project_Details[[#This Row],[DollarBasisImpliesNominal]],NOT(OR(ISNUMBER(Project_Details[[#This Row],[Labour Internal]]),ISNUMBER(Project_Details[[#This Row],[Labour External]]))),"NA") -> TRUE | AM48: =IF(AND(Project_Details[[#This Row],[NomIncur2021]]=0,Project_Details[[#This Row],[WIP]]<>0),2021,IF(AND(Project_Details[[#This Row],[NomIncur2022]]=0,Project_Details[[#This Row],[NomIncur2021]]<>0),2021,IF(AND(Project_Details[[#This Row],[NomIncur2023]]=0,Project_Details[[#This Row],[NomIncur2022]]<>0),2022,IF(AND(Project_Details[[#This Row],[NomIncur2024]]=0,Project_Details[[#This Row],[NomIncur2023]]<>0),2023,IF(AND(Project_Details[[#This Row],[NomIncur2025]]=0,Project_Details[[#This Row],[NomIncur2024]]<>0),2024,IF(AND(Project_Details[[#This Row],[NomIncur2026]]=0,Project_Details[[#This Row],[NomIncur2025]]<>0),2025,IF(AND(Project_Details[[#This Row],[NomIncur2027]]=0,Project_Details[[#This Row],[NomIncur2026]]<>0),2026,IF(Project_Details[[#This Row],[NomIncur2027]]<>0,2027,"")))))))) -> 2024 | AN48: TRUE | AO48: =IF(NOT(ISNUMBER(Project_Details[[#This Row],[Capitalisation Year]])), "NA", OR(Project_Details[[#This Row],[OverWrite_CashFlowAndCapitalisationYearAreOK]],(Project_Details[[#This Row],[LastYearOfNominalCashFlow]]=Project_Details[[#This Row],[Capitalisation Year]]))) -> TRUE | AP48: =NOT(AND(Project_Details[[#This Row],[DollarBasisImpliesNominal]],OR(ISNUMBER(Project_Details[[#This Row],[Labour Internal]]),ISNUMBER(Project_Details[[#This Row],[Labour External]])))) -> TRUE | AR48: =IF(LEFT(Project_Details[[#This Row],[RIN Asset Description]],17)="Power Transformer",IF((Project_Details[[#This Row],[ExpenditureAfter2021IsNotUsed]]=TRUE),FALSE,TRUE),"NA") -> NA | AZ48: =IFERROR(("None"=VLOOKUP(Project_Details[[#This Row],[ProjectID]],ProjectData[],MATCH("RepexDollarsBasis",ProjectData[#Headers],0),FALSE)),FALSE) -> FALSE | BA48: =IF(ISNUMBER(Project_Details[[#This Row],[Capitalisation Year]]),(Project_Details[[#This Row],[Capitalisation Year]]>=2016),"NA") -> TRUE | BB48: =(Project_Details[[#This Row],[ID]]=(ROW()-ProjectDetailsTableStartRow)) -> TRUE | BC48: =VLOOKUP(Project_Details[[#This Row],[ProjectID]],ProjectData[],MATCH("Specific Approved Project", ProjectData[#Headers],0),FALSE) -> FALSE
A49: 40 | B49: 27 | C49: =Project_Details[ID] -> 40 | D49: Tools | E49: Non-Network - Other | F49: =ISNUMBER(MATCH(Project_Details[[#This Row],[RIN Asset Description]],Lookup_RIN_AssetCategory,0)) -> TRUE | N49: 1309.230319 | V49: 955 | W49: 1422.644245 | X49: 1422.644245 | Y49: 1422.644245 | Z49: 1422.644245 | AA49: 1422.644245 | AB49: 1422.644245 | AD49: =IF((VLOOKUP(Project_Details[[#This Row],[ProjectID]],ProjectData[],MATCH("Capitalisation",ProjectData[#Headers],0),FALSE)="Project Close"),ISNUMBER(Project_Details[[#This Row],[Capitalisation Year]]),"NA") -> NA | AE49: 0.1 | AF49: 0 | AG49: =MAX(ABS(Project_Details[[#This Row],[NomIncur2021]:[NomIncur2027]]))>0 -> FALSE | AH49: =MAX(ABS(Project_Details[[#This Row],[RealIncur2021]:[RealIncur2027]]))>0 -> TRUE | AI49: =OR(AND(Project_Details[[#This Row],[DollarBasisImpliesNominal]],NOT(Project_Details[[#This Row],[DollarBasisImpliesReal2021]])), AND(NOT(Project_Details[[#This Row],[DollarBasisImpliesNominal]]),Project_Details[[#This Row],[DollarBasisImpliesReal2021]]),AND(NOT(Project_Details[[#This Row],[DollarBasisImpliesNominal]]),NOT(Project_Details[[#This Row],[DollarBasisImpliesReal2021]]))) -> TRUE | AJ49: =IFERROR(OR(AND(Project_Details[[#This Row],[DollarBasisImpliesNominal]],VLOOKUP(Project_Details[[#This Row],[ProjectID]],ProjectData[],MATCH("RepexDollarsBasis",ProjectData[#Headers],0),FALSE)="Nominal"),AND(Project_Details[[#This Row],[DollarBasisImpliesReal2021]],VLOOKUP(Project_Details[[#This Row],[ProjectID]],ProjectData[],MATCH("RepexDollarsBasis",ProjectData[#Headers],0),FALSE)="Real2021"),Project_Details[[#This Row],[ProjectHasNoDollarBasis]]),FALSE) -> TRUE | AK49: =IF(Project_Details[[#This Row],[DollarBasisImpliesReal2021]],AND(ISNUMBER(Project_Details[[#This Row],[Labour Internal]]),ISNUMBER(Project_Details[[#This Row],[Labour External]])),"NA") -> TRUE | AL49: =IF(Project_Details[[#This Row],[DollarBasisImpliesNominal]],NOT(OR(ISNUMBER(Project_Details[[#This Row],[Labour Internal]]),ISNUMBER(Project_Details[[#This Row],[Labour External]]))),"NA") -> NA | AM49: =IF(AND(Project_Details[[#This Row],[NomIncur2021]]=0,Project_Details[[#This Row],[WIP]]<>0),2021,IF(AND(Project_Details[[#This Row],[NomIncur2022]]=0,Project_Details[[#This Row],[NomIncur2021]]<>0),2021,IF(AND(Project_Details[[#This Row],[NomIncur2023]]=0,Project_Details[[#This Row],[NomIncur2022]]<>0),2022,IF(AND(Project_Details[[#This Row],[NomIncur2024]]=0,Project_Details[[#This Row],[NomIncur2023]]<>0),2023,IF(AND(Project_Details[[#This Row],[NomIncur2025]]=0,Project_Details[[#This Row],[NomIncur2024]]<>0),2024,IF(AND(Project_Details[[#This Row],[NomIncur2026]]=0,Project_Details[[#This Row],[NomIncur2025]]<>0),2025,IF(AND(Project_Details[[#This Row],[NomIncur2027]]=0,Project_Details[[#This Row],[NomIncur2026]]<>0),2026,IF(Project_Details[[#This Row],[NomIncur2027]]<>0,2027,"")))))))) -> 2021 | AO49: =IF(NOT(ISNUMBER(Project_Details[[#This Row],[Capitalisation Year]])), "NA", OR(Project_Details[[#This Row],[OverWrite_CashFlowAndCapitalisationYearAreOK]],(Project_Details[[#This Row],[LastYearOfNominalCashFlow]]=Project_Details[[#This Row],[Capitalisation Year]]))) -> NA | AP49: =NOT(AND(Project_Details[[#This Row],[DollarBasisImpliesNominal]],OR(ISNUMBER(Project_Details[[#This Row],[Labour Internal]]),ISNUMBER(Project_Details[[#This Row],[Labour External]])))) -> TRUE | AR49: =IF(LEFT(Project_Details[[#This Row],[RIN Asset Description]],17)="Power Transformer",IF((Project_Details[[#This Row],[ExpenditureAfter2021IsNotUsed]]=TRUE),FALSE,TRUE),"NA") -> NA | AZ49: =IFERROR(("None"=VLOOKUP(Project_Details[[#This Row],[ProjectID]],ProjectData[],MATCH("RepexDollarsBasis",ProjectData[#Headers],0),FALSE)),FALSE) -> FALSE | BA49: =IF(ISNUMBER(Project_Details[[#This Row],[Capitalisation Year]]),(Project_Details[[#This Row],[Capitalisation Year]]>=2016),"NA") -> NA | BB49: =(Project_Details[[#This Row],[ID]]=(ROW()-ProjectDetailsTableStartRow)) -> TRUE | BC49: =VLOOKUP(Project_Details[[#This Row],[ProjectID]],ProjectData[],MATCH("Specific Approved Project", ProjectData[#Headers],0),FALSE) -> FALSE
A50: 41 | B50: 28 | C50: =Project_Details[ID] -> 41 | D50: MV | E50: Non Network - Motor Vehicles | F50: =ISNUMBER(MATCH(Project_Details[[#This Row],[RIN Asset Description]],Lookup_RIN_AssetCategory,0)) -> TRUE | N50: 0 | V50: 4597.626949 | W50: 3248.727633 | X50: 2970.961356 | Y50: 2173.836051 | Z50: 3030.952232 | AA50: 4070.405676 | AB50: 3932.966324 | AD50: =IF((VLOOKUP(Project_Details[[#This Row],[ProjectID]],ProjectData[],MATCH("Capitalisation",ProjectData[#Headers],0),FALSE)="Project Close"),ISNUMBER(Project_Details[[#This Row],[Capitalisation Year]]),"NA") -> NA | AE50: 0.05 | AF50: 0 | AG50: =MAX(ABS(Project_Details[[#This Row],[NomIncur2021]:[NomIncur2027]]))>0 -> FALSE | AH50: =MAX(ABS(Project_Details[[#This Row],[RealIncur2021]:[RealIncur2027]]))>0 -> TRUE | AI50: =OR(AND(Project_Details[[#This Row],[DollarBasisImpliesNominal]],NOT(Project_Details[[#This Row],[DollarBasisImpliesReal2021]])), AND(NOT(Project_Details[[#This Row],[DollarBasisImpliesNominal]]),Project_Details[[#This Row],[DollarBasisImpliesReal2021]]),AND(NOT(Project_Details[[#This Row],[DollarBasisImpliesNominal]]),NOT(Project_Details[[#This Row],[DollarBasisImpliesReal2021]]))) -> TRUE | AJ50: =IFERROR(OR(AND(Project_Details[[#This Row],[DollarBasisImpliesNominal]],VLOOKUP(Project_Details[[#This Row],[ProjectID]],ProjectData[],MATCH("RepexDollarsBasis",ProjectData[#Headers],0),FALSE)="Nominal"),AND(Project_Details[[#This Row],[DollarBasisImpliesReal2021]],VLOOKUP(Project_Details[[#This Row],[ProjectID]],ProjectData[],MATCH("RepexDollarsBasis",ProjectData[#Headers],0),FALSE)="Real2021"),Project_Details[[#This Row],[ProjectHasNoDollarBasis]]),FALSE) -> TRUE | AK50: =IF(Project_Details[[#This Row],[DollarBasisImpliesReal2021]],AND(ISNUMBER(Project_Details[[#This Row],[Labour Internal]]),ISNUMBER(Project_Details[[#This Row],[Labour External]])),"NA") -> TRUE | AL50: =IF(Project_Details[[#This Row],[DollarBasisImpliesNominal]],NOT(OR(ISNUMBER(Project_Details[[#This Row],[Labour Internal]]),ISNUMBER(Project_Details[[#This Row],[Labour External]]))),"NA") -> NA | AM50: =IF(AND(Project_Details[[#This Row],[NomIncur2021]]=0,Project_Details[[#This Row],[WIP]]<>0),2021,IF(AND(Project_Details[[#This Row],[NomIncur2022]]=0,Project_Details[[#This Row],[NomIncur2021]]<>0),2021,IF(AND(Project_Details[[#This Row],[NomIncur2023]]=0,Project_Details[[#This Row],[NomIncur2022]]<>0),2022,IF(AND(Project_Details[[#This Row],[NomIncur2024]]=0,Project_Details[[#This Row],[NomIncur2023]]<>0),2023,IF(AND(Project_Details[[#This Row],[NomIncur2025]]=0,Project_Details[[#This Row],[NomIncur2024]]<>0),2024,IF(AND(Project_Details[[#This Row],[NomIncur2026]]=0,Project_Details[[#This Row],[NomIncur2025]]<>0),2025,IF(AND(Project_Details[[#This Row],[NomIncur2027]]=0,Project_Details[[#This Row],[NomIncur2026]]<>0),2026,IF(Project_Details[[#This Row],[NomIncur2027]]<>0,2027,"")))))))) ->  | AO50: =IF(NOT(ISNUMBER(Project_Details[[#This Row],[Capitalisation Year]])), "NA", OR(Project_Details[[#This Row],[OverWrite_CashFlowAndCapitalisationYearAreOK]],(Project_Details[[#This Row],[LastYearOfNominalCashFlow]]=Project_Details[[#This Row],[Capitalisation Year]]))) -> NA | AP50: =NOT(AND(Project_Details[[#This Row],[DollarBasisImpliesNominal]],OR(ISNUMBER(Project_Details[[#This Row],[Labour Internal]]),ISNUMBER(Project_Details[[#This Row],[Labour External]])))) -> TRUE | AR50: =IF(LEFT(Project_Details[[#This Row],[RIN Asset Description]],17)="Power Transformer",IF((Project_Details[[#This Row],[ExpenditureAfter2021IsNotUsed]]=TRUE),FALSE,TRUE),"NA") -> NA | AZ50: =IFERROR(("None"=VLOOKUP(Project_Details[[#This Row],[ProjectID]],ProjectData[],MATCH("RepexDollarsBasis",ProjectData[#Headers],0),FALSE)),FALSE) -> FALSE | BA50: =IF(ISNUMBER(Project_Details[[#This Row],[Capitalisation Year]]),(Project_Details[[#This Row],[Capitalisation Year]]>=2016),"NA") -> NA | BB50: =(Project_Details[[#This Row],[ID]]=(ROW()-ProjectDetailsTableStartRow)) -> TRUE | BC50: =VLOOKUP(Project_Details[[#This Row],[ProjectID]],ProjectData[],MATCH("Specific Approved Project", ProjectData[#Headers],0),FALSE) -> FALSE
A51: 42 | B51: 29 | C51: =Project_Details[ID] -> 42 | D51: Buildings - Sustaining | E51: Non Network - Buildings And Property | F51: =ISNUMBER(MATCH(Project_Details[[#This Row],[RIN Asset Description]],Lookup_RIN_AssetCategory,0)) -> TRUE | N51: 4140 | V51: 37.787 | W51: 1652.213 | X51: 735.66 | Y51: 562.72 | Z51: 918.47 | AA51: 488.8 | AB51: 40.5 | AD51: =IF((VLOOKUP(Project_Details[[#This Row],[ProjectID]],ProjectData[],MATCH("Capitalisation",ProjectData[#Headers],0),FALSE)="Project Close"),ISNUMBER(Project_Details[[#This Row],[Capitalisation Year]]),"NA") -> NA | AE51: 0.02 | AF51: 0 | AG51: =MAX(ABS(Project_Details[[#This Row],[NomIncur2021]:[NomIncur2027]]))>0 -> FALSE | AH51: =MAX(ABS(Project_Details[[#This Row],[RealIncur2021]:[RealIncur2027]]))>0 -> TRUE | AI51: =OR(AND(Project_Details[[#This Row],[DollarBasisImpliesNominal]],NOT(Project_Details[[#This Row],[DollarBasisImpliesReal2021]])), AND(NOT(Project_Details[[#This Row],[DollarBasisImpliesNominal]]),Project_Details[[#This Row],[DollarBasisImpliesReal2021]]),AND(NOT(Project_Details[[#This Row],[DollarBasisImpliesNominal]]),NOT(Project_Details[[#This Row],[DollarBasisImpliesReal2021]]))) -> TRUE | AJ51: =IFERROR(OR(AND(Project_Details[[#This Row],[DollarBasisImpliesNominal]],VLOOKUP(Project_Details[[#This Row],[ProjectID]],ProjectData[],MATCH("RepexDollarsBasis",ProjectData[#Headers],0),FALSE)="Nominal"),AND(Project_Details[[#This Row],[DollarBasisImpliesReal2021]],VLOOKUP(Project_Details[[#This Row],[ProjectID]],ProjectData[],MATCH("RepexDollarsBasis",ProjectData[#Headers],0),FALSE)="Real2021"),Project_Details[[#This Row],[ProjectHasNoDollarBasis]]),FALSE) -> TRUE | AK51: =IF(Project_Details[[#This Row],[DollarBasisImpliesReal2021]],AND(ISNUMBER(Project_Details[[#This Row],[Labour Internal]]),ISNUMBER(Project_Details[[#This Row],[Labour External]])),"NA") -> TRUE | AL51: =IF(Project_Details[[#This Row],[DollarBasisImpliesNominal]],NOT(OR(ISNUMBER(Project_Details[[#This Row],[Labour Internal]]),ISNUMBER(Project_Details[[#This Row],[Labour External]]))),"NA") -> NA | AM51: =IF(AND(Project_Details[[#This Row],[NomIncur2021]]=0,Project_Details[[#This Row],[WIP]]<>0),2021,IF(AND(Project_Details[[#This Row],[NomIncur2022]]=0,Project_Details[[#This Row],[NomIncur2021]]<>0),2021,IF(AND(Project_Details[[#This Row],[NomIncur2023]]=0,Project_Details[[#This Row],[NomIncur2022]]<>0),2022,IF(AND(Project_Details[[#This Row],[NomIncur2024]]=0,Project_Details[[#This Row],[NomIncur2023]]<>0),2023,IF(AND(Project_Details[[#This Row],[NomIncur2025]]=0,Project_Details[[#This Row],[NomIncur2024]]<>0),2024,IF(AND(Project_Details[[#This Row],[NomIncur2026]]=0,Project_Details[[#This Row],[NomIncur2025]]<>0),2025,IF(AND(Project_Details[[#This Row],[NomIncur2027]]=0,Project_Details[[#This Row],[NomIncur2026]]<>0),2026,IF(Project_Details[[#This Row],[NomIncur2027]]<>0,2027,"")))))))) -> 2021 | AO51: =IF(NOT(ISNUMBER(Project_Details[[#This Row],[Capitalisation Year]])), "NA", OR(Project_Details[[#This Row],[OverWrite_CashFlowAndCapitalisationYearAreOK]],(Project_Details[[#This Row],[LastYearOfNominalCashFlow]]=Project_Details[[#This Row],[Capitalisation Year]]))) -> NA | AP51: =NOT(AND(Project_Details[[#This Row],[DollarBasisImpliesNominal]],OR(ISNUMBER(Project_Details[[#This Row],[Labour Internal]]),ISNUMBER(Project_Details[[#This Row],[Labour External]])))) -> TRUE | AR51: =IF(LEFT(Project_Details[[#This Row],[RIN Asset Description]],17)="Power Transformer",IF((Project_Details[[#This Row],[ExpenditureAfter2021IsNotUsed]]=TRUE),FALSE,TRUE),"NA") -> NA | AZ51: =IFERROR(("None"=VLOOKUP(Project_Details[[#This Row],[ProjectID]],ProjectData[],MATCH("RepexDollarsBasis",ProjectData[#Headers],0),FALSE)),FALSE) -> FALSE | BA51: =IF(ISNUMBER(Project_Details[[#This Row],[Capitalisation Year]]),(Project_Details[[#This Row],[Capitalisation Year]]>=2016),"NA") -> NA | BB51: =(Project_Details[[#This Row],[ID]]=(ROW()-ProjectDetailsTableStartRow)) -> TRUE | BC51: =VLOOKUP(Project_Details[[#This Row],[ProjectID]],ProjectData[],MATCH("Specific Approved Project", ProjectData[#Headers],0),FALSE) -> FALSE
A52: 43 | B52: 29 | C52: =Project_Details[ID] -> 43 | D52: Buildings - Refit | E52: Non Network - Buildings And Property | F52: =ISNUMBER(MATCH(Project_Details[[#This Row],[RIN Asset Description]],Lookup_RIN_AssetCategory,0)) -> TRUE | X52: 2944 | Y52: 22064.66667 | Z52: 11032.33333 | AC52: 2027 | AD52: =IF((VLOOKUP(Project_Details[[#This Row],[ProjectID]],ProjectData[],MATCH("Capitalisation",ProjectData[#Headers],0),FALSE)="Project Close"),ISNUMBER(Project_Details[[#This Row],[Capitalisation Year]]),"NA") -> NA | AE52: 0.02 | AF52: 0 | AG52: =MAX(ABS(Project_Details[[#This Row],[NomIncur2021]:[NomIncur2027]]))>0 -> FALSE | AH52: =MAX(ABS(Project_Details[[#This Row],[RealIncur2021]:[RealIncur2027]]))>0 -> TRUE | AI52: =OR(AND(Project_Details[[#This Row],[DollarBasisImpliesNominal]],NOT(Project_Details[[#This Row],[DollarBasisImpliesReal2021]])), AND(NOT(Project_Details[[#This Row],[DollarBasisImpliesNominal]]),Project_Details[[#This Row],[DollarBasisImpliesReal2021]]),AND(NOT(Project_Details[[#This Row],[DollarBasisImpliesNominal]]),NOT(Project_Details[[#This Row],[DollarBasisImpliesReal2021]]))) -> TRUE | AJ52: =IFERROR(OR(AND(Project_Details[[#This Row],[DollarBasisImpliesNominal]],VLOOKUP(Project_Details[[#This Row],[ProjectID]],ProjectData[],MATCH("RepexDollarsBasis",ProjectData[#Headers],0),FALSE)="Nominal"),AND(Project_Details[[#This Row],[DollarBasisImpliesReal2021]],VLOOKUP(Project_Details[[#This Row],[ProjectID]],ProjectData[],MATCH("RepexDollarsBasis",ProjectData[#Headers],0),FALSE)="Real2021"),Project_Details[[#This Row],[ProjectHasNoDollarBasis]]),FALSE) -> TRUE | AK52: =IF(Project_Details[[#This Row],[DollarBasisImpliesReal2021]],AND(ISNUMBER(Project_Details[[#This Row],[Labour Internal]]),ISNUMBER(Project_Details[[#This Row],[Labour External]])),"NA") -> TRUE | AL52: =IF(Project_Details[[#This Row],[DollarBasisImpliesNominal]],NOT(OR(ISNUMBER(Project_Details[[#This Row],[Labour Internal]]),ISNUMBER(Project_Details[[#This Row],[Labour External]]))),"NA") -> NA | AM52: =IF(AND(Project_Details[[#This Row],[NomIncur2021]]=0,Project_Details[[#This Row],[WIP]]<>0),2021,IF(AND(Project_Details[[#This Row],[NomIncur2022]]=0,Project_Details[[#This Row],[NomIncur2021]]<>0),2021,IF(AND(Project_Details[[#This Row],[NomIncur2023]]=0,Project_Details[[#This Row],[NomIncur2022]]<>0),2022,IF(AND(Project_Details[[#This Row],[NomIncur2024]]=0,Project_Details[[#This Row],[NomIncur2023]]<>0),2023,IF(AND(Project_Details[[#This Row],[NomIncur2025]]=0,Project_Details[[#This Row],[NomIncur2024]]<>0),2024,IF(AND(Project_Details[[#This Row],[NomIncur2026]]=0,Project_Details[[#This Row],[NomIncur2025]]<>0),2025,IF(AND(Project_Details[[#This Row],[NomIncur2027]]=0,Project_Details[[#This Row],[NomIncur2026]]<>0),2026,IF(Project_Details[[#This Row],[NomIncur2027]]<>0,2027,"")))))))) ->  | AN52: TRUE | AO52: =IF(NOT(ISNUMBER(Project_Details[[#This Row],[Capitalisation Year]])), "NA", OR(Project_Details[[#This Row],[OverWrite_CashFlowAndCapitalisationYearAreOK]],(Project_Details[[#This Row],[LastYearOfNominalCashFlow]]=Project_Details[[#This Row],[Capitalisation Year]]))) -> TRUE | AP52: =NOT(AND(Project_Details[[#This Row],[DollarBasisImpliesNominal]],OR(ISNUMBER(Project_Details[[#This Row],[Labour Internal]]),ISNUMBER(Project_Details[[#This Row],[Labour External]])))) -> TRUE | AR52: =IF(LEFT(Project_Details[[#This Row],[RIN Asset Description]],17)="Power Transformer",IF((Project_Details[[#This Row],[ExpenditureAfter2021IsNotUsed]]=TRUE),FALSE,TRUE),"NA") -> NA | AZ52: =IFERROR(("None"=VLOOKUP(Project_Details[[#This Row],[ProjectID]],ProjectData[],MATCH("RepexDollarsBasis",ProjectData[#Headers],0),FALSE)),FALSE) -> FALSE | BA52: =IF(ISNUMBER(Project_Details[[#This Row],[Capitalisation Year]]),(Project_Details[[#This Row],[Capitalisation Year]]>=2016),"NA") -> TRUE | BB52: =(Project_Details[[#This Row],[ID]]=(ROW()-ProjectDetailsTableStartRow)) -> TRUE | BC52: =VLOOKUP(Project_Details[[#This Row],[ProjectID]],ProjectData[],MATCH("Specific Approved Project", ProjectData[#Headers],0),FALSE) -> FALSE
A53: 44 | B53: 30 | C53: =Project_Details[ID] -> 44 | D53: IT - The Early Years | E53: Non Network - IT and Communications | F53: =ISNUMBER(MATCH(Project_Details[[#This Row],[RIN Asset Description]],Lookup_RIN_AssetCategory,0)) -> TRUE | N53: 19972.46052 | V53: 17616.07 | W53: 9471.55 | X53: 0 | Y53: 0 | Z53: 0 | AA53: 0 | AB53: 0 | AD53: =IF((VLOOKUP(Project_Details[[#This Row],[ProjectID]],ProjectData[],MATCH("Capitalisation",ProjectData[#Headers],0),FALSE)="Project Close"),ISNUMBER(Project_Details[[#This Row],[Capitalisation Year]]),"NA") -> NA | AE53: 0.19 | AF53: 0 | AG53: =MAX(ABS(Project_Details[[#This Row],[NomIncur2021]:[NomIncur2027]]))>0 -> FALSE | AH53: =MAX(ABS(Project_Details[[#This Row],[RealIncur2021]:[RealIncur2027]]))>0 -> TRUE | AI53: =OR(AND(Project_Details[[#This Row],[DollarBasisImpliesNominal]],NOT(Project_Details[[#This Row],[DollarBasisImpliesReal2021]])), AND(NOT(Project_Details[[#This Row],[DollarBasisImpliesNominal]]),Project_Details[[#This Row],[DollarBasisImpliesReal2021]]),AND(NOT(Project_Details[[#This Row],[DollarBasisImpliesNominal]]),NOT(Project_Details[[#This Row],[DollarBasisImpliesReal2021]]))) -> TRUE | AJ53: =IFERROR(OR(AND(Project_Details[[#This Row],[DollarBasisImpliesNominal]],VLOOKUP(Project_Details[[#This Row],[ProjectID]],ProjectData[],MATCH("RepexDollarsBasis",ProjectData[#Headers],0),FALSE)="Nominal"),AND(Project_Details[[#This Row],[DollarBasisImpliesReal2021]],VLOOKUP(Project_Details[[#This Row],[ProjectID]],ProjectData[],MATCH("RepexDollarsBasis",ProjectData[#Headers],0),FALSE)="Real2021"),Project_Details[[#This Row],[ProjectHasNoDollarBasis]]),FALSE) -> TRUE | AK53: =IF(Project_Details[[#This Row],[DollarBasisImpliesReal2021]],AND(ISNUMBER(Project_Details[[#This Row],[Labour Internal]]),ISNUMBER(Project_Details[[#This Row],[Labour External]])),"NA") -> TRUE | AL53: =IF(Project_Details[[#This Row],[DollarBasisImpliesNominal]],NOT(OR(ISNUMBER(Project_Details[[#This Row],[Labour Internal]]),ISNUMBER(Project_Details[[#This Row],[Labour External]]))),"NA") -> NA | AM53: =IF(AND(Project_Details[[#This Row],[NomIncur2021]]=0,Project_Details[[#This Row],[WIP]]<>0),2021,IF(AND(Project_Details[[#This Row],[NomIncur2022]]=0,Project_Details[[#This Row],[NomIncur2021]]<>0),2021,IF(AND(Project_Details[[#This Row],[NomIncur2023]]=0,Project_Details[[#This Row],[NomIncur2022]]<>0),2022,IF(AND(Project_Details[[#This Row],[NomIncur2024]]=0,Project_Details[[#This Row],[NomIncur2023]]<>0),2023,IF(AND(Project_Details[[#This Row],[NomIncur2025]]=0,Project_Details[[#This Row],[NomIncur2024]]<>0),2024,IF(AND(Project_Details[[#This Row],[NomIncur2026]]=0,Project_Details[[#This Row],[NomIncur2025]]<>0),2025,IF(AND(Project_Details[[#This Row],[NomIncur2027]]=0,Project_Details[[#This Row],[NomIncur2026]]<>0),2026,IF(Project_Details[[#This Row],[NomIncur2027]]<>0,2027,"")))))))) -> 2021 | AO53: =IF(NOT(ISNUMBER(Project_Details[[#This Row],[Capitalisation Year]])), "NA", OR(Project_Details[[#This Row],[OverWrite_CashFlowAndCapitalisationYearAreOK]],(Project_Details[[#This Row],[LastYearOfNominalCashFlow]]=Project_Details[[#This Row],[Capitalisation Year]]))) -> NA | AP53: =NOT(AND(Project_Details[[#This Row],[DollarBasisImpliesNominal]],OR(ISNUMBER(Project_Details[[#This Row],[Labour Internal]]),ISNUMBER(Project_Details[[#This Row],[Labour External]])))) -> TRUE | AR53: =IF(LEFT(Project_Details[[#This Row],[RIN Asset Description]],17)="Power Transformer",IF((Project_Details[[#This Row],[ExpenditureAfter2021IsNotUsed]]=TRUE),FALSE,TRUE),"NA") -> NA | AZ53: =IFERROR(("None"=VLOOKUP(Project_Details[[#This Row],[ProjectID]],ProjectData[],MATCH("RepexDollarsBasis",ProjectData[#Headers],0),FALSE)),FALSE) -> FALSE | BA53: =IF(ISNUMBER(Project_Details[[#This Row],[Capitalisation Year]]),(Project_Details[[#This Row],[Capitalisation Year]]>=2016),"NA") -> NA | BB53: =(Project_Details[[#This Row],[ID]]=(ROW()-ProjectDetailsTableStartRow)) -> TRUE | BC53: =VLOOKUP(Project_Details[[#This Row],[ProjectID]],ProjectData[],MATCH("Specific Approved Project", ProjectData[#Headers],0),FALSE) -> FALSE
A54: 45 | B54: 31 | C54: =Project_Details[ID] -> 45 | D54: IT - Compliance & Risk | E54: Non Network - IT and Communications | F54: =ISNUMBER(MATCH(Project_Details[[#This Row],[RIN Asset Description]],Lookup_RIN_AssetCategory,0)) -> TRUE | V54: 0 | W54: 0 | X54: 1362.933548 | Y54: 958.0040159 | Z54: 335.7952221 | AA54: 0 | AB54: 0 | AD54: =IF((VLOOKUP(Project_Details[[#This Row],[ProjectID]],ProjectData[],MATCH("Capitalisation",ProjectData[#Headers],0),FALSE)="Project Close"),ISNUMBER(Project_Details[[#This Row],[Capitalisation Year]]),"NA") -> NA | AE54: 0.25 | AF54: 0 | AG54: =MAX(ABS(Project_Details[[#This Row],[NomIncur2021]:[NomIncur2027]]))>0 -> FALSE | AH54: =MAX(ABS(Project_Details[[#This Row],[RealIncur2021]:[RealIncur2027]]))>0 -> TRUE | AI54: =OR(AND(Project_Details[[#This Row],[DollarBasisImpliesNominal]],NOT(Project_Details[[#This Row],[DollarBasisImpliesReal2021]])), AND(NOT(Project_Details[[#This Row],[DollarBasisImpliesNominal]]),Project_Details[[#This Row],[DollarBasisImpliesReal2021]]),AND(NOT(Project_Details[[#This Row],[DollarBasisImpliesNominal]]),NOT(Project_Details[[#This Row],[DollarBasisImpliesReal2021]]))) -> TRUE | AJ54: =IFERROR(OR(AND(Project_Details[[#This Row],[DollarBasisImpliesNominal]],VLOOKUP(Project_Details[[#This Row],[ProjectID]],ProjectData[],MATCH("RepexDollarsBasis",ProjectData[#Headers],0),FALSE)="Nominal"),AND(Project_Details[[#This Row],[DollarBasisImpliesReal2021]],VLOOKUP(Project_Details[[#This Row],[ProjectID]],ProjectData[],MATCH("RepexDollarsBasis",ProjectData[#Headers],0),FALSE)="Real2021"),Project_Details[[#This Row],[ProjectHasNoDollarBasis]]),FALSE) -> TRUE | AK54: =IF(Project_Details[[#This Row],[DollarBasisImpliesReal2021]],AND(ISNUMBER(Project_Details[[#This Row],[Labour Internal]]),ISNUMBER(Project_Details[[#This Row],[Labour External]])),"NA") -> TRUE | AL54: =IF(Project_Details[[#This Row],[DollarBasisImpliesNominal]],NOT(OR(ISNUMBER(Project_Details[[#This Row],[Labour Internal]]),ISNUMBER(Project_Details[[#This Row],[Labour External]]))),"NA") -> NA | AM54: =IF(AND(Project_Details[[#This Row],[NomIncur2021]]=0,Project_Details[[#This Row],[WIP]]<>0),2021,IF(AND(Project_Details[[#This Row],[NomIncur2022]]=0,Project_Details[[#This Row],[NomIncur2021]]<>0),2021,IF(AND(Project_Details[[#This Row],[NomIncur2023]]=0,Project_Details[[#This Row],[NomIncur2022]]<>0),2022,IF(AND(Project_Details[[#This Row],[NomIncur2024]]=0,Project_Details[[#This Row],[NomIncur2023]]<>0),2023,IF(AND(Project_Details[[#This Row],[NomIncur2025]]=0,Project_Details[[#This Row],[NomIncur2024]]<>0),2024,IF(AND(Project_Details[[#This Row],[NomIncur2026]]=0,Project_Details[[#This Row],[NomIncur2025]]<>0),2025,IF(AND(Project_Details[[#This Row],[NomIncur2027]]=0,Project_Details[[#This Row],[NomIncur2026]]<>0),2026,IF(Project_Details[[#This Row],[NomIncur2027]]<>0,2027,"")))))))) ->  | AO54: =IF(NOT(ISNUMBER(Project_Details[[#This Row],[Capitalisation Year]])), "NA", OR(Project_Details[[#This Row],[OverWrite_CashFlowAndCapitalisationYearAreOK]],(Project_Details[[#This Row],[LastYearOfNominalCashFlow]]=Project_Details[[#This Row],[Capitalisation Year]]))) -> NA | AP54: =NOT(AND(Project_Details[[#This Row],[DollarBasisImpliesNominal]],OR(ISNUMBER(Project_Details[[#This Row],[Labour Internal]]),ISNUMBER(Project_Details[[#This Row],[Labour External]])))) -> TRUE | AR54: =IF(LEFT(Project_Details[[#This Row],[RIN Asset Description]],17)="Power Transformer",IF((Project_Details[[#This Row],[ExpenditureAfter2021IsNotUsed]]=TRUE),FALSE,TRUE),"NA") -> NA | AZ54: =IFERROR(("None"=VLOOKUP(Project_Details[[#This Row],[ProjectID]],ProjectData[],MATCH("RepexDollarsBasis",ProjectData[#Headers],0),FALSE)),FALSE) -> FALSE | BA54: =IF(ISNUMBER(Project_Details[[#This Row],[Capitalisation Year]]),(Project_Details[[#This Row],[Capitalisation Year]]>=2016),"NA") -> NA | BB54: =(Project_Details[[#This Row],[ID]]=(ROW()-ProjectDetailsTableStartRow)) -> TRUE | BC54: =VLOOKUP(Project_Details[[#This Row],[ProjectID]],ProjectData[],MATCH("Specific Approved Project", ProjectData[#Headers],0),FALSE) -> FALSE
A55: 46 | B55: 32 | C55: =Project_Details[ID] -> 46 | D55: IT - Maintain Capability | E55: Non Network - IT and Communications | F55: =ISNUMBER(MATCH(Project_Details[[#This Row],[RIN Asset Description]],Lookup_RIN_AssetCategory,0)) -> TRUE | V55: 0 | W55: 0 | X55: 4849.27806 | Y55: 7288.731585 | Z55: 4967.79402 | AA55: 7022.070673 | AB55: 2834.506727 | AD55: =IF((VLOOKUP(Project_Details[[#This Row],[ProjectID]],ProjectData[],MATCH("Capitalisation",ProjectData[#Headers],0),FALSE)="Project Close"),ISNUMBER(Project_Details[[#This Row],[Capitalisation Year]]),"NA") -> NA | AE55: 0.25 | AF55: 0 | AG55: =MAX(ABS(Project_Details[[#This Row],[NomIncur2021]:[NomIncur2027]]))>0 -> FALSE | AH55: =MAX(ABS(Project_Details[[#This Row],[RealIncur2021]:[RealIncur2027]]))>0 -> TRUE | AI55: =OR(AND(Project_Details[[#This Row],[DollarBasisImpliesNominal]],NOT(Project_Details[[#This Row],[DollarBasisImpliesReal2021]])), AND(NOT(Project_Details[[#This Row],[DollarBasisImpliesNominal]]),Project_Details[[#This Row],[DollarBasisImpliesReal2021]]),AND(NOT(Project_Details[[#This Row],[DollarBasisImpliesNominal]]),NOT(Project_Details[[#This Row],[DollarBasisImpliesReal2021]]))) -> TRUE | AJ55: =IFERROR(OR(AND(Project_Details[[#This Row],[DollarBasisImpliesNominal]],VLOOKUP(Project_Details[[#This Row],[ProjectID]],ProjectData[],MATCH("RepexDollarsBasis",ProjectData[#Headers],0),FALSE)="Nominal"),AND(Project_Details[[#This Row],[DollarBasisImpliesReal2021]],VLOOKUP(Project_Details[[#This Row],[ProjectID]],ProjectData[],MATCH("RepexDollarsBasis",ProjectData[#Headers],0),FALSE)="Real2021"),Project_Details[[#This Row],[ProjectHasNoDollarBasis]]),FALSE) -> TRUE | AK55: =IF(Project_Details[[#This Row],[DollarBasisImpliesReal2021]],AND(ISNUMBER(Project_Details[[#This Row],[Labour Internal]]),ISNUMBER(Project_Details[[#This Row],[Labour External]])),"NA") -> TRUE | AL55: =IF(Project_Details[[#This Row],[DollarBasisImpliesNominal]],NOT(OR(ISNUMBER(Project_Details[[#This Row],[Labour Internal]]),ISNUMBER(Project_Details[[#This Row],[Labour External]]))),"NA") -> NA | AM55: =IF(AND(Project_Details[[#This Row],[NomIncur2021]]=0,Project_Details[[#This Row],[WIP]]<>0),2021,IF(AND(Project_Details[[#This Row],[NomIncur2022]]=0,Project_Details[[#This Row],[NomIncur2021]]<>0),2021,IF(AND(Project_Details[[#This Row],[NomIncur2023]]=0,Project_Details[[#This Row],[NomIncur2022]]<>0),2022,IF(AND(Project_Details[[#This Row],[NomIncur2024]]=0,Project_Details[[#This Row],[NomIncur2023]]<>0),2023,IF(AND(Project_Details[[#This Row],[NomIncur2025]]=0,Project_Details[[#This Row],[NomIncur2024]]<>0),2024,IF(AND(Project_Details[[#This Row],[NomIncur2026]]=0,Project_Details[[#This Row],[NomIncur2025]]<>0),2025,IF(AND(Project_Details[[#This Row],[NomIncur2027]]=0,Project_Details[[#This Row],[NomIncur2026]]<>0),2026,IF(Project_Details[[#This Row],[NomIncur2027]]<>0,2027,"")))))))) ->  | AO55: =IF(NOT(ISNUMBER(Project_Details[[#This Row],[Capitalisation Year]])), "NA", OR(Project_Details[[#This Row],[OverWrite_CashFlowAndCapitalisationYearAreOK]],(Project_Details[[#This Row],[LastYearOfNominalCashFlow]]=Project_Details[[#This Row],[Capitalisation Year]]))) -> NA | AP55: =NOT(AND(Project_Details[[#This Row],[DollarBasisImpliesNominal]],OR(ISNUMBER(Project_Details[[#This Row],[Labour Internal]]),ISNUMBER(Project_Details[[#This Row],[Labour External]])))) -> TRUE | AR55: =IF(LEFT(Project_Details[[#This Row],[RIN Asset Description]],17)="Power Transformer",IF((Project_Details[[#This Row],[ExpenditureAfter2021IsNotUsed]]=TRUE),FALSE,TRUE),"NA") -> NA | AZ55: =IFERROR(("None"=VLOOKUP(Project_Details[[#This Row],[ProjectID]],ProjectData[],MATCH("RepexDollarsBasis",ProjectData[#Headers],0),FALSE)),FALSE) -> FALSE | BA55: =IF(ISNUMBER(Project_Details[[#This Row],[Capitalisation Year]]),(Project_Details[[#This Row],[Capitalisation Year]]>=2016),"NA") -> NA | BB55: =(Project_Details[[#This Row],[ID]]=(ROW()-ProjectDetailsTableStartRow)) -> TRUE | BC55: =VLOOKUP(Project_Details[[#This Row],[ProjectID]],ProjectData[],MATCH("Specific Approved Project", ProjectData[#Headers],0),FALSE) -> FALSE
A56: 47 | B56: 33 | C56: =Project_Details[ID] -> 47 | D56: IT - Recurrent | E56: Non Network - IT and Communications | F56: =ISNUMBER(MATCH(Project_Details[[#This Row],[RIN Asset Description]],Lookup_RIN_AssetCategory,0)) -> TRUE | V56: 0 | W56: 0 | X56: 9343.008237 | Y56: 5244.331262 | Z56: 4019.666335 | AA56: 4276.450916 | AB56: 5846.787396 | AD56: =IF((VLOOKUP(Project_Details[[#This Row],[ProjectID]],ProjectData[],MATCH("Capitalisation",ProjectData[#Headers],0),FALSE)="Project Close"),ISNUMBER(Project_Details[[#This Row],[Capitalisation Year]]),"NA") -> NA | AE56: 0.12 | AF56: 0 | AG56: =MAX(ABS(Project_Details[[#This Row],[NomIncur2021]:[NomIncur2027]]))>0 -> FALSE | AH56: =MAX(ABS(Project_Details[[#This Row],[RealIncur2021]:[RealIncur2027]]))>0 -> TRUE | AI56: =OR(AND(Project_Details[[#This Row],[DollarBasisImpliesNominal]],NOT(Project_Details[[#This Row],[DollarBasisImpliesReal2021]])), AND(NOT(Project_Details[[#This Row],[DollarBasisImpliesNominal]]),Project_Details[[#This Row],[DollarBasisImpliesReal2021]]),AND(NOT(Project_Details[[#This Row],[DollarBasisImpliesNominal]]),NOT(Project_Details[[#This Row],[DollarBasisImpliesReal2021]]))) -> TRUE | AJ56: =IFERROR(OR(AND(Project_Details[[#This Row],[DollarBasisImpliesNominal]],VLOOKUP(Project_Details[[#This Row],[ProjectID]],ProjectData[],MATCH("RepexDollarsBasis",ProjectData[#Headers],0),FALSE)="Nominal"),AND(Project_Details[[#This Row],[DollarBasisImpliesReal2021]],VLOOKUP(Project_Details[[#This Row],[ProjectID]],ProjectData[],MATCH("RepexDollarsBasis",ProjectData[#Headers],0),FALSE)="Real2021"),Project_Details[[#This Row],[ProjectHasNoDollarBasis]]),FALSE) -> TRUE | AK56: =IF(Project_Details[[#This Row],[DollarBasisImpliesReal2021]],AND(ISNUMBER(Project_Details[[#This Row],[Labour Internal]]),ISNUMBER(Project_Details[[#This Row],[Labour External]])),"NA") -> TRUE | AL56: =IF(Project_Details[[#This Row],[DollarBasisImpliesNominal]],NOT(OR(ISNUMBER(Project_Details[[#This Row],[Labour Internal]]),ISNUMBER(Project_Details[[#This Row],[Labour External]]))),"NA") -> NA | AM56: =IF(AND(Project_Details[[#This Row],[NomIncur2021]]=0,Project_Details[[#This Row],[WIP]]<>0),2021,IF(AND(Project_Details[[#This Row],[NomIncur2022]]=0,Project_Details[[#This Row],[NomIncur2021]]<>0),2021,IF(AND(Project_Details[[#This Row],[NomIncur2023]]=0,Project_Details[[#This Row],[NomIncur2022]]<>0),2022,IF(AND(Project_Details[[#This Row],[NomIncur2024]]=0,Project_Details[[#This Row],[NomIncur2023]]<>0),2023,IF(AND(Project_Details[[#This Row],[NomIncur2025]]=0,Project_Details[[#This Row],[NomIncur2024]]<>0),2024,IF(AND(Project_Details[[#This Row],[NomIncur2026]]=0,Project_Details[[#This Row],[NomIncur2025]]<>0),2025,IF(AND(Project_Details[[#This Row],[NomIncur2027]]=0,Project_Details[[#This Row],[NomIncur2026]]<>0),2026,IF(Project_Details[[#This Row],[NomIncur2027]]<>0,2027,"")))))))) ->  | AO56: =IF(NOT(ISNUMBER(Project_Details[[#This Row],[Capitalisation Year]])), "NA", OR(Project_Details[[#This Row],[OverWrite_CashFlowAndCapitalisationYearAreOK]],(Project_Details[[#This Row],[LastYearOfNominalCashFlow]]=Project_Details[[#This Row],[Capitalisation Year]]))) -> NA | AP56: =NOT(AND(Project_Details[[#This Row],[DollarBasisImpliesNominal]],OR(ISNUMBER(Project_Details[[#This Row],[Labour Internal]]),ISNUMBER(Project_Details[[#This Row],[Labour External]])))) -> TRUE | AR56: =IF(LEFT(Project_Details[[#This Row],[RIN Asset Description]],17)="Power Transformer",IF((Project_Details[[#This Row],[ExpenditureAfter2021IsNotUsed]]=TRUE),FALSE,TRUE),"NA") -> NA | AZ56: =IFERROR(("None"=VLOOKUP(Project_Details[[#This Row],[ProjectID]],ProjectData[],MATCH("RepexDollarsBasis",ProjectData[#Headers],0),FALSE)),FALSE) -> FALSE | BA56: =IF(ISNUMBER(Project_Details[[#This Row],[Capitalisation Year]]),(Project_Details[[#This Row],[Capitalisation Year]]>=2016),"NA") -> NA | BB56: =(Project_Details[[#This Row],[ID]]=(ROW()-ProjectDetailsTableStartRow)) -> TRUE | BC56: =VLOOKUP(Project_Details[[#This Row],[ProjectID]],ProjectData[],MATCH("Specific Approved Project", ProjectData[#Headers],0),FALSE) -> FALSE
